Workbook

Sheet LDC Info
Z3: 1 | AA3: Alectra Utilities Corporation-Brampton Rate Zone
Z4: 2 | AA4: Alectra Utilities Corporation-Enersource Rate Zone
Z5: 3 | AA5: Alectra Utilities Corporation-Horizon Utilities Rate Zone
Z6: 4 | AA6: Alectra Utilities Corporation-PowerStream Rate Zone
Z7: 5 | AA7: Alectra Utilities Corporation-Guelph Rate Zone
Z8: 6 | AA8: Algoma Power Inc.
Z9: 7 | AA9: Atikokan Hydro Inc.
Z10: 8 | AA10: Bluewater Power Distribution Corporation
Z11: 9 | AA11: Burlington Hydro Inc.
Z12: 10 | AA12: Canadian Niagara Power Inc.
Z13: 11 | AA13: Centre Wellington Hydro Ltd.
D14: Utility Name | E14: Canadian Niagara Power Inc. | Z14: 12 | AA14: Chapleau Public Utilities Corporation
Z15: 13 | AA15: Cooperative Hydro Embrun Inc.
D16: Assigned EB Number | E16: EB-2026-0029 | Z16: 14 | AA16: E.L.K. Energy Inc.
Z17: 15 | AA17: Elexicon Energy Inc.-Whitby Rate Zone
D18: Name of Contact and Title | E18: Oana Stefan, Manager, Regulatory Affairs | Z18: 16 | AA18: Elexicon Energy Inc.-Veridian Rate Zone
Z19: 17 | AA19: Enova Power Corp.-Kitchener-Wilmot Hydro Rate Zone
D20: Phone Number | E20: 289-230-9773 | Z20: 18 | AA20: Enova Power Corp.-Waterloo North Rate Zone
Z21: 19 | AA21: Entegrus Powerlines Inc.-For Entegrus-Main Rate Zone
D22: Email Address | E22: RegulatoryAffairs@fortisontario.com | Z22: 20 | AA22: Entegrus Powerlines Inc.-For Former St. Thomas Energy Rate Zone
Z23: 21 | AA23: ENWIN Utilities Ltd.
D24: Test Year | E24: 2027 | Z24: 22 | AA24: EPCOR Electricity Distribution Ontario Inc.
Z25: 23 | AA25: ERTH Power Corporation - ERTH Power Main Rate Zone
D26: Bridge Year | E26: =IF(ISBLANK(E24), "", E24-1) -> 2026 | Z26: 24 | AA26: ERTH POWER CORPORATION – GODERICH RATE ZONE
Z27: 25 | AA27: Essex Powerlines Corporation
D28: Last Rebasing Year | E28: 2022 | Z28: 26 | AA28: Festival Hydro Inc.
Z29: 27 | AA29: Fort Frances Power Corporation
A30: Identify the accounting standard used for the test year | Z30: 28 | AA30: GrandBridge Energy Inc.-Brantford Power Rate Zone
E31: ASPE | Z31: 29 | AA31: GrandBridge Energy Inc.-Energy+ Rate Zone
Z32: 30 | AA32: Greater Sudbury Hydro Inc.
A33: ="Did "& E14 &" update its depreciation and capitalization policies?" -> Did Canadian Niagara Power Inc. update its depreciation and capitalization policies? | Z33: 31 | AA33: Grimsby Power Incorporated
E34: No | Z34: 32 | AA34: Halton Hills Hydro Inc.
Z35: 33 | AA35: Hearst Power Distribution Co. Ltd.
A36: If "yes" to cell E34, were the changes in policies reflected in a prior rebasing application? | Z36: 34 | AA36: Hydro 2000 Inc.
Z37: 35 | AA37: Hydro Hawkesbury Inc.
Z38: 36 | AA38: Hydro One Networks Inc.
A39: ="When did "&E14&" update its actual depreciation and capitalization policies?" -> When did Canadian Niagara Power Inc. update its actual depreciation and capitalization policies? | Z39: 37 | AA39: Hydro One Networks Inc.-Former Orillia Power Distribution Corporation Service Area
E40: 2001-01-01 | Z40: 38 | AA40: Hydro One Networks Inc.-Former Peterborough Distribution Inc. Service Area
Z41: 39 | AA41: Hydro One Networks Inc.-Former Haldimand County Hydro Inc. Service Area
A42: Identify the year the applicant adopted IFRS for financial reporting purposes | Z42: 40 | AA42: Hydro One Networks Inc.-Former Norfolk Power Distribution Inc. Service Area
Z43: 41 | AA43: Hydro One Networks Inc.-Former Woodstock Hydro Services Inc. Service Area
Z44: 42 | AA44: Hydro One Remote Communites Inc.
Z45: 43 | AA45: Hydro Ottawa Limited
A46: ="Is " & E14 & " applying for cost recovery for the test and/or future year(s) for Green Energy initiatives?" -> Is Canadian Niagara Power Inc. applying for cost recovery for the test and/or future year(s) for Green Energy initiatives? | Z46: 44 | AA46: InnPower Corporation
E47: No | Z47: 45 | AA47: Kingston Hydro Corporation
Z48: 46 | AA48: Lakefront Utilities Inc.
A49: ="Is " & E14 & " an embedded distributor?" -> Is Canadian Niagara Power Inc. an embedded distributor? | E49: Partial | Z49: 47 | AA49: Lakeland Power Distribution Ltd.
Z50: 48 | AA50: London Hydro Inc.
Z51: 49 | AA51: Milton Hydro Distribution Inc.
B52: Notes | Z52: 50 | AA52: Newmarket-Tay Power Distribution Ltd.-For Former Midland Power Utility Rate Zone
Z53: 51 | AA53: Newmarket-Tay Power Distribution Ltd.-For Newmarket-Tay Power Main Rate Zone
C54: Pale green cells represent input cells. | Z54: 52 | AA54: Niagara Peninsula Energy Inc.
Z55: 53 | AA55: Niagara-on-the-Lake Hydro Inc.
C56: Pale blue cells represent drop-down lists. The applicant should select the appropriate item from the drop-down list. | Z56: 54 | AA56: North Bay Hydro Distribution Limited
Z57: 55 | AA57: Northern Ontario Wires Inc.
C58: White cells contain fixed values, automatically generated values or formulae. | N58: =IF(LEN($G58)>1, (SUMPRODUCT(--($C$81:$C$1003=$C58),--($A$81:$A$1003=$D58), --($B$81:$B$1003=$B58&"_TOTAL"), $L$1:$L$889)), "") ->  | O58: =IF(LEN($G58)>1, (SUMPRODUCT(--($C$81:$C$1003=$C58),--($A$81:$A$1003=$D58), --($B$81:$B$1003=$B58&"_TOTAL"), $M$1:$M$889)), "") ->  | Z58: 56 | AA58: Oakville Hydro Electricity Distribution Inc.
Z59: 57 | AA59: Orangeville Hydro Limited
Z60: 58 | AA60: Oshawa PUC Networks Inc.
Z61: 59 | AA61: Ottawa River Power Corporation
Z62: 60 | AA62: PUC Distribution Inc.
Z63: 61 | AA63: Renfrew Hydro Inc.
Z64: 62 | AA64: Rideau St. Lawrence Distribution Inc.
Z65: 63 | AA65: Sioux Lookout Hydro Inc.
Z66: 64 | AA66: Synergy North Corporation-Kenora Rate Zone
Z67: 65 | AA67: Synergy North Corporation-Thunder Bay Rate Zone
Z68: 66 | AA68: Tillsonburg Hydro Inc.
Z69: 67 | AA69: Toronto Hydro-Electric System Limited
Z70: 68 | AA70: Wasaga Distribution Inc.
Z71: 69 | AA71: Welland Hydro-Electric System Corp.
Z72: 70 | AA72: Wellington North Power Inc.
Z73: 71 | AA73: Westario Power Inc.
Z74: 72
Z75: 73

Sheet Index
B14: GENERAL
B15: 1 | C15: LDC Information Sheet
B16: 2 | C16: Index
B17: OPTIONAL TABS | F17: OPERATING COSTS
B18: 3 | C18: App.2-A: List of Requested Approvals - OPTIONAL | F18: 18 | G18: App.2-JA: OM&A Summary Analysis
B19: 4 | C19: App. 2-AC: Customer Engagement Worksheet - OPTIONAL | F19: 19 | G19: App.2-JB: Recoverable OM&A Cost Driver Table
B20: CAPITAL AND RELIABILITY | F20: 20 | G20: App.2-JC: OM&A Programs Table
B21: 5 | C21: App.2-AA: Capital Projects Table | F21: 21 | G21: App.2-JD: OM&A by USoA Accounts Table
B22: 6 | C22: App.2-AB: Capital Expenditures | F22: 22 | G22: App.2-L: Recoverable OM&A Cost per Customer and per FTE
B23: 7 | C23: App.2-BA: Fixed Asset Continuity Schedule | F23: 23 | G23: App.2-M: Regulatory Costs Schedule
B24: 8 | C24: Appendix 2-BB: Service Life Comparison | F24: 24 | G24: App.2-N: Shared Services and Corporate Cost Allocation
B25: 9 | C25: App.2-C_DepExp: Depreciation and Amortization Expense | F25: COST OF CAPITAL
B26: 10 | C26: App.2-D: Overhead Expenses | F26: 25 | G26: App.2-OA: Capital Structure and Cost of Capital
B27: 11 | C27: App.2-FA: Renewable Generation Connection Investment Summary | F27: 26 | G27: App.2-OB: Debt Instruments
B28: 12 | C28: App.2-FB: Calculation of Renewable Generation Connection Direct Benefits/Provincial Amount: Renewable Enabling Improvement Investments | F28: LOSS FACTORS
B29: 13 | C29: App.2-FC: Calculation of Renewable Generation Connection Direct Benefits/Provincial Amount: Renewable Expansion Investments | F29: 27 | G29: App.2-Q: Cost of Serving Embedded Distributor(s)
B30: 14 | C30: App.2-G: Service Reliability Indicators | F30: 28 | G30: App.2-R: Loss Factors
B31: REVENUES | F31: COST OF POWER
B32: 15 | C32: App.2-H: Other Revenue | F32: 29 | G32: App.2-ZA: Commodity Expense
B33: 16 | C33: App.2-IA: Load Forecast Data Instructions | F33: 30 | G33: App.2-ZB: Cost of Power
B34: 17 | C34: App.2-IB: Actual and Forecast Load and Customer Data
B36: Notes: | C36: The dates on each tab must be filled in and updated if evidence in the tab is updated.

Sheet App.2-A_Requested_Approvals
G1: File Number: | H1: =EBNUMBER -> EB-2026-0029
G2: Exhibit: | H2: OPTIONAL-not completed
G3: Tab:
G4: Schedule:
G5: Page:
G7: Date: | H7: 2026-05-19
B9: Appendix 2-A
B10: List of Requested Approvals
F11: Completing Appendix 2-A is optional
B12: The distributor may fill out the following sheet with the complete list of specific approvals requested and relevant section(s) of the legislation provided. All approvals, including accounting orders (deferral and variance accounts) new rate classes, revised specific service charges or retail service charges which the applicant is seeking, should be separately identified, as well being clearly documented in the appropriate sections of the application.
B14: Additional requests may be added by copying and pasting blank input rows, as needed.
B16: If additional requests arise, or requested approvals are removed, during the processing of the application, the distributor should update this list.
B18: =CONCATENATE('LDC Info'!E14," is seeking the following approvals in this application:") -> Canadian Niagara Power Inc. is seeking the following approvals in this application:
B20: 1

Sheet App.2-AC_Customer Engagement
B1: File Number: | C1: =EBNUMBER -> EB-2026-0029
B2: Exhibit: | C2: OPTIONAL- not completed
B3: Tab:
B4: Schedule:
B5: Page:
B7: Date: | C7: 2026-05-19
A9: Appendix 2-AC
A10: Ongoing Customer Engagement Activities Summary
B11: Completing Appendix 2-AC is optional
A12: Provide a list of customer engagement activities | B12: Provide a list of customer needs and preferences identified through each engagement activity | C12: Actions taken to respond to identified needs and preferences. If no action was taken, explain why.
A34: Application Specific Customer Engagement Activities Summary
A36: Provide a list of customer engagement activities | B36: Provide a list of customer needs and preferences identified through each engagement activity | C36: Actions taken to respond to identified needs and preferences. If no action was taken, explain why.
A58: Note: Use "ALT-ENTER" to go to the next line within a cell

Sheet App.2-AA_Capital Projects
Q1: File Number: | R1: =EBNUMBER -> EB-2026-0029
Q2: Exhibit: | R2: 2
Q3: Tab: | R3: App.2-AA_Capital Projects
Q4: Schedule:
Q5: Page:
Q7: Date: | R7: 2026-05-19
A9: Appendix 2-AA
A10: Capital Projects Table
A13: Projects | B13: =C13-1 -> 2012 | C13: 2013 | D13: =E13-1 -> 2014 | E13: =F13-1 -> 2015 | F13: =G13-1 -> 2016 | G13: =H13-1 -> 2017 | H13: =I13-1 -> 2018 | I13: 2019 | J13: 2020 | K13: 2021 | L13: 2022 | M13: 2023 | N13: 2024 | O13: =BridgeYear - 1 -> 2025 | P13: =BridgeYear & CHAR(10) & "Bridge Year" -> 2026 Bridge Year | Q13: =TestYear & CHAR(10) & "Test Year" -> 2027 Test Year | R13: =TestYear +1 -> 2028 | S13: =TestYear +2 -> 2029 | T13: =TestYear +3 -> 2030 | U13: =TestYear +4 -> 2031
A14: Reporting Basis | L14: ASPE | M14: ASPE | N14: ASPE | O14: ASPE | P14: ASPE | Q14: ASPE | R14: ASPE | S14: ASPE | T14: ASPE | U14: ASPE
A15: System Access
A16: Service Connections (Incl Subdivisions) | L16: 2571.48817 | M16: 1830.48909 | N16: 2519.96896 | O16: 2631.73392 | P16: 2978.97705 | Q16: 2881.827 | R16: 2953.872429 | S16: 3027.71924 | T16: 3103.412221 | U16: 3180.997526
A17: Meters | L17: 244.22645 | M17: 687.03811 | N17: 575.14239 | O17: 489.81167 | P17: 335.473 | Q17: 594.364 | R17: 609.224043 | S17: 624.4546441 | T17: 640.0660102 | U17: 656.0676604
A18: Transformers | L18: 120.268 | M18: 0 | N18: 48.34456 | O18: 247.40623 | P18: 100 | Q18: 65 | R18: 66.625041 | S18: 68.29066702 | T18: 69.9979337 | U18: 71.74788204
A19: Relocations, Joint-Use | L19: 235.93233 | M19: 50.46741 | N19: 145.33507 | O19: 428.14959 | P19: 439.19986 | Q19: 501.903 | R19: 514.450944 | S19: 527.3122176 | T19: 540.495023 | U19: 554.0073986
A20: Other | L20: 1.77101 | M20: 2.90122 | N20: 20.77363 | O20: 37.17324 | P20: 29.822 | Q20: 31.658 | R20: 32.449491 | S20: 33.26072827 | T20: 34.09224648 | U20: 34.94455264
A21: Sub-Total | B21: =SUM(B16:B20) -> 0 | C21: 0 | D21: 0 | E21: 0 | F21: 0 | G21: 0 | H21: 0 | I21: 0 | J21: 0 | K21: 0 | L21: =SUM(L16:L20) -> 3173.68596 | M21: =SUM(M16:M20) -> 2570.89583 | N21: 3309.56461 | O21: 3834.27465 | P21: 3883.47191 | Q21: 4074.752 | R21: 4176.621948 | S21: 4281.037497 | T21: 4388.063434 | U21: 4497.76502
A22: System Renewal
A23: New Meters | L23: 0 | M23: 0 | N23: 0 | O23: 19.05582 | P23: 14.463 | Q23: 1018.365 | R23: 1091.696832 | S23: 1118.989253 | T23: 1146.963984 | U23: 1175.638084
A24: Transformers | L24: 693.60645 | M24: 2366.19954 | N24: 2223.43008 | O24: 553.86357 | P24: 420.513 | Q24: 860 | R24: 779 | S24: 798.475 | T24: 818.436875 | U24: 838.8977969
A26: Voltage Conversion (SR)
A27: (hist) | L27: 3023.11313 | M27: 2465.29715 | N27: 6091.6064 | O27: 5407.46769 | P27: 1166.00659 | Q27: 0 | R27: 0 | S27: 0 | T27: 0 | U27: 0
A28: Delta to Wye | L28: 0 | M28: 0 | N28: 0 | O28: 0 | P28: 0 | Q28: 540.794 | R28: 0 | S28: 0 | T28: 0 | U28: 0
A29: Stevensville | L29: 0 | M29: 0 | N29: 0 | O29: 0 | P29: 0 | Q29: 1277.556 | R29: 410.205 | S29: 0 | T29: 0 | U29: 0
A30: PC East (Killaly) | L30: 0 | M30: 0 | N30: 0 | O30: 0 | P30: 0 | Q30: 1636.361 | R30: 1574.770025 | S30: 1651.962826 | T30: 0 | U30: 0
A31: Crystal Beach | L31: 0 | M31: 0 | N31: 0 | O31: 0 | P31: 0 | Q31: 0 | R31: 0 | S31: 736.4324419 | T31: 819.4566904 | U31: 916.6581036
A33: lines (SR)
A34: Rebuilds/Upgrades/Replacements (hist) | L34: 1323.7142 | M34: 2106.6882 | N34: 3302.38057 | O34: 5041.55969 | P34: 2604.0871 | Q34: 0 | R34: 0 | S34: 0 | T34: 0 | U34: 0
A35: Pole Replacements (Deficiency) | L35: 0 | M35: 0 | N35: 0 | O35: 0 | P35: 0 | Q35: 1452.931 | R35: 1482.918586 | S35: 1519.991551 | T35: 1557.991339 | U35: 1596.941123
A36: Ridgeway Line Reconfiguration | L36: 0 | M36: 0 | N36: 0 | O36: 0 | P36: 0 | Q36: 0 | R36: 2890.006975 | S36: 2786.277462 | T36: 2820.935453 | U36: 2118.789816
A37: Misc. Line Replacements/ Reinforcements | L37: 0 | M37: 0 | N37: 0 | O37: 0 | P37: 0 | Q37: 522.544 | R37: 535.607928 | S37: 708.5159068 | T37: 889.7345295 | U37: 911.9778928
A38: Downtown Line Rebuild | L38: 0 | M38: 0 | N38: 0 | O38: 0 | P38: 0 | Q38: 824.227 | R38: 427.040625 | S38: 0 | T38: 0 | U38: 0
A39: West Line Rebuild | L39: 0 | M39: 0 | N39: 0 | O39: 0 | P39: 0 | Q39: 292.546 | R39: 652.540625 | S39: 736.6194531 | T39: 750.1889316 | U39: 857.2486862
A40: Tie Lines between Gilmore and Rosehill Stations | L40: 0 | M40: 0 | N40: 0 | O40: 0 | P40: 0 | Q40: 1351.512 | R40: 0 | S40: 0 | T40: 0 | U40: 0
A41: North Line Rebuild | L41: 0 | M41: 0 | N41: 0 | O41: 0 | P41: 0 | Q41: 0 | R41: 0 | S41: 787.96875 | T41: 753.8234375 | U41: 772.6690234
A42: PC Welland Canal Line Crossing | L42: 0 | M42: 0 | N42: 0 | O42: 0 | P42: 0 | Q42: 0 | R42: 0 | S42: 0 | T42: 0 | U42: 1359.574414
A44: Stations (SR)
A45: Port Colborne TS Rebuild | L45: 0 | M45: 1125.04059 | N45: 86.56207 | O45: 20.336 | P45: 0 | Q45: 0 | R45: 0 | S45: 0 | T45: 0 | U45: 0
A46: Gananoque Distributed Stations | L46: 0 | M46: 898.2938 | N46: 0.04789 | O46: 0 | P46: 0 | Q46: 0 | R46: 0 | S46: 0 | T46: 0 | U46: 0
A47: Sherkston DS Transformer | L47: 0 | M47: 668.33241 | N47: 0 | O47: 0 | P47: 0 | Q47: 0 | R47: 0 | S47: 0 | T47: 0 | U47: 0
A48: Other (Stations) | L48: 5812.93835 | M48: 81.9647 | N48: 89.16986 | O48: 141.32248 | P48: 42.95 | Q48: 0 | R48: 0 | S48: 0 | T48: 0 | U48: 0
A50: New Ridgeway Station | L50: 0 | M50: 0 | N50: 0 | O50: 0 | P50: 0 | Q50: 0 | R50: 0 | S50: 0 | T50: 4938.578125 | U50: 0
A52: Other (SR)
A53: Storm Capital | L53: 321.77329 | M53: 1128.24709 | N53: 73.50486 | O53: 9.31189 | P53: 76.55024 | Q53: 260.426 | R53: 266.945629 | S53: 273.6192697 | T53: 280.4597515 | U53: 287.4712453
A54: Other | L54: 0 | M54: 224.54906 | N54: 0 | O54: 0 | P54: 0 | Q54: 113.64 | R54: 116.480631 | S54: 134.6756264 | T54: 153.7075711 | U54: 157.5502604
A56: Sub-Total | B56: =SUM(B23:B55) -> 0 | C56: 0 | D56: 0 | E56: 0 | F56: 0 | G56: 0 | H56: 0 | I56: 0 | J56: 0 | K56: 0 | L56: 11175.14542 | M56: 11064.61254 | N56: 11866.70173 | O56: 11192.91714 | P56: 4324.56993 | Q56: 10150.902 | R56: 10227.21286 | S56: 11253.52754 | T56: 14930.27669 | U56: 10993.41645
A57: System Service
A58: Voltage Conversion | L58: 138.21495 | M58: 17.38526 | N58: 118.69006 | O58: 252.18867 | P58: 0 | Q58: 0 | R58: 0 | S58: 0 | T58: 0 | U58: 0
A59: Line Rebuilds/Upgrades/Replacements | L59: 94.08661 | M59: 491.47893 | N59: 69.9 | O59: 41.0151 | P59: 399.67892 | Q59: 0 | R59: 0 | S59: 0 | T59: 0 | U59: 0
A60: Gananoque Main Substation | L60: 0 | M60: 0 | N60: 0 | O60: 0 | P60: 0 | Q60: 1616.14485 | R60: 0 | S60: 0 | T60: 0 | U60: 0
A62: Stations (SS)
A63: Stevensville | L63: 0 | M63: 1691.39369 | N63: 1208.75758 | O63: 0 | P63: 0 | Q63: 0 | R63: 0 | S63: 0 | T63: 0 | U63: 0
A64: Station 19 | L64: 0 | M64: 173.71754 | N64: 0 | O64: 0 | P64: 34.822 | Q64: 0 | R64: 0 | S64: 0 | T64: 0 | U64: 0
A66: Distribution (SS)
A67: Automation | L67: 7.29406 | M67: 0 | N67: 125.21721 | O67: 11.31113 | P67: 247.367 | Q67: 0 | R67: 0 | S67: 0 | T67: 0 | U67: 0
A68: Automation, SCADA, P&C | L68: 0 | M68: 0 | N68: 0 | O68: 0 | P68: 0 | Q68: 605.918 | R68: 615 | S68: 724.93125 | T68: 619.2121094 | U68: 651.2496055
A70: Other (SS)
A71: Other (Stations) | L71: 77.47836 | M71: -0.03398 | N71: 0 | O71: 0 | P71: 29.745 | Q71: 0 | R71: 0 | S71: 0 | T71: 0 | U71: 0
A72: Other | L72: 0 | M72: 0 | N72: 171.71123 | O72: -0.08803 | P72: 104.001 | Q72: 132.799 | R72: 136.119795 | S72: 182.919696 | T72: 231.9745172 | U72: 237.7738801
A74: Sub-Total | B74: =SUM(B58:B73) -> 0 | C74: 0 | D74: 0 | E74: 0 | F74: 0 | G74: 0 | H74: 0 | I74: 0 | J74: 0 | K74: 0 | L74: 317.07398 | M74: 2373.94144 | N74: 1694.27608 | O74: 304.42687 | P74: 815.61392 | Q74: 2354.86185 | R74: 751.119795 | S74: 907.850946 | T74: 851.1866266 | U74: 889.0234856
A75: General Plant
A76: IT Software | L76: 517.92415 | M76: 1199.23786 | N76: 618.50063 | O76: 1242.02323 | P76: 1330.63953 | Q76: 1089.425 | R76: 118.156276 | S76: 6377.586564 | T76: 902.0754375 | U76: 920.5523234
A77: IT Hardware | L77: 166.3675 | M77: 195.98128 | N77: 220.42344 | O77: 454.45875 | P77: 296.74248 | Q77: 271.795 | R77: 159 | S77: 162 | T77: 166 | U77: 169
A78: Fleet | L78: 453.47859 | M78: 537.62436 | N78: 107.87241 | O78: 1234.50638 | P78: 0 | Q78: 335.50004 | R78: 1759.186797 | S78: 1997.201353 | T78: 466.1401837 | U78: 1301.968001
A79: Facilities/Yards/Land | L79: 467.47071 | M79: 24.26526 | N79: 349.86503 | O79: 488.22084 | P79: 99.166 | Q79: 2013.948 | R79: 642.755475 | S79: 232.6743619 | T79: 237.6162209 | U79: 242.5816264
A80: Other | L80: 56.73565 | M80: 213.7024 | N80: 135.1735 | O80: 155.07151 | P80: 180.65323 | Q80: 206 | R80: 179.650041 | S80: 183.391292 | T80: 187.2260743 | U80: 191.1567262
A81: Niagara Control Room Upgrade | L81: 0 | M81: 0 | N81: 0 | O81: 0 | P81: 0 | Q81: 700 | R81: 200 | S81: 0 | T81: 0 | U81: 0
A83: Sub-Total | B83: =SUM(B76:B82) -> 0 | C83: 0 | D83: 0 | E83: 0 | F83: 0 | G83: 0 | H83: 0 | I83: 0 | J83: 0 | K83: 0 | L83: =SUM(L76:L82) -> 1661.9766 | M83: =SUM(M76:M82) -> 2170.81116 | N83: 1431.83501 | O83: 3574.28071 | P83: 1907.20124 | Q83: 4616.66804 | R83: 3058.748589 | S83: 8952.853571 | T83: 1959.057916 | U83: 2825.258677
A84: Miscellaneous
A85: Capital Contribution | L85: 1409.62656 | M85: 1924.99242 | N85: 1036.09879 | O85: 2837.78185 | P85: 1650 | Q85: 1250 | R85: 1281.25 | S85: 1313.28125 | T85: 1346.113281 | U85: 1379.766113
A86: Total | B86: =SUMPRODUCT(--($A15:$A84="Sub-Total"), B$15:B$84)+B84 -> 0 | C86: 0 | D86: 0 | E86: 0 | F86: 0 | G86: 0 | H86: 0 | I86: 0 | J86: 0 | K86: 0 | L86: =SUMPRODUCT(--($A15:$A84="Sub-Total"), L$15:L$84)+L84-L85 -> 14918.2554 | M86: =SUMPRODUCT(--($A15:$A84="Sub-Total"), M$15:M$84)+M84-M85 -> 16255.26855 | N86: =SUMPRODUCT(--($A15:$A84="Sub-Total"), N$15:N$84)+N84-N85 -> 17266.27864 | O86: =SUMPRODUCT(--($A15:$A84="Sub-Total"), O$15:O$84)+O84-O85 -> 16068.11752 | P86: =SUMPRODUCT(--($A15:$A84="Sub-Total"), P$15:P$84)+P84-P85 -> 9280.857 | Q86: =SUMPRODUCT(--($A15:$A84="Sub-Total"), Q$15:Q$84)+Q84-Q85 -> 19947.18389 | R86: =SUMPRODUCT(--($A15:$A84="Sub-Total"), R$15:R$84)+R84-R85 -> 16932.45319 | S86: =SUMPRODUCT(--($A15:$A84="Sub-Total"), S$15:S$84)+S84-S85 -> 24081.9883 | T86: =SUMPRODUCT(--($A15:$A84="Sub-Total"), T$15:T$84)+T84-T85 -> 20782.47138 | U86: =SUMPRODUCT(--($A15:$A84="Sub-Total"), U$15:U$84)+U84-U85 -> 17825.69751
A87: Less Renewable Generation Facility Assets and Other Non-Rate-Regulated Utility Assets (input as negative)
A88: Total | B88: =B86+B87 -> 0 | C88: 0 | D88: 0 | E88: 0 | F88: =F86+F87 -> 0 | G88: 0 | H88: 0 | I88: 0 | J88: 0 | K88: 0 | L88: =L86+L87 -> 14918.2554 | M88: 16255.26855 | N88: 17266.27864 | O88: 16068.11752 | P88: 9280.857 | Q88: 19947.18389 | R88: =R86+R87 -> 16932.45319 | S88: 24081.9883 | T88: 20782.47138 | U88: 17825.69751
A90: Notes:
A92: 1 Please provide a breakdown of the major components of each capital project undertaken in each year. Please ensure that all projects below the materiality threshold are included in the miscellaneous line. Add more projects as required.
A93: 2 The applicant should group projects appropriately and avoid presentations that result in classification of significant components of the capital budget in the miscellaneous category.
A94: 3 Utilities may add more rows as needed.

Sheet App.2-AB_Capital Expenditures
AW1: File Number: | AY1: =EBNUMBER -> EB-2026-0029
AW2: Exhibit: | AY2: 2
AW3: Tab: | AY3: App.2-AB_Capital Expenditures
AW4: Schedule:
AW5: Page:
AW6: Date: | AY6: 2026-05-19
A7: Show RRR data | AU7: Capital Expenditures = In Service Additions | AY7: Yes
A8: Yes | AT8: ="Number of months of 'actual' data in bridge year ("&AR14&")" -> Number of months of 'actual' data in bridge year (2026) | AY8: 0
A9: Appendix 2-AB
A10: Table 2 - Capital Expenditure Summary from Chapter 5 Consolidated Distribution System Plan Filing Requirements
A11: First year of Forecast Period:
A12: =TestYear -> 2027
A13: CATEGORY | AU13: Forecast Period (planned)
B14: =E14-1 -> 2012 | E14: =H14-1 -> 2013 | H14: =K14-1 -> 2014 | K14: =N14-1 -> 2015 | N14: =Q14-1 -> 2016 | Q14: =T14-1 -> 2017 | T14: =W14-1 -> 2018 | W14: =Z14-1 -> 2019 | Z14: =AC14-1 -> 2020 | AC14: =AF14-1 -> 2021 | AF14: =AI14-1 -> 2022 | AI14: =AL14-1 -> 2023 | AL14: =AO14-1 -> 2024 | AO14: =AR14-1 -> 2025 | AR14: =AU14-1 -> 2026 | AU14: =A12 -> 2027 | AV14: =AU14+1 -> 2028 | AW14: =AV14+1 -> 2029 | AX14: =AW14+1 -> 2030 | AY14: =AX14+1 -> 2031
B15: Plan | C15: Actual | D15: Var | E15: Plan | F15: Actual | G15: Var | H15: Plan | I15: Actual | J15: Var | K15: Plan | L15: Actual | M15: Var | N15: Plan | O15: Actual | P15: Var | Q15: Plan | R15: Actual | S15: Var | T15: Plan | U15: Actual | V15: Var | W15: Plan | X15: Actual | Y15: Var | Z15: Plan | AA15: Actual | AB15: Var | AC15: Plan | AD15: Actual | AE15: Var | AF15: Plan | AG15: Actual | AH15: Var | AI15: Plan | AJ15: Actual | AK15: Var | AL15: Plan | AM15: Actual | AN15: Var | AO15: Plan | AP15: Actual | AQ15: Var | AR15: Plan | AS15: Actual2 | AT15: Var
B16: $ '000 | D16: % | E16: $ '000 | G16: % | H16: $ '000 | J16: % | K16: $ '000 | M16: % | N16: $ '000 | P16: % | Q16: $ '000 | S16: % | T16: $ '000 | V16: % | W16: $ '000 | Y16: % | Z16: $ '000 | AB16: % | AC16: $ '000 | AE16: % | AF16: $ '000 | AH16: % | AI16: $ '000 | AK16: % | AL16: $ '000 | AN16: % | AO16: $ '000 | AQ16: % | AR16: $ '000 | AT16: % | AU16: $ '000
A17: System Access | C17: ='App.2-AA_Capital Projects'!#REF!/1000 ->  | D17: =IF(ISERROR((C17-B17)/B17),"--",(C17-B17)/B17) -> -- | F17: ='App.2-AA_Capital Projects'!#REF!/1000 ->  | G17: =IF(ISERROR((F17-E17)/E17),"--",(F17-E17)/E17) -> -- | I17: ='App.2-AA_Capital Projects'!#REF!/1000 ->  | J17: =IF(ISERROR((I17-H17)/H17),"--",(I17-H17)/H17) -> -- | L17: ='App.2-AA_Capital Projects'!#REF!/1000 ->  | M17: =IF(ISERROR((L17-K17)/K17),"--",(L17-K17)/K17) -> -- | O17: ='App.2-AA_Capital Projects'!#REF!/1000 ->  | P17: =IF(ISERROR((O17-N17)/N17),"--",(O17-N17)/N17) -> -- | R17: ='App.2-AA_Capital Projects'!#REF!/1000 ->  | S17: =IF(ISERROR((R17-Q17)/Q17),"--",(R17-Q17)/Q17) -> -- | U17: ='App.2-AA_Capital Projects'!#REF!/1000 ->  | V17: =IF(ISERROR((U17-T17)/T17),"--",(U17-T17)/T17) -> -- | X17: ='App.2-AA_Capital Projects'!#REF!/1000 ->  | Y17: =IF(ISERROR((X17-W17)/W17),"--",(X17-W17)/W17) -> -- | AA17: ='App.2-AA_Capital Projects'!#REF!/1000 ->  | AB17: =IF(ISERROR((AA17-Z17)/Z17),"--",(AA17-Z17)/Z17) -> -- | AD17: ='App.2-AA_Capital Projects'!#REF!/1000 ->  | AE17: =IF(ISERROR((AD17-AC17)/AC17),"--",(AD17-AC17)/AC17) -> -- | AF17: 1771.43472 | AG17: ='App.2-AA_Capital Projects'!$L21 -> 3173.68596 | AH17: =IF(ISERROR((AG17-AF17)/AF17),"--",(AG17-AF17)/AF17) -> 0.7915906943 | AI17: 1718 | AJ17: ='App.2-AA_Capital Projects'!$M21 -> 2570.89583 | AK17: =IF(ISERROR((AJ17-AI17)/AI17),"--",(AJ17-AI17)/AI17) -> 0.4964469325 | AL17: 1710 | AM17: ='App.2-AA_Capital Projects'!$N21 -> 3309.56461 | AN17: =IF(ISERROR((AM17-AL17)/AL17),"--",(AM17-AL17)/AL17) -> 0.9354179006 | AO17: 1711 | AP17: ='App.2-AA_Capital Projects'!$O21 -> 3834.27465 | AQ17: =IF(ISERROR((AP17-AO17)/AO17),"--",(AP17-AO17)/AO17) -> 1.240955377 | AR17: 1711 | AS17: ='App.2-AA_Capital Projects'!$P21 -> 3883.47191 | AT17: =IF(ISERROR((AS17-AR17)/AR17),"--",(AS17-AR17)/AR17) -> 1.26970889 | AU17: ='App.2-AA_Capital Projects'!Q$21 -> 4074.752 | AV17: ='App.2-AA_Capital Projects'!R$21 -> 4176.621948 | AW17: ='App.2-AA_Capital Projects'!S$21 -> 4281.037497 | AX17: ='App.2-AA_Capital Projects'!T$21 -> 4388.063434 | AY17: ='App.2-AA_Capital Projects'!U$21 -> 4497.76502
A18: System Renewal | C18: ='App.2-AA_Capital Projects'!#REF!/1000 ->  | D18: =IF(ISERROR((C18-B18)/B18),"--",(C18-B18)/B18) -> -- | F18: ='App.2-AA_Capital Projects'!#REF!/1000 ->  | G18: =IF(ISERROR((F18-E18)/E18),"--",(F18-E18)/E18) -> -- | I18: ='App.2-AA_Capital Projects'!#REF!/1000 ->  | J18: =IF(ISERROR((I18-H18)/H18),"--",(I18-H18)/H18) -> -- | L18: ='App.2-AA_Capital Projects'!#REF!/1000 ->  | M18: =IF(ISERROR((L18-K18)/K18),"--",(L18-K18)/K18) -> -- | O18: ='App.2-AA_Capital Projects'!#REF!/1000 ->  | P18: =IF(ISERROR((O18-N18)/N18),"--",(O18-N18)/N18) -> -- | R18: ='App.2-AA_Capital Projects'!#REF!/1000 ->  | S18: =IF(ISERROR((R18-Q18)/Q18),"--",(R18-Q18)/Q18) -> -- | U18: ='App.2-AA_Capital Projects'!#REF!/1000 ->  | V18: =IF(ISERROR((U18-T18)/T18),"--",(U18-T18)/T18) -> -- | X18: ='App.2-AA_Capital Projects'!#REF!/1000 ->  | Y18: =IF(ISERROR((X18-W18)/W18),"--",(X18-W18)/W18) -> -- | AA18: ='App.2-AA_Capital Projects'!#REF!/1000 ->  | AB18: =IF(ISERROR((AA18-Z18)/Z18),"--",(AA18-Z18)/Z18) -> -- | AD18: ='App.2-AA_Capital Projects'!#REF!/1000 ->  | AE18: =IF(ISERROR((AD18-AC18)/AC18),"--",(AD18-AC18)/AC18) -> -- | AF18: 7258.7964 | AG18: ='App.2-AA_Capital Projects'!$L56 -> 11175.14542 | AH18: =IF(ISERROR((AG18-AF18)/AF18),"--",(AG18-AF18)/AF18) -> 0.5395314601 | AI18: 6537 | AJ18: ='App.2-AA_Capital Projects'!$M56 -> 11064.61254 | AK18: =IF(ISERROR((AJ18-AI18)/AI18),"--",(AJ18-AI18)/AI18) -> 0.6926132079 | AL18: 7826 | AM18: ='App.2-AA_Capital Projects'!$N56 -> 11866.70173 | AN18: =IF(ISERROR((AM18-AL18)/AL18),"--",(AM18-AL18)/AL18) -> 0.5163176246 | AO18: 6865 | AP18: ='App.2-AA_Capital Projects'!$O56 -> 11192.91714 | AQ18: =IF(ISERROR((AP18-AO18)/AO18),"--",(AP18-AO18)/AO18) -> 0.6304322127 | AR18: 6865 | AS18: ='App.2-AA_Capital Projects'!$P56 -> 4324.56993 | AT18: =IF(ISERROR((AS18-AR18)/AR18),"--",(AS18-AR18)/AR18) -> -0.3700553634 | AU18: ='App.2-AA_Capital Projects'!Q$56 -> 10150.902 | AV18: ='App.2-AA_Capital Projects'!R$56 -> 10227.21286 | AW18: ='App.2-AA_Capital Projects'!S$56 -> 11253.52754 | AX18: ='App.2-AA_Capital Projects'!T$56 -> 14930.27669 | AY18: ='App.2-AA_Capital Projects'!U$56 -> 10993.41645
A19: System Service | C19: ='App.2-AA_Capital Projects'!#REF!/1000 ->  | D19: -- | F19: ='App.2-AA_Capital Projects'!#REF!/1000 ->  | G19: -- | I19: ='App.2-AA_Capital Projects'!#REF!/1000 ->  | J19: -- | L19: ='App.2-AA_Capital Projects'!#REF!/1000 ->  | M19: -- | O19: ='App.2-AA_Capital Projects'!#REF!/1000 ->  | P19: -- | R19: ='App.2-AA_Capital Projects'!#REF!/1000 ->  | S19: -- | U19: ='App.2-AA_Capital Projects'!#REF!/1000 ->  | V19: -- | X19: ='App.2-AA_Capital Projects'!#REF!/1000 ->  | Y19: -- | AA19: ='App.2-AA_Capital Projects'!#REF!/1000 ->  | AB19: -- | AD19: ='App.2-AA_Capital Projects'!#REF!/1000 ->  | AE19: -- | AF19: 3305.277 | AG19: ='App.2-AA_Capital Projects'!$L74 -> 317.07398 | AH19: -0.9040703759 | AI19: 1695 | AJ19: ='App.2-AA_Capital Projects'!$M74 -> 2373.94144 | AK19: 0.4005554218 | AL19: 1345 | AM19: ='App.2-AA_Capital Projects'!$N74 -> 1694.27608 | AN19: 0.2596848178 | AO19: 1295 | AP19: ='App.2-AA_Capital Projects'!$O74 -> 304.42687 | AQ19: -0.7649213359 | AR19: 1845 | AS19: ='App.2-AA_Capital Projects'!$P74 -> 815.61392 | AT19: -0.5579328347 | AU19: ='App.2-AA_Capital Projects'!Q$74 -> 2354.86185 | AV19: ='App.2-AA_Capital Projects'!R$74 -> 751.119795 | AW19: ='App.2-AA_Capital Projects'!S$74 -> 907.850946 | AX19: ='App.2-AA_Capital Projects'!T$74 -> 851.1866266 | AY19: ='App.2-AA_Capital Projects'!U$74 -> 889.0234856
A20: General Plant | C20: ='App.2-AA_Capital Projects'!#REF!/1000 ->  | D20: -- | F20: ='App.2-AA_Capital Projects'!#REF!/1000 ->  | G20: -- | I20: ='App.2-AA_Capital Projects'!#REF!/1000 ->  | J20: -- | L20: ='App.2-AA_Capital Projects'!#REF!/1000 ->  | M20: -- | O20: ='App.2-AA_Capital Projects'!#REF!/1000 ->  | P20: -- | R20: ='App.2-AA_Capital Projects'!#REF!/1000 ->  | S20: -- | U20: ='App.2-AA_Capital Projects'!#REF!/1000 ->  | V20: -- | X20: ='App.2-AA_Capital Projects'!#REF!/1000 ->  | Y20: -- | AA20: ='App.2-AA_Capital Projects'!#REF!/1000 ->  | AB20: -- | AD20: ='App.2-AA_Capital Projects'!#REF!/1000 ->  | AE20: -- | AF20: 2007.23928 | AG20: ='App.2-AA_Capital Projects'!$L83 -> 1661.9766 | AH20: -0.1720087303 | AI20: 1846 | AJ20: ='App.2-AA_Capital Projects'!$M83 -> 2170.81116 | AK20: 0.1759540412 | AL20: 1851 | AM20: ='App.2-AA_Capital Projects'!$N83 -> 1431.83501 | AN20: -0.2264532631 | AO20: 1708 | AP20: ='App.2-AA_Capital Projects'!$O83 -> 3574.28071 | AQ20: 1.092670205 | AR20: 1578 | AS20: ='App.2-AA_Capital Projects'!$P83 -> 1907.20124 | AT20: 0.2086192902 | AU20: ='App.2-AA_Capital Projects'!Q$83 -> 4616.66804 | AV20: ='App.2-AA_Capital Projects'!R$83 -> 3058.748589 | AW20: ='App.2-AA_Capital Projects'!S$83 -> 8952.853571 | AX20: ='App.2-AA_Capital Projects'!T$83 -> 1959.057916 | AY20: ='App.2-AA_Capital Projects'!U$83 -> 2825.258677
A21: TOTAL EXPENDITURE | B21: =SUM(B17:B20) -> 0 | C21: =SUM(C17:C20) ->  | D21: -- | E21: =SUM(E17:E20) -> 0 | F21: =SUM(F17:F20) ->  | G21: -- | H21: =SUM(H17:H20) -> 0 | I21: =SUM(I17:I20) ->  | J21: -- | K21: =SUM(K17:K20) -> 0 | L21: =SUM(L17:L20) ->  | M21: -- | N21: =SUM(N17:N20) -> 0 | O21: =SUM(O17:O20) ->  | P21: -- | Q21: =SUM(Q17:Q20) -> 0 | R21: =SUM(R17:R20) ->  | S21: -- | T21: =SUM(T17:T20) -> 0 | U21: =SUM(U17:U20) ->  | V21: -- | X21: =SUM(X17:X20) ->  | Y21: -- | AA21: =SUM(AA17:AA20) ->  | AB21: -- | AC21: =SUM(AC17:AC20) -> 0 | AD21: =SUM(AD17:AD20) ->  | AE21: -- | AF21: =SUM(AF17:AF20) -> 14342.7474 | AG21: =SUM(AG17:AG20) -> 16327.88196 | AH21: 0.138406855 | AI21: =SUM(AI17:AI20) -> 11796 | AJ21: =SUM(AJ17:AJ20) -> 18180.26097 | AK21: 0.5412225305 | AL21: =SUM(AL17:AL20) -> 12732 | AM21: =SUM(AM17:AM20) -> 18302.37743 | AN21: 0.4375100086 | AO21: =SUM(AO17:AO20) -> 11579 | AP21: =SUM(AP17:AP20) -> 18905.89937 | AQ21: 0.6327747966 | AR21: =SUM(AR17:AR20) -> 11999 | AS21: =SUM(AS17:AS20) -> 10930.857 | AT21: -0.08901933494 | AU21: =SUM(AU17:AU20) -> 21197.18389 | AV21: =SUM(AV17:AV20) -> 18213.70319 | AW21: =SUM(AW17:AW20) -> 25395.26955 | AX21: =SUM(AX17:AX20) -> 22128.58467 | AY21: =SUM(AY17:AY20) -> 19205.46363
A22: Capital Contributions | C22: =('App.2-AA_Capital Projects'!#REF!+'App.2-AA_Capital Projects'!#REF!+'App.2-AA_Capital Projects'!#REF!+'App.2-AA_Capital Projects'!#REF!)/1000 ->  | D22: -- | F22: =('App.2-AA_Capital Projects'!#REF!+'App.2-AA_Capital Projects'!#REF!+'App.2-AA_Capital Projects'!#REF!+'App.2-AA_Capital Projects'!#REF!)/1000 ->  | G22: -- | I22: =('App.2-AA_Capital Projects'!#REF!+'App.2-AA_Capital Projects'!#REF!+'App.2-AA_Capital Projects'!#REF!+'App.2-AA_Capital Projects'!#REF!)/1000 ->  | J22: -- | L22: =('App.2-AA_Capital Projects'!#REF!+'App.2-AA_Capital Projects'!#REF!+'App.2-AA_Capital Projects'!#REF!+'App.2-AA_Capital Projects'!#REF!)/1000 ->  | M22: -- | O22: =('App.2-AA_Capital Projects'!#REF!+'App.2-AA_Capital Projects'!#REF!+'App.2-AA_Capital Projects'!#REF!+'App.2-AA_Capital Projects'!#REF!)/1000 ->  | P22: -- | R22: =('App.2-AA_Capital Projects'!#REF!+'App.2-AA_Capital Projects'!#REF!+'App.2-AA_Capital Projects'!#REF!+'App.2-AA_Capital Projects'!#REF!)/1000 ->  | S22: -- | U22: =('App.2-AA_Capital Projects'!#REF!+'App.2-AA_Capital Projects'!#REF!+'App.2-AA_Capital Projects'!#REF!+'App.2-AA_Capital Projects'!#REF!)/1000 ->  | V22: -- | X22: =('App.2-AA_Capital Projects'!#REF!+'App.2-AA_Capital Projects'!#REF!+'App.2-AA_Capital Projects'!#REF!+'App.2-AA_Capital Projects'!#REF!)/1000 ->  | Y22: -- | AA22: =('App.2-AA_Capital Projects'!#REF!+'App.2-AA_Capital Projects'!#REF!+'App.2-AA_Capital Projects'!#REF!+'App.2-AA_Capital Projects'!#REF!)/1000 ->  | AB22: -- | AD22: =('App.2-AA_Capital Projects'!#REF!+'App.2-AA_Capital Projects'!#REF!+'App.2-AA_Capital Projects'!#REF!+'App.2-AA_Capital Projects'!#REF!)/1000 ->  | AE22: -- | AF22: 900 | AG22: ='App.2-AA_Capital Projects'!$L85 -> 1409.62656 | AH22: 0.5662517333 | AI22: 850 | AJ22: ='App.2-AA_Capital Projects'!$M85 -> 1924.99242 | AK22: 1.264696965 | AL22: 850 | AM22: ='App.2-AA_Capital Projects'!$N85 -> 1036.09879 | AN22: 0.2189397529 | AO22: 850 | AP22: ='App.2-AA_Capital Projects'!$O85 -> 2837.78185 | AQ22: 2.338566882 | AR22: 850 | AS22: ='App.2-AA_Capital Projects'!$P85 -> 1650 | AT22: 0.9411764706 | AU22: ='App.2-AA_Capital Projects'!Q$85 -> 1250 | AV22: ='App.2-AA_Capital Projects'!R$85 -> 1281.25 | AW22: ='App.2-AA_Capital Projects'!S$85 -> 1313.28125 | AX22: ='App.2-AA_Capital Projects'!T$85 -> 1346.113281 | AY22: ='App.2-AA_Capital Projects'!U$85 -> 1379.766113
A23: NET CAPITAL EXPENDITURES | B23: =B21-B22 -> 0 | C23: =C21-C22 ->  | D23: -- | E23: =E21-E22 -> 0 | F23: =F21-F22 ->  | G23: -- | H23: =H21-H22 -> 0 | I23: =I21-I22 ->  | J23: -- | K23: =K21-K22 -> 0 | L23: =L21-L22 ->  | M23: -- | N23: =N21-N22 -> 0 | O23: =O21-O22 ->  | P23: -- | Q23: =Q21-Q22 -> 0 | R23: =R21-R22 ->  | S23: -- | T23: =T21-T22 -> 0 | U23: =U21-U22 ->  | V23: -- | X23: =X21-X22 ->  | Y23: -- | AA23: =AA21-AA22 ->  | AB23: -- | AC23: =AC21-AC22 -> 0 | AD23: =AD21-AD22 ->  | AE23: -- | AF23: =AF21-AF22 -> 13442.7474 | AG23: =AG21-AG22 -> 14918.2554 | AH23: 0.1097623838 | AI23: =AI21-AI22 -> 10946 | AJ23: =AJ21-AJ22 -> 16255.26855 | AK23: 0.485041892 | AL23: =AL21-AL22 -> 11882 | AM23: =AM21-AM22 -> 17266.27864 | AN23: 0.4531458206 | AO23: =AO21-AO22 -> 10729 | AP23: =AP21-AP22 -> 16068.11752 | AQ23: 0.4976342175 | AR23: =AR21-AR22 -> 11149 | AS23: =AS21-AS22 -> 9280.857 | AT23: -0.1675614853 | AU23: =AU21-AU22 -> 19947.18389 | AV23: =AV21-AV22 -> 16932.45319 | AW23: =AW21-AW22 -> 24081.9883 | AX23: =AX21-AX22 -> 20782.47138 | AY23: =AY21-AY22 -> 17825.69751
A24: CWIP
A25: System O&M | C25: =IFERROR((VLOOKUP('LDC Info'!$E$14,'2.1.7 - System OM (2-AB)'!$A:$Z,CELL("col",INDEX('2.1.7 - System OM (2-AB)'!2:2,MATCH(B14,'2.1.7 - System OM (2-AB)'!2:2,0))),FALSE))/1000,) -> 3341.25102 | D25: =IF(ISERROR((C25-B25)/B25),"--",(C25-B25)/B25) -> -- | F25: =IFERROR((VLOOKUP('LDC Info'!$E$14,'2.1.7 - System OM (2-AB)'!$A:$Z,CELL("col",INDEX('2.1.7 - System OM (2-AB)'!2:2,MATCH(E14,'2.1.7 - System OM (2-AB)'!2:2,0))),FALSE))/1000,) -> 3472.96559 | G25: =IF(ISERROR((F25-E25)/E25),"--",(F25-E25)/E25) -> -- | I25: =IFERROR((VLOOKUP('LDC Info'!$E$14,'2.1.7 - System OM (2-AB)'!$A:$Z,CELL("col",INDEX('2.1.7 - System OM (2-AB)'!2:2,MATCH(H14,'2.1.7 - System OM (2-AB)'!2:2,0))),FALSE))/1000,) -> 3620.4933 | J25: =IF(ISERROR((I25-H25)/H25),"--",(I25-H25)/H25) -> -- | L25: =IFERROR((VLOOKUP('LDC Info'!$E$14,'2.1.7 - System OM (2-AB)'!$A:$Z,CELL("col",INDEX('2.1.7 - System OM (2-AB)'!2:2,MATCH(K14,'2.1.7 - System OM (2-AB)'!2:2,0))),FALSE))/1000,) -> 3615.55581 | M25: =IF(ISERROR((L25-K25)/K25),"--",(L25-K25)/K25) -> -- | O25: =IFERROR((VLOOKUP('LDC Info'!$E$14,'2.1.7 - System OM (2-AB)'!$A:$Z,CELL("col",INDEX('2.1.7 - System OM (2-AB)'!2:2,MATCH(N14,'2.1.7 - System OM (2-AB)'!2:2,0))),FALSE))/1000,) -> 3595.81984 | P25: =IF(ISERROR((O25-N25)/N25),"--",(O25-N25)/N25) -> -- | R25: =IFERROR((VLOOKUP('LDC Info'!$E$14,'2.1.7 - System OM (2-AB)'!$A:$Z,CELL("col",INDEX('2.1.7 - System OM (2-AB)'!2:2,MATCH(Q14,'2.1.7 - System OM (2-AB)'!2:2,0))),FALSE))/1000,) -> 3927.40743 | S25: -- | U25: =IFERROR((VLOOKUP('LDC Info'!$E$14,'2.1.7 - System OM (2-AB)'!$A:$Z,CELL("col",INDEX('2.1.7 - System OM (2-AB)'!2:2,MATCH(T14,'2.1.7 - System OM (2-AB)'!2:2,0))),FALSE))/1000,) -> 3966.53467 | V25: -- | X25: =IFERROR((VLOOKUP('LDC Info'!$E$14,'2.1.7 - System OM (2-AB)'!$A:$Z,CELL("col",INDEX('2.1.7 - System OM (2-AB)'!2:2,MATCH(W14,'2.1.7 - System OM (2-AB)'!2:2,0))),FALSE))/1000,) -> 3979.88447 | Y25: -- | AA25: =IFERROR((VLOOKUP('LDC Info'!$E$14,'2.1.7 - System OM (2-AB)'!$A:$Z,CELL("col",INDEX('2.1.7 - System OM (2-AB)'!2:2,MATCH(Z14,'2.1.7 - System OM (2-AB)'!2:2,0))),FALSE))/1000,) -> 4215.65917 | AB25: -- | AD25: =IFERROR((VLOOKUP('LDC Info'!$E$14,'2.1.7 - System OM (2-AB)'!$A:$Z,CELL("col",INDEX('2.1.7 - System OM (2-AB)'!2:2,MATCH(AC14,'2.1.7 - System OM (2-AB)'!2:2,0))),FALSE))/1000,) -> 4234.78962 | AE25: -- | AF25: 4125 | AG25: =IFERROR((VLOOKUP('LDC Info'!$E$14,'2.1.7 - System OM (2-AB)'!$A:$Z,CELL("col",INDEX('2.1.7 - System OM (2-AB)'!2:2,MATCH(AF14,'2.1.7 - System OM (2-AB)'!2:2,0))),FALSE))/1000,) -> 4248.89174 | AH25: 0.03003436121 | AI25: 4208 | AJ25: =IFERROR((VLOOKUP('LDC Info'!$E$14,'2.1.7 - System OM (2-AB)'!$A:$Z,CELL("col",INDEX('2.1.7 - System OM (2-AB)'!2:2,MATCH(AI14,'2.1.7 - System OM (2-AB)'!2:2,0))),FALSE))/1000,) -> 4875.64984 | AK25: 0.1586620342 | AL25: 4292 | AM25: =IFERROR((VLOOKUP('LDC Info'!$E$14,'2.1.7 - System OM (2-AB)'!$A:$Z,CELL("col",INDEX('2.1.7 - System OM (2-AB)'!2:2,MATCH(AL14,'2.1.7 - System OM (2-AB)'!2:2,0))),FALSE))/1000,) -> 4570.97711 | AN25: 0.06499932665 | AO25: 4378 | AP25: 4775.1699 | AQ25: 0.09071948378 | AR25: 4465 | AS25: 4638.14116 | AT25: 0.03877741545 | AU25: 5052.13286 | AV25: 5191.066514 | AW25: 5333.820843 | AX25: 5480.500916 | AY25: 5631.214691
U27: =IF(T14=2013,5,IF(T14=2014,6,IF(T14=2015,7,IF(T14=2016,8,IF(T14=2017,9,IF(T14=2018,10,IF(T14=2019,11,IF(T14=2020,12,IF(T14=2021,13,IF(T14=2022,14,IF(T14=2023,15))))))))))) -> 10 | X27: =IF(W14=2013,5,IF(W14=2014,6,IF(W14=2015,7,IF(W14=2016,8,IF(W14=2017,9,IF(W14=2018,10,IF(W14=2019,11,IF(W14=2020,12,IF(W14=2021,13,IF(W14=2022,14,IF(W14=2023,15))))))))))) -> 11 | AG27: =IF(AF14=2013,5,IF(AF14=2014,6,IF(AF14=2015,7,IF(AF14=2016,8,IF(AF14=2017,9,IF(AF14=2018,10,IF(AF14=2019,11,IF(AF14=2020,12,IF(AF14=2021,13,IF(AF14=2022,14,IF(AF14=2023,15))))))))))) -> 14 | AJ27: =IF(AI14=2013,5,IF(AI14=2014,6,IF(AI14=2015,7,IF(AI14=2016,8,IF(AI14=2017,9,IF(AI14=2018,10,IF(AI14=2019,11,IF(AI14=2020,12,IF(AI14=2021,13,IF(AI14=2022,14,IF(AI14=2023,15))))))))))) -> 15 | AM27: =IF(AL14=2013,5,IF(AL14=2014,6,IF(AL14=2015,7,IF(AL14=2016,8,IF(AL14=2017,9,IF(AL14=2018,10,IF(AL14=2019,11,IF(AL14=2020,12,IF(AL14=2021,13,IF(AL14=2022,14,IF(AL14=2023,15))))))))))) -> FALSE
C28: =B14 -> 2012 | F28: =C28+1 -> 2013 | I28: =F28+1 -> 2014 | L28: =I28+1 -> 2015 | O28: =L28+1 -> 2016 | R28: =O28+1 -> 2017 | U28: =R28+1 -> 2018 | X28: =U28+1 -> 2019 | AA28: =X28+1 -> 2020 | AD28: =AA28+1 -> 2021 | AG28: =AD28+1 -> 2022 | AJ28: =AG28+1 -> 2023 | AM28: =AJ28+1 -> 2024 | AP28: =AM28+1 -> 2025 | AS28: =AP28+1 -> 2026 | AU28: =AU14 -> 2027 | AV28: =AU28+1 -> 2028 | AW28: =AV28+1 -> 2029 | AX28: =AW28+1 -> 2030 | AY28: =AX28+1 -> 2031
A29: Integrity Check - 2-AA: Net CAPEX | C29: ='App.2-AA_Capital Projects'!B88 -> 0 | F29: ='App.2-AA_Capital Projects'!C88 -> 0 | I29: ='App.2-AA_Capital Projects'!D88 -> 0 | L29: ='App.2-AA_Capital Projects'!E88 -> 0 | O29: ='App.2-AA_Capital Projects'!F88 -> 0 | R29: ='App.2-AA_Capital Projects'!G88 -> 0 | U29: ='App.2-AA_Capital Projects'!H88 -> 0 | X29: ='App.2-AA_Capital Projects'!I88 -> 0 | AA29: ='App.2-AA_Capital Projects'!J88 -> 0 | AD29: ='App.2-AA_Capital Projects'!K88 -> 0 | AG29: ='App.2-AA_Capital Projects'!L88 -> 14918.2554 | AJ29: ='App.2-AA_Capital Projects'!M88 -> 16255.26855 | AM29: ='App.2-AA_Capital Projects'!N88 -> 17266.27864 | AP29: ='App.2-AA_Capital Projects'!O88 -> 16068.11752 | AS29: ='App.2-AA_Capital Projects'!P88 -> 9280.857 | AU29: ='App.2-AA_Capital Projects'!Q88 -> 19947.18389 | AV29: ='App.2-AA_Capital Projects'!R88 -> 16932.45319 | AW29: ='App.2-AA_Capital Projects'!S88 -> 24081.9883 | AX29: ='App.2-AA_Capital Projects'!T88 -> 20782.47138 | AY29: ='App.2-AA_Capital Projects'!U88 -> 17825.69751
A30: Integrity Check - 2-JA: System O&M | C30: ='App.2-JA_OM&A_Summary_Analys'!C16 -> 0 | F30: ='App.2-JA_OM&A_Summary_Analys'!D16 -> 0 | I30: ='App.2-JA_OM&A_Summary_Analys'!E16 -> 0 | L30: ='App.2-JA_OM&A_Summary_Analys'!F16 -> 0 | O30: ='App.2-JA_OM&A_Summary_Analys'!G16 -> 0 | R30: ='App.2-JA_OM&A_Summary_Analys'!H16 -> 0 | U30: ='App.2-JA_OM&A_Summary_Analys'!I16 -> 0 | X30: ='App.2-JA_OM&A_Summary_Analys'!J16 -> 0 | AA30: ='App.2-JA_OM&A_Summary_Analys'!K16 -> 0 | AD30: ='App.2-JA_OM&A_Summary_Analys'!L16 -> 0 | AG30: ='App.2-JA_OM&A_Summary_Analys'!M16 -> 4248891.74 | AJ30: ='App.2-JA_OM&A_Summary_Analys'!N16 -> 4875649.84 | AM30: ='App.2-JA_OM&A_Summary_Analys'!O16 -> 4570977.11 | AP30: ='App.2-JA_OM&A_Summary_Analys'!P16 -> 4775169.9 | AS30: ='App.2-JA_OM&A_Summary_Analys'!Q16 -> 4638141.16 | AU30: ='App.2-JA_OM&A_Summary_Analys'!R16 -> 5052132.86
A33: Notes to the Table:
A34: 1. Historical “previous plan” data is not required unless a plan has previously been filed. However, use the last OEB-approved, at least on a Total (Capital) Expenditure basis for the last cost of service rebasing year, and the applicant should include their planned budget in each subsequent historical year up to and including the Bridge Year. Where a distributor has filed a previous DSP, the planned amounts in this tab should correspond to the previous DSP for the years applicable.
A35: 2. Indicate the number of months of 'actual' data included in the last year of the Historical Period (normally a 'bridge' year):
A37: 3. System O&M contains the following accounts: 5005, 5010, 5012, 5014, 5015, 5016, 5017, 5020, 5025, 5030, 5035, 5040, 5045, 5050, 5055, 5060, 5065, 5070, 5075, 5085, 5090, 5095, 5096, 5105, 5110, 5112, 5114, 5120, 5125, 5130, 5135, 5145, 5150, 5155, 5160, 5165, 5170, 5172, 5175, 5178, 5195
A40: Explanatory Notes on Variances (complete only if applicable)
A41: Notes on shifts in forecast vs. historical budgets by category
A42: See section 5.4.1 of DSP
A44: Notes on year over year Plan vs. Actual variances for Total Expenditures
A45: See section 5.4.1 of DSP
A47: Notes on Plan vs. Actual variance trends for individual expenditure categories
A48: See section 5.4.1 of DSP

Sheet Hidden_CAPEX (hidden)
A1: Utility Name | B1: EB Number | C1: Test Year | D1: Bridge Year | E1: Last Rebasing Year | F1: Category | G1: Year | H1: Plan | I1: Actual
A2: ='LDC Info'!$E$14 -> Canadian Niagara Power Inc. | B2: =EBNUMBER -> EB-2026-0029 | C2: =TestYear -> 2027 | D2: =BridgeYear -> 2026 | E2: =RebaseYear -> 2022 | F2: System Access | G2: ='App.2-AB_Capital Expenditures'!T14 -> 2018 | H2: ='App.2-AB_Capital Expenditures'!T17 -> 0 | I2: ='App.2-AB_Capital Expenditures'!U17 -> 
A3: ='LDC Info'!$E$14 -> Canadian Niagara Power Inc. | B3: EB-2026-0029 | C3: 2027 | D3: 2026 | E3: 2022 | F3: System Renewal | G3: ='App.2-AB_Capital Expenditures'!T14 -> 2018 | H3: ='App.2-AB_Capital Expenditures'!T18 -> 0 | I3: ='App.2-AB_Capital Expenditures'!U18 -> 
A4: ='LDC Info'!$E$14 -> Canadian Niagara Power Inc. | B4: EB-2026-0029 | C4: 2027 | D4: 2026 | E4: 2022 | F4: System Service | G4: ='App.2-AB_Capital Expenditures'!T14 -> 2018 | H4: ='App.2-AB_Capital Expenditures'!T19 -> 0 | I4: ='App.2-AB_Capital Expenditures'!U19 -> 
A5: ='LDC Info'!$E$14 -> Canadian Niagara Power Inc. | B5: EB-2026-0029 | C5: 2027 | D5: 2026 | E5: 2022 | F5: General Plant | G5: ='App.2-AB_Capital Expenditures'!T14 -> 2018 | H5: ='App.2-AB_Capital Expenditures'!T20 -> 0 | I5: ='App.2-AB_Capital Expenditures'!U20 -> 
A6: ='LDC Info'!$E$14 -> Canadian Niagara Power Inc. | B6: EB-2026-0029 | C6: 2027 | D6: 2026 | E6: 2022 | F6: Total Expenditure | G6: ='App.2-AB_Capital Expenditures'!T14 -> 2018 | H6: ='App.2-AB_Capital Expenditures'!T21 -> 0 | I6: ='App.2-AB_Capital Expenditures'!U21 -> 
A7: ='LDC Info'!$E$14 -> Canadian Niagara Power Inc. | B7: EB-2026-0029 | C7: 2027 | D7: 2026 | E7: 2022 | F7: Capital Contributions | G7: ='App.2-AB_Capital Expenditures'!T14 -> 2018 | H7: ='App.2-AB_Capital Expenditures'!T22 -> 0 | I7: ='App.2-AB_Capital Expenditures'!U22 -> 
A8: ='LDC Info'!$E$14 -> Canadian Niagara Power Inc. | B8: EB-2026-0029 | C8: 2027 | D8: 2026 | E8: 2022 | F8: Net Capital Expenditures | G8: ='App.2-AB_Capital Expenditures'!T14 -> 2018 | H8: ='App.2-AB_Capital Expenditures'!T23 -> 0 | I8: ='App.2-AB_Capital Expenditures'!U23 -> 
A9: ='LDC Info'!$E$14 -> Canadian Niagara Power Inc. | B9: EB-2026-0029 | C9: 2027 | D9: 2026 | E9: 2022 | F9: System O&M | G9: ='App.2-AB_Capital Expenditures'!T14 -> 2018 | H9: ='App.2-AB_Capital Expenditures'!T25 -> 0 | I9: ='App.2-AB_Capital Expenditures'!U25 -> 3966.53467
A10: ='LDC Info'!$E$14 -> Canadian Niagara Power Inc. | B10: EB-2026-0029 | C10: 2027 | D10: 2026 | E10: 2022 | F10: System Access | G10: ='App.2-AB_Capital Expenditures'!W14 -> 2019 | H10: ='App.2-AB_Capital Expenditures'!W17 -> 0 | I10: ='App.2-AB_Capital Expenditures'!X17 -> 
A11: ='LDC Info'!$E$14 -> Canadian Niagara Power Inc. | B11: EB-2026-0029 | C11: 2027 | D11: 2026 | E11: 2022 | F11: System Renewal | G11: ='App.2-AB_Capital Expenditures'!W14 -> 2019 | H11: ='App.2-AB_Capital Expenditures'!W18 -> 0 | I11: ='App.2-AB_Capital Expenditures'!X18 -> 
A12: ='LDC Info'!$E$14 -> Canadian Niagara Power Inc. | B12: EB-2026-0029 | C12: 2027 | D12: 2026 | E12: 2022 | F12: System Service | G12: ='App.2-AB_Capital Expenditures'!W14 -> 2019 | H12: ='App.2-AB_Capital Expenditures'!W19 -> 0 | I12: ='App.2-AB_Capital Expenditures'!X19 -> 
A13: ='LDC Info'!$E$14 -> Canadian Niagara Power Inc. | B13: EB-2026-0029 | C13: 2027 | D13: 2026 | E13: 2022 | F13: General Plant | G13: ='App.2-AB_Capital Expenditures'!W14 -> 2019 | H13: ='App.2-AB_Capital Expenditures'!W20 -> 0 | I13: ='App.2-AB_Capital Expenditures'!X20 -> 
A14: ='LDC Info'!$E$14 -> Canadian Niagara Power Inc. | B14: EB-2026-0029 | C14: 2027 | D14: 2026 | E14: 2022 | F14: Total Expenditure | G14: ='App.2-AB_Capital Expenditures'!W14 -> 2019 | H14: ='App.2-AB_Capital Expenditures'!W21 -> 0 | I14: ='App.2-AB_Capital Expenditures'!X21 -> 
A15: ='LDC Info'!$E$14 -> Canadian Niagara Power Inc. | B15: EB-2026-0029 | C15: 2027 | D15: 2026 | E15: 2022 | F15: Capital Contributions | G15: ='App.2-AB_Capital Expenditures'!W14 -> 2019 | H15: ='App.2-AB_Capital Expenditures'!W22 -> 0 | I15: ='App.2-AB_Capital Expenditures'!X22 -> 
A16: ='LDC Info'!$E$14 -> Canadian Niagara Power Inc. | B16: EB-2026-0029 | C16: 2027 | D16: 2026 | E16: 2022 | F16: Net Capital Expenditures | G16: ='App.2-AB_Capital Expenditures'!W14 -> 2019 | H16: ='App.2-AB_Capital Expenditures'!W23 -> 0 | I16: ='App.2-AB_Capital Expenditures'!X23 -> 
A17: ='LDC Info'!$E$14 -> Canadian Niagara Power Inc. | B17: EB-2026-0029 | C17: 2027 | D17: 2026 | E17: 2022 | F17: System O&M | G17: ='App.2-AB_Capital Expenditures'!W14 -> 2019 | H17: ='App.2-AB_Capital Expenditures'!W25 -> 0 | I17: ='App.2-AB_Capital Expenditures'!X25 -> 3979.88447
A18: ='LDC Info'!$E$14 -> Canadian Niagara Power Inc. | B18: EB-2026-0029 | C18: 2027 | D18: 2026 | E18: 2022 | F18: System Access | G18: ='App.2-AB_Capital Expenditures'!Z14 -> 2020 | H18: ='App.2-AB_Capital Expenditures'!Z17 -> 0 | I18: ='App.2-AB_Capital Expenditures'!AA17 -> 
A19: ='LDC Info'!$E$14 -> Canadian Niagara Power Inc. | B19: EB-2026-0029 | C19: 2027 | D19: 2026 | E19: 2022 | F19: System Renewal | G19: ='App.2-AB_Capital Expenditures'!Z14 -> 2020 | H19: ='App.2-AB_Capital Expenditures'!Z18 -> 0 | I19: ='App.2-AB_Capital Expenditures'!AA18 -> 
A20: ='LDC Info'!$E$14 -> Canadian Niagara Power Inc. | B20: EB-2026-0029 | C20: 2027 | D20: 2026 | E20: 2022 | F20: System Service | G20: ='App.2-AB_Capital Expenditures'!Z14 -> 2020 | H20: ='App.2-AB_Capital Expenditures'!Z19 -> 0 | I20: ='App.2-AB_Capital Expenditures'!AA19 -> 
A21: ='LDC Info'!$E$14 -> Canadian Niagara Power Inc. | B21: EB-2026-0029 | C21: 2027 | D21: 2026 | E21: 2022 | F21: General Plant | G21: ='App.2-AB_Capital Expenditures'!Z14 -> 2020 | H21: ='App.2-AB_Capital Expenditures'!Z20 -> 0 | I21: ='App.2-AB_Capital Expenditures'!AA20 -> 
A22: ='LDC Info'!$E$14 -> Canadian Niagara Power Inc. | B22: EB-2026-0029 | C22: 2027 | D22: 2026 | E22: 2022 | F22: Total Expenditure | G22: ='App.2-AB_Capital Expenditures'!Z14 -> 2020 | H22: ='App.2-AB_Capital Expenditures'!Z21 -> 0 | I22: ='App.2-AB_Capital Expenditures'!AA21 -> 
A23: ='LDC Info'!$E$14 -> Canadian Niagara Power Inc. | B23: EB-2026-0029 | C23: 2027 | D23: 2026 | E23: 2022 | F23: Capital Contributions | G23: ='App.2-AB_Capital Expenditures'!Z14 -> 2020 | H23: ='App.2-AB_Capital Expenditures'!Z22 -> 0 | I23: ='App.2-AB_Capital Expenditures'!AA22 -> 
A24: ='LDC Info'!$E$14 -> Canadian Niagara Power Inc. | B24: EB-2026-0029 | C24: 2027 | D24: 2026 | E24: 2022 | F24: Net Capital Expenditures | G24: ='App.2-AB_Capital Expenditures'!Z14 -> 2020 | H24: ='App.2-AB_Capital Expenditures'!Z23 -> 0 | I24: ='App.2-AB_Capital Expenditures'!AA23 -> 
A25: ='LDC Info'!$E$14 -> Canadian Niagara Power Inc. | B25: EB-2026-0029 | C25: 2027 | D25: 2026 | E25: 2022 | F25: System O&M | G25: ='App.2-AB_Capital Expenditures'!Z14 -> 2020 | H25: ='App.2-AB_Capital Expenditures'!Z25 -> 0 | I25: ='App.2-AB_Capital Expenditures'!AA25 -> 4215.65917
A26: ='LDC Info'!$E$14 -> Canadian Niagara Power Inc. | B26: EB-2026-0029 | C26: 2027 | D26: 2026 | E26: 2022 | F26: System Access | G26: ='App.2-AB_Capital Expenditures'!AC14 -> 2021 | H26: ='App.2-AB_Capital Expenditures'!AC17 -> 0 | I26: ='App.2-AB_Capital Expenditures'!AD17 -> 
A27: ='LDC Info'!$E$14 -> Canadian Niagara Power Inc. | B27: EB-2026-0029 | C27: 2027 | D27: 2026 | E27: 2022 | F27: System Renewal | G27: ='App.2-AB_Capital Expenditures'!AC14 -> 2021 | H27: ='App.2-AB_Capital Expenditures'!AC18 -> 0 | I27: ='App.2-AB_Capital Expenditures'!AD18 -> 
A28: ='LDC Info'!$E$14 -> Canadian Niagara Power Inc. | B28: EB-2026-0029 | C28: 2027 | D28: 2026 | E28: 2022 | F28: System Service | G28: ='App.2-AB_Capital Expenditures'!AC14 -> 2021 | H28: ='App.2-AB_Capital Expenditures'!AC19 -> 0 | I28: ='App.2-AB_Capital Expenditures'!AD19 -> 
A29: ='LDC Info'!$E$14 -> Canadian Niagara Power Inc. | B29: EB-2026-0029 | C29: 2027 | D29: 2026 | E29: 2022 | F29: General Plant | G29: ='App.2-AB_Capital Expenditures'!AC14 -> 2021 | H29: ='App.2-AB_Capital Expenditures'!AC20 -> 0 | I29: ='App.2-AB_Capital Expenditures'!AD20 -> 
A30: ='LDC Info'!$E$14 -> Canadian Niagara Power Inc. | B30: EB-2026-0029 | C30: 2027 | D30: 2026 | E30: 2022 | F30: Total Expenditure | G30: ='App.2-AB_Capital Expenditures'!AC14 -> 2021 | H30: ='App.2-AB_Capital Expenditures'!AC21 -> 0 | I30: ='App.2-AB_Capital Expenditures'!AD21 -> 
A31: ='LDC Info'!$E$14 -> Canadian Niagara Power Inc. | B31: EB-2026-0029 | C31: 2027 | D31: 2026 | E31: 2022 | F31: Capital Contributions | G31: ='App.2-AB_Capital Expenditures'!AC14 -> 2021 | H31: ='App.2-AB_Capital Expenditures'!AC22 -> 0 | I31: ='App.2-AB_Capital Expenditures'!AD22 -> 
A32: ='LDC Info'!$E$14 -> Canadian Niagara Power Inc. | B32: EB-2026-0029 | C32: 2027 | D32: 2026 | E32: 2022 | F32: Net Capital Expenditures | G32: ='App.2-AB_Capital Expenditures'!AC14 -> 2021 | H32: ='App.2-AB_Capital Expenditures'!AC23 -> 0 | I32: ='App.2-AB_Capital Expenditures'!AD23 -> 
A33: ='LDC Info'!$E$14 -> Canadian Niagara Power Inc. | B33: EB-2026-0029 | C33: 2027 | D33: 2026 | E33: 2022 | F33: System O&M | G33: ='App.2-AB_Capital Expenditures'!AC14 -> 2021 | H33: ='App.2-AB_Capital Expenditures'!AC25 -> 0 | I33: ='App.2-AB_Capital Expenditures'!AD25 -> 4234.78962
A34: ='LDC Info'!$E$14 -> Canadian Niagara Power Inc. | B34: =EBNUMBER -> EB-2026-0029 | C34: =TestYear -> 2027 | D34: =BridgeYear -> 2026 | E34: =RebaseYear -> 2022 | F34: System Access | G34: ='App.2-AB_Capital Expenditures'!AF14 -> 2022 | H34: ='App.2-AB_Capital Expenditures'!AF17 -> 1771.43472 | I34: ='App.2-AB_Capital Expenditures'!AG17 -> 3173.68596
A35: ='LDC Info'!$E$14 -> Canadian Niagara Power Inc. | B35: EB-2026-0029 | C35: 2027 | D35: 2026 | E35: 2022 | F35: System Renewal | G35: ='App.2-AB_Capital Expenditures'!AF14 -> 2022 | H35: ='App.2-AB_Capital Expenditures'!AF18 -> 7258.7964 | I35: ='App.2-AB_Capital Expenditures'!AG18 -> 11175.14542
A36: ='LDC Info'!$E$14 -> Canadian Niagara Power Inc. | B36: EB-2026-0029 | C36: 2027 | D36: 2026 | E36: 2022 | F36: System Service | G36: ='App.2-AB_Capital Expenditures'!AF14 -> 2022 | H36: ='App.2-AB_Capital Expenditures'!AF19 -> 3305.277 | I36: ='App.2-AB_Capital Expenditures'!AG19 -> 317.07398
A37: ='LDC Info'!$E$14 -> Canadian Niagara Power Inc. | B37: EB-2026-0029 | C37: 2027 | D37: 2026 | E37: 2022 | F37: General Plant | G37: ='App.2-AB_Capital Expenditures'!AF14 -> 2022 | H37: ='App.2-AB_Capital Expenditures'!AF20 -> 2007.23928 | I37: ='App.2-AB_Capital Expenditures'!AG20 -> 1661.9766
A38: ='LDC Info'!$E$14 -> Canadian Niagara Power Inc. | B38: EB-2026-0029 | C38: 2027 | D38: 2026 | E38: 2022 | F38: Total Expenditure | G38: ='App.2-AB_Capital Expenditures'!AF14 -> 2022 | H38: ='App.2-AB_Capital Expenditures'!AF21 -> 14342.7474 | I38: ='App.2-AB_Capital Expenditures'!AG21 -> 16327.88196
A39: ='LDC Info'!$E$14 -> Canadian Niagara Power Inc. | B39: EB-2026-0029 | C39: 2027 | D39: 2026 | E39: 2022 | F39: Capital Contributions | G39: ='App.2-AB_Capital Expenditures'!AF14 -> 2022 | H39: ='App.2-AB_Capital Expenditures'!AF22 -> 900 | I39: ='App.2-AB_Capital Expenditures'!AG22 -> 1409.62656
A40: ='LDC Info'!$E$14 -> Canadian Niagara Power Inc. | B40: EB-2026-0029 | C40: 2027 | D40: 2026 | E40: 2022 | F40: Net Capital Expenditures | G40: ='App.2-AB_Capital Expenditures'!AF14 -> 2022 | H40: ='App.2-AB_Capital Expenditures'!AF23 -> 13442.7474 | I40: ='App.2-AB_Capital Expenditures'!AG23 -> 14918.2554
A41: ='LDC Info'!$E$14 -> Canadian Niagara Power Inc. | B41: EB-2026-0029 | C41: 2027 | D41: 2026 | E41: 2022 | F41: System O&M | G41: ='App.2-AB_Capital Expenditures'!AF14 -> 2022 | H41: ='App.2-AB_Capital Expenditures'!AF25 -> 4125 | I41: ='App.2-AB_Capital Expenditures'!AG25 -> 4248.89174
A42: ='LDC Info'!$E$14 -> Canadian Niagara Power Inc. | B42: EB-2026-0029 | C42: 2027 | D42: 2026 | E42: 2022 | F42: System Access | G42: ='App.2-AB_Capital Expenditures'!AI14 -> 2023 | H42: ='App.2-AB_Capital Expenditures'!AI17 -> 1718 | I42: ='App.2-AB_Capital Expenditures'!AJ17 -> 2570.89583
A43: ='LDC Info'!$E$14 -> Canadian Niagara Power Inc. | B43: EB-2026-0029 | C43: 2027 | D43: 2026 | E43: 2022 | F43: System Renewal | G43: ='App.2-AB_Capital Expenditures'!AI14 -> 2023 | H43: ='App.2-AB_Capital Expenditures'!AI18 -> 6537 | I43: ='App.2-AB_Capital Expenditures'!AJ18 -> 11064.61254
A44: ='LDC Info'!$E$14 -> Canadian Niagara Power Inc. | B44: EB-2026-0029 | C44: 2027 | D44: 2026 | E44: 2022 | F44: System Service | G44: ='App.2-AB_Capital Expenditures'!AI14 -> 2023 | H44: ='App.2-AB_Capital Expenditures'!AI19 -> 1695 | I44: ='App.2-AB_Capital Expenditures'!AJ19 -> 2373.94144
A45: ='LDC Info'!$E$14 -> Canadian Niagara Power Inc. | B45: EB-2026-0029 | C45: 2027 | D45: 2026 | E45: 2022 | F45: General Plant | G45: ='App.2-AB_Capital Expenditures'!AI14 -> 2023 | H45: ='App.2-AB_Capital Expenditures'!AI20 -> 1846 | I45: ='App.2-AB_Capital Expenditures'!AJ20 -> 2170.81116
A46: ='LDC Info'!$E$14 -> Canadian Niagara Power Inc. | B46: EB-2026-0029 | C46: 2027 | D46: 2026 | E46: 2022 | F46: Total Expenditure | G46: ='App.2-AB_Capital Expenditures'!AI14 -> 2023 | H46: ='App.2-AB_Capital Expenditures'!AI21 -> 11796 | I46: ='App.2-AB_Capital Expenditures'!AJ21 -> 18180.26097
A47: ='LDC Info'!$E$14 -> Canadian Niagara Power Inc. | B47: EB-2026-0029 | C47: 2027 | D47: 2026 | E47: 2022 | F47: Capital Contributions | G47: ='App.2-AB_Capital Expenditures'!AI14 -> 2023 | H47: ='App.2-AB_Capital Expenditures'!AI22 -> 850 | I47: ='App.2-AB_Capital Expenditures'!AJ22 -> 1924.99242
A48: ='LDC Info'!$E$14 -> Canadian Niagara Power Inc. | B48: EB-2026-0029 | C48: 2027 | D48: 2026 | E48: 2022 | F48: Net Capital Expenditures | G48: ='App.2-AB_Capital Expenditures'!AI14 -> 2023 | H48: ='App.2-AB_Capital Expenditures'!AI23 -> 10946 | I48: ='App.2-AB_Capital Expenditures'!AJ23 -> 16255.26855
A49: ='LDC Info'!$E$14 -> Canadian Niagara Power Inc. | B49: EB-2026-0029 | C49: 2027 | D49: 2026 | E49: 2022 | F49: System O&M | G49: ='App.2-AB_Capital Expenditures'!AI14 -> 2023 | H49: ='App.2-AB_Capital Expenditures'!AI25 -> 4208 | I49: ='App.2-AB_Capital Expenditures'!AJ25 -> 4875.64984
A50: ='LDC Info'!$E$14 -> Canadian Niagara Power Inc. | B50: EB-2026-0029 | C50: 2027 | D50: 2026 | E50: 2022 | F50: System Access | G50: ='App.2-AB_Capital Expenditures'!AL14 -> 2024 | H50: ='App.2-AB_Capital Expenditures'!AL17 -> 1710 | I50: ='App.2-AB_Capital Expenditures'!AM17 -> 3309.56461
A51: ='LDC Info'!$E$14 -> Canadian Niagara Power Inc. | B51: EB-2026-0029 | C51: 2027 | D51: 2026 | E51: 2022 | F51: System Renewal | G51: ='App.2-AB_Capital Expenditures'!AL14 -> 2024 | H51: ='App.2-AB_Capital Expenditures'!AL18 -> 7826 | I51: ='App.2-AB_Capital Expenditures'!AM18 -> 11866.70173
A52: ='LDC Info'!$E$14 -> Canadian Niagara Power Inc. | B52: EB-2026-0029 | C52: 2027 | D52: 2026 | E52: 2022 | F52: System Service | G52: ='App.2-AB_Capital Expenditures'!AL14 -> 2024 | H52: ='App.2-AB_Capital Expenditures'!AL19 -> 1345 | I52: ='App.2-AB_Capital Expenditures'!AM19 -> 1694.27608
A53: ='LDC Info'!$E$14 -> Canadian Niagara Power Inc. | B53: EB-2026-0029 | C53: 2027 | D53: 2026 | E53: 2022 | F53: General Plant | G53: ='App.2-AB_Capital Expenditures'!AL14 -> 2024 | H53: ='App.2-AB_Capital Expenditures'!AL20 -> 1851 | I53: ='App.2-AB_Capital Expenditures'!AM20 -> 1431.83501
A54: ='LDC Info'!$E$14 -> Canadian Niagara Power Inc. | B54: EB-2026-0029 | C54: 2027 | D54: 2026 | E54: 2022 | F54: Total Expenditure | G54: ='App.2-AB_Capital Expenditures'!AL14 -> 2024 | H54: ='App.2-AB_Capital Expenditures'!AL21 -> 12732 | I54: ='App.2-AB_Capital Expenditures'!AM21 -> 18302.37743
A55: ='LDC Info'!$E$14 -> Canadian Niagara Power Inc. | B55: EB-2026-0029 | C55: 2027 | D55: 2026 | E55: 2022 | F55: Capital Contributions | G55: ='App.2-AB_Capital Expenditures'!AL14 -> 2024 | H55: ='App.2-AB_Capital Expenditures'!AL22 -> 850 | I55: ='App.2-AB_Capital Expenditures'!AM22 -> 1036.09879
A56: ='LDC Info'!$E$14 -> Canadian Niagara Power Inc. | B56: EB-2026-0029 | C56: 2027 | D56: 2026 | E56: 2022 | F56: Net Capital Expenditures | G56: ='App.2-AB_Capital Expenditures'!AL14 -> 2024 | H56: ='App.2-AB_Capital Expenditures'!AL23 -> 11882 | I56: ='App.2-AB_Capital Expenditures'!AM23 -> 17266.27864
A57: ='LDC Info'!$E$14 -> Canadian Niagara Power Inc. | B57: EB-2026-0029 | C57: 2027 | D57: 2026 | E57: 2022 | F57: System O&M | G57: ='App.2-AB_Capital Expenditures'!AL14 -> 2024 | H57: ='App.2-AB_Capital Expenditures'!AL25 -> 4292 | I57: ='App.2-AB_Capital Expenditures'!AM25 -> 4570.97711
A58: ='LDC Info'!$E$14 -> Canadian Niagara Power Inc. | B58: EB-2026-0029 | C58: 2027 | D58: 2026 | E58: 2022 | F58: System Access | G58: ='App.2-AB_Capital Expenditures'!AO14 -> 2025 | H58: ='App.2-AB_Capital Expenditures'!AO17 -> 1711 | I58: ='App.2-AB_Capital Expenditures'!AP17 -> 3834.27465
A59: ='LDC Info'!$E$14 -> Canadian Niagara Power Inc. | B59: EB-2026-0029 | C59: 2027 | D59: 2026 | E59: 2022 | F59: System Renewal | G59: ='App.2-AB_Capital Expenditures'!AO14 -> 2025 | H59: ='App.2-AB_Capital Expenditures'!AO18 -> 6865 | I59: ='App.2-AB_Capital Expenditures'!AP18 -> 11192.91714
A60: ='LDC Info'!$E$14 -> Canadian Niagara Power Inc. | B60: EB-2026-0029 | C60: 2027 | D60: 2026 | E60: 2022 | F60: System Service | G60: ='App.2-AB_Capital Expenditures'!AO14 -> 2025 | H60: ='App.2-AB_Capital Expenditures'!AO19 -> 1295 | I60: ='App.2-AB_Capital Expenditures'!AP19 -> 304.42687
A61: ='LDC Info'!$E$14 -> Canadian Niagara Power Inc. | B61: EB-2026-0029 | C61: 2027 | D61: 2026 | E61: 2022 | F61: General Plant | G61: ='App.2-AB_Capital Expenditures'!AO14 -> 2025 | H61: ='App.2-AB_Capital Expenditures'!AO20 -> 1708 | I61: ='App.2-AB_Capital Expenditures'!AP20 -> 3574.28071
A62: ='LDC Info'!$E$14 -> Canadian Niagara Power Inc. | B62: EB-2026-0029 | C62: 2027 | D62: 2026 | E62: 2022 | F62: Total Expenditure | G62: ='App.2-AB_Capital Expenditures'!AO14 -> 2025 | H62: ='App.2-AB_Capital Expenditures'!AO21 -> 11579 | I62: ='App.2-AB_Capital Expenditures'!AP21 -> 18905.89937
A63: ='LDC Info'!$E$14 -> Canadian Niagara Power Inc. | B63: EB-2026-0029 | C63: 2027 | D63: 2026 | E63: 2022 | F63: Capital Contributions | G63: ='App.2-AB_Capital Expenditures'!AO14 -> 2025 | H63: ='App.2-AB_Capital Expenditures'!AO22 -> 850 | I63: ='App.2-AB_Capital Expenditures'!AP22 -> 2837.78185
A64: ='LDC Info'!$E$14 -> Canadian Niagara Power Inc. | B64: EB-2026-0029 | C64: 2027 | D64: 2026 | E64: 2022 | F64: Net Capital Expenditures | G64: ='App.2-AB_Capital Expenditures'!AO14 -> 2025 | H64: ='App.2-AB_Capital Expenditures'!AO23 -> 10729 | I64: ='App.2-AB_Capital Expenditures'!AP23 -> 16068.11752
A65: ='LDC Info'!$E$14 -> Canadian Niagara Power Inc. | B65: EB-2026-0029 | C65: 2027 | D65: 2026 | E65: 2022 | F65: System O&M | G65: ='App.2-AB_Capital Expenditures'!AO14 -> 2025 | H65: ='App.2-AB_Capital Expenditures'!AO25 -> 4378 | I65: ='App.2-AB_Capital Expenditures'!AP25 -> 4775.1699
A66: ='LDC Info'!$E$14 -> Canadian Niagara Power Inc. | B66: =EBNUMBER -> EB-2026-0029 | C66: =TestYear -> 2027 | D66: =BridgeYear -> 2026 | E66: =RebaseYear -> 2022 | F66: System Access | G66: ='App.2-AB_Capital Expenditures'!AR14 -> 2026 | H66: ='App.2-AB_Capital Expenditures'!AR17 -> 1711 | I66: ='App.2-AB_Capital Expenditures'!AS17 -> 3883.47191
A67: ='LDC Info'!$E$14 -> Canadian Niagara Power Inc. | B67: EB-2026-0029 | C67: 2027 | D67: 2026 | E67: 2022 | F67: System Renewal | G67: ='App.2-AB_Capital Expenditures'!AR14 -> 2026 | H67: ='App.2-AB_Capital Expenditures'!AR18 -> 6865 | I67: ='App.2-AB_Capital Expenditures'!AS18 -> 4324.56993
A68: ='LDC Info'!$E$14 -> Canadian Niagara Power Inc. | B68: EB-2026-0029 | C68: 2027 | D68: 2026 | E68: 2022 | F68: System Service | G68: ='App.2-AB_Capital Expenditures'!AR14 -> 2026 | H68: ='App.2-AB_Capital Expenditures'!AR19 -> 1845 | I68: ='App.2-AB_Capital Expenditures'!AS19 -> 815.61392
A69: ='LDC Info'!$E$14 -> Canadian Niagara Power Inc. | B69: EB-2026-0029 | C69: 2027 | D69: 2026 | E69: 2022 | F69: General Plant | G69: ='App.2-AB_Capital Expenditures'!AR14 -> 2026 | H69: ='App.2-AB_Capital Expenditures'!AR20 -> 1578 | I69: ='App.2-AB_Capital Expenditures'!AS20 -> 1907.20124
A70: ='LDC Info'!$E$14 -> Canadian Niagara Power Inc. | B70: EB-2026-0029 | C70: 2027 | D70: 2026 | E70: 2022 | F70: Total Expenditure | G70: ='App.2-AB_Capital Expenditures'!AR14 -> 2026 | H70: ='App.2-AB_Capital Expenditures'!AR21 -> 11999 | I70: ='App.2-AB_Capital Expenditures'!AS21 -> 10930.857
A71: ='LDC Info'!$E$14 -> Canadian Niagara Power Inc. | B71: EB-2026-0029 | C71: 2027 | D71: 2026 | E71: 2022 | F71: Capital Contributions | G71: ='App.2-AB_Capital Expenditures'!AR14 -> 2026 | H71: ='App.2-AB_Capital Expenditures'!AR22 -> 850 | I71: ='App.2-AB_Capital Expenditures'!AS22 -> 1650
A72: ='LDC Info'!$E$14 -> Canadian Niagara Power Inc. | B72: EB-2026-0029 | C72: 2027 | D72: 2026 | E72: 2022 | F72: Net Capital Expenditures | G72: ='App.2-AB_Capital Expenditures'!AR14 -> 2026 | H72: ='App.2-AB_Capital Expenditures'!AR23 -> 11149 | I72: ='App.2-AB_Capital Expenditures'!AS23 -> 9280.857
A73: ='LDC Info'!$E$14 -> Canadian Niagara Power Inc. | B73: EB-2026-0029 | C73: 2027 | D73: 2026 | E73: 2022 | F73: System O&M | G73: ='App.2-AB_Capital Expenditures'!AR14 -> 2026 | H73: ='App.2-AB_Capital Expenditures'!AR25 -> 4465 | I73: ='App.2-AB_Capital Expenditures'!AS25 -> 4638.14116
A74: ='LDC Info'!$E$14 -> Canadian Niagara Power Inc. | B74: EB-2026-0029 | C74: 2027 | D74: 2026 | E74: 2022 | F74: System Access | G74: ='App.2-AB_Capital Expenditures'!AU14 -> 2027 | H74: ='App.2-AB_Capital Expenditures'!AU17 -> 4074.752
A75: ='LDC Info'!$E$14 -> Canadian Niagara Power Inc. | B75: EB-2026-0029 | C75: 2027 | D75: 2026 | E75: 2022 | F75: System Renewal | G75: ='App.2-AB_Capital Expenditures'!AU14 -> 2027 | H75: ='App.2-AB_Capital Expenditures'!AU18 -> 10150.902
A76: ='LDC Info'!$E$14 -> Canadian Niagara Power Inc. | B76: EB-2026-0029 | C76: 2027 | D76: 2026 | E76: 2022 | F76: System Service | G76: ='App.2-AB_Capital Expenditures'!AU14 -> 2027 | H76: ='App.2-AB_Capital Expenditures'!AU19 -> 2354.86185
A77: ='LDC Info'!$E$14 -> Canadian Niagara Power Inc. | B77: EB-2026-0029 | C77: 2027 | D77: 2026 | E77: 2022 | F77: General Plant | G77: ='App.2-AB_Capital Expenditures'!AU14 -> 2027 | H77: ='App.2-AB_Capital Expenditures'!AU20 -> 4616.66804
A78: ='LDC Info'!$E$14 -> Canadian Niagara Power Inc. | B78: EB-2026-0029 | C78: 2027 | D78: 2026 | E78: 2022 | F78: Total Expenditure | G78: ='App.2-AB_Capital Expenditures'!AU14 -> 2027 | H78: ='App.2-AB_Capital Expenditures'!AU21 -> 21197.18389
A79: ='LDC Info'!$E$14 -> Canadian Niagara Power Inc. | B79: EB-2026-0029 | C79: 2027 | D79: 2026 | E79: 2022 | F79: Capital Contributions | G79: ='App.2-AB_Capital Expenditures'!AU14 -> 2027 | H79: ='App.2-AB_Capital Expenditures'!AU22 -> 1250
A80: ='LDC Info'!$E$14 -> Canadian Niagara Power Inc. | B80: EB-2026-0029 | C80: 2027 | D80: 2026 | E80: 2022 | F80: Net Capital Expenditures | G80: ='App.2-AB_Capital Expenditures'!AU14 -> 2027 | H80: ='App.2-AB_Capital Expenditures'!AU23 -> 19947.18389
A81: ='LDC Info'!$E$14 -> Canadian Niagara Power Inc. | B81: EB-2026-0029 | C81: 2027 | D81: 2026 | E81: 2022 | F81: System O&M | G81: ='App.2-AB_Capital Expenditures'!AU14 -> 2027 | H81: ='App.2-AB_Capital Expenditures'!AU25 -> 5052.13286
A82: ='LDC Info'!$E$14 -> Canadian Niagara Power Inc. | B82: EB-2026-0029 | C82: 2027 | D82: 2026 | E82: 2022 | F82: System Access | G82: ='App.2-AB_Capital Expenditures'!AV14 -> 2028 | H82: ='App.2-AB_Capital Expenditures'!AV17 -> 4176.621948
A83: ='LDC Info'!$E$14 -> Canadian Niagara Power Inc. | B83: EB-2026-0029 | C83: 2027 | D83: 2026 | E83: 2022 | F83: System Renewal | G83: ='App.2-AB_Capital Expenditures'!AV14 -> 2028 | H83: ='App.2-AB_Capital Expenditures'!AV18 -> 10227.21286
A84: ='LDC Info'!$E$14 -> Canadian Niagara Power Inc. | B84: EB-2026-0029 | C84: 2027 | D84: 2026 | E84: 2022 | F84: System Service | G84: ='App.2-AB_Capital Expenditures'!AV14 -> 2028 | H84: ='App.2-AB_Capital Expenditures'!AV19 -> 751.119795
A85: ='LDC Info'!$E$14 -> Canadian Niagara Power Inc. | B85: EB-2026-0029 | C85: 2027 | D85: 2026 | E85: 2022 | F85: General Plant | G85: ='App.2-AB_Capital Expenditures'!AV14 -> 2028 | H85: ='App.2-AB_Capital Expenditures'!AV20 -> 3058.748589
A86: ='LDC Info'!$E$14 -> Canadian Niagara Power Inc. | B86: EB-2026-0029 | C86: 2027 | D86: 2026 | E86: 2022 | F86: Total Expenditure | G86: ='App.2-AB_Capital Expenditures'!AV14 -> 2028 | H86: ='App.2-AB_Capital Expenditures'!AV21 -> 18213.70319
A87: ='LDC Info'!$E$14 -> Canadian Niagara Power Inc. | B87: EB-2026-0029 | C87: 2027 | D87: 2026 | E87: 2022 | F87: Capital Contributions | G87: ='App.2-AB_Capital Expenditures'!AV14 -> 2028 | H87: ='App.2-AB_Capital Expenditures'!AV22 -> 1281.25
A88: ='LDC Info'!$E$14 -> Canadian Niagara Power Inc. | B88: EB-2026-0029 | C88: 2027 | D88: 2026 | E88: 2022 | F88: Net Capital Expenditures | G88: ='App.2-AB_Capital Expenditures'!AV14 -> 2028 | H88: ='App.2-AB_Capital Expenditures'!AV23 -> 16932.45319
A89: ='LDC Info'!$E$14 -> Canadian Niagara Power Inc. | B89: EB-2026-0029 | C89: 2027 | D89: 2026 | E89: 2022 | F89: System O&M | G89: ='App.2-AB_Capital Expenditures'!AV14 -> 2028 | H89: ='App.2-AB_Capital Expenditures'!AV25 -> 5191.066514
A90: ='LDC Info'!$E$14 -> Canadian Niagara Power Inc. | B90: EB-2026-0029 | C90: 2027 | D90: 2026 | E90: 2022 | F90: System Access | G90: ='App.2-AB_Capital Expenditures'!AW14 -> 2029 | H90: ='App.2-AB_Capital Expenditures'!AW17 -> 4281.037497
A91: ='LDC Info'!$E$14 -> Canadian Niagara Power Inc. | B91: EB-2026-0029 | C91: 2027 | D91: 2026 | E91: 2022 | F91: System Renewal | G91: ='App.2-AB_Capital Expenditures'!AW14 -> 2029 | H91: ='App.2-AB_Capital Expenditures'!AW18 -> 11253.52754
A92: ='LDC Info'!$E$14 -> Canadian Niagara Power Inc. | B92: EB-2026-0029 | C92: 2027 | D92: 2026 | E92: 2022 | F92: System Service | G92: ='App.2-AB_Capital Expenditures'!AW14 -> 2029 | H92: ='App.2-AB_Capital Expenditures'!AW19 -> 907.850946
A93: ='LDC Info'!$E$14 -> Canadian Niagara Power Inc. | B93: EB-2026-0029 | C93: 2027 | D93: 2026 | E93: 2022 | F93: General Plant | G93: ='App.2-AB_Capital Expenditures'!AW14 -> 2029 | H93: ='App.2-AB_Capital Expenditures'!AW20 -> 8952.853571
A94: ='LDC Info'!$E$14 -> Canadian Niagara Power Inc. | B94: EB-2026-0029 | C94: 2027 | D94: 2026 | E94: 2022 | F94: Total Expenditure | G94: ='App.2-AB_Capital Expenditures'!AW14 -> 2029 | H94: ='App.2-AB_Capital Expenditures'!AW21 -> 25395.26955
A95: ='LDC Info'!$E$14 -> Canadian Niagara Power Inc. | B95: EB-2026-0029 | C95: 2027 | D95: 2026 | E95: 2022 | F95: Capital Contributions | G95: ='App.2-AB_Capital Expenditures'!AW14 -> 2029 | H95: ='App.2-AB_Capital Expenditures'!AW22 -> 1313.28125
A96: ='LDC Info'!$E$14 -> Canadian Niagara Power Inc. | B96: EB-2026-0029 | C96: 2027 | D96: 2026 | E96: 2022 | F96: Net Capital Expenditures | G96: ='App.2-AB_Capital Expenditures'!AW14 -> 2029 | H96: ='App.2-AB_Capital Expenditures'!AW23 -> 24081.9883
A97: ='LDC Info'!$E$14 -> Canadian Niagara Power Inc. | B97: EB-2026-0029 | C97: 2027 | D97: 2026 | E97: 2022 | F97: System O&M | G97: ='App.2-AB_Capital Expenditures'!AW14 -> 2029 | H97: ='App.2-AB_Capital Expenditures'!AW25 -> 5333.820843
A98: ='LDC Info'!$E$14 -> Canadian Niagara Power Inc. | B98: =EBNUMBER -> EB-2026-0029 | C98: =TestYear -> 2027 | D98: =BridgeYear -> 2026 | E98: =RebaseYear -> 2022 | F98: System Access | G98: ='App.2-AB_Capital Expenditures'!AX14 -> 2030 | H98: ='App.2-AB_Capital Expenditures'!AX17 -> 4388.063434
A99: ='LDC Info'!$E$14 -> Canadian Niagara Power Inc. | B99: EB-2026-0029 | C99: 2027 | D99: 2026 | E99: 2022 | F99: System Renewal | G99: ='App.2-AB_Capital Expenditures'!AX14 -> 2030 | H99: ='App.2-AB_Capital Expenditures'!AX18 -> 14930.27669
A100: ='LDC Info'!$E$14 -> Canadian Niagara Power Inc. | B100: EB-2026-0029 | C100: 2027 | D100: 2026 | E100: 2022 | F100: System Service | G100: ='App.2-AB_Capital Expenditures'!AX14 -> 2030 | H100: ='App.2-AB_Capital Expenditures'!AX19 -> 851.1866266
A101: ='LDC Info'!$E$14 -> Canadian Niagara Power Inc. | B101: EB-2026-0029 | C101: 2027 | D101: 2026 | E101: 2022 | F101: General Plant | G101: ='App.2-AB_Capital Expenditures'!AX14 -> 2030 | H101: ='App.2-AB_Capital Expenditures'!AX20 -> 1959.057916
A102: ='LDC Info'!$E$14 -> Canadian Niagara Power Inc. | B102: EB-2026-0029 | C102: 2027 | D102: 2026 | E102: 2022 | F102: Total Expenditure | G102: ='App.2-AB_Capital Expenditures'!AX14 -> 2030 | H102: ='App.2-AB_Capital Expenditures'!AX21 -> 22128.58467
A103: ='LDC Info'!$E$14 -> Canadian Niagara Power Inc. | B103: EB-2026-0029 | C103: 2027 | D103: 2026 | E103: 2022 | F103: Capital Contributions | G103: ='App.2-AB_Capital Expenditures'!AX14 -> 2030 | H103: ='App.2-AB_Capital Expenditures'!AX22 -> 1346.113281
A104: ='LDC Info'!$E$14 -> Canadian Niagara Power Inc. | B104: EB-2026-0029 | C104: 2027 | D104: 2026 | E104: 2022 | F104: Net Capital Expenditures | G104: ='App.2-AB_Capital Expenditures'!AX14 -> 2030 | H104: ='App.2-AB_Capital Expenditures'!AX23 -> 20782.47138
A105: ='LDC Info'!$E$14 -> Canadian Niagara Power Inc. | B105: EB-2026-0029 | C105: 2027 | D105: 2026 | E105: 2022 | F105: System O&M | G105: ='App.2-AB_Capital Expenditures'!AX14 -> 2030 | H105: ='App.2-AB_Capital Expenditures'!AX25 -> 5480.500916
A106: ='LDC Info'!$E$14 -> Canadian Niagara Power Inc. | B106: EB-2026-0029 | C106: 2027 | D106: 2026 | E106: 2022 | F106: System Access | G106: ='App.2-AB_Capital Expenditures'!AY14 -> 2031 | H106: ='App.2-AB_Capital Expenditures'!AY17 -> 4497.76502
A107: ='LDC Info'!$E$14 -> Canadian Niagara Power Inc. | B107: EB-2026-0029 | C107: 2027 | D107: 2026 | E107: 2022 | F107: System Renewal | G107: ='App.2-AB_Capital Expenditures'!AY14 -> 2031 | H107: ='App.2-AB_Capital Expenditures'!AY18 -> 10993.41645
A108: ='LDC Info'!$E$14 -> Canadian Niagara Power Inc. | B108: EB-2026-0029 | C108: 2027 | D108: 2026 | E108: 2022 | F108: System Service | G108: ='App.2-AB_Capital Expenditures'!AY14 -> 2031 | H108: ='App.2-AB_Capital Expenditures'!AY19 -> 889.0234856
A109: ='LDC Info'!$E$14 -> Canadian Niagara Power Inc. | B109: EB-2026-0029 | C109: 2027 | D109: 2026 | E109: 2022 | F109: General Plant | G109: ='App.2-AB_Capital Expenditures'!AY14 -> 2031 | H109: ='App.2-AB_Capital Expenditures'!AY20 -> 2825.258677
A110: ='LDC Info'!$E$14 -> Canadian Niagara Power Inc. | B110: EB-2026-0029 | C110: 2027 | D110: 2026 | E110: 2022 | F110: Total Expenditure | G110: ='App.2-AB_Capital Expenditures'!AY14 -> 2031 | H110: ='App.2-AB_Capital Expenditures'!AY21 -> 19205.46363
A111: ='LDC Info'!$E$14 -> Canadian Niagara Power Inc. | B111: EB-2026-0029 | C111: 2027 | D111: 2026 | E111: 2022 | F111: Capital Contributions | G111: ='App.2-AB_Capital Expenditures'!AY14 -> 2031 | H111: ='App.2-AB_Capital Expenditures'!AY22 -> 1379.766113
A112: ='LDC Info'!$E$14 -> Canadian Niagara Power Inc. | B112: EB-2026-0029 | C112: 2027 | D112: 2026 | E112: 2022 | F112: Net Capital Expenditures | G112: ='App.2-AB_Capital Expenditures'!AY14 -> 2031 | H112: ='App.2-AB_Capital Expenditures'!AY23 -> 17825.69751
A113: ='LDC Info'!$E$14 -> Canadian Niagara Power Inc. | B113: EB-2026-0029 | C113: 2027 | D113: 2026 | E113: 2022 | F113: System O&M | G113: ='App.2-AB_Capital Expenditures'!AY14 -> 2031 | H113: ='App.2-AB_Capital Expenditures'!AY25 -> 5631.214691

Sheet App.2-B_Acctg Instructions (hidden)
A1: General Instructions to MIFRS Appendices
A2: Types of Schedules to File
A4: The purpose of this tab is to provide general instructions. The specific instructions to each appendix are listed in footnotes of each appendix.
A6: The typical applicant is expected to have made capitalization and depreciation policy changes under CGAAP as permitted by the OEB on January 1, 2012 or mandated by the OEB by January 1, 2013, and adopted IFRS for reporting purposes on January 1, 2015 (transition date January 1, 2014). Most distributors filing for 2021 rates have rebased with these accounting changes reflected in a prior rebasing application. If that is the case, information relating to pre-accounting policy changes is not generally required. Most distributors may have rebased under MIFRS. If that is the case, information related to the accounting standard used prior to IFRS is not generally required. The information to be provided by applicants will depend on when the accounting policy changes were made and when they last rebased. In general, applicants should provide the following information in the appendices:
E9: Reflecting Accounting Policy Changes in Current Application | G9: Reflected Accounting Policy Changes in Prior Application3 | H9: Rebased under MIFRS in Prior Application3
E10: Accounting Policy Changes in 2012 and Adopted IFRS in 2015 | F10: Accounting Policy Changes in 2013 and Adopted IFRS in 2015 | G10: Adopted IFRS in 2015 | H10: IFRS Since 2015
B11: 2021 | C11: Test | E11: MIFRS | F11: MIFRS | G11: MIFRS | H11: MIFRS
A12: Information to be filed in 2019 CoS Application | B12: 2020 | C12: Bridge | E12: MIFRS | F12: MIFRS | G12: MIFRS | H12: MIFRS
B13: 2019 | C13: Bridge | E13: MIFRS | F13: MIFRS | G13: MIFRS | H13: MIFRS
B14: 2018 | C14: Bridge | E14: MIFRS | F14: MIFRS | G14: MIFRS | H14: MIFRS
B15: 2017 | C15: Historical | E15: MIFRS | F15: MIFRS | G15: MIFRS | H15: MIFRS
B16: 2016 | C16: Historical | E16: MIFRS | F16: MIFRS | G16: MIFRS | H16: MIFRS
B17: 2015 | C17: Historical | E17: MIFRS and Revised CGAAP1 | F17: MIFRS and Revised CGAAP1 | G17: MIFRS and Revised CGAAP1 | H17: N/A
B18: 2014 | C18: Historical | E18: Revised CGAAP | F18: CGAAP and Revised CGAAP2 | G18: N/A | H18: N/A
B19: 2013 | C19: Historical | E19: CGAAP and Revised CGAAP2 | F19: N/A | G19: N/A | H19: N/A
A21: 1) For the transition year (2014), the applicant may file two appendices, one under Revised CGAAP and one under MIFRS, depending on the materiality of impacts. See the specific instructions under each appendix below for further details.
A22: 2) For applicants that are reflecting accounting policy changes for the first time in a rebasing application, the applicant must file two appendices in the year that the applicant implemented changes to its capitalization and depreciation policies (2012 or 2013), one before and one after the policy changes.
A23: 3) Applicants should provide CGAAP and Revised CGAAP schedules (i.e. as indicated in the first two columns of the above table) to support balances in Account 1576 if the account has yet to be disposed of.
A26: Appendix 2-BA - Fixed Asset Schedule
A28: Applicants are to provide Appendix 2-BA in accordance with the years and corresponding accounting standards noted in the above table to provide a year over year continuity in fixed assets.
A29: If this is the first application where the applicant is rebasing under MIFRS, the applicant should file two appendices, one under Revised CGAAP and one under MIFRS for the transition year (2014), if the change between Revised CGAAP and MIFRS is material. If the change from the accounting standards is not material, the applicant may choose to only provide one appendix under MIFRS. However, the applicant must also indicate the fixed asset net book value balance under Revised CGAAP, the total dollar value of the change and explain why it is not material.
A33: The applicant must establish the continuity of historical cost for gross assets and accumulated depreciation by asset class by ensuring that the opening balance in the year agrees to the closing balance in the prior year.
A36: Appendix 2-Cx - Depreciation and Amortization
A38: Applicants are to provide Appendix 2-C in accordance with the years and corresponding accounting standards listed in the above table.
A39: Appendix 2-C is to be used under all of the scenarios presented in the table above. In the appendix, the applicant will need to indicate which scenario applies. The appendix is to be duplicated for each year and for each accounting standard required as per the above table.
A40: Depreciation accounting policy changes were mandated by the OEB by January 1, 2013. In general, no further changes to an applicant's depreciation policy (i.e. assets' service lives) are expected after the OEB mandated changes by January 1, 2013, unless a change is determined to be necessary in accordance with the depreciation review required under IFRS. If the applicant has made any changes to its depreciation policy subsequent to the OEB mandated changes, for the year of the change, applicants must quantify the change in depreciation. If there are significant changes to multiple asset classes, the applicant must complete Appendix 2-C before and after the change. Applicants must also explain the nature of the change, the reason for the change, quantify the impact of the change.
A42: Appendix 2-E - Account 1575, IFRS-CGAAP Transitional PP&E Amounts (2-EA), Account 1576, Accounting Changes Under CGAAP (2-EB, 2-EC) CONTACT OEB STAFF IF TAB REQUIRED
A44: 1) For an applicant that has a balance in Account 1576 to dispose:
A45: · | B45: If an applicant changed capitalization and depreciation policies effective January 1, 2012, the applicant must complete Appendix 2-EB
A46: · | B46: If an applicant changed capitalization and depreciation policies effective January 1, 2013, the applicant must complete Appendix 2-EC
A48: 2) For an applicant that has a balance in Account 1575 to dispose:
A49: · | B49: The applicant must complete 2-EA
A50: If the applicant did not make any further PP&E accounting policy changes beyond the capitalization and depreciation policy changes as mandated by the OEB by January 1, 2013 (i.e. no further changes made on transition to IFRS), the applicant must indicate this and does not need to complete Appendix 2-EA.
A54: Appendix 2-Y - Summary of Impacts to Revenue Requirement from Transition to MIFRS CONTACT OEB STAFF IF TAB REQUIRED
A56: Applicants must complete Appendix 2-Y if this is the first rebasing application under MIFRS. An applicant must provide a summary of the dollar impacts of MIFRS to each component of the revenue requirement (e.g. rate base, operating costs, etc.), including the overall impact on the proposed revenue requirement. Accordingly, the applicant must identify financial differences and resulting revenue requirement impacts arising from the adoption of MIFRS as compared to CGAAP. If the applicant is reflecting the changes in capitalization and depreciation policies for the first time in a rebasing application as well, then a comparison between MIFRS and CGAAP before the change in accounting policies should be completed. If the applicant changed capitalization and depreciation policies and reflected these changes in a prior rebasing application, then a comparison between MIFRS and CGAAP after the change in accounting policies should be completed.

Sheet App.2-BA_Fixed Asset Cont
M1: File Number: | N1: =EBNUMBER -> EB-2026-0029
M2: Exhibit: | N2: Separate Attachment
M3: Tab:
M4: Schedule:
M5: Page:
M7: Date: | N7: 2026-05-19
A9: Appendix 2-BA
A10: Fixed Asset Continuity Schedule 1
A12: Notes:
A14: 1 | B14: Tables in the format outlined above covering all fixed asset accounts should be submitted for the Test Year, Bridge Year and all relevant historical years. At a minimum , the applicant must provide data for the earlier of: 1) all historical years back to its last rebasing; or 2) at least three years of historical actuals, in addition to Bridge Year and Test Year forecasts. If this is the first application where the applicant is rebasing under MIFRS, contact OEB staff for further guidance on the appropriate fixed asset continuity schedules to complete (i.e. applicable years and accounting standard for each schedule).
A17: 2 | B17: The "CCA Class" for fixed assets should generally agree with the CCA Class used for tax purposes in Tax Returns. Fixed Assets sub-components may be used where the underlying asset components are classified under multiple CCA Classes for tax purposes. If an applicant uses any different classes from those shown in the table, an explanation should be provided. (also see note 3).
A20: 3 | B20: The table may need to be customized for a utility's asset categories or for any new asset accounts announced or authorized by the OEB.
A22: 4 | B22: The additions in column (E) must not include construction work in progress (CWIP).
A24: 5 | B24: Effective on the date of IFRS adoption, customer contributions will no longer be recorded in Account 1995 Contributions & Grants, but will be recorded in Account 2440, Deferred Revenues. Amortization of deferred revenue will be removed from the depreciation expense shown on this fixed asset continuity schedule as it should be included as income in Appendix 2-H Other Revenues.
A26: 6 | B26: The applicant must ensure that all asset disposals have been clearly identified in the Chapter 2 Appendices for all historic, bridge and test years. Where a distributor for general financial reporting purposes under IFRS has accounted for the amount of gain or loss on the retirement of assets in a pool of like assets as a charge or credit to income, for reporting and rate application filings, the distributor shall reclassify such gains and losses as depreciation expense, and disclose the amount separately.
A30: 7 | B30: This account includes the amount recorded under finance leases for plant leased from others and used by the utility in its utility operations.
A32: 8 | B32: The applicant must establish the continuity of historical cost for gross assets and accumulated depreciation by asset class by ensuring that the opening balance in the year agrees to the closing balance in the prior year.
E42: Accounting Standard | F42: CGAAP
E43: Year | F43: =TestYear-15 -> 2012 | H43: =IF(F43=2014,4,IF(F43=2015,5,IF(F43=2016,6,IF(F43=2017,7,IF(F43=2018,8,IF(F43=2019,9,IF(F43=2020,10))))))) -> FALSE
D45: Cost | K45: Accumulated Depreciation
A46: CCA Class 2 | B46: OEB Account 3 | C46: Description 3 | D46: Opening Balance 8 | E46: Additions 4 | F46: Disposals 6 | G46: Closing Balance | H46: RRR DATA | J46: Opening Balance 8 | K46: Additions | L46: Disposals 6 | M46: Closing Balance | N46: Net Book Value
B47: 1609 | C47: Capital Contributions Paid | G47: =D47+E47+F47 -> 0 | H47: =IFERROR(VLOOKUP(R47,'2.1.7 All Accounts'!$D:$N,$H$43,FALSE),0) -> 0 | M47: =J47+K47+L47 -> 0 | N47: =G47+M47 -> 0 | R47: ='LDC Info'!$E$14 & B47 -> Canadian Niagara Power Inc.1609
A48: 12 | B48: 1611 | C48: Computer Software (Formally known as Account 1925) | G48: =D48+E48+F48 -> 0 | H48: =IFERROR(VLOOKUP(R48,'2.1.7 All Accounts'!$D:$N,$H$43,FALSE),0) -> 0 | M48: =J48+K48+L48 -> 0 | N48: =G48+M48 -> 0 | R48: ='LDC Info'!$E$14 & B48 -> Canadian Niagara Power Inc.1611
A49: CEC | B49: 1612 | C49: Land Rights (Formally known as Account 1906) | G49: =D49+E49+F49 -> 0 | H49: =IFERROR(VLOOKUP(R49,'2.1.7 All Accounts'!$D:$N,$H$43,FALSE),0) -> 0 | M49: =J49+K49+L49 -> 0 | N49: =G49+M49 -> 0 | R49: ='LDC Info'!$E$14 & B49 -> Canadian Niagara Power Inc.1612
A50: N/A | B50: 1805 | C50: Land | G50: =D50+E50+F50 -> 0 | H50: =IFERROR(VLOOKUP(R50,'2.1.7 All Accounts'!$D:$N,$H$43,FALSE),0) -> 0 | M50: =J50+K50+L50 -> 0 | N50: =G50+M50 -> 0 | R50: ='LDC Info'!$E$14 & B50 -> Canadian Niagara Power Inc.1805
A51: 47 | B51: 1808 | C51: Buildings | G51: =D51+E51+F51 -> 0 | H51: =IFERROR(VLOOKUP(R51,'2.1.7 All Accounts'!$D:$N,$H$43,FALSE),0) -> 0 | M51: =J51+K51+L51 -> 0 | N51: =G51+M51 -> 0 | R51: ='LDC Info'!$E$14 & B51 -> Canadian Niagara Power Inc.1808
A52: 13 | B52: 1810 | C52: Leasehold Improvements | G52: 0 | H52: =IFERROR(VLOOKUP(R52,'2.1.7 All Accounts'!$D:$N,$H$43,FALSE),0) -> 0 | M52: 0 | N52: 0 | R52: ='LDC Info'!$E$14 & B52 -> Canadian Niagara Power Inc.1810
A53: 47 | B53: 1815 | C53: Transformer Station Equipment >50 kV | G53: 0 | H53: =IFERROR(VLOOKUP(R53,'2.1.7 All Accounts'!$D:$N,$H$43,FALSE),0) -> 0 | M53: 0 | N53: 0 | R53: ='LDC Info'!$E$14 & B53 -> Canadian Niagara Power Inc.1815
A54: 47 | B54: 1820 | C54: Distribution Station Equipment <50 kV | G54: 0 | H54: =IFERROR(VLOOKUP(R54,'2.1.7 All Accounts'!$D:$N,$H$43,FALSE),0) -> 0 | M54: 0 | N54: 0 | R54: ='LDC Info'!$E$14 & B54 -> Canadian Niagara Power Inc.1820
A55: 47 | B55: 1825 | C55: Storage Battery Equipment | G55: 0 | H55: =IFERROR(VLOOKUP(R55,'2.1.7 All Accounts'!$D:$N,$H$43,FALSE),0) -> 0 | M55: 0 | N55: 0 | R55: ='LDC Info'!$E$14 & B55 -> Canadian Niagara Power Inc.1825
A56: 47 | B56: 1830 | C56: Poles, Towers & Fixtures | G56: 0 | H56: =IFERROR(VLOOKUP(R56,'2.1.7 All Accounts'!$D:$N,$H$43,FALSE),0) -> 0 | M56: 0 | N56: 0 | R56: ='LDC Info'!$E$14 & B56 -> Canadian Niagara Power Inc.1830
A57: 47 | B57: 1835 | C57: Overhead Conductors & Devices | G57: 0 | H57: =IFERROR(VLOOKUP(R57,'2.1.7 All Accounts'!$D:$N,$H$43,FALSE),0) -> 0 | M57: 0 | N57: 0 | R57: ='LDC Info'!$E$14 & B57 -> Canadian Niagara Power Inc.1835
A58: 47 | B58: 1840 | C58: Underground Conduit | G58: 0 | H58: =IFERROR(VLOOKUP(R58,'2.1.7 All Accounts'!$D:$N,$H$43,FALSE),0) -> 0 | M58: 0 | N58: 0 | R58: ='LDC Info'!$E$14 & B58 -> Canadian Niagara Power Inc.1840
A59: 47 | B59: 1845 | C59: Underground Conductors & Devices | G59: 0 | H59: =IFERROR(VLOOKUP(R59,'2.1.7 All Accounts'!$D:$N,$H$43,FALSE),0) -> 0 | M59: 0 | N59: 0 | R59: ='LDC Info'!$E$14 & B59 -> Canadian Niagara Power Inc.1845
A60: 47 | B60: 1850 | C60: Line Transformers | G60: 0 | H60: =IFERROR(VLOOKUP(R60,'2.1.7 All Accounts'!$D:$N,$H$43,FALSE),0) -> 0 | M60: 0 | N60: 0 | R60: ='LDC Info'!$E$14 & B60 -> Canadian Niagara Power Inc.1850
A61: 47 | B61: 1855 | C61: Services (Overhead & Underground) | G61: 0 | H61: =IFERROR(VLOOKUP(R61,'2.1.7 All Accounts'!$D:$N,$H$43,FALSE),0) -> 0 | M61: 0 | N61: 0 | R61: ='LDC Info'!$E$14 & B61 -> Canadian Niagara Power Inc.1855
A62: 47 | B62: 1860 | C62: Meters | G62: 0 | H62: =IFERROR(VLOOKUP(R62,'2.1.7 All Accounts'!$D:$N,$H$43,FALSE),0) -> 0 | M62: 0 | N62: 0 | R62: ='LDC Info'!$E$14 & B62 -> Canadian Niagara Power Inc.1860
A63: 47 | B63: 1860 | C63: Meters (Smart Meters) | G63: 0 | H63: =IFERROR(VLOOKUP(R63,'2.1.7 All Accounts'!$D:$N,$H$43,FALSE),0) -> 0 | M63: 0 | N63: 0 | R63: ='LDC Info'!$E$14 & B63 -> Canadian Niagara Power Inc.1860
A64: N/A | B64: 1905 | C64: Land | G64: 0 | H64: =IFERROR(VLOOKUP(R64,'2.1.7 All Accounts'!$D:$N,$H$43,FALSE),0) -> 0 | M64: 0 | N64: 0 | R64: ='LDC Info'!$E$14 & B64 -> Canadian Niagara Power Inc.1905
A65: 47 | B65: 1908 | C65: Buildings & Fixtures | G65: 0 | H65: =IFERROR(VLOOKUP(R65,'2.1.7 All Accounts'!$D:$N,$H$43,FALSE),0) -> 0 | M65: 0 | N65: 0 | R65: ='LDC Info'!$E$14 & B65 -> Canadian Niagara Power Inc.1908
A66: 13 | B66: 1910 | C66: Leasehold Improvements | G66: 0 | H66: =IFERROR(VLOOKUP(R66,'2.1.7 All Accounts'!$D:$N,$H$43,FALSE),0) -> 0 | M66: 0 | N66: 0 | R66: ='LDC Info'!$E$14 & B66 -> Canadian Niagara Power Inc.1910
A67: 8 | B67: 1915 | C67: Office Furniture & Equipment (10 years) | G67: 0 | H67: =IFERROR(VLOOKUP(R67,'2.1.7 All Accounts'!$D:$N,$H$43,FALSE),0) -> 0 | M67: 0 | N67: 0 | R67: ='LDC Info'!$E$14 & B67 -> Canadian Niagara Power Inc.1915
A68: 8 | B68: 1915 | C68: Office Furniture & Equipment (5 years) | G68: 0 | H68: =IFERROR(VLOOKUP(R68,'2.1.7 All Accounts'!$D:$N,$H$43,FALSE),0) -> 0 | M68: 0 | N68: 0 | R68: ='LDC Info'!$E$14 & B68 -> Canadian Niagara Power Inc.1915
A69: 10 | B69: 1920 | C69: Computer Equipment - Hardware | G69: 0 | H69: =IFERROR(VLOOKUP(R69,'2.1.7 All Accounts'!$D:$N,$H$43,FALSE),0) -> 0 | M69: 0 | N69: 0 | R69: ='LDC Info'!$E$14 & B69 -> Canadian Niagara Power Inc.1920
A70: 45 | B70: 1920 | C70: Computer Equip.-Hardware(Post Mar. 22/04) | G70: 0 | H70: =IFERROR(VLOOKUP(R70,'2.1.7 All Accounts'!$D:$N,$H$43,FALSE),0) -> 0 | M70: 0 | N70: 0 | R70: ='LDC Info'!$E$14 & B70 -> Canadian Niagara Power Inc.1920
A71: 50 | B71: 1920 | C71: Computer Equip.-Hardware(Post Mar. 19/07) | G71: 0 | H71: =IFERROR(VLOOKUP(R71,'2.1.7 All Accounts'!$D:$N,$H$43,FALSE),0) -> 0 | M71: 0 | N71: 0 | R71: ='LDC Info'!$E$14 & B71 -> Canadian Niagara Power Inc.1920
A72: 10 | B72: 1930 | C72: Transportation Equipment | G72: 0 | H72: =IFERROR(VLOOKUP(R72,'2.1.7 All Accounts'!$D:$N,$H$43,FALSE),0) -> 0 | M72: 0 | N72: 0 | R72: ='LDC Info'!$E$14 & B72 -> Canadian Niagara Power Inc.1930
A73: 8 | B73: 1935 | C73: Stores Equipment | G73: 0 | H73: =IFERROR(VLOOKUP(R73,'2.1.7 All Accounts'!$D:$N,$H$43,FALSE),0) -> 0 | M73: 0 | N73: 0 | R73: ='LDC Info'!$E$14 & B73 -> Canadian Niagara Power Inc.1935
A74: 8 | B74: 1940 | C74: Tools, Shop & Garage Equipment | G74: 0 | H74: =IFERROR(VLOOKUP(R74,'2.1.7 All Accounts'!$D:$N,$H$43,FALSE),0) -> 0 | M74: 0 | N74: 0 | R74: ='LDC Info'!$E$14 & B74 -> Canadian Niagara Power Inc.1940
A75: 8 | B75: 1945 | C75: Measurement & Testing Equipment | G75: 0 | H75: =IFERROR(VLOOKUP(R75,'2.1.7 All Accounts'!$D:$N,$H$43,FALSE),0) -> 0 | M75: 0 | N75: 0 | R75: ='LDC Info'!$E$14 & B75 -> Canadian Niagara Power Inc.1945
A76: 8 | B76: 1950 | C76: Power Operated Equipment | G76: 0 | H76: =IFERROR(VLOOKUP(R76,'2.1.7 All Accounts'!$D:$N,$H$43,FALSE),0) -> 0 | M76: 0 | N76: 0 | R76: ='LDC Info'!$E$14 & B76 -> Canadian Niagara Power Inc.1950
A77: 8 | B77: 1955 | C77: Communications Equipment | G77: 0 | H77: =IFERROR(VLOOKUP(R77,'2.1.7 All Accounts'!$D:$N,$H$43,FALSE),0) -> 0 | M77: 0 | N77: 0 | R77: ='LDC Info'!$E$14 & B77 -> Canadian Niagara Power Inc.1955
A78: 8 | B78: 1955 | C78: Communication Equipment (Smart Meters) | G78: 0 | H78: =IFERROR(VLOOKUP(R78,'2.1.7 All Accounts'!$D:$N,$H$43,FALSE),0) -> 0 | M78: 0 | N78: 0 | R78: ='LDC Info'!$E$14 & B78 -> Canadian Niagara Power Inc.1955
A79: 8 | B79: 1960 | C79: Miscellaneous Equipment | G79: 0 | H79: =IFERROR(VLOOKUP(R79,'2.1.7 All Accounts'!$D:$N,$H$43,FALSE),0) -> 0 | M79: 0 | N79: 0 | R79: ='LDC Info'!$E$14 & B79 -> Canadian Niagara Power Inc.1960
A80: 47 | B80: 1970 | C80: Load Management Controls Customer Premises | G80: 0 | H80: =IFERROR(VLOOKUP(R80,'2.1.7 All Accounts'!$D:$N,$H$43,FALSE),0) -> 0 | M80: 0 | N80: 0 | R80: ='LDC Info'!$E$14 & B80 -> Canadian Niagara Power Inc.1970
A81: 47 | B81: 1975 | C81: Load Management Controls Utility Premises | G81: 0 | H81: =IFERROR(VLOOKUP(R81,'2.1.7 All Accounts'!$D:$N,$H$43,FALSE),0) -> 0 | M81: 0 | N81: 0 | R81: ='LDC Info'!$E$14 & B81 -> Canadian Niagara Power Inc.1975
A82: 47 | B82: 1980 | C82: System Supervisor Equipment | G82: 0 | H82: =IFERROR(VLOOKUP(R82,'2.1.7 All Accounts'!$D:$N,$H$43,FALSE),0) -> 0 | M82: 0 | N82: 0 | R82: ='LDC Info'!$E$14 & B82 -> Canadian Niagara Power Inc.1980
A83: 47 | B83: 1985 | C83: Miscellaneous Fixed Assets | G83: 0 | H83: =IFERROR(VLOOKUP(R83,'2.1.7 All Accounts'!$D:$N,$H$43,FALSE),0) -> 0 | M83: 0 | N83: 0 | R83: ='LDC Info'!$E$14 & B83 -> Canadian Niagara Power Inc.1985
A84: 47 | B84: 1990 | C84: Other Tangible Property | G84: 0 | H84: =IFERROR(VLOOKUP(R84,'2.1.7 All Accounts'!$D:$N,$H$43,FALSE),0) -> 0 | M84: 0 | N84: 0 | R84: ='LDC Info'!$E$14 & B84 -> Canadian Niagara Power Inc.1990
A85: 47 | B85: 1995 | C85: Contributions & Grants | G85: 0 | H85: =IFERROR(VLOOKUP(R85,'2.1.7 All Accounts'!$D:$N,$H$43,FALSE),0) -> 0 | M85: 0 | N85: 0 | R85: ='LDC Info'!$E$14 & B85 -> Canadian Niagara Power Inc.1995
A86: 47 | B86: 2440 | C86: Deferred Revenue5 | G86: 0 | H86: =IFERROR(VLOOKUP(R86,'2.1.7 All Accounts'!$D:$N,$H$43,FALSE),0) -> 0 | M86: 0 | N86: 0 | R86: ='LDC Info'!$E$14 & B86 -> Canadian Niagara Power Inc.2440
B87: 2005 | C87: Property Under Finance Lease7 | G87: 0 | H87: =IFERROR(VLOOKUP(R87,'2.1.7 All Accounts'!$D:$N,$H$43,FALSE),0) -> 0 | M87: 0 | N87: 0 | R87: ='LDC Info'!$E$14 & B87 -> Canadian Niagara Power Inc.2005
C88: Sub-Total | D88: =SUM(D47:D87) -> 0 | E88: =SUM(E47:E87) -> 0 | F88: =SUM(F47:F87) -> 0 | G88: =SUM(G47:G87) -> 0 | H88: =SUM(H47:H87) -> 0 | J88: =SUM(J47:J87) -> 0 | K88: =SUM(K47:K87) -> 0 | L88: =SUM(L47:L87) -> 0 | M88: =SUM(M47:M87) -> 0 | N88: =SUM(N47:N87) -> 0
C89: Less Socialized Renewable Energy Generation Investments (input as negative) | G89: =D89+E89+F89 -> 0 | M89: =J89+K89+L89 -> 0 | N89: =G89+M89 -> 0
C90: Less Other Non Rate-Regulated Utility Assets (input as negative) | G90: =D90+E90+F90 -> 0 | M90: =J90+K90+L90 -> 0 | N90: =G90+M90 -> 0
C91: Total PP&E for Rate Base Purposes | D91: =SUM(D88:D90) -> 0 | E91: =SUM(E88:E90) -> 0 | F91: =SUM(F88:F90) -> 0 | G91: =SUM(G88:G90) -> 0 | J91: =SUM(J88:J90) -> 0 | K91: =SUM(K88:K90) -> 0 | L91: =SUM(L88:L90) -> 0 | M91: =SUM(M88:M90) -> 0 | N91: =SUM(N88:N90) -> 0
C92: Construction Work In Progress | G92: =D92+E92+F92 -> 0 | H92: =IFERROR(VLOOKUP(R92,'2.1.7 All Accounts'!$D:$N,$H$43,FALSE),0) -> 0 | M92: =J92+K92+L92 -> 0 | N92: =G92+M92 -> 0
C93: Total PP&E | D93: =SUM(D91:D92) -> 0 | E93: =SUM(E91:E92) -> 0 | F93: 0 | G93: 0 | H93: 0 | I93: 0 | J93: 0 | K93: 0 | L93: 0 | M93: 0 | N93: 0
C94: Depreciation Expense adj. from gain or loss on the retirement of assets (pool of like assets), if applicable6
C95: Total | K95: =K93+K94 -> 0
D96: Gross Fixed Assets (average) for Rate Base | G96: =AVERAGE(D91,G91) -> 0 | J96: Accumulated Depreciation (average) | M96: =AVERAGE(J91,M91) -> 0
J97: Net Fixed Assets (average) | M97: =G96+M96 -> 0
J98: Less: Fully Allocated Depreciation
A99: 10 | C99: Transportation | J99: Transportation
A100: 8 | C100: Stores Equipment | J100: Stores Equipment
A101: 47 | C101: Deferred Revenue | J101: Deferred Revenue
J102: Net Depreciation | L102: =K95-L99-L100-L101 -> 0
E106: Accounting Standard | F106: CGAAP
E107: Year | F107: =TestYear-14 -> 2013 | H107: =IF(F107=2014,4,IF(F107=2015,5,IF(F107=2016,6,IF(F107=2017,7,IF(F107=2018,8,IF(F107=2019,9,IF(F107=2020,10))))))) -> FALSE
D109: Cost | K109: Accumulated Depreciation
A110: CCA Class 2 | B110: OEB Account 3 | C110: Description 3 | D110: Opening Balance 8 | E110: Additions 4 | F110: Disposals 6 | G110: Closing Balance | H110: RRR DATA | J110: Opening Balance 8 | K110: Additions | L110: Disposals 6 | M110: Closing Balance | N110: Net Book Value
B111: 1609 | C111: Capital Contributions Paid | D111: =G47 -> 0 | G111: =D111+E111+F111 -> 0 | H111: =IFERROR(VLOOKUP(R111,'2.1.7 All Accounts'!$D:$N,$H$43,FALSE),0) -> 0 | J111: =M47 -> 0 | M111: =J111+K111+L111 -> 0 | N111: =G111+M111 -> 0 | R111: ='LDC Info'!$E$14 & B111 -> Canadian Niagara Power Inc.1609
A112: 12 | B112: 1611 | C112: Computer Software (Formally known as Account 1925) | D112: =G48 -> 0 | G112: =D112+E112+F112 -> 0 | H112: =IFERROR(VLOOKUP(R112,'2.1.7 All Accounts'!$D:$N,$H$43,FALSE),0) -> 0 | J112: =M48 -> 0 | M112: =J112+K112+L112 -> 0 | N112: =G112+M112 -> 0 | R112: ='LDC Info'!$E$14 & B112 -> Canadian Niagara Power Inc.1611
A113: CEC | B113: 1612 | C113: Land Rights (Formally known as Account 1906) | D113: =G49 -> 0 | G113: =D113+E113+F113 -> 0 | H113: =IFERROR(VLOOKUP(R113,'2.1.7 All Accounts'!$D:$N,$H$43,FALSE),0) -> 0 | J113: =M49 -> 0 | M113: =J113+K113+L113 -> 0 | N113: =G113+M113 -> 0 | R113: ='LDC Info'!$E$14 & B113 -> Canadian Niagara Power Inc.1612
A114: N/A | B114: 1805 | C114: Land | D114: =G50 -> 0 | G114: =D114+E114+F114 -> 0 | H114: =IFERROR(VLOOKUP(R114,'2.1.7 All Accounts'!$D:$N,$H$43,FALSE),0) -> 0 | J114: =M50 -> 0 | M114: =J114+K114+L114 -> 0 | N114: =G114+M114 -> 0 | R114: ='LDC Info'!$E$14 & B114 -> Canadian Niagara Power Inc.1805
A115: 47 | B115: 1808 | C115: Buildings | D115: =G51 -> 0 | G115: =D115+E115+F115 -> 0 | H115: =IFERROR(VLOOKUP(R115,'2.1.7 All Accounts'!$D:$N,$H$43,FALSE),0) -> 0 | J115: =M51 -> 0 | M115: =J115+K115+L115 -> 0 | N115: =G115+M115 -> 0 | R115: ='LDC Info'!$E$14 & B115 -> Canadian Niagara Power Inc.1808
A116: 13 | B116: 1810 | C116: Leasehold Improvements | D116: =G52 -> 0 | G116: 0 | H116: =IFERROR(VLOOKUP(R116,'2.1.7 All Accounts'!$D:$N,$H$43,FALSE),0) -> 0 | J116: =M52 -> 0 | M116: 0 | N116: 0 | R116: ='LDC Info'!$E$14 & B116 -> Canadian Niagara Power Inc.1810
A117: 47 | B117: 1815 | C117: Transformer Station Equipment >50 kV | D117: =G53 -> 0 | G117: 0 | H117: =IFERROR(VLOOKUP(R117,'2.1.7 All Accounts'!$D:$N,$H$43,FALSE),0) -> 0 | J117: =M53 -> 0 | M117: 0 | N117: 0 | R117: ='LDC Info'!$E$14 & B117 -> Canadian Niagara Power Inc.1815
A118: 47 | B118: 1820 | C118: Distribution Station Equipment <50 kV | D118: =G54 -> 0 | G118: 0 | H118: =IFERROR(VLOOKUP(R118,'2.1.7 All Accounts'!$D:$N,$H$43,FALSE),0) -> 0 | J118: =M54 -> 0 | M118: 0 | N118: 0 | R118: ='LDC Info'!$E$14 & B118 -> Canadian Niagara Power Inc.1820
A119: 47 | B119: 1825 | C119: Storage Battery Equipment | D119: =G55 -> 0 | G119: 0 | H119: =IFERROR(VLOOKUP(R119,'2.1.7 All Accounts'!$D:$N,$H$43,FALSE),0) -> 0 | J119: =M55 -> 0 | M119: 0 | N119: 0 | R119: ='LDC Info'!$E$14 & B119 -> Canadian Niagara Power Inc.1825
A120: 47 | B120: 1830 | C120: Poles, Towers & Fixtures | D120: =G56 -> 0 | G120: 0 | H120: =IFERROR(VLOOKUP(R120,'2.1.7 All Accounts'!$D:$N,$H$43,FALSE),0) -> 0 | J120: =M56 -> 0 | M120: 0 | N120: 0 | R120: ='LDC Info'!$E$14 & B120 -> Canadian Niagara Power Inc.1830
A121: 47 | B121: 1835 | C121: Overhead Conductors & Devices | D121: =G57 -> 0 | G121: 0 | H121: =IFERROR(VLOOKUP(R121,'2.1.7 All Accounts'!$D:$N,$H$43,FALSE),0) -> 0 | J121: =M57 -> 0 | M121: 0 | N121: 0 | R121: ='LDC Info'!$E$14 & B121 -> Canadian Niagara Power Inc.1835
A122: 47 | B122: 1840 | C122: Underground Conduit | D122: =G58 -> 0 | G122: 0 | H122: =IFERROR(VLOOKUP(R122,'2.1.7 All Accounts'!$D:$N,$H$43,FALSE),0) -> 0 | J122: =M58 -> 0 | M122: 0 | N122: 0 | R122: ='LDC Info'!$E$14 & B122 -> Canadian Niagara Power Inc.1840
A123: 47 | B123: 1845 | C123: Underground Conductors & Devices | D123: =G59 -> 0 | G123: 0 | H123: =IFERROR(VLOOKUP(R123,'2.1.7 All Accounts'!$D:$N,$H$43,FALSE),0) -> 0 | J123: =M59 -> 0 | M123: 0 | N123: 0 | R123: ='LDC Info'!$E$14 & B123 -> Canadian Niagara Power Inc.1845
A124: 47 | B124: 1850 | C124: Line Transformers | D124: =G60 -> 0 | G124: 0 | H124: =IFERROR(VLOOKUP(R124,'2.1.7 All Accounts'!$D:$N,$H$43,FALSE),0) -> 0 | J124: =M60 -> 0 | M124: 0 | N124: 0 | R124: ='LDC Info'!$E$14 & B124 -> Canadian Niagara Power Inc.1850
A125: 47 | B125: 1855 | C125: Services (Overhead & Underground) | D125: =G61 -> 0 | G125: 0 | H125: =IFERROR(VLOOKUP(R125,'2.1.7 All Accounts'!$D:$N,$H$43,FALSE),0) -> 0 | J125: =M61 -> 0 | M125: 0 | N125: 0 | R125: ='LDC Info'!$E$14 & B125 -> Canadian Niagara Power Inc.1855
A126: 47 | B126: 1860 | C126: Meters | D126: =G62 -> 0 | G126: 0 | H126: =IFERROR(VLOOKUP(R126,'2.1.7 All Accounts'!$D:$N,$H$43,FALSE),0) -> 0 | J126: =M62 -> 0 | M126: 0 | N126: 0 | R126: ='LDC Info'!$E$14 & B126 -> Canadian Niagara Power Inc.1860
A127: 47 | B127: 1860 | C127: Meters (Smart Meters) | D127: =G63 -> 0 | G127: 0 | H127: =IFERROR(VLOOKUP(R127,'2.1.7 All Accounts'!$D:$N,$H$43,FALSE),0) -> 0 | J127: =M63 -> 0 | M127: 0 | N127: 0 | R127: ='LDC Info'!$E$14 & B127 -> Canadian Niagara Power Inc.1860
A128: N/A | B128: 1905 | C128: Land | D128: =G64 -> 0 | G128: 0 | H128: =IFERROR(VLOOKUP(R128,'2.1.7 All Accounts'!$D:$N,$H$43,FALSE),0) -> 0 | J128: =M64 -> 0 | M128: 0 | N128: 0 | R128: ='LDC Info'!$E$14 & B128 -> Canadian Niagara Power Inc.1905
A129: 47 | B129: 1908 | C129: Buildings & Fixtures | D129: =G65 -> 0 | G129: 0 | H129: =IFERROR(VLOOKUP(R129,'2.1.7 All Accounts'!$D:$N,$H$43,FALSE),0) -> 0 | J129: =M65 -> 0 | M129: 0 | N129: 0 | R129: ='LDC Info'!$E$14 & B129 -> Canadian Niagara Power Inc.1908
A130: 13 | B130: 1910 | C130: Leasehold Improvements | D130: =G66 -> 0 | G130: 0 | H130: =IFERROR(VLOOKUP(R130,'2.1.7 All Accounts'!$D:$N,$H$43,FALSE),0) -> 0 | J130: =M66 -> 0 | M130: 0 | N130: 0 | R130: ='LDC Info'!$E$14 & B130 -> Canadian Niagara Power Inc.1910
A131: 8 | B131: 1915 | C131: Office Furniture & Equipment (10 years) | D131: =G67 -> 0 | G131: 0 | H131: =IFERROR(VLOOKUP(R131,'2.1.7 All Accounts'!$D:$N,$H$43,FALSE),0) -> 0 | J131: =M67 -> 0 | M131: 0 | N131: 0 | R131: ='LDC Info'!$E$14 & B131 -> Canadian Niagara Power Inc.1915
A132: 8 | B132: 1915 | C132: Office Furniture & Equipment (5 years) | D132: =G68 -> 0 | G132: 0 | H132: =IFERROR(VLOOKUP(R132,'2.1.7 All Accounts'!$D:$N,$H$43,FALSE),0) -> 0 | J132: =M68 -> 0 | M132: 0 | N132: 0 | R132: ='LDC Info'!$E$14 & B132 -> Canadian Niagara Power Inc.1915
A133: 10 | B133: 1920 | C133: Computer Equipment - Hardware | D133: =G69 -> 0 | G133: 0 | H133: =IFERROR(VLOOKUP(R133,'2.1.7 All Accounts'!$D:$N,$H$43,FALSE),0) -> 0 | J133: =M69 -> 0 | M133: 0 | N133: 0 | R133: ='LDC Info'!$E$14 & B133 -> Canadian Niagara Power Inc.1920
A134: 45 | B134: 1920 | C134: Computer Equip.-Hardware(Post Mar. 22/04) | D134: =G70 -> 0 | G134: 0 | H134: =IFERROR(VLOOKUP(R134,'2.1.7 All Accounts'!$D:$N,$H$43,FALSE),0) -> 0 | J134: =M70 -> 0 | M134: 0 | N134: 0 | R134: ='LDC Info'!$E$14 & B134 -> Canadian Niagara Power Inc.1920
A135: 50 | B135: 1920 | C135: Computer Equip.-Hardware(Post Mar. 19/07) | D135: =G71 -> 0 | G135: 0 | H135: =IFERROR(VLOOKUP(R135,'2.1.7 All Accounts'!$D:$N,$H$43,FALSE),0) -> 0 | J135: =M71 -> 0 | M135: 0 | N135: 0 | R135: ='LDC Info'!$E$14 & B135 -> Canadian Niagara Power Inc.1920
A136: 10 | B136: 1930 | C136: Transportation Equipment | D136: =G72 -> 0 | G136: 0 | H136: =IFERROR(VLOOKUP(R136,'2.1.7 All Accounts'!$D:$N,$H$43,FALSE),0) -> 0 | J136: =M72 -> 0 | M136: 0 | N136: 0 | R136: ='LDC Info'!$E$14 & B136 -> Canadian Niagara Power Inc.1930
A137: 8 | B137: 1935 | C137: Stores Equipment | D137: =G73 -> 0 | G137: 0 | H137: =IFERROR(VLOOKUP(R137,'2.1.7 All Accounts'!$D:$N,$H$43,FALSE),0) -> 0 | J137: =M73 -> 0 | M137: 0 | N137: 0 | R137: ='LDC Info'!$E$14 & B137 -> Canadian Niagara Power Inc.1935
A138: 8 | B138: 1940 | C138: Tools, Shop & Garage Equipment | D138: =G74 -> 0 | G138: 0 | H138: =IFERROR(VLOOKUP(R138,'2.1.7 All Accounts'!$D:$N,$H$43,FALSE),0) -> 0 | J138: =M74 -> 0 | M138: 0 | N138: 0 | R138: ='LDC Info'!$E$14 & B138 -> Canadian Niagara Power Inc.1940
A139: 8 | B139: 1945 | C139: Measurement & Testing Equipment | D139: =G75 -> 0 | G139: 0 | H139: =IFERROR(VLOOKUP(R139,'2.1.7 All Accounts'!$D:$N,$H$43,FALSE),0) -> 0 | J139: =M75 -> 0 | M139: 0 | N139: 0 | R139: ='LDC Info'!$E$14 & B139 -> Canadian Niagara Power Inc.1945
A140: 8 | B140: 1950 | C140: Power Operated Equipment | D140: =G76 -> 0 | G140: 0 | H140: =IFERROR(VLOOKUP(R140,'2.1.7 All Accounts'!$D:$N,$H$43,FALSE),0) -> 0 | J140: =M76 -> 0 | M140: 0 | N140: 0 | R140: ='LDC Info'!$E$14 & B140 -> Canadian Niagara Power Inc.1950
A141: 8 | B141: 1955 | C141: Communications Equipment | D141: =G77 -> 0 | G141: 0 | H141: =IFERROR(VLOOKUP(R141,'2.1.7 All Accounts'!$D:$N,$H$43,FALSE),0) -> 0 | J141: =M77 -> 0 | M141: 0 | N141: 0 | R141: ='LDC Info'!$E$14 & B141 -> Canadian Niagara Power Inc.1955
A142: 8 | B142: 1955 | C142: Communication Equipment (Smart Meters) | D142: =G78 -> 0 | G142: 0 | H142: =IFERROR(VLOOKUP(R142,'2.1.7 All Accounts'!$D:$N,$H$43,FALSE),0) -> 0 | J142: =M78 -> 0 | M142: 0 | N142: 0 | R142: ='LDC Info'!$E$14 & B142 -> Canadian Niagara Power Inc.1955
A143: 8 | B143: 1960 | C143: Miscellaneous Equipment | D143: =G79 -> 0 | G143: 0 | H143: =IFERROR(VLOOKUP(R143,'2.1.7 All Accounts'!$D:$N,$H$43,FALSE),0) -> 0 | J143: =M79 -> 0 | M143: 0 | N143: 0 | R143: ='LDC Info'!$E$14 & B143 -> Canadian Niagara Power Inc.1960
A144: 47 | B144: 1970 | C144: Load Management Controls Customer Premises | D144: =G80 -> 0 | G144: 0 | H144: =IFERROR(VLOOKUP(R144,'2.1.7 All Accounts'!$D:$N,$H$43,FALSE),0) -> 0 | J144: =M80 -> 0 | M144: 0 | N144: 0 | R144: ='LDC Info'!$E$14 & B144 -> Canadian Niagara Power Inc.1970
A145: 47 | B145: 1975 | C145: Load Management Controls Utility Premises | D145: =G81 -> 0 | G145: 0 | H145: =IFERROR(VLOOKUP(R145,'2.1.7 All Accounts'!$D:$N,$H$43,FALSE),0) -> 0 | J145: =M81 -> 0 | M145: 0 | N145: 0 | R145: ='LDC Info'!$E$14 & B145 -> Canadian Niagara Power Inc.1975
A146: 47 | B146: 1980 | C146: System Supervisor Equipment | D146: =G82 -> 0 | G146: 0 | H146: =IFERROR(VLOOKUP(R146,'2.1.7 All Accounts'!$D:$N,$H$43,FALSE),0) -> 0 | J146: =M82 -> 0 | M146: 0 | N146: 0 | R146: ='LDC Info'!$E$14 & B146 -> Canadian Niagara Power Inc.1980
A147: 47 | B147: 1985 | C147: Miscellaneous Fixed Assets | D147: =G83 -> 0 | G147: 0 | H147: =IFERROR(VLOOKUP(R147,'2.1.7 All Accounts'!$D:$N,$H$43,FALSE),0) -> 0 | J147: =M83 -> 0 | M147: 0 | N147: 0 | R147: ='LDC Info'!$E$14 & B147 -> Canadian Niagara Power Inc.1985
A148: 47 | B148: 1990 | C148: Other Tangible Property | D148: =G84 -> 0 | G148: 0 | H148: =IFERROR(VLOOKUP(R148,'2.1.7 All Accounts'!$D:$N,$H$43,FALSE),0) -> 0 | J148: =M84 -> 0 | M148: 0 | N148: 0 | R148: ='LDC Info'!$E$14 & B148 -> Canadian Niagara Power Inc.1990
A149: 47 | B149: 1995 | C149: Contributions & Grants | D149: =G85 -> 0 | G149: 0 | H149: =IFERROR(VLOOKUP(R149,'2.1.7 All Accounts'!$D:$N,$H$43,FALSE),0) -> 0 | J149: =M85 -> 0 | M149: 0 | N149: 0 | R149: ='LDC Info'!$E$14 & B149 -> Canadian Niagara Power Inc.1995
A150: 47 | B150: 2440 | C150: Deferred Revenue5 | D150: =G86 -> 0 | G150: 0 | H150: =IFERROR(VLOOKUP(R150,'2.1.7 All Accounts'!$D:$N,$H$43,FALSE),0) -> 0 | J150: =M86 -> 0 | M150: 0 | N150: 0 | R150: ='LDC Info'!$E$14 & B150 -> Canadian Niagara Power Inc.2440
B151: 2005 | C151: Property Under Finance Lease7 | D151: =G87 -> 0 | G151: 0 | H151: =IFERROR(VLOOKUP(R151,'2.1.7 All Accounts'!$D:$N,$H$43,FALSE),0) -> 0 | J151: =M87 -> 0 | M151: 0 | N151: 0 | R151: ='LDC Info'!$E$14 & B151 -> Canadian Niagara Power Inc.2005
C152: Sub-Total | D152: =SUM(D111:D151) -> 0 | E152: =SUM(E111:E151) -> 0 | F152: =SUM(F111:F151) -> 0 | G152: =SUM(G111:G151) -> 0 | H152: =SUM(H111:H151) -> 0 | J152: =SUM(J111:J151) -> 0 | K152: =SUM(K111:K151) -> 0 | L152: =SUM(L111:L151) -> 0 | M152: =SUM(M111:M151) -> 0 | N152: =SUM(N111:N151) -> 0
C153: Less Socialized Renewable Energy Generation Investments (input as negative) | D153: =G89 -> 0 | G153: =D153+E153+F153 -> 0 | J153: =M89 -> 0 | M153: =J153+K153+L153 -> 0 | N153: =G153+M153 -> 0
C154: Less Other Non Rate-Regulated Utility Assets (input as negative) | D154: =G90 -> 0 | G154: =D154+E154+F154 -> 0 | J154: 0 | M154: =J154+K154+L154 -> 0 | N154: =G154+M154 -> 0
C155: Total PP&E for Rate Base Purposes | D155: =SUM(D152:D154) -> 0 | E155: =SUM(E152:E154) -> 0 | F155: =SUM(F152:F154) -> 0 | G155: =SUM(G152:G154) -> 0 | J155: =SUM(J152:J154) -> 0 | K155: =SUM(K152:K154) -> 0 | L155: =SUM(L152:L154) -> 0 | M155: =SUM(M152:M154) -> 0 | N155: =SUM(N152:N154) -> 0
C156: Construction Work In Progress | G156: =D156+E156+F156 -> 0 | H156: =IFERROR(VLOOKUP(R156,'2.1.7 All Accounts'!$D:$N,$H$43,FALSE),0) -> 0 | M156: =J156+K156+L156 -> 0 | N156: =G156+M156 -> 0
C157: Total PP&E | D157: =SUM(D155:D156) -> 0 | E157: =SUM(E155:E156) -> 0 | F157: 0 | G157: 0 | H157: 0 | I157: 0 | J157: 0 | K157: 0 | L157: 0 | M157: 0 | N157: 0
C158: Depreciation Expense adj. from gain or loss on the retirement of assets (pool of like assets), if applicable6
C159: Total | K159: =K157+K158 -> 0
D160: Gross Fixed Assets (average) for Rate Base | G160: =AVERAGE(D155,G155) -> 0 | J160: Accumulated Depreciation (average) | M160: =AVERAGE(J155,M155) -> 0
J161: Net Fixed Assets (average) | M161: =G160+M160 -> 0
J162: Less: Fully Allocated Depreciation
A163: 10 | C163: Transportation | J163: Transportation
A164: 8 | C164: Stores Equipment | J164: Stores Equipment
A165: 47 | C165: Deferred Revenue | J165: Deferred Revenue
J166: Net Depreciation | L166: =K159-L163-L164-L165 -> 0
E170: Accounting Standard | F170: CGAAP
E171: Year | F171: =TestYear-13 -> 2014 | H171: =IF(F171=2014,4,IF(F171=2015,5,IF(F171=2016,6,IF(F171=2017,7,IF(F171=2018,8,IF(F171=2019,9,IF(F171=2020,10))))))) -> 4
D173: Cost | K173: Accumulated Depreciation
A174: CCA Class 2 | B174: OEB Account 3 | C174: Description 3 | D174: Opening Balance 8 | E174: Additions 4 | F174: Disposals 6 | G174: Closing Balance | H174: RRR DATA | J174: Opening Balance 8 | K174: Additions | L174: Disposals 6 | M174: Closing Balance | N174: Net Book Value
B175: 1609 | C175: Capital Contributions Paid | D175: =G111 -> 0 | G175: =D175+E175+F175 -> 0 | H175: =IFERROR(VLOOKUP(R175,'2.1.7 All Accounts'!$D:$N,$H$43,FALSE),0) -> 0 | J175: =M111 -> 0 | M175: =J175+K175+L175 -> 0 | N175: =G175+M175 -> 0 | R175: ='LDC Info'!$E$14 & B175 -> Canadian Niagara Power Inc.1609
A176: 12 | B176: 1611 | C176: Computer Software (Formally known as Account 1925) | D176: =G112 -> 0 | G176: =D176+E176+F176 -> 0 | H176: =IFERROR(VLOOKUP(R176,'2.1.7 All Accounts'!$D:$N,$H$43,FALSE),0) -> 0 | J176: =M112 -> 0 | M176: =J176+K176+L176 -> 0 | N176: =G176+M176 -> 0 | R176: ='LDC Info'!$E$14 & B176 -> Canadian Niagara Power Inc.1611
A177: CEC | B177: 1612 | C177: Land Rights (Formally known as Account 1906) | D177: =G113 -> 0 | G177: =D177+E177+F177 -> 0 | H177: =IFERROR(VLOOKUP(R177,'2.1.7 All Accounts'!$D:$N,$H$43,FALSE),0) -> 0 | J177: =M113 -> 0 | M177: =J177+K177+L177 -> 0 | N177: =G177+M177 -> 0 | R177: ='LDC Info'!$E$14 & B177 -> Canadian Niagara Power Inc.1612
A178: N/A | B178: 1805 | C178: Land | D178: =G114 -> 0 | G178: =D178+E178+F178 -> 0 | H178: =IFERROR(VLOOKUP(R178,'2.1.7 All Accounts'!$D:$N,$H$43,FALSE),0) -> 0 | J178: =M114 -> 0 | M178: =J178+K178+L178 -> 0 | N178: =G178+M178 -> 0 | R178: ='LDC Info'!$E$14 & B178 -> Canadian Niagara Power Inc.1805
A179: 47 | B179: 1808 | C179: Buildings | D179: =G115 -> 0 | G179: =D179+E179+F179 -> 0 | H179: =IFERROR(VLOOKUP(R179,'2.1.7 All Accounts'!$D:$N,$H$43,FALSE),0) -> 0 | J179: =M115 -> 0 | M179: =J179+K179+L179 -> 0 | N179: =G179+M179 -> 0 | R179: ='LDC Info'!$E$14 & B179 -> Canadian Niagara Power Inc.1808
A180: 13 | B180: 1810 | C180: Leasehold Improvements | D180: =G116 -> 0 | G180: 0 | H180: =IFERROR(VLOOKUP(R180,'2.1.7 All Accounts'!$D:$N,$H$43,FALSE),0) -> 0 | J180: =M116 -> 0 | M180: 0 | N180: 0 | R180: ='LDC Info'!$E$14 & B180 -> Canadian Niagara Power Inc.1810
A181: 47 | B181: 1815 | C181: Transformer Station Equipment >50 kV | D181: =G117 -> 0 | G181: 0 | H181: =IFERROR(VLOOKUP(R181,'2.1.7 All Accounts'!$D:$N,$H$43,FALSE),0) -> 0 | J181: =M117 -> 0 | M181: 0 | N181: 0 | R181: ='LDC Info'!$E$14 & B181 -> Canadian Niagara Power Inc.1815
A182: 47 | B182: 1820 | C182: Distribution Station Equipment <50 kV | D182: =G118 -> 0 | G182: 0 | H182: =IFERROR(VLOOKUP(R182,'2.1.7 All Accounts'!$D:$N,$H$43,FALSE),0) -> 0 | J182: =M118 -> 0 | M182: 0 | N182: 0 | R182: ='LDC Info'!$E$14 & B182 -> Canadian Niagara Power Inc.1820
A183: 47 | B183: 1825 | C183: Storage Battery Equipment | D183: =G119 -> 0 | G183: 0 | H183: =IFERROR(VLOOKUP(R183,'2.1.7 All Accounts'!$D:$N,$H$43,FALSE),0) -> 0 | J183: =M119 -> 0 | M183: 0 | N183: 0 | R183: ='LDC Info'!$E$14 & B183 -> Canadian Niagara Power Inc.1825
A184: 47 | B184: 1830 | C184: Poles, Towers & Fixtures | D184: =G120 -> 0 | G184: 0 | H184: =IFERROR(VLOOKUP(R184,'2.1.7 All Accounts'!$D:$N,$H$43,FALSE),0) -> 0 | J184: =M120 -> 0 | M184: 0 | N184: 0 | R184: ='LDC Info'!$E$14 & B184 -> Canadian Niagara Power Inc.1830
A185: 47 | B185: 1835 | C185: Overhead Conductors & Devices | D185: =G121 -> 0 | G185: 0 | H185: =IFERROR(VLOOKUP(R185,'2.1.7 All Accounts'!$D:$N,$H$43,FALSE),0) -> 0 | J185: =M121 -> 0 | M185: 0 | N185: 0 | R185: ='LDC Info'!$E$14 & B185 -> Canadian Niagara Power Inc.1835
A186: 47 | B186: 1840 | C186: Underground Conduit | D186: =G122 -> 0 | G186: 0 | H186: =IFERROR(VLOOKUP(R186,'2.1.7 All Accounts'!$D:$N,$H$43,FALSE),0) -> 0 | J186: =M122 -> 0 | M186: 0 | N186: 0 | R186: ='LDC Info'!$E$14 & B186 -> Canadian Niagara Power Inc.1840
A187: 47 | B187: 1845 | C187: Underground Conductors & Devices | D187: =G123 -> 0 | G187: 0 | H187: =IFERROR(VLOOKUP(R187,'2.1.7 All Accounts'!$D:$N,$H$43,FALSE),0) -> 0 | J187: =M123 -> 0 | M187: 0 | N187: 0 | R187: ='LDC Info'!$E$14 & B187 -> Canadian Niagara Power Inc.1845
A188: 47 | B188: 1850 | C188: Line Transformers | D188: =G124 -> 0 | G188: 0 | H188: =IFERROR(VLOOKUP(R188,'2.1.7 All Accounts'!$D:$N,$H$43,FALSE),0) -> 0 | J188: =M124 -> 0 | M188: 0 | N188: 0 | R188: ='LDC Info'!$E$14 & B188 -> Canadian Niagara Power Inc.1850
A189: 47 | B189: 1855 | C189: Services (Overhead & Underground) | D189: =G125 -> 0 | G189: 0 | H189: =IFERROR(VLOOKUP(R189,'2.1.7 All Accounts'!$D:$N,$H$43,FALSE),0) -> 0 | J189: =M125 -> 0 | M189: 0 | N189: 0 | R189: ='LDC Info'!$E$14 & B189 -> Canadian Niagara Power Inc.1855
A190: 47 | B190: 1860 | C190: Meters | D190: =G126 -> 0 | G190: 0 | H190: =IFERROR(VLOOKUP(R190,'2.1.7 All Accounts'!$D:$N,$H$43,FALSE),0) -> 0 | J190: =M126 -> 0 | M190: 0 | N190: 0 | R190: ='LDC Info'!$E$14 & B190 -> Canadian Niagara Power Inc.1860
A191: 47 | B191: 1860 | C191: Meters (Smart Meters) | D191: =G127 -> 0 | G191: 0 | H191: =IFERROR(VLOOKUP(R191,'2.1.7 All Accounts'!$D:$N,$H$43,FALSE),0) -> 0 | J191: =M127 -> 0 | M191: 0 | N191: 0 | R191: ='LDC Info'!$E$14 & B191 -> Canadian Niagara Power Inc.1860
A192: N/A | B192: 1905 | C192: Land | D192: =G128 -> 0 | G192: 0 | H192: =IFERROR(VLOOKUP(R192,'2.1.7 All Accounts'!$D:$N,$H$43,FALSE),0) -> 0 | J192: =M128 -> 0 | M192: 0 | N192: 0 | R192: ='LDC Info'!$E$14 & B192 -> Canadian Niagara Power Inc.1905
A193: 47 | B193: 1908 | C193: Buildings & Fixtures | D193: =G129 -> 0 | G193: 0 | H193: =IFERROR(VLOOKUP(R193,'2.1.7 All Accounts'!$D:$N,$H$43,FALSE),0) -> 0 | J193: =M129 -> 0 | M193: 0 | N193: 0 | R193: ='LDC Info'!$E$14 & B193 -> Canadian Niagara Power Inc.1908
A194: 13 | B194: 1910 | C194: Leasehold Improvements | D194: =G130 -> 0 | G194: 0 | H194: =IFERROR(VLOOKUP(R194,'2.1.7 All Accounts'!$D:$N,$H$43,FALSE),0) -> 0 | J194: =M130 -> 0 | M194: 0 | N194: 0 | R194: ='LDC Info'!$E$14 & B194 -> Canadian Niagara Power Inc.1910
A195: 8 | B195: 1915 | C195: Office Furniture & Equipment (10 years) | D195: =G131 -> 0 | G195: 0 | H195: =IFERROR(VLOOKUP(R195,'2.1.7 All Accounts'!$D:$N,$H$43,FALSE),0) -> 0 | J195: =M131 -> 0 | M195: 0 | N195: 0 | R195: ='LDC Info'!$E$14 & B195 -> Canadian Niagara Power Inc.1915
A196: 8 | B196: 1915 | C196: Office Furniture & Equipment (5 years) | D196: =G132 -> 0 | G196: 0 | H196: =IFERROR(VLOOKUP(R196,'2.1.7 All Accounts'!$D:$N,$H$43,FALSE),0) -> 0 | J196: =M132 -> 0 | M196: 0 | N196: 0 | R196: ='LDC Info'!$E$14 & B196 -> Canadian Niagara Power Inc.1915
A197: 10 | B197: 1920 | C197: Computer Equipment - Hardware | D197: =G133 -> 0 | G197: 0 | H197: =IFERROR(VLOOKUP(R197,'2.1.7 All Accounts'!$D:$N,$H$43,FALSE),0) -> 0 | J197: =M133 -> 0 | M197: 0 | N197: 0 | R197: ='LDC Info'!$E$14 & B197 -> Canadian Niagara Power Inc.1920
A198: 45 | B198: 1920 | C198: Computer Equip.-Hardware(Post Mar. 22/04) | D198: =G134 -> 0 | G198: 0 | H198: =IFERROR(VLOOKUP(R198,'2.1.7 All Accounts'!$D:$N,$H$43,FALSE),0) -> 0 | J198: =M134 -> 0 | M198: 0 | N198: 0 | R198: ='LDC Info'!$E$14 & B198 -> Canadian Niagara Power Inc.1920
A199: 50 | B199: 1920 | C199: Computer Equip.-Hardware(Post Mar. 19/07) | D199: =G135 -> 0 | G199: 0 | H199: =IFERROR(VLOOKUP(R199,'2.1.7 All Accounts'!$D:$N,$H$43,FALSE),0) -> 0 | J199: =M135 -> 0 | M199: 0 | N199: 0 | R199: ='LDC Info'!$E$14 & B199 -> Canadian Niagara Power Inc.1920
A200: 10 | B200: 1930 | C200: Transportation Equipment | D200: =G136 -> 0 | G200: 0 | H200: =IFERROR(VLOOKUP(R200,'2.1.7 All Accounts'!$D:$N,$H$43,FALSE),0) -> 0 | J200: =M136 -> 0 | M200: 0 | N200: 0 | R200: ='LDC Info'!$E$14 & B200 -> Canadian Niagara Power Inc.1930
A201: 8 | B201: 1935 | C201: Stores Equipment | D201: =G137 -> 0 | G201: 0 | H201: =IFERROR(VLOOKUP(R201,'2.1.7 All Accounts'!$D:$N,$H$43,FALSE),0) -> 0 | J201: =M137 -> 0 | M201: 0 | N201: 0 | R201: ='LDC Info'!$E$14 & B201 -> Canadian Niagara Power Inc.1935
A202: 8 | B202: 1940 | C202: Tools, Shop & Garage Equipment | D202: =G138 -> 0 | G202: 0 | H202: =IFERROR(VLOOKUP(R202,'2.1.7 All Accounts'!$D:$N,$H$43,FALSE),0) -> 0 | J202: =M138 -> 0 | M202: 0 | N202: 0 | R202: ='LDC Info'!$E$14 & B202 -> Canadian Niagara Power Inc.1940
A203: 8 | B203: 1945 | C203: Measurement & Testing Equipment | D203: =G139 -> 0 | G203: 0 | H203: =IFERROR(VLOOKUP(R203,'2.1.7 All Accounts'!$D:$N,$H$43,FALSE),0) -> 0 | J203: =M139 -> 0 | M203: 0 | N203: 0 | R203: ='LDC Info'!$E$14 & B203 -> Canadian Niagara Power Inc.1945
A204: 8 | B204: 1950 | C204: Power Operated Equipment | D204: =G140 -> 0 | G204: 0 | H204: =IFERROR(VLOOKUP(R204,'2.1.7 All Accounts'!$D:$N,$H$43,FALSE),0) -> 0 | J204: =M140 -> 0 | M204: 0 | N204: 0 | R204: ='LDC Info'!$E$14 & B204 -> Canadian Niagara Power Inc.1950
A205: 8 | B205: 1955 | C205: Communications Equipment | D205: =G141 -> 0 | G205: 0 | H205: =IFERROR(VLOOKUP(R205,'2.1.7 All Accounts'!$D:$N,$H$43,FALSE),0) -> 0 | J205: =M141 -> 0 | M205: 0 | N205: 0 | R205: ='LDC Info'!$E$14 & B205 -> Canadian Niagara Power Inc.1955
A206: 8 | B206: 1955 | C206: Communication Equipment (Smart Meters) | D206: =G142 -> 0 | G206: 0 | H206: =IFERROR(VLOOKUP(R206,'2.1.7 All Accounts'!$D:$N,$H$43,FALSE),0) -> 0 | J206: =M142 -> 0 | M206: 0 | N206: 0 | R206: ='LDC Info'!$E$14 & B206 -> Canadian Niagara Power Inc.1955
A207: 8 | B207: 1960 | C207: Miscellaneous Equipment | D207: =G143 -> 0 | G207: 0 | H207: =IFERROR(VLOOKUP(R207,'2.1.7 All Accounts'!$D:$N,$H$43,FALSE),0) -> 0 | J207: =M143 -> 0 | M207: 0 | N207: 0 | R207: ='LDC Info'!$E$14 & B207 -> Canadian Niagara Power Inc.1960
A208: 47 | B208: 1970 | C208: Load Management Controls Customer Premises | D208: =G144 -> 0 | G208: 0 | H208: =IFERROR(VLOOKUP(R208,'2.1.7 All Accounts'!$D:$N,$H$43,FALSE),0) -> 0 | J208: =M144 -> 0 | M208: 0 | N208: 0 | R208: ='LDC Info'!$E$14 & B208 -> Canadian Niagara Power Inc.1970
A209: 47 | B209: 1975 | C209: Load Management Controls Utility Premises | D209: =G145 -> 0 | G209: 0 | H209: =IFERROR(VLOOKUP(R209,'2.1.7 All Accounts'!$D:$N,$H$43,FALSE),0) -> 0 | J209: =M145 -> 0 | M209: 0 | N209: 0 | R209: ='LDC Info'!$E$14 & B209 -> Canadian Niagara Power Inc.1975
A210: 47 | B210: 1980 | C210: System Supervisor Equipment | D210: =G146 -> 0 | G210: 0 | H210: =IFERROR(VLOOKUP(R210,'2.1.7 All Accounts'!$D:$N,$H$43,FALSE),0) -> 0 | J210: =M146 -> 0 | M210: 0 | N210: 0 | R210: ='LDC Info'!$E$14 & B210 -> Canadian Niagara Power Inc.1980
A211: 47 | B211: 1985 | C211: Miscellaneous Fixed Assets | D211: =G147 -> 0 | G211: 0 | H211: =IFERROR(VLOOKUP(R211,'2.1.7 All Accounts'!$D:$N,$H$43,FALSE),0) -> 0 | J211: =M147 -> 0 | M211: 0 | N211: 0 | R211: ='LDC Info'!$E$14 & B211 -> Canadian Niagara Power Inc.1985
A212: 47 | B212: 1990 | C212: Other Tangible Property | D212: =G148 -> 0 | G212: 0 | H212: =IFERROR(VLOOKUP(R212,'2.1.7 All Accounts'!$D:$N,$H$43,FALSE),0) -> 0 | J212: =M148 -> 0 | M212: 0 | N212: 0 | R212: ='LDC Info'!$E$14 & B212 -> Canadian Niagara Power Inc.1990
A213: 47 | B213: 1995 | C213: Contributions & Grants | D213: =G149 -> 0 | G213: 0 | H213: =IFERROR(VLOOKUP(R213,'2.1.7 All Accounts'!$D:$N,$H$43,FALSE),0) -> 0 | J213: =M149 -> 0 | M213: 0 | N213: 0 | R213: ='LDC Info'!$E$14 & B213 -> Canadian Niagara Power Inc.1995
A214: 47 | B214: 2440 | C214: Deferred Revenue5 | D214: =G150 -> 0 | G214: 0 | H214: =IFERROR(VLOOKUP(R214,'2.1.7 All Accounts'!$D:$N,$H$43,FALSE),0) -> 0 | J214: =M150 -> 0 | M214: 0 | N214: 0 | R214: ='LDC Info'!$E$14 & B214 -> Canadian Niagara Power Inc.2440
B215: 2005 | C215: Property Under Finance Lease7 | D215: =G151 -> 0 | G215: 0 | H215: =IFERROR(VLOOKUP(R215,'2.1.7 All Accounts'!$D:$N,$H$43,FALSE),0) -> 0 | J215: =M151 -> 0 | M215: 0 | N215: 0 | R215: ='LDC Info'!$E$14 & B215 -> Canadian Niagara Power Inc.2005
C216: Sub-Total | D216: =SUM(D175:D215) -> 0 | E216: =SUM(E175:E215) -> 0 | F216: =SUM(F175:F215) -> 0 | G216: =SUM(G175:G215) -> 0 | H216: =SUM(H175:H215) -> 0 | J216: =SUM(J175:J215) -> 0 | K216: =SUM(K175:K215) -> 0 | L216: =SUM(L175:L215) -> 0 | M216: =SUM(M175:M215) -> 0 | N216: =SUM(N175:N215) -> 0
C217: Less Socialized Renewable Energy Generation Investments (input as negative) | D217: =G153 -> 0 | G217: =D217+E217+F217 -> 0 | J217: =M153 -> 0 | M217: =J217+K217+L217 -> 0 | N217: =G217+M217 -> 0
C218: Less Other Non Rate-Regulated Utility Assets (input as negative) | D218: 0 | G218: =D218+E218+F218 -> 0 | J218: 0 | M218: =J218+K218+L218 -> 0 | N218: =G218+M218 -> 0
C219: Total PP&E for Rate Base Purposes | D219: =SUM(D216:D218) -> 0 | E219: =SUM(E216:E218) -> 0 | F219: =SUM(F216:F218) -> 0 | G219: =SUM(G216:G218) -> 0 | J219: =SUM(J216:J218) -> 0 | K219: =SUM(K216:K218) -> 0 | L219: =SUM(L216:L218) -> 0 | M219: =SUM(M216:M218) -> 0 | N219: =SUM(N216:N218) -> 0
C220: Construction Work In Progress | G220: =D220+E220+F220 -> 0 | H220: =IFERROR(VLOOKUP(R220,'2.1.7 All Accounts'!$D:$N,$H$43,FALSE),0) -> 0 | M220: =J220+K220+L220 -> 0 | N220: =G220+M220 -> 0
C221: Total PP&E | D221: =SUM(D219:D220) -> 0 | E221: =SUM(E219:E220) -> 0 | F221: 0 | G221: 0 | H221: 0 | I221: 0 | J221: 0 | K221: 0 | L221: 0 | M221: 0 | N221: 0
C222: Depreciation Expense adj. from gain or loss on the retirement of assets (pool of like assets), if applicable6
C223: Total | K223: =K221+K222 -> 0
D224: Gross Fixed Assets (average) for Rate Base | G224: =AVERAGE(D219,G219) -> 0 | J224: Accumulated Depreciation (average) | M224: =AVERAGE(J219,M219) -> 0
J225: Net Fixed Assets (average) | M225: =G224+M224 -> 0
J226: Less: Fully Allocated Depreciation
A227: 10 | C227: Transportation | J227: Transportation
A228: 8 | C228: Stores Equipment | J228: Stores Equipment
A229: 47 | C229: Deferred Revenue | J229: Deferred Revenue
J230: Net Depreciation | L230: =K223-L227-L228-L229 -> 0
E234: Accounting Standard | F234: CGAAP
E235: Year | F235: =TestYear-12 -> 2015 | H235: =IF(F235=2014,4,IF(F235=2015,5,IF(F235=2016,6,IF(F235=2017,7,IF(F235=2018,8,IF(F235=2019,9,IF(F235=2020,10))))))) -> 5
D237: Cost | K237: Accumulated Depreciation
... 810 more rows

Sheet Appendix 2-BB Service Life
N1: File Number: | P1: =[0]!EBNUMBER -> EB-2026-0029
N2: Exhibit: | P2: 2
N3: Tab:
N4: Schedule:
N5: Page:
N7: Date: | Q7: 2026-05-19
A9: Appendix 2-BB
A10: Service Life Comparison
A11: Table F-1 from Kinetrics Report1
C15: Asset Details | F15: Useful Life | J15: USoA Account Number | K15: USoA Account Description | L15: Current | N15: Proposed | P15: Outside Range of Min, Max TUL?
A16: Parent* | B16: # | C16: Category| Component | Type | F16: MIN UL | G16: TUL | H16: MAX UL | L16: Years | M16: Rate | N16: Years | O16: Rate | P16: Below Min TUL | Q16: Above Max TUL
A17: OH | B17: 1 | C17: Fully Dressed Wood Poles | D17: Overall | F17: 35 | G17: 45 | H17: 75 | J17: 1830 | K17: Poles, Towers and Fixtures | L17: 45 | M17: =IF(ISERROR(1/L17), "", 1/L17) -> 0.02222222222 | N17: 45 | O17: =IF(ISERROR(1/N17), "", 1/N17) -> 0.02222222222 | P17: =IF(ISBLANK(N17),"",IF(N17<F17,"Yes","No")) -> No | Q17: =IF(ISBLANK(N17),"",IF(N17>H17,"Yes","No")) -> No
D18: Cross Arm | E18: Wood | F18: 20 | G18: 40 | H18: 55 | M18: =IF(ISERROR(1/L18), "", 1/L18) ->  | O18: =IF(ISERROR(1/N18), "", 1/N18) ->  | P18: =IF(ISBLANK(N18),"",IF(N18<F18,"Yes","No")) ->  | Q18: =IF(ISBLANK(N18),"",IF(N18>H18,"Yes","No")) -> 
E19: Steel | F19: 30 | G19: 70 | H19: 95
B20: 2 | C20: Fully Dressed Concrete Poles | D20: Overall | F20: 50 | G20: 60 | H20: 80
D21: Cross Arm | E21: Wood | F21: 20 | G21: 40 | H21: 55
E22: Steel | F22: 30 | G22: 70 | H22: 95
B23: 3 | C23: Fully Dressed Steel Poles | D23: Overall | F23: 60 | G23: 60 | H23: 80
D24: Cross Arm | E24: Wood | F24: 20 | G24: 40 | H24: 55
E25: Steel | F25: 30 | G25: 70 | H25: 95
B26: 4 | C26: OH Line Switch | F26: 30 | G26: 45 | H26: 55 | J26: 1835 | K26: Overhead Conductors and Devices | L26: 45 | M26: 0.02222222222 | N26: 45 | O26: 0.02222222222 | P26: No | Q26: No
B27: 5 | C27: OH Line Switch Motor | F27: 15 | G27: 25 | H27: 25
B28: 6 | C28: OH Line Switch RTU | F28: 15 | G28: 20 | H28: 20
B29: 7 | C29: OH Integral Switches | F29: 35 | G29: 45 | H29: 60 | J29: 1835 | K29: Overhead Conductors and Devices | L29: 45 | M29: 0.02222222222 | N29: 45 | O29: 0.02222222222 | P29: No | Q29: No
B30: 8 | C30: OH Conductors | F30: 50 | G30: 60 | H30: 75 | J30: 1835, 1855 | K30: Overhead Conductors and Devices, Services | L30: 40 - 45 | N30: 40 - 45 | P30: No | Q30: Yes
B31: 9 | C31: OH Transformers & Voltage Regulators | F31: 30 | G31: 40 | H31: 60 | J31: 1850 | K31: Line Transformers | L31: 40 | M31: 0.025 | N31: 40 | O31: 0.025 | P31: No | Q31: No
B32: 10 | C32: OH Shunt Capacitor Banks | F32: 25 | G32: 30 | H32: 40
B33: 11 | C33: Reclosers | F33: 25 | G33: 40 | H33: 55 | J33: 1835 | K33: Overhead Conductors and Devices | L33: 45 | M33: 0.02222222222 | N33: 45 | O33: 0.02222222222 | P33: No | Q33: No
A34: TS & MS | B34: 12 | C34: Power Transformers | D34: Overall | F34: 30 | G34: 45 | H34: 60 | J34: 1820 | K34: Station Equipment < 50 kV | L34: 50 | M34: 0.02 | N34: 50 | O34: 0.02 | P34: No | Q34: No
D35: Bushing | F35: 10 | G35: 20 | H35: 30
D36: Tap Changer | F36: 20 | G36: 30 | H36: 60
B37: 13 | C37: Station Service Transformer | F37: 30 | G37: 45 | H37: 55
B38: 14 | C38: Station Grounding Transformer | F38: 30 | G38: 40 | H38: 40
B39: 15 | C39: Station DC System | D39: Overall | F39: 10 | G39: 20 | H39: 30
D40: Battery Bank | F40: 10 | G40: 15 | H40: 15
D41: Charger | F41: 20 | G41: 20 | H41: 30
B42: 16 | C42: Station Metal Clad Switchgear | D42: Overall | F42: 30 | G42: 40 | H42: 60 | J42: 1820A | K42: Station Equipment < 50 kV | L42: 40 | M42: 0.025 | N42: 40 | O42: 0.025 | P42: No | Q42: No
D43: Removable Breaker | F43: 25 | G43: 40 | H43: 60
B44: 17 | C44: Station Independent Breakers | F44: 35 | G44: 45 | H44: 65 | J44: 1820A | K44: Station Equipment < 50 kV | L44: 40 | M44: 0.025 | N44: 40 | O44: 0.025 | P44: No | Q44: No
B45: 18 | C45: Station Switch | F45: 30 | G45: 50 | H45: 60 | J45: 1820A | K45: Station Equipment < 50 kV | L45: 40 | M45: 0.025 | N45: 40 | O45: 0.025 | P45: No | Q45: No
B46: 19 | C46: Electromechanical Relays | F46: 25 | G46: 35 | H46: 50
B47: 20 | C47: Solid State Relays | F47: 10 | G47: 30 | H47: 45
B48: 21 | C48: Digital & Numeric Relays | F48: 15 | G48: 20 | H48: 20
B49: 22 | C49: Rigid Busbars | F49: 30 | G49: 55 | H49: 60
B50: 23 | C50: Steel Structure | F50: 35 | G50: 50 | H50: 90
A51: UG | B51: 24 | C51: Primary Paper Insulated Lead Covered (PILC) Cables | F51: 60 | G51: 65 | H51: 75
B52: 25 | C52: Primary Ethylene-Propylene Rubber (EPR) Cables | F52: 20 | G52: 25 | H52: 25
B53: 26 | C53: Primary Non-Tree Retardant (Non-TR) Cross Linked Polyethylene (XLPE) Cables Direct Buried | F53: 20 | G53: 25 | H53: 30 | J53: 1845 | K53: UG Conductor & Devices | L53: 40 | M53: 0.025 | N53: 40 | O53: 0.025 | P53: No | Q53: Yes
B54: 27 | C54: Primary Non-TR XLPE Cables in Duct | F54: 20 | G54: 25 | H54: 30
B55: 28 | C55: Primary TR XLPE Cables Direct Buried | F55: 25 | G55: 30 | H55: 35
B56: 29 | C56: Primary TR XLPE Cables in Duct | F56: 35 | G56: 40 | H56: 55
B57: 30 | C57: Secondary PILC Cables | F57: 70 | G57: 75 | H57: 80
B58: 31 | C58: Secondary Cables Direct Buried | F58: 25 | G58: 35 | H58: 40 | J58: 1855 | K58: Services | L58: 40 | M58: 0.025 | N58: 40 | O58: 0.025 | P58: No | Q58: No
B59: 32 | C59: Secondary Cables in Duct | F59: 35 | G59: 40 | H59: 60
B60: 33 | C60: Network Tranformers | D60: Overall | F60: 20 | G60: 35 | H60: 50
D61: Protector | F61: 20 | G61: 35 | H61: 40
B62: 34 | C62: Pad-Mounted Transformers | F62: 25 | G62: 40 | H62: 45 | J62: 1850 | K62: Line Transformers | L62: 40 | M62: 0.025 | N62: 40 | O62: 0.025 | P62: No | Q62: No
B63: 35 | C63: Submersible/Vault Transformers | F63: 25 | G63: 35 | H63: 45
B64: 36 | C64: UG Foundation | F64: 35 | G64: 55 | H64: 70
B65: 37 | C65: UG Vaults | D65: Overall | F65: 40 | G65: 60 | H65: 80
D66: Roof | F66: 20 | G66: 30 | H66: 45
B67: 38 | C67: UG Vault Switches | F67: 20 | G67: 35 | H67: 50
B68: 39 | C68: Pad-Mounted Switchgear | F68: 20 | G68: 30 | H68: 45
B69: 40 | C69: Ducts | F69: 30 | G69: 50 | H69: 85 | J69: 1840 | K69: UG Conduit and Manholes | L69: 50 | M69: 0.02 | N69: 50 | O69: 0.02 | P69: No | Q69: No
B70: 41 | C70: Concrete Encased Duct Banks | F70: 35 | G70: 55 | H70: 80
B71: 42 | C71: Cable Chambers | F71: 50 | G71: 60 | H71: 80
A72: S | B72: 43 | C72: Remote SCADA | F72: 15 | G72: 20 | H72: 30 | J72: 1980 | K72: System Supervisory Equipment | L72: 20 | M72: 0.05 | N72: 20 | O72: 0.05 | P72: No | Q72: No
A75: Table F-2 from Kinetrics Report1
C77: Asset Details | F77: Useful Life Range | J77: USoA Account Number | K77: USoA Account Description | L77: Current | N77: Proposed | P77: Outside Range of Min, Max TUL?
B78: # | C78: Category| Component | Type | L78: Years | M78: Rate | N78: Years | O78: Rate | P78: Below Min Range | Q78: Above Max Range
B79: 1 | C79: Office Equipment | F79: 5 | G79: 15 | J79: 1915 | K79: Office Furniture & Equipment | L79: 10 | M79: =IF(ISERROR(1/L79), "", 1/L79) -> 0.1 | N79: 10 | O79: =IF(ISERROR(1/N79), "", 1/N79) -> 0.1 | P79: =IF(ISBLANK(N79),"",IF(N79<F79,"Yes","No")) -> No | Q79: =IF(ISBLANK(N79),"",IF(N79>G79,"Yes","No")) -> No
B80: 2 | C80: Vehicles | D80: Trucks & Buckets | F80: 5 | G80: 15 | J80: 1930A | K80: Transportation Equipment | L80: 10 | M80: =IF(ISERROR(1/L80), "", 1/L80) -> 0.1 | N80: 10 | O80: =IF(ISERROR(1/N80), "", 1/N80) -> 0.1 | P80: =IF(ISBLANK(N80),"",IF(N80<F80,"Yes","No")) -> No | Q80: =IF(ISBLANK(N80),"",IF(N80>G80,"Yes","No")) -> No
D81: Trailers | F81: 5 | G81: 20 | J81: 1930A | K81: Transportation Equipment | L81: 10 | M81: 0.1 | N81: 10 | O81: 0.1 | P81: No | Q81: No
D82: Vans | F82: 5 | G82: 10 | J82: 1930 | K82: Transportation Equipment | L82: 5 | M82: 0.2 | N82: 5 | O82: 0.2 | P82: No | Q82: No
B83: 3 | C83: Administrative Buildings | F83: 50 | G83: 75 | J83: 1908, 1908A | K83: Buildings & Fixtures | L83: 25-50 | N83: 25-50 | P83: No | Q83: Yes
B84: 4 | C84: Leasehold Improvements | F84: Lease dependent | J84: 1910, 1910A | K84: Leasehold Improvements | L84: 5 | M84: 0.2 | N84: 5-9 | O84: 2.166800286e-05 | P84: =IF(ISBLANK(N84),"",IF(N84<F84,"Yes","No")) -> Yes | Q84: =IF(ISBLANK(N84),"",IF(N84>G84,"Yes","No")) -> Yes
B85: 5 | C85: Station Buildings | D85: Station Buildings | F85: 50 | G85: 75 | J85: 1808 | K85: Buildings & Fixtures | L85: 50 | M85: 0.02 | N85: 50 | O85: 0.02 | P85: No | Q85: No
D86: Parking | F86: 25 | G86: 30
D87: Fence | F87: 25 | G87: 60
D88: Roof | F88: 20 | G88: 30
B89: 6 | C89: Computer Equipment | D89: Hardware | F89: 3 | G89: 5 | J89: 1920 | K89: Computer Hardware | L89: 5 | M89: 0.2 | N89: 5 | O89: 0.2 | P89: No | Q89: No
D90: Software | F90: 2 | G90: 5 | J90: 1611, 1611A | K90: Computer Software | L90: 5-10 | M90: 2.166753337e-05 | N90: 5-10 | O90: 2.166753337e-05 | P90: No | Q90: Yes
B91: 7 | C91: Equipment | D91: Power Operated | F91: 5 | G91: 10 | J91: 1950 | K91: Power Operated Equipment | L91: 10 | M91: 0.1 | N91: 10 | O91: 0.1 | P91: No | Q91: No
D92: Stores | F92: 5 | G92: 10 | J92: 1935 | K92: Stores Equipment | L92: 10 | M92: 0.1 | N92: 10 | O92: 0.1 | P92: No | Q92: No
D93: Tools, Shop, Garage Equipment | F93: 5 | G93: 10 | J93: 1940, 1940A | K93: Tools, Shop & Garage Equipment | L93: 10 | M93: 0.1 | N93: 5-10 | O93: 2.166753337e-05 | P93: No | Q93: Yes
D94: Measurement & Testing Equipment | F94: 5 | G94: 10 | J94: 1945 | K94: Measurement & Test Equipment | L94: 10 | M94: 0.1 | N94: 10 | O94: 0.1 | P94: No | Q94: No
B95: 8 | C95: Communication | D95: Towers | F95: 60 | G95: 70
D96: Wireless | F96: 2 | G96: 10 | J96: 1955 | K96: Communication Equipment | L96: 10 | M96: 0.1 | N96: 10 | O96: 0.1 | P96: No | Q96: No
B97: 9 | C97: Residential Energy Meters | F97: 25 | G97: 35 | J97: 1860 | K97: Meters | L97: 30 | M97: 0.03333333333 | N97: 30 | O97: 0.03333333333 | P97: No | Q97: No
B98: 10 | C98: Industrial/Commercial Energy Meters | F98: 25 | G98: 35 | J98: 1860 | K98: Meters | L98: 30 | M98: 0.03333333333 | N98: 30 | O98: 0.03333333333 | P98: No | Q98: No
B99: 11 | C99: Wholesale Energy Meters | F99: 15 | G99: 30 | J99: 1860 | K99: Meters | L99: 30 | M99: 0.03333333333 | N99: 30 | O99: 0.03333333333 | P99: No | Q99: No
B100: 12 | C100: Current & Potential Transformer (CT & PT) | F100: 35 | G100: 50 | J100: 1860 | K100: Meters | L100: 30 | M100: 0.03333333333 | N100: 30 | O100: 0.03333333333 | P100: Yes | Q100: No
B101: 13 | C101: Smart Meters | F101: 5 | G101: 15 | J101: 1860A | K101: Meters | L101: 15 | M101: 0.06666666667 | N101: 15 | O101: 0.06666666667 | P101: No | Q101: No
B102: 14 | C102: Repeaters - Smart Metering | F102: 10 | G102: 15 | M102: =IF(ISERROR(1/L102), "", 1/L102) -> 
B103: 15 | C103: Data Collectors - Smart Metering | F103: 15 | G103: 20
A106: * TS & MS = Transformer and Municipal Stations UG = Underground Systems S = Monitoring and Control Systems
A108: Note 1: | B108: Tables F-1 and F-2 above are to be used as a reference in order to complete columns J, K, L and N.
B109: See pages 17-19 of Kinetrics Report

Sheet App.2-C_DepExp
H1: File Number: | J1: =[0]!EBNUMBER -> EB-2026-0029
H2: Exhibit: | J2: separate attachment
A3: ` | H3: Tab:
H4: Schedule:
H5: Page:
H7: Date: | J7: 2026-05-19
A9: Appendix 2-C | Q9: CGAAP
A10: Depreciation and Amortization Expense | Q10: Revised CGAAP
Q11: MIFRS
A13: General: | B13: This appendix is to assess the reasonability of the depreciation expense that is included in rate base via. accumulated depreciation and the revenue requirement.
B14: Applicants must provide a breakdown of depreciation and amortization expense in the above format for all relevant accounts. Balances presented in the table should exclude asset retirement obligations (AROs) and the related depreciation and accretion expense. These should be disclosed separately.
B15: This appendix must be completed under MIFRS for each year for the earlier of: 1) all historical years back to the Applicant's last rebasing; or 2) at least three years of historical actuals, in addition to Bridge Year and Test Year forecasts. If this is the first application where the Applicant is rebasing under MIFRS, contact OEB staff for further guidance on the appropriate depreciation schedules to complete (i.e. applicable years and accounting standard for each schedule).
A17: Notes:
A18: 1 | B18: This should include assets in column A (excel column C) that become fully depreciated.
A19: 2 | B19: The useful life used should be consistent with the OEB's regulatory accounting policies as set out in the Accounting Procedures Handbook for Electricity Distributors, effective Jan. 1, 2012 and also with the Report of the Board, Transition to International Financial Reporting Standards, EB-2008-0408, and the Kinectrics Report.
A20: 3 | B20: OEB policy of the "half-year" rule - the applicant must ensure that additions in the year attract a half-year depreciation expense in the first year. Deviations from this standard practice must be supported in the application.
A21: 4 | B21: The applicant must provide an explanation of material variances in its evidence.
E23: Year | F23: =F72-1 -> 2012
Q24: 2017
C25: Book Values | G25: Service Lives | I25: Depreciation Expense | Q25: 2018
A26: Account | B26: Description | C26: Opening Book Value of Assets | D26: Less Fully Depreciated 1 | E26: Current Year Additions | F26: Disposals | G26: Net Amount of Assets to be Depreciated | H26: Remaining Life of Assets Existing 2 | I26: Depreciation Rate Assets | J26: Depreciation Expense on Assets 3 | K26: Depreciation Expense per Appendix 2-BA Fixed Assets, Column K | L26: Variance 4 | M26: Variance %
C27: a | D27: b | E27: c | F27: d | G27: e = a-b+0.5*c-d | H27: f | I27: g = 1/f | J27: h = e/f | K27: i | L27: j = i-h | M27: k = j/i
A28: 1609 | B28: Capital Contributions Paid | G28: =C28-D28+(E28*0.5)-F28 -> 0 | I28: =IF(H28=0,0,1/H28) -> 0 | J28: =IF(H28=0,0,+G28/H28) -> 0 | K28: =-'App.2-BA_Fixed Asset Cont'!K47 -> 0 | L28: =IF(ISERROR(+K28-J28), 0, +K28-J28) -> 0 | M28: =IFERROR(L28/K28,0) -> 0
A29: 1611 | B29: Computer Software (Formally known as Account 1925) | G29: =C29-D29+(E29*0.5)-F29 -> 0 | I29: =IF(H29=0,0,1/H29) -> 0 | J29: 0 | K29: =-'App.2-BA_Fixed Asset Cont'!K48 -> 0 | L29: =IF(ISERROR(+K29-J29), 0, +K29-J29) -> 0 | M29: =IFERROR(L29/K29,0) -> 0
A30: 1612 | B30: Land Rights (Formally known as Account 1906) | G30: 0 | I30: =IF(H30=0,0,1/H30) -> 0 | J30: 0 | K30: =-'App.2-BA_Fixed Asset Cont'!K49 -> 0 | L30: =IF(ISERROR(+K30-J30), 0, +K30-J30) -> 0 | M30: 0
A31: 1805 | B31: Land | G31: 0 | I31: 0 | J31: 0 | K31: =-'App.2-BA_Fixed Asset Cont'!K50 -> 0 | L31: 0 | M31: 0
A32: 1808 | B32: Buildings | G32: 0 | I32: 0 | J32: 0 | K32: =-'App.2-BA_Fixed Asset Cont'!K51 -> 0 | L32: 0 | M32: 0
A33: 1810 | B33: Leasehold Improvements | G33: 0 | I33: 0 | J33: 0 | K33: =-'App.2-BA_Fixed Asset Cont'!K52 -> 0 | L33: 0 | M33: 0
A34: 1815 | B34: Transformer Station Equipment >50 kV | G34: 0 | I34: 0 | J34: 0 | K34: =-'App.2-BA_Fixed Asset Cont'!K53 -> 0 | L34: 0 | M34: 0
A35: 1820 | B35: Distribution Station Equipment <50 kV | G35: 0 | I35: 0 | J35: 0 | K35: =-'App.2-BA_Fixed Asset Cont'!K54 -> 0 | L35: 0 | M35: 0
A36: 1825 | B36: Storage Battery Equipment | G36: 0 | I36: 0 | J36: 0 | K36: =-'App.2-BA_Fixed Asset Cont'!K55 -> 0 | L36: 0 | M36: 0
A37: 1830 | B37: Poles, Towers & Fixtures | G37: 0 | I37: 0 | J37: 0 | K37: =-'App.2-BA_Fixed Asset Cont'!K56 -> 0 | L37: 0 | M37: 0
A38: 1835 | B38: Overhead Conductors & Devices | G38: 0 | I38: 0 | J38: 0 | K38: =-'App.2-BA_Fixed Asset Cont'!K57 -> 0 | L38: 0 | M38: 0
A39: 1840 | B39: Underground Conduit | G39: 0 | I39: 0 | J39: 0 | K39: =-'App.2-BA_Fixed Asset Cont'!K58 -> 0 | L39: 0 | M39: 0
A40: 1845 | B40: Underground Conductors & Devices | G40: 0 | I40: 0 | J40: 0 | K40: =-'App.2-BA_Fixed Asset Cont'!K59 -> 0 | L40: 0 | M40: 0
A41: 1850 | B41: Line Transformers | G41: 0 | I41: 0 | J41: 0 | K41: =-'App.2-BA_Fixed Asset Cont'!K60 -> 0 | L41: 0 | M41: 0
A42: 1855 | B42: Services (Overhead & Underground) | G42: 0 | I42: 0 | J42: 0 | K42: =-'App.2-BA_Fixed Asset Cont'!K61 -> 0 | L42: 0 | M42: 0
A43: 1860 | B43: Meters | G43: 0 | I43: 0 | J43: 0 | K43: =-'App.2-BA_Fixed Asset Cont'!K62 -> 0 | L43: 0 | M43: 0
A44: 1860 | B44: Meters (Smart Meters) | G44: 0 | I44: 0 | J44: 0 | K44: =-'App.2-BA_Fixed Asset Cont'!K63 -> 0 | L44: 0 | M44: 0
A45: 1905 | B45: Land | G45: 0 | I45: 0 | J45: 0 | K45: =-'App.2-BA_Fixed Asset Cont'!K64 -> 0 | L45: 0 | M45: 0
A46: 1908 | B46: Buildings & Fixtures | G46: 0 | I46: 0 | J46: 0 | K46: =-'App.2-BA_Fixed Asset Cont'!K65 -> 0 | L46: 0 | M46: 0
A47: 1910 | B47: Leasehold Improvements | G47: 0 | I47: 0 | J47: 0 | K47: =-'App.2-BA_Fixed Asset Cont'!K66 -> 0 | L47: 0 | M47: 0
A48: 1915 | B48: Office Furniture & Equipment (10 years) | G48: 0 | I48: 0 | J48: 0 | K48: =-'App.2-BA_Fixed Asset Cont'!K67 -> 0 | L48: 0 | M48: 0
A49: 1915 | B49: Office Furniture & Equipment (5 years) | G49: 0 | I49: 0 | J49: 0 | K49: =-'App.2-BA_Fixed Asset Cont'!K68 -> 0 | L49: 0 | M49: 0
A50: 1920 | B50: Computer Equipment - Hardware | G50: 0 | I50: 0 | J50: 0 | K50: =-'App.2-BA_Fixed Asset Cont'!K69 -> 0 | L50: 0 | M50: 0
A51: 1920 | B51: Computer Equip.-Hardware(Post Mar. 22/04) | G51: 0 | I51: 0 | J51: 0 | K51: =-'App.2-BA_Fixed Asset Cont'!K70 -> 0 | L51: 0 | M51: 0
A52: 1920 | B52: Computer Equip.-Hardware(Post Mar. 19/07) | G52: 0 | I52: 0 | J52: 0 | K52: =-'App.2-BA_Fixed Asset Cont'!K71 -> 0 | L52: 0 | M52: 0
A53: 1930 | B53: Transportation Equipment | G53: 0 | I53: 0 | J53: 0 | K53: =-'App.2-BA_Fixed Asset Cont'!K72 -> 0 | L53: 0 | M53: 0
A54: 1935 | B54: Stores Equipment | G54: 0 | I54: 0 | J54: 0 | K54: =-'App.2-BA_Fixed Asset Cont'!K73 -> 0 | L54: 0 | M54: 0
A55: 1940 | B55: Tools, Shop & Garage Equipment | G55: 0 | I55: 0 | J55: 0 | K55: =-'App.2-BA_Fixed Asset Cont'!K74 -> 0 | L55: 0 | M55: 0
A56: 1945 | B56: Measurement & Testing Equipment | G56: 0 | I56: 0 | J56: 0 | K56: =-'App.2-BA_Fixed Asset Cont'!K75 -> 0 | L56: 0 | M56: 0
A57: 1950 | B57: Power Operated Equipment | G57: 0 | I57: 0 | J57: 0 | K57: =-'App.2-BA_Fixed Asset Cont'!K76 -> 0 | L57: 0 | M57: 0
A58: 1955 | B58: Communications Equipment | G58: 0 | I58: 0 | J58: 0 | K58: =-'App.2-BA_Fixed Asset Cont'!K77 -> 0 | L58: 0 | M58: 0
A59: 1955 | B59: Communication Equipment (Smart Meters) | G59: 0 | I59: 0 | J59: 0 | K59: =-'App.2-BA_Fixed Asset Cont'!K78 -> 0 | L59: 0 | M59: 0
A60: 1960 | B60: Miscellaneous Equipment | G60: 0 | I60: 0 | J60: 0 | K60: =-'App.2-BA_Fixed Asset Cont'!K79 -> 0 | L60: 0 | M60: 0
A61: 1970 | B61: Load Management Controls Customer Premises | G61: 0 | I61: 0 | J61: 0 | K61: =-'App.2-BA_Fixed Asset Cont'!K80 -> 0 | L61: 0 | M61: 0
A62: 1975 | B62: Load Management Controls Utility Premises | G62: 0 | I62: 0 | J62: 0 | K62: =-'App.2-BA_Fixed Asset Cont'!K81 -> 0 | L62: 0 | M62: 0
A63: 1980 | B63: System Supervisor Equipment | G63: 0 | I63: 0 | J63: 0 | K63: =-'App.2-BA_Fixed Asset Cont'!K82 -> 0 | L63: 0 | M63: 0
A64: 1985 | B64: Miscellaneous Fixed Assets | G64: 0 | I64: 0 | J64: 0 | K64: =-'App.2-BA_Fixed Asset Cont'!K83 -> 0 | L64: 0 | M64: 0
A65: 1990 | B65: Other Tangible Property | G65: 0 | I65: 0 | J65: 0 | K65: =-'App.2-BA_Fixed Asset Cont'!K84 -> 0 | L65: 0 | M65: 0
A66: 1995 | B66: Contributions & Grants | G66: 0 | I66: 0 | J66: 0 | K66: =-'App.2-BA_Fixed Asset Cont'!K85 -> 0 | L66: 0 | M66: 0
A67: 2440 | B67: Deferred Revenue | G67: 0 | I67: 0 | J67: 0 | K67: =-'App.2-BA_Fixed Asset Cont'!K86 -> 0 | L67: 0 | M67: 0
A68: 2005 | B68: Property Under Finance Lease | G68: 0 | I68: 0 | J68: 0 | K68: =-'App.2-BA_Fixed Asset Cont'!K87 -> 0 | L68: 0 | M68: 0
B69: Total | C69: =SUM(C28:C68) -> 0 | D69: =SUM(D28:D68) -> 0 | E69: 0 | G69: =SUM(G29:G68) -> 0 | H69: =SUM(H28:H68) -> 0 | J69: =SUM(J28:J68) -> 0 | K69: =SUM(K28:K68) -> 0 | L69: 0 | M69: 0
E72: Year | F72: =F121-1 -> 2013
Q73: 2017
C74: Book Values | G74: Service Lives | I74: Depreciation Expense | Q74: 2018
A75: Account | B75: Description | C75: Opening Book Value of Assets | D75: Less Fully Depreciated 1 | E75: Current Year Additions | F75: Disposals | G75: Net Amount of Assets to be Depreciated | H75: Remaining Life of Assets Existing 2 | I75: Depreciation Rate Assets | J75: Depreciation Expense on Assets 3 | K75: Depreciation Expense per Appendix 2-BA Fixed Assets, Column K | L75: Variance 4 | M75: Variance %
C76: a | D76: b | E76: c | F76: d | G76: e = a-b+0.5*c-d | H76: f | I76: g = 1/f | J76: h = e/f | K76: i | L76: j = i-h | M76: k = j/i
A77: 1609 | B77: Capital Contributions Paid | G77: =C77-D77+(E77*0.5)-F77 -> 0 | I77: =IF(H77=0,0,1/H77) -> 0 | J77: =IF(H77=0,0,+G77/H77) -> 0 | K77: =-'App.2-BA_Fixed Asset Cont'!K111 -> 0 | L77: =IF(ISERROR(+K77-J77), 0, +K77-J77) -> 0 | M77: =IFERROR(L77/K77,0) -> 0
A78: 1611 | B78: Computer Software (Formally known as Account 1925) | G78: =C78-D78+(E78*0.5)-F78 -> 0 | I78: =IF(H78=0,0,1/H78) -> 0 | J78: 0 | K78: =-'App.2-BA_Fixed Asset Cont'!K112 -> 0 | L78: =IF(ISERROR(+K78-J78), 0, +K78-J78) -> 0 | M78: =IFERROR(L78/K78,0) -> 0
A79: 1612 | B79: Land Rights (Formally known as Account 1906) | G79: 0 | I79: =IF(H79=0,0,1/H79) -> 0 | J79: 0 | K79: =-'App.2-BA_Fixed Asset Cont'!K113 -> 0 | L79: =IF(ISERROR(+K79-J79), 0, +K79-J79) -> 0 | M79: 0
A80: 1805 | B80: Land | G80: 0 | I80: 0 | J80: 0 | K80: =-'App.2-BA_Fixed Asset Cont'!K114 -> 0 | L80: 0 | M80: 0
A81: 1808 | B81: Buildings | G81: 0 | I81: 0 | J81: 0 | K81: =-'App.2-BA_Fixed Asset Cont'!K115 -> 0 | L81: 0 | M81: 0
A82: 1810 | B82: Leasehold Improvements | G82: 0 | I82: 0 | J82: 0 | K82: =-'App.2-BA_Fixed Asset Cont'!K116 -> 0 | L82: 0 | M82: 0
A83: 1815 | B83: Transformer Station Equipment >50 kV | G83: 0 | I83: 0 | J83: 0 | K83: =-'App.2-BA_Fixed Asset Cont'!K117 -> 0 | L83: 0 | M83: 0
A84: 1820 | B84: Distribution Station Equipment <50 kV | G84: 0 | I84: 0 | J84: 0 | K84: =-'App.2-BA_Fixed Asset Cont'!K118 -> 0 | L84: 0 | M84: 0
A85: 1825 | B85: Storage Battery Equipment | G85: 0 | I85: 0 | J85: 0 | K85: =-'App.2-BA_Fixed Asset Cont'!K119 -> 0 | L85: 0 | M85: 0
A86: 1830 | B86: Poles, Towers & Fixtures | G86: 0 | I86: 0 | J86: 0 | K86: =-'App.2-BA_Fixed Asset Cont'!K120 -> 0 | L86: 0 | M86: 0
A87: 1835 | B87: Overhead Conductors & Devices | G87: 0 | I87: 0 | J87: 0 | K87: =-'App.2-BA_Fixed Asset Cont'!K121 -> 0 | L87: 0 | M87: 0
A88: 1840 | B88: Underground Conduit | G88: 0 | I88: 0 | J88: 0 | K88: =-'App.2-BA_Fixed Asset Cont'!K122 -> 0 | L88: 0 | M88: 0
A89: 1845 | B89: Underground Conductors & Devices | G89: 0 | I89: 0 | J89: 0 | K89: =-'App.2-BA_Fixed Asset Cont'!K123 -> 0 | L89: 0 | M89: 0
A90: 1850 | B90: Line Transformers | G90: 0 | I90: 0 | J90: 0 | K90: =-'App.2-BA_Fixed Asset Cont'!K124 -> 0 | L90: 0 | M90: 0
A91: 1855 | B91: Services (Overhead & Underground) | G91: 0 | I91: 0 | J91: 0 | K91: =-'App.2-BA_Fixed Asset Cont'!K125 -> 0 | L91: 0 | M91: 0
A92: 1860 | B92: Meters | G92: 0 | I92: 0 | J92: 0 | K92: =-'App.2-BA_Fixed Asset Cont'!K126 -> 0 | L92: 0 | M92: 0
A93: 1860 | B93: Meters (Smart Meters) | G93: 0 | I93: 0 | J93: 0 | K93: =-'App.2-BA_Fixed Asset Cont'!K127 -> 0 | L93: 0 | M93: 0
A94: 1905 | B94: Land | G94: 0 | I94: 0 | J94: 0 | K94: =-'App.2-BA_Fixed Asset Cont'!K128 -> 0 | L94: 0 | M94: 0
A95: 1908 | B95: Buildings & Fixtures | G95: 0 | I95: 0 | J95: 0 | K95: =-'App.2-BA_Fixed Asset Cont'!K129 -> 0 | L95: 0 | M95: 0
A96: 1910 | B96: Leasehold Improvements | G96: 0 | I96: 0 | J96: 0 | K96: =-'App.2-BA_Fixed Asset Cont'!K130 -> 0 | L96: 0 | M96: 0
A97: 1915 | B97: Office Furniture & Equipment (10 years) | G97: 0 | I97: 0 | J97: 0 | K97: =-'App.2-BA_Fixed Asset Cont'!K131 -> 0 | L97: 0 | M97: 0
A98: 1915 | B98: Office Furniture & Equipment (5 years) | G98: 0 | I98: 0 | J98: 0 | K98: =-'App.2-BA_Fixed Asset Cont'!K132 -> 0 | L98: 0 | M98: 0
A99: 1920 | B99: Computer Equipment - Hardware | G99: 0 | I99: 0 | J99: 0 | K99: =-'App.2-BA_Fixed Asset Cont'!K133 -> 0 | L99: 0 | M99: 0
A100: 1920 | B100: Computer Equip.-Hardware(Post Mar. 22/04) | G100: 0 | I100: 0 | J100: 0 | K100: =-'App.2-BA_Fixed Asset Cont'!K134 -> 0 | L100: 0 | M100: 0
A101: 1920 | B101: Computer Equip.-Hardware(Post Mar. 19/07) | G101: 0 | I101: 0 | J101: 0 | K101: =-'App.2-BA_Fixed Asset Cont'!K135 -> 0 | L101: 0 | M101: 0
A102: 1930 | B102: Transportation Equipment | G102: 0 | I102: 0 | J102: 0 | K102: =-'App.2-BA_Fixed Asset Cont'!K136 -> 0 | L102: 0 | M102: 0
A103: 1935 | B103: Stores Equipment | G103: 0 | I103: 0 | J103: 0 | K103: =-'App.2-BA_Fixed Asset Cont'!K137 -> 0 | L103: 0 | M103: 0
A104: 1940 | B104: Tools, Shop & Garage Equipment | G104: 0 | I104: 0 | J104: 0 | K104: =-'App.2-BA_Fixed Asset Cont'!K138 -> 0 | L104: 0 | M104: 0
A105: 1945 | B105: Measurement & Testing Equipment | G105: 0 | I105: 0 | J105: 0 | K105: =-'App.2-BA_Fixed Asset Cont'!K139 -> 0 | L105: 0 | M105: 0
A106: 1950 | B106: Power Operated Equipment | G106: 0 | I106: 0 | J106: 0 | K106: =-'App.2-BA_Fixed Asset Cont'!K140 -> 0 | L106: 0 | M106: 0
A107: 1955 | B107: Communications Equipment | G107: 0 | I107: 0 | J107: 0 | K107: =-'App.2-BA_Fixed Asset Cont'!K141 -> 0 | L107: 0 | M107: 0
A108: 1955 | B108: Communication Equipment (Smart Meters) | G108: 0 | I108: 0 | J108: 0 | K108: =-'App.2-BA_Fixed Asset Cont'!K142 -> 0 | L108: 0 | M108: 0
A109: 1960 | B109: Miscellaneous Equipment | G109: 0 | I109: 0 | J109: 0 | K109: =-'App.2-BA_Fixed Asset Cont'!K143 -> 0 | L109: 0 | M109: 0
A110: 1970 | B110: Load Management Controls Customer Premises | G110: 0 | I110: 0 | J110: 0 | K110: =-'App.2-BA_Fixed Asset Cont'!K144 -> 0 | L110: 0 | M110: 0
A111: 1975 | B111: Load Management Controls Utility Premises | G111: 0 | I111: 0 | J111: 0 | K111: =-'App.2-BA_Fixed Asset Cont'!K145 -> 0 | L111: 0 | M111: 0
A112: 1980 | B112: System Supervisor Equipment | G112: 0 | I112: 0 | J112: 0 | K112: =-'App.2-BA_Fixed Asset Cont'!K146 -> 0 | L112: 0 | M112: 0
A113: 1985 | B113: Miscellaneous Fixed Assets | G113: 0 | I113: 0 | J113: 0 | K113: =-'App.2-BA_Fixed Asset Cont'!K147 -> 0 | L113: 0 | M113: 0
A114: 1990 | B114: Other Tangible Property | G114: 0 | I114: 0 | J114: 0 | K114: =-'App.2-BA_Fixed Asset Cont'!K148 -> 0 | L114: 0 | M114: 0
A115: 1995 | B115: Contributions & Grants | G115: 0 | I115: 0 | J115: 0 | K115: =-'App.2-BA_Fixed Asset Cont'!K149 -> 0 | L115: 0 | M115: 0
A116: 2440 | B116: Deferred Revenue | G116: 0 | I116: 0 | J116: 0 | K116: =-'App.2-BA_Fixed Asset Cont'!K150 -> 0 | L116: 0 | M116: 0
A117: 2005 | B117: Property Under Finance Lease | G117: 0 | I117: 0 | J117: 0 | K117: =-'App.2-BA_Fixed Asset Cont'!K151 -> 0 | L117: 0 | M117: 0
B118: Total | C118: =SUM(C77:C117) -> 0 | D118: =SUM(D77:D117) -> 0 | E118: 0 | G118: =SUM(G78:G117) -> 0 | H118: =SUM(H77:H117) -> 0 | J118: =SUM(J77:J117) -> 0 | K118: =SUM(K77:K117) -> 0 | L118: 0 | M118: 0
E121: Year | F121: =F170-1 -> 2014
Q122: 2017
C123: Book Values | G123: Service Lives | I123: Depreciation Expense | Q123: 2018
A124: Account | B124: Description | C124: Opening Book Value of Assets | D124: Less Fully Depreciated 1 | E124: Current Year Additions | F124: Disposals | G124: Net Amount of Assets to be Depreciated | H124: Remaining Life of Assets Existing 2 | I124: Depreciation Rate Assets | J124: Depreciation Expense on Assets 3 | K124: Depreciation Expense per Appendix 2-BA Fixed Assets, Column K | L124: Variance 4 | M124: Variance %
C125: a | D125: b | E125: c | F125: d | G125: e = a-b+0.5*c-d | H125: f | I125: g = 1/f | J125: h = e/f | K125: i | L125: j = i-h | M125: k = j/i
A126: 1609 | B126: Capital Contributions Paid | G126: =C126-D126+(E126*0.5)-F126 -> 0 | I126: =IF(H126=0,0,1/H126) -> 0 | J126: =IF(H126=0,0,+G126/H126) -> 0 | K126: =-'App.2-BA_Fixed Asset Cont'!K175 -> 0 | L126: =IF(ISERROR(+K126-J126), 0, +K126-J126) -> 0 | M126: =IFERROR(L126/K126,0) -> 0
A127: 1611 | B127: Computer Software (Formally known as Account 1925) | G127: =C127-D127+(E127*0.5)-F127 -> 0 | I127: =IF(H127=0,0,1/H127) -> 0 | J127: 0 | K127: =-'App.2-BA_Fixed Asset Cont'!K176 -> 0 | L127: =IF(ISERROR(+K127-J127), 0, +K127-J127) -> 0 | M127: =IFERROR(L127/K127,0) -> 0
A128: 1612 | B128: Land Rights (Formally known as Account 1906) | G128: 0 | I128: =IF(H128=0,0,1/H128) -> 0 | J128: 0 | K128: =-'App.2-BA_Fixed Asset Cont'!K177 -> 0 | L128: =IF(ISERROR(+K128-J128), 0, +K128-J128) -> 0 | M128: 0
A129: 1805 | B129: Land | G129: 0 | I129: 0 | J129: 0 | K129: =-'App.2-BA_Fixed Asset Cont'!K178 -> 0 | L129: 0 | M129: 0
A130: 1808 | B130: Buildings | G130: 0 | I130: 0 | J130: 0 | K130: =-'App.2-BA_Fixed Asset Cont'!K179 -> 0 | L130: 0 | M130: 0
A131: 1810 | B131: Leasehold Improvements | G131: 0 | I131: 0 | J131: 0 | K131: =-'App.2-BA_Fixed Asset Cont'!K180 -> 0 | L131: 0 | M131: 0
A132: 1815 | B132: Transformer Station Equipment >50 kV | G132: 0 | I132: 0 | J132: 0 | K132: =-'App.2-BA_Fixed Asset Cont'!K181 -> 0 | L132: 0 | M132: 0
A133: 1820 | B133: Distribution Station Equipment <50 kV | G133: 0 | I133: 0 | J133: 0 | K133: =-'App.2-BA_Fixed Asset Cont'!K182 -> 0 | L133: 0 | M133: 0
A134: 1825 | B134: Storage Battery Equipment | G134: 0 | I134: 0 | J134: 0 | K134: =-'App.2-BA_Fixed Asset Cont'!K183 -> 0 | L134: 0 | M134: 0
A135: 1830 | B135: Poles, Towers & Fixtures | G135: 0 | I135: 0 | J135: 0 | K135: =-'App.2-BA_Fixed Asset Cont'!K184 -> 0 | L135: 0 | M135: 0
A136: 1835 | B136: Overhead Conductors & Devices | G136: 0 | I136: 0 | J136: 0 | K136: =-'App.2-BA_Fixed Asset Cont'!K185 -> 0 | L136: 0 | M136: 0
A137: 1840 | B137: Underground Conduit | G137: 0 | I137: 0 | J137: 0 | K137: =-'App.2-BA_Fixed Asset Cont'!K186 -> 0 | L137: 0 | M137: 0
A138: 1845 | B138: Underground Conductors & Devices | G138: 0 | I138: 0 | J138: 0 | K138: =-'App.2-BA_Fixed Asset Cont'!K187 -> 0 | L138: 0 | M138: 0
A139: 1850 | B139: Line Transformers | G139: 0 | I139: 0 | J139: 0 | K139: =-'App.2-BA_Fixed Asset Cont'!K188 -> 0 | L139: 0 | M139: 0
A140: 1855 | B140: Services (Overhead & Underground) | G140: 0 | I140: 0 | J140: 0 | K140: =-'App.2-BA_Fixed Asset Cont'!K189 -> 0 | L140: 0 | M140: 0
A141: 1860 | B141: Meters | G141: 0 | I141: 0 | J141: 0 | K141: =-'App.2-BA_Fixed Asset Cont'!K190 -> 0 | L141: 0 | M141: 0
A142: 1860 | B142: Meters (Smart Meters) | G142: 0 | I142: 0 | J142: 0 | K142: =-'App.2-BA_Fixed Asset Cont'!K191 -> 0 | L142: 0 | M142: 0
A143: 1905 | B143: Land | G143: 0 | I143: 0 | J143: 0 | K143: =-'App.2-BA_Fixed Asset Cont'!K192 -> 0 | L143: 0 | M143: 0
A144: 1908 | B144: Buildings & Fixtures | G144: 0 | I144: 0 | J144: 0 | K144: =-'App.2-BA_Fixed Asset Cont'!K193 -> 0 | L144: 0 | M144: 0
A145: 1910 | B145: Leasehold Improvements | G145: 0 | I145: 0 | J145: 0 | K145: =-'App.2-BA_Fixed Asset Cont'!K194 -> 0 | L145: 0 | M145: 0
A146: 1915 | B146: Office Furniture & Equipment (10 years) | G146: 0 | I146: 0 | J146: 0 | K146: =-'App.2-BA_Fixed Asset Cont'!K195 -> 0 | L146: 0 | M146: 0
A147: 1915 | B147: Office Furniture & Equipment (5 years) | G147: 0 | I147: 0 | J147: 0 | K147: =-'App.2-BA_Fixed Asset Cont'!K196 -> 0 | L147: 0 | M147: 0
A148: 1920 | B148: Computer Equipment - Hardware | G148: 0 | I148: 0 | J148: 0 | K148: =-'App.2-BA_Fixed Asset Cont'!K197 -> 0 | L148: 0 | M148: 0
A149: 1920 | B149: Computer Equip.-Hardware(Post Mar. 22/04) | G149: 0 | I149: 0 | J149: 0 | K149: =-'App.2-BA_Fixed Asset Cont'!K198 -> 0 | L149: 0 | M149: 0
A150: 1920 | B150: Computer Equip.-Hardware(Post Mar. 19/07) | G150: 0 | I150: 0 | J150: 0 | K150: =-'App.2-BA_Fixed Asset Cont'!K199 -> 0 | L150: 0 | M150: 0
A151: 1930 | B151: Transportation Equipment | G151: 0 | I151: 0 | J151: 0 | K151: =-'App.2-BA_Fixed Asset Cont'!K200 -> 0 | L151: 0 | M151: 0
A152: 1935 | B152: Stores Equipment | G152: 0 | I152: 0 | J152: 0 | K152: =-'App.2-BA_Fixed Asset Cont'!K201 -> 0 | L152: 0 | M152: 0
A153: 1940 | B153: Tools, Shop & Garage Equipment | G153: 0 | I153: 0 | J153: 0 | K153: =-'App.2-BA_Fixed Asset Cont'!K202 -> 0 | L153: 0 | M153: 0
A154: 1945 | B154: Measurement & Testing Equipment | G154: 0 | I154: 0 | J154: 0 | K154: =-'App.2-BA_Fixed Asset Cont'!K203 -> 0 | L154: 0 | M154: 0
A155: 1950 | B155: Power Operated Equipment | G155: 0 | I155: 0 | J155: 0 | K155: =-'App.2-BA_Fixed Asset Cont'!K204 -> 0 | L155: 0 | M155: 0
A156: 1955 | B156: Communications Equipment | G156: 0 | I156: 0 | J156: 0 | K156: =-'App.2-BA_Fixed Asset Cont'!K205 -> 0 | L156: 0 | M156: 0
A157: 1955 | B157: Communication Equipment (Smart Meters) | G157: 0 | I157: 0 | J157: 0 | K157: =-'App.2-BA_Fixed Asset Cont'!K206 -> 0 | L157: 0 | M157: 0
A158: 1960 | B158: Miscellaneous Equipment | G158: 0 | I158: 0 | J158: 0 | K158: =-'App.2-BA_Fixed Asset Cont'!K207 -> 0 | L158: 0 | M158: 0
A159: 1970 | B159: Load Management Controls Customer Premises | G159: 0 | I159: 0 | J159: 0 | K159: =-'App.2-BA_Fixed Asset Cont'!K208 -> 0 | L159: 0 | M159: 0
A160: 1975 | B160: Load Management Controls Utility Premises | G160: 0 | I160: 0 | J160: 0 | K160: =-'App.2-BA_Fixed Asset Cont'!K209 -> 0 | L160: 0 | M160: 0
A161: 1980 | B161: System Supervisor Equipment | G161: 0 | I161: 0 | J161: 0 | K161: =-'App.2-BA_Fixed Asset Cont'!K210 -> 0 | L161: 0 | M161: 0
A162: 1985 | B162: Miscellaneous Fixed Assets | G162: 0 | I162: 0 | J162: 0 | K162: =-'App.2-BA_Fixed Asset Cont'!K211 -> 0 | L162: 0 | M162: 0
A163: 1990 | B163: Other Tangible Property | G163: 0 | I163: 0 | J163: 0 | K163: =-'App.2-BA_Fixed Asset Cont'!K212 -> 0 | L163: 0 | M163: 0
A164: 1995 | B164: Contributions & Grants | G164: 0 | I164: 0 | J164: 0 | K164: =-'App.2-BA_Fixed Asset Cont'!K213 -> 0 | L164: 0 | M164: 0
A165: 2440 | B165: Deferred Revenue | G165: 0 | I165: 0 | J165: 0 | K165: =-'App.2-BA_Fixed Asset Cont'!K214 -> 0 | L165: 0 | M165: 0
A166: 2005 | B166: Property Under Finance Lease | G166: 0 | I166: 0 | J166: 0 | K166: =-'App.2-BA_Fixed Asset Cont'!K215 -> 0 | L166: 0 | M166: 0
B167: Total | C167: =SUM(C126:C166) -> 0 | D167: =SUM(D126:D166) -> 0 | E167: 0 | G167: =SUM(G127:G166) -> 0 | H167: =SUM(H126:H166) -> 0 | J167: =SUM(J126:J166) -> 0 | K167: =SUM(K126:K166) -> 0 | L167: 0 | M167: 0
E170: Year | F170: =F219-1 -> 2015
Q171: 2017
C172: Book Values | G172: Service Lives | I172: Depreciation Expense | Q172: 2018
A173: Account | B173: Description | C173: Opening Book Value of Assets | D173: Less Fully Depreciated 1 | E173: Current Year Additions | F173: Disposals | G173: Net Amount of Assets to be Depreciated | H173: Remaining Life of Assets Existing 2 | I173: Depreciation Rate Assets | J173: Depreciation Expense on Assets 3 | K173: Depreciation Expense per Appendix 2-BA Fixed Assets, Column K | L173: Variance 4 | M173: Variance %
C174: a | D174: b | E174: c | F174: d | G174: e = a-b+0.5*c-d | H174: f | I174: g = 1/f | J174: h = e/f | K174: i | L174: j = i-h | M174: k = j/i
A175: 1609 | B175: Capital Contributions Paid | G175: =C175-D175+(E175*0.5)-F175 -> 0 | I175: =IF(H175=0,0,1/H175) -> 0 | J175: =IF(H175=0,0,+G175/H175) -> 0 | K175: =-'App.2-BA_Fixed Asset Cont'!K239 -> 0 | L175: =IF(ISERROR(+K175-J175), 0, +K175-J175) -> 0 | M175: =IFERROR(L175/K175,0) -> 0
A176: 1611 | B176: Computer Software (Formally known as Account 1925) | G176: =C176-D176+(E176*0.5)-F176 -> 0 | I176: =IF(H176=0,0,1/H176) -> 0 | J176: 0 | K176: =-'App.2-BA_Fixed Asset Cont'!K240 -> 0 | L176: =IF(ISERROR(+K176-J176), 0, +K176-J176) -> 0 | M176: =IFERROR(L176/K176,0) -> 0
A177: 1612 | B177: Land Rights (Formally known as Account 1906) | G177: 0 | I177: =IF(H177=0,0,1/H177) -> 0 | J177: 0 | K177: =-'App.2-BA_Fixed Asset Cont'!K241 -> 0 | L177: =IF(ISERROR(+K177-J177), 0, +K177-J177) -> 0 | M177: 0
A178: 1805 | B178: Land | G178: 0 | I178: 0 | J178: 0 | K178: =-'App.2-BA_Fixed Asset Cont'!K242 -> 0 | L178: 0 | M178: 0
A179: 1808 | B179: Buildings | G179: 0 | I179: 0 | J179: 0 | K179: =-'App.2-BA_Fixed Asset Cont'!K243 -> 0 | L179: 0 | M179: 0
A180: 1810 | B180: Leasehold Improvements | G180: 0 | I180: 0 | J180: 0 | K180: =-'App.2-BA_Fixed Asset Cont'!K244 -> 0 | L180: 0 | M180: 0
A181: 1815 | B181: Transformer Station Equipment >50 kV | G181: 0 | I181: 0 | J181: 0 | K181: =-'App.2-BA_Fixed Asset Cont'!K245 -> 0 | L181: 0 | M181: 0
A182: 1820 | B182: Distribution Station Equipment <50 kV | G182: 0 | I182: 0 | J182: 0 | K182: =-'App.2-BA_Fixed Asset Cont'!K246 -> 0 | L182: 0 | M182: 0
A183: 1825 | B183: Storage Battery Equipment | G183: 0 | I183: 0 | J183: 0 | K183: =-'App.2-BA_Fixed Asset Cont'!K247 -> 0 | L183: 0 | M183: 0
A184: 1830 | B184: Poles, Towers & Fixtures | G184: 0 | I184: 0 | J184: 0 | K184: =-'App.2-BA_Fixed Asset Cont'!K248 -> 0 | L184: 0 | M184: 0
A185: 1835 | B185: Overhead Conductors & Devices | G185: 0 | I185: 0 | J185: 0 | K185: =-'App.2-BA_Fixed Asset Cont'!K249 -> 0 | L185: 0 | M185: 0
A186: 1840 | B186: Underground Conduit | G186: 0 | I186: 0 | J186: 0 | K186: =-'App.2-BA_Fixed Asset Cont'!K250 -> 0 | L186: 0 | M186: 0
A187: 1845 | B187: Underground Conductors & Devices | G187: 0 | I187: 0 | J187: 0 | K187: =-'App.2-BA_Fixed Asset Cont'!K251 -> 0 | L187: 0 | M187: 0
A188: 1850 | B188: Line Transformers | G188: 0 | I188: 0 | J188: 0 | K188: =-'App.2-BA_Fixed Asset Cont'!K252 -> 0 | L188: 0 | M188: 0
A189: 1855 | B189: Services (Overhead & Underground) | G189: 0 | I189: 0 | J189: 0 | K189: =-'App.2-BA_Fixed Asset Cont'!K253 -> 0 | L189: 0 | M189: 0
A190: 1860 | B190: Meters | G190: 0 | I190: 0 | J190: 0 | K190: =-'App.2-BA_Fixed Asset Cont'!K254 -> 0 | L190: 0 | M190: 0
A191: 1860 | B191: Meters (Smart Meters) | G191: 0 | I191: 0 | J191: 0 | K191: =-'App.2-BA_Fixed Asset Cont'!K255 -> 0 | L191: 0 | M191: 0
A192: 1905 | B192: Land | G192: 0 | I192: 0 | J192: 0 | K192: =-'App.2-BA_Fixed Asset Cont'!K256 -> 0 | L192: 0 | M192: 0
A193: 1908 | B193: Buildings & Fixtures | G193: 0 | I193: 0 | J193: 0 | K193: =-'App.2-BA_Fixed Asset Cont'!K257 -> 0 | L193: 0 | M193: 0
A194: 1910 | B194: Leasehold Improvements | G194: 0 | I194: 0 | J194: 0 | K194: =-'App.2-BA_Fixed Asset Cont'!K258 -> 0 | L194: 0 | M194: 0
A195: 1915 | B195: Office Furniture & Equipment (10 years) | G195: 0 | I195: 0 | J195: 0 | K195: =-'App.2-BA_Fixed Asset Cont'!K259 -> 0 | L195: 0 | M195: 0
A196: 1915 | B196: Office Furniture & Equipment (5 years) | G196: 0 | I196: 0 | J196: 0 | K196: =-'App.2-BA_Fixed Asset Cont'!K260 -> 0 | L196: 0 | M196: 0
A197: 1920 | B197: Computer Equipment - Hardware | G197: 0 | I197: 0 | J197: 0 | K197: =-'App.2-BA_Fixed Asset Cont'!K261 -> 0 | L197: 0 | M197: 0
A198: 1920 | B198: Computer Equip.-Hardware(Post Mar. 22/04) | G198: 0 | I198: 0 | J198: 0 | K198: =-'App.2-BA_Fixed Asset Cont'!K262 -> 0 | L198: 0 | M198: 0
A199: 1920 | B199: Computer Equip.-Hardware(Post Mar. 19/07) | G199: 0 | I199: 0 | J199: 0 | K199: =-'App.2-BA_Fixed Asset Cont'!K263 -> 0 | L199: 0 | M199: 0
A200: 1930 | B200: Transportation Equipment | G200: 0 | I200: 0 | J200: 0 | K200: =-'App.2-BA_Fixed Asset Cont'!K264 -> 0 | L200: 0 | M200: 0
A201: 1935 | B201: Stores Equipment | G201: 0 | I201: 0 | J201: 0 | K201: =-'App.2-BA_Fixed Asset Cont'!K265 -> 0 | L201: 0 | M201: 0
A202: 1940 | B202: Tools, Shop & Garage Equipment | G202: 0 | I202: 0 | J202: 0 | K202: =-'App.2-BA_Fixed Asset Cont'!K266 -> 0 | L202: 0 | M202: 0
A203: 1945 | B203: Measurement & Testing Equipment | G203: 0 | I203: 0 | J203: 0 | K203: =-'App.2-BA_Fixed Asset Cont'!K267 -> 0 | L203: 0 | M203: 0
A204: 1950 | B204: Power Operated Equipment | G204: 0 | I204: 0 | J204: 0 | K204: =-'App.2-BA_Fixed Asset Cont'!K268 -> 0 | L204: 0 | M204: 0
A205: 1955 | B205: Communications Equipment | G205: 0 | I205: 0 | J205: 0 | K205: =-'App.2-BA_Fixed Asset Cont'!K269 -> 0 | L205: 0 | M205: 0
A206: 1955 | B206: Communication Equipment (Smart Meters) | G206: 0 | I206: 0 | J206: 0 | K206: =-'App.2-BA_Fixed Asset Cont'!K270 -> 0 | L206: 0 | M206: 0
A207: 1960 | B207: Miscellaneous Equipment | G207: 0 | I207: 0 | J207: 0 | K207: =-'App.2-BA_Fixed Asset Cont'!K271 -> 0 | L207: 0 | M207: 0
A208: 1970 | B208: Load Management Controls Customer Premises | G208: 0 | I208: 0 | J208: 0 | K208: =-'App.2-BA_Fixed Asset Cont'!K272 -> 0 | L208: 0 | M208: 0
A209: 1975 | B209: Load Management Controls Utility Premises | G209: 0 | I209: 0 | J209: 0 | K209: =-'App.2-BA_Fixed Asset Cont'!K273 -> 0 | L209: 0 | M209: 0
A210: 1980 | B210: System Supervisor Equipment | G210: 0 | I210: 0 | J210: 0 | K210: =-'App.2-BA_Fixed Asset Cont'!K274 -> 0 | L210: 0 | M210: 0
A211: 1985 | B211: Miscellaneous Fixed Assets | G211: 0 | I211: 0 | J211: 0 | K211: =-'App.2-BA_Fixed Asset Cont'!K275 -> 0 | L211: 0 | M211: 0
... 569 more rows

Sheet App.2-D_Overhead
P1: File Number: | Q1: =EBNUMBER -> EB-2026-0029
P2: Exhibit: | Q2: 4
P3: Tab: | Q3: App.2-D_Overhead
P4: Schedule:
P5: Page:
P7: Date: | Q7: 2026-05-19
A9: Appendix 2-D
A10: Overhead Expense
A11: General: This appendix is to assess the reasonability of cost management practices of the utility. It also allows for comparisons between different utilities, or, over time for the same utility to highlight trends, inefficiencies or best practices.
A12: Applicants are to provide a breakdown of OM&A before capitalization in the below table. OM&A before capitalization may be broken down by cost center, program, drivers or another format best suited to focus on capitalized vs. uncapitalized OM&A.
A14: OM&A Before Capitalization
B15: =L15-10 -> 2012 | C15: 2013 | D15: 2014 | E15: 2015 | F15: 2016 | G15: 2017 | H15: =Q15-9 -> 2018 | I15: =Q15-8 -> 2019 | J15: =Q15-7 -> 2020 | K15: =Q15-6 -> 2021 | L15: =Q15-5 -> 2022 | M15: =Q15-4 -> 2023 | N15: =Q15-3 -> 2024 | O15: =Q15-2 -> 2025 | P15: =Q15-1 -> 2026 | Q15: =TestYear -> 2027
B16: Historical Year | C16: Historical Year | D16: Historical Year | E16: Historical Year | F16: Historical Year | G16: Historical Year | H16: Historical Year | I16: Historical Year | J16: Historical Year | K16: Historical Year | L16: Historical Year | M16: Historical Year | N16: Historical Year | O16: Historical Year | P16: Bridge Year | Q16: Test Year
A17: Operations and Maintenance | L17: 5316291.74 | M17: 6034082.84 | N17: 5778432.11 | O17: 5994722.9 | P17: 5836235.16 | Q17: 6539168.86
A18: Billing and Collecting | L18: 1559755.19 | M18: 1770660.93 | N18: 1776911.26 | O18: 1922534.25 | P18: 1887418.92 | Q18: 1884681.32
A19: Community Relations | L19: 129991.72 | M19: 61474.21 | N19: 81963.97 | O19: 150082.77 | P19: 93991.44 | Q19: 92088.96
A20: Administrative and General | L20: 3971456.13 | M20: 4330002.67 | N20: 4969766.85 | O20: 5046344.69 | P20: 5025464.96 | Q20: 5569869.42
A27: Total OM&A Before Capitalization (B) | B27: =SUM(B17:B26) -> 0 | C27: 0 | D27: =SUM(D17:D26) -> 0 | E27: =SUM(E17:E26) -> 0 | F27: =SUM(F17:F26) -> 0 | G27: =SUM(G17:G26) -> 0 | H27: 0 | I27: 0 | J27: 0 | K27: 0 | L27: 10977494.78 | M27: 12196220.65 | N27: 12607074.19 | O27: 13113684.61 | P27: 12843110.48 | Q27: 14085808.56
A29: Applicants are to provide a breakdown of capitalized OM&A in the below table. Capitalized OM&A may be broken down using the categories listed in the table below if possible. Otherwise, applicants are to provide its own break down of capitalized OM&A.
A31: Capitalized OM&A | R31: Directly | S31: Explanation for Any Change in Treatment of Capitalized Overhead
B32: =B15 -> 2012 | C32: 2013 | D32: 2014 | E32: 2015 | F32: 2016 | G32: 2017 | H32: =H15 -> 2018 | I32: 2019 | J32: 2020 | K32: 2021 | L32: 2022 | M32: 2023 | N32: 2024 | O32: 2025 | P32: 2026 | Q32: 2027 | R32: Attributable?
B33: Historical Year | C33: Historical Year | D33: Historical Year | E33: Historical Year | F33: Historical Year | G33: Historical Year | H33: Historical Year | I33: Historical Year | J33: Historical Year | K33: Historical Year | L33: Historical Year | M33: Historical Year | N33: Historical Year | O33: Historical Year | P33: Bridge Year | Q33: Test Year | R33: (Yes/No)
A34: employee benefits
A35: costs of site preparation
A36: initial delivery and handling costs
A37: costs of testing whether the asset is functioning properly
A38: professional fees
A39: Insert description of additional item(s) and new rows if needed
A40: Operational Departments | L40: 1067400 | M40: 1158433 | N40: 1207455 | O40: 1219553 | P40: 1198094 | Q40: 1487036 | R40: Yes | S40: No change since last CoS, costs are directly attributable to labour costs charged to capital and are included in burden rate. Balance includes all directly attributable costs except for direct wages.
A41: Customer Service Department | L41: 17750 | M41: 18061 | N41: 20407 | O41: 10654 | P41: 27512 | Q41: 14205 | R41: Yes | S41: No change since last CoS, costs are directly attributable to labour costs charged to capital and are included in burden rate. Balance includes all directly attributable costs except for direct wages.
A42: Administrative and General Departments | L42: 107892 | M42: 122207 | N42: 131257 | O42: 171848 | P42: 167408 | Q42: 201294 | R42: Yes | S42: No change since last CoS, costs are directly attributable to labour costs charged to capital and are included in burden rate. Balance includes all directly attributable costs except for direct wages.
A47: Total Capitalized OM&A (A) | B47: =SUM(B34:B46) -> 0 | C47: 0 | D47: =SUM(D34:D46) -> 0 | E47: =SUM(E34:E46) -> 0 | F47: =SUM(F34:F46) -> 0 | G47: =SUM(G34:G46) -> 0 | H47: 0 | I47: 0 | J47: 0 | K47: 0 | L47: 1193042 | M47: 1298701 | N47: 1359119 | O47: 1402055 | P47: 1393014 | Q47: 1702535
A49: % of Capitalized OM&A (=A/B) | B49: =IF(ISERROR(B47/B27),"0%",B47/B27) -> 0% | C49: 0% | D49: =IF(ISERROR(D47/D27),"0%",D47/D27) -> 0% | E49: =IF(ISERROR(E47/E27),"0%",E47/E27) -> 0% | F49: =IF(ISERROR(F47/F27),"0%",F47/F27) -> 0% | G49: =IF(ISERROR(G47/G27),"0%",G47/G27) -> 0% | H49: 0% | I49: 0% | J49: 0% | K49: 0% | L49: 0.1086807167 | M49: 0.1064838885 | N49: 0.1078060603 | O49: 0.1069154125 | P49: 0.1084639116 | Q49: 0.1208688158

Sheet App.2-EA_Account 1575 (2015) (hidden)
H1: File Number: | I1: =EBNUMBER -> EB-2026-0029
H2: Exhibit:
H3: Tab:
H4: Schedule:
H5: Page:
H7: Date:
A9: Appendix 2-EA
A10: Account 1575 - IFRS-CGAAP Transitional PP&E Amounts
A11: 2015 Adopters of IFRS for Financial Reporting Purposes
A13: For applicants that adopted IFRS on January 1, 2015 for financial reporting purposes
B17: 2014 | C17: =TestYear-3 -> 2024 | D17: =TestYear-2 -> 2025 | E17: =CONCATENATE(TestYear-1," Bridge Year") -> 2026 Bridge Year | F17: =CONCATENATE(TestYear," Rebasing Year") -> 2027 Rebasing Year
A18: Reporting Basis | B18: CGAAP | C18: CGAAP | D18: CGAAP | E18: MIFRS | F18: MIFRS
B19: Actual | C19: Actual | D19: Actual | E19: Forecast | F19: Forecast
D20: $ | E20: $
A21: PP&E Values under CGAAP
A22: Opening net PP&E - Note 1 | C22: =+B25 -> 0 | D22: =+C25 -> 0 | E22: =+D25 -> 0
A23: Net Additions - Note 4
A24: Net Depreciation (amounts should be negative) - Note 4
A25: Closing net PP&E (1) | B25: =SUM(B22:B24) -> 0 | C25: =SUM(C22:C24) -> 0 | D25: =SUM(D22:D24) -> 0 | E25: =SUM(E22:E24) -> 0
A27: PP&E Values under MIFRS (Starts from 2014, the transition year)
A28: Opening net PP&E - Note 1 | C28: =+B31 -> 0 | D28: =+C31 -> 0 | E28: =+D31 -> 0
A29: Net Additions - Note 4
A30: Net Depreciation (amounts should be negative) - Note 4
A31: Closing net PP&E (2) | B31: =SUM(B28:B30) -> 0 | C31: =SUM(C28:C30) -> 0 | D31: =SUM(D28:D30) -> 0 | E31: =SUM(E28:E30) -> 0
A33: Difference in Closing net PP&E, former CGAAP vs. revised CGAAP | B33: =B25-B31 -> 0 | C33: =C25-C31 -> 0 | D33: =D25-D31 -> 0 | E33: =E25-E31 -> 0
A36: Effect on Deferral and Variance Account Rate Riders
A37: Closing balance in Account 1575 | F37: =IF(ISERROR(E33), 0, E33) -> 0 | H37: WACC
A38: Return on Rate Base Associated with Account 1575 balance at WACC - Note 2 | F38: =E33*I37*I38 -> 0 | G38: # of years of rate rider disposition period
A39: Amount included in Deferral and Variance Account Rate Rider Calculation | F39: =F37+F38 -> 0
A41: Notes:
A42: 1 For an applicant that adopted IFRS on January 1, 2015, the PP&E values as of January 1, 2014 under both CGAAP and MIFRS should be the same.
A43: 2 Return on rate base associated with deferred balance is calculated as:
A44: the deferral account closing balance as of 2017 x WACC X # of years of rate rider disposition period
A45: * Please note that the calculation should be adjusted once WACC is updated and finalized in the rate application.
A46: 3 The PP&E deferral account is cleared by including the total balance in the deferral and variance account rate rider calculation.
A47: 4 Net additions are additions net of disposals; Net depreciation is additions to depreciation net of disposals.

Sheet App.2-EB_Account 1576 (2012) (hidden)
K1: File Number: | L1: =EBNUMBER -> EB-2026-0029
K2: Exhibit:
K3: Tab:
K4: Schedule:
K5: Page:
K7: Date:
A9: Appendix 2-EB
A10: Account 1576 - Accounting Changes under CGAAP
A11: 2012 Changes in Accounting Policies under CGAAP
A13: For applicants with a balance in Account 1576 and made capitalization and depreciation expense accounting policy changes under CGAAP effective January 1, 2012. This is the first time the applicant is rebasing with changes in these accounting policies.
B17: Prior Years Rebasing | C17: 2012 | D17: 2013 | E17: 2014 | F17: 2015 | G17: 2016 | H17: 2017 | I17: 2018 Rebasing Year
A18: Reporting Basis | B18: CGAAP | C18: CGAAP | D18: CGAAP | E18: CGAAP | F18: MIFRS - Note 5 | G18: MIFRS | H18: MIFRS | I18: MIFRS
B19: Forecast | C19: Actual | D19: Actual | E19: Actual | F19: Actual | G19: Actual | H19: Forecast | I19: Forecast
C20: $ | D20: $ | E20: $ | F20: $ | G20: $ | H20: $
A21: PP&E Values under former CGAAP
A22: Opening net PP&E - Note 1 | D22: =+C25 -> 0 | E22: =+D25 -> 0 | F22: =+E25 -> 0 | G22: =+F25 -> 0 | H22: =+G25 -> 0
A23: Net Additions - Note 4
A24: Net Depreciation (amounts should be negative) - Note 4
A25: Closing net PP&E (1) | C25: =C22+C23+C24 -> 0 | D25: 0 | E25: 0 | F25: 0 | G25: 0 | H25: 0
A27: PP&E Values under revised CGAAP (Starts from 2012)
A28: Opening net PP&E - Note 1 | D28: =+C31 -> 0 | E28: =+D31 -> 0 | F28: =+E31 -> 0 | G28: =+F31 -> 0 | H28: =+G31 -> 0
A29: Net Additions - Note 4
A30: Net Depreciation (amounts should be negative) - Note 4
A31: Closing net PP&E (2) | C31: =SUM(C28:C30) -> 0 | D31: 0 | E31: 0 | F31: 0 | G31: 0 | H31: 0
A33: Difference in Closing net PP&E, former CGAAP vs. revised CGAAP | C33: =C25-C31 -> 0 | D33: 0 | E33: 0 | F33: 0 | G33: 0 | H33: 0
A36: Effect on Deferral and Variance Account Rate Riders
A37: Closing balance in Account 1576 | I37: =IF(ISERROR(H33), 0, H33) -> 0 | K37: WACC
A38: Return on Rate Base Associated with Account 1576 balance at WACC - Note 2 | I38: =H33*L37*L38 -> 0 | J38: # of years of rate rider disposition period
A39: Amount included in Deferral and Variance Account Rate Rider Calculation | I39: =I37+I38 -> 0
A41: Notes:
A42: 1 For an applicant that made the capitalization and depreciation expense accounting policy changes on January 1, 2012, the PP&E values as of January 1, 2012 under both former CGAAP and revised CGAAP should be the same.
A43: 2 Return on rate base associated with Account 1576 balance is calculated as:
A44: the variance account ending balance as of 2017 x WACC X # of years of rate rider disposition period
A45: * Please note that the calculation should be adjusted once WACC is updated and finalized in the rate application.
A46: 3 Account 1576 is cleared by including the total balance in the deferral and variance account rate rider calculation.
A47: 4 Net additions are additions net of disposals; Net depreciation is additions to depreciation net of disposals.
A48: 5 Differences due to the adoption of MIFRS are to be shown separately in Account 1575 in Appendix 2-EA as Accounts 1575 and 1576 cannot be used interchangably.

Sheet App.2-EC_Account 1576 (2013) (hidden)
J1: File Number: | K1: =EBNUMBER -> EB-2026-0029
J2: Exhibit:
J3: Tab:
J4: Schedule:
J5: Page:
J7: Date:
A9: Appendix 2-EC
A10: Account 1576 - Accounting Changes under CGAAP
A11: 2013 Changes in Accounting Policies under CGAAP
A13: For applicants with a balance in Account 1576 and made capitalization and depreciation expense accounting policy changes under CGAAP effective January 1, 2013. This is the first time the applicant is rebasing with changes in these accounting policies.
B17: Prior Years Rebasing | C17: 2013 | D17: 2014 | E17: 2015 | F17: 2016 | G17: 2017 | H17: 2018 Rebasing Year
A18: Reporting Basis | B18: CGAAP | C18: CGAAP | D18: CGAAP | E18: MIFRS - Note 5 | F18: MIFRS | G18: MIFRS | H18: MIFRS
B19: Actual | C19: Actual | D19: Actual | E19: Actual | F19: Actual | G19: Forecast | H19: Forecast
C20: $ | D20: $ | F20: $
A21: PP&E Values under former CGAAP
A22: Opening net PP&E - Note 1 | D22: =+C25 -> 0 | E22: =+D25 -> 0 | F22: =+E25 -> 0 | G22: =+F25 -> 0
A23: Net Additions - Note 4
A24: Net Depreciation (amounts should be negative) - Note 4
A25: Closing net PP&E (1) | C25: =C22+C23+C24 -> 0 | D25: =D22+D23+D24 -> 0 | E25: =E22+E23+E24 -> 0 | F25: =F22+F23+F24 -> 0 | G25: =G22+G23+G24 -> 0
A27: PP&E Values under revised CGAAP (Starts from 2012)
A28: Opening net PP&E - Note 1 | D28: =+C31 -> 0 | E28: =+D31 -> 0 | F28: =+E31 -> 0 | G28: =+F31 -> 0
A29: Net Additions - Note 4
A30: Net Depreciation (amounts should be negative) - Note 4
A31: Closing net PP&E (2) | C31: =SUM(C28:C30) -> 0 | D31: =SUM(D28:D30) -> 0 | E31: =SUM(E28:E30) -> 0 | F31: =SUM(F28:F30) -> 0 | G31: =SUM(G28:G30) -> 0
A33: Difference in Closing net PP&E, former CGAAP vs. revised CGAAP | C33: =C25-C31 -> 0 | D33: =D25-D31 -> 0 | E33: =E25-E31 -> 0 | F33: =F25-F31 -> 0 | G33: =G25-G31 -> 0
A36: Effect on Deferral and Variance Account Rate Riders
A37: Closing balance in Account 1576 | H37: =IF(ISERROR(G33), 0, G33) -> 0 | J37: WACC
A38: Return on Rate Base Associated with Account 1576 balance at WACC - Note 2 | H38: =G33*K37*K38 -> 0 | I38: # of years of rate rider disposition period
A39: Amount included in Deferral and Variance Account Rate Rider Calculation | H39: =H37+H38 -> 0
A41: Notes:
A42: 1 For an applicant that made the capitalization and depreciation expense accounting policy changes on January 1, 2013, the PP&E values as of January 1, 2013 under both former CGAAP and revised CGAAP should be the same.
A43: 2 Return on rate base associated with Account 1576 balance is calculated as:
A44: the variance account ending balance as of 2017 x WACC X # of years of rate rider disposition period
A45: * Please note that the calculation should be adjusted once WACC is updated and finalized in the rate application.
A46: 3 Account 1576 is cleared by including the total balance in the deferral and variance account rate rider calculation.
A47: 4 Net additions are additions net of disposals; Net depreciation is additions to depreciation net of disposals.
A48: 5 Differences due to the adoption of MIFRS are to be shown separately in Account 1575 in Appendix 2-EA as Accounts 1575 and 1576 cannot be used interchangably.

Sheet Hidden_REG Invest. (hidden)
A1: Utility Name | B1: EB Number | C1: Test Year | D1: Bridge Year | E1: Last Rebasing Year | F1: Renewable Generation Connection Investment Summary | G1: Year | H1: Amount
A2: ='LDC Info'!$E$14 -> Canadian Niagara Power Inc. | B2: =EBNUMBER -> EB-2026-0029 | C2: =TestYear -> 2027 | D2: =BridgeYear -> 2026 | E2: =RebaseYear -> 2022 | F2: REI Investments_A_Total Capital Costs | G2: ='App.2-FA Proposed REG Invest.'!$M$31 -> 2022 | H2: ='App.2-FA Proposed REG Invest.'!M62 -> 0
A3: ='LDC Info'!$E$14 -> Canadian Niagara Power Inc. | B3: EB-2026-0029 | C3: 2027 | D3: 2026 | E3: 2022 | F3: REI Investments_A_Total OM&A Start-Up | G3: ='App.2-FA Proposed REG Invest.'!$M$31 -> 2022 | H3: ='App.2-FA Proposed REG Invest.'!$M63 -> 0
A4: ='LDC Info'!$E$14 -> Canadian Niagara Power Inc. | B4: EB-2026-0029 | C4: 2027 | D4: 2026 | E4: 2022 | F4: REI Investments_A_Total OM&A Ongoing | G4: ='App.2-FA Proposed REG Invest.'!$M$31 -> 2022 | H4: ='App.2-FA Proposed REG Invest.'!$M64 -> 0
A5: ='LDC Info'!$E$14 -> Canadian Niagara Power Inc. | B5: EB-2026-0029 | C5: 2027 | D5: 2026 | E5: 2022 | F5: REI Investments_A_Total Capital Costs | G5: ='App.2-FA Proposed REG Invest.'!$N$31 -> 2023 | H5: ='App.2-FA Proposed REG Invest.'!N62 -> 0
A6: ='LDC Info'!$E$14 -> Canadian Niagara Power Inc. | B6: EB-2026-0029 | C6: 2027 | D6: 2026 | E6: 2022 | F6: REI Investments_A_Total OM&A Start-Up | G6: ='App.2-FA Proposed REG Invest.'!$N$31 -> 2023 | H6: ='App.2-FA Proposed REG Invest.'!N63 -> 0
A7: ='LDC Info'!$E$14 -> Canadian Niagara Power Inc. | B7: EB-2026-0029 | C7: 2027 | D7: 2026 | E7: 2022 | F7: REI Investments_A_Total OM&A Ongoing | G7: ='App.2-FA Proposed REG Invest.'!$N$31 -> 2023 | H7: ='App.2-FA Proposed REG Invest.'!N64 -> 0
A8: ='LDC Info'!$E$14 -> Canadian Niagara Power Inc. | B8: EB-2026-0029 | C8: 2027 | D8: 2026 | E8: 2022 | F8: REI Investments_A_Total Capital Costs | G8: ='App.2-FA Proposed REG Invest.'!$O$31 -> 2024 | H8: ='App.2-FA Proposed REG Invest.'!O62 -> 0
A9: ='LDC Info'!$E$14 -> Canadian Niagara Power Inc. | B9: EB-2026-0029 | C9: 2027 | D9: 2026 | E9: 2022 | F9: REI Investments_A_Total OM&A Start-Up | G9: ='App.2-FA Proposed REG Invest.'!$O$31 -> 2024 | H9: ='App.2-FA Proposed REG Invest.'!O63 -> 0
A10: ='LDC Info'!$E$14 -> Canadian Niagara Power Inc. | B10: EB-2026-0029 | C10: 2027 | D10: 2026 | E10: 2022 | F10: REI Investments_A_Total OM&A Ongoing | G10: ='App.2-FA Proposed REG Invest.'!$O$31 -> 2024 | H10: ='App.2-FA Proposed REG Invest.'!O64 -> 0
A11: ='LDC Info'!$E$14 -> Canadian Niagara Power Inc. | B11: EB-2026-0029 | C11: 2027 | D11: 2026 | E11: 2022 | F11: REI Investments_A_Total Capital Costs | G11: ='App.2-FA Proposed REG Invest.'!$P$31 -> 2025 | H11: ='App.2-FA Proposed REG Invest.'!P62 -> 0
A12: ='LDC Info'!$E$14 -> Canadian Niagara Power Inc. | B12: EB-2026-0029 | C12: 2027 | D12: 2026 | E12: 2022 | F12: REI Investments_A_Total OM&A Start-Up | G12: ='App.2-FA Proposed REG Invest.'!$P$31 -> 2025 | H12: ='App.2-FA Proposed REG Invest.'!P63 -> 0
A13: ='LDC Info'!$E$14 -> Canadian Niagara Power Inc. | B13: EB-2026-0029 | C13: 2027 | D13: 2026 | E13: 2022 | F13: REI Investments_A_Total OM&A Ongoing | G13: ='App.2-FA Proposed REG Invest.'!$P$31 -> 2025 | H13: ='App.2-FA Proposed REG Invest.'!P64 -> 0
A14: ='LDC Info'!$E$14 -> Canadian Niagara Power Inc. | B14: EB-2026-0029 | C14: 2027 | D14: 2026 | E14: 2022 | F14: REI Investments_A_Total Capital Costs | G14: ='App.2-FA Proposed REG Invest.'!$Q$31 -> 2026 | H14: ='App.2-FA Proposed REG Invest.'!Q62 -> 0
A15: ='LDC Info'!$E$14 -> Canadian Niagara Power Inc. | B15: EB-2026-0029 | C15: 2027 | D15: 2026 | E15: 2022 | F15: REI Investments_A_Total OM&A Start-Up | G15: ='App.2-FA Proposed REG Invest.'!$Q$31 -> 2026 | H15: ='App.2-FA Proposed REG Invest.'!Q63 -> 0
A16: ='LDC Info'!$E$14 -> Canadian Niagara Power Inc. | B16: EB-2026-0029 | C16: 2027 | D16: 2026 | E16: 2022 | F16: REI Investments_A_Total OM&A Ongoing | G16: ='App.2-FA Proposed REG Invest.'!$Q$31 -> 2026 | H16: ='App.2-FA Proposed REG Invest.'!Q64 -> 0
A17: ='LDC Info'!$E$14 -> Canadian Niagara Power Inc. | B17: EB-2026-0029 | C17: 2027 | D17: 2026 | E17: 2022 | F17: REI Investments_A_Total Capital Costs | G17: ='App.2-FA Proposed REG Invest.'!$R$31 -> 2027 | H17: ='App.2-FA Proposed REG Invest.'!R62 -> 0
A18: ='LDC Info'!$E$14 -> Canadian Niagara Power Inc. | B18: EB-2026-0029 | C18: 2027 | D18: 2026 | E18: 2022 | F18: REI Investments_A_Total OM&A Start-Up | G18: ='App.2-FA Proposed REG Invest.'!$R$31 -> 2027 | H18: ='App.2-FA Proposed REG Invest.'!R63 -> 0
A19: ='LDC Info'!$E$14 -> Canadian Niagara Power Inc. | B19: EB-2026-0029 | C19: 2027 | D19: 2026 | E19: 2022 | F19: REI Investments_A_Total OM&A Ongoing | G19: ='App.2-FA Proposed REG Invest.'!$R$31 -> 2027 | H19: ='App.2-FA Proposed REG Invest.'!R64 -> 0
A20: ='LDC Info'!$E$14 -> Canadian Niagara Power Inc. | B20: EB-2026-0029 | C20: 2027 | D20: 2026 | E20: 2022 | F20: REI Investments_A_Total Capital Costs | G20: ='App.2-FA Proposed REG Invest.'!$S$31 -> 2028 | H20: ='App.2-FA Proposed REG Invest.'!S62 -> 0
A21: ='LDC Info'!$E$14 -> Canadian Niagara Power Inc. | B21: EB-2026-0029 | C21: 2027 | D21: 2026 | E21: 2022 | F21: REI Investments_A_Total OM&A Start-Up | G21: ='App.2-FA Proposed REG Invest.'!$S$31 -> 2028 | H21: ='App.2-FA Proposed REG Invest.'!S63 -> 0
A22: ='LDC Info'!$E$14 -> Canadian Niagara Power Inc. | B22: EB-2026-0029 | C22: 2027 | D22: 2026 | E22: 2022 | F22: REI Investments_A_Total OM&A Ongoing | G22: ='App.2-FA Proposed REG Invest.'!$S$31 -> 2028 | H22: ='App.2-FA Proposed REG Invest.'!S64 -> 0
A23: ='LDC Info'!$E$14 -> Canadian Niagara Power Inc. | B23: EB-2026-0029 | C23: 2027 | D23: 2026 | E23: 2022 | F23: REI Investments_A_Total Capital Costs | G23: ='App.2-FA Proposed REG Invest.'!$T$31 -> 2029 | H23: ='App.2-FA Proposed REG Invest.'!T62 -> 0
A24: ='LDC Info'!$E$14 -> Canadian Niagara Power Inc. | B24: EB-2026-0029 | C24: 2027 | D24: 2026 | E24: 2022 | F24: REI Investments_A_Total OM&A Start-Up | G24: ='App.2-FA Proposed REG Invest.'!$T$31 -> 2029 | H24: ='App.2-FA Proposed REG Invest.'!T63 -> 0
A25: ='LDC Info'!$E$14 -> Canadian Niagara Power Inc. | B25: EB-2026-0029 | C25: 2027 | D25: 2026 | E25: 2022 | F25: REI Investments_A_Total OM&A Ongoing | G25: ='App.2-FA Proposed REG Invest.'!$T$31 -> 2029 | H25: ='App.2-FA Proposed REG Invest.'!T64 -> 0
A26: ='LDC Info'!$E$14 -> Canadian Niagara Power Inc. | B26: EB-2026-0029 | C26: 2027 | D26: 2026 | E26: 2022 | F26: REI Investments_A_Total Capital Costs | G26: ='App.2-FA Proposed REG Invest.'!$U$31 -> 2030 | H26: ='App.2-FA Proposed REG Invest.'!U62 -> 0
A27: ='LDC Info'!$E$14 -> Canadian Niagara Power Inc. | B27: EB-2026-0029 | C27: 2027 | D27: 2026 | E27: 2022 | F27: REI Investments_A_Total OM&A Start-Up | G27: ='App.2-FA Proposed REG Invest.'!$U$31 -> 2030 | H27: ='App.2-FA Proposed REG Invest.'!U63 -> 0
A28: ='LDC Info'!$E$14 -> Canadian Niagara Power Inc. | B28: EB-2026-0029 | C28: 2027 | D28: 2026 | E28: 2022 | F28: REI Investments_A_Total OM&A Ongoing | G28: ='App.2-FA Proposed REG Invest.'!$U$31 -> 2030 | H28: ='App.2-FA Proposed REG Invest.'!U64 -> 0
A29: ='LDC Info'!$E$14 -> Canadian Niagara Power Inc. | B29: EB-2026-0029 | C29: 2027 | D29: 2026 | E29: 2022 | F29: REI Investments_A_Total Capital Costs | G29: ='App.2-FA Proposed REG Invest.'!$V$31 -> 2031 | H29: ='App.2-FA Proposed REG Invest.'!V62 -> 0
A30: ='LDC Info'!$E$14 -> Canadian Niagara Power Inc. | B30: EB-2026-0029 | C30: 2027 | D30: 2026 | E30: 2022 | F30: REI Investments_A_Total OM&A Start-Up | G30: ='App.2-FA Proposed REG Invest.'!$V$31 -> 2031 | H30: ='App.2-FA Proposed REG Invest.'!V63 -> 0
A31: ='LDC Info'!$E$14 -> Canadian Niagara Power Inc. | B31: EB-2026-0029 | C31: 2027 | D31: 2026 | E31: 2022 | F31: REI Investments_A_Total OM&A Ongoing | G31: ='App.2-FA Proposed REG Invest.'!$V$31 -> 2031 | H31: ='App.2-FA Proposed REG Invest.'!V64 -> 0
A32: ='LDC Info'!$E$14 -> Canadian Niagara Power Inc. | B32: EB-2026-0029 | C32: 2027 | D32: 2026 | E32: 2022 | F32: Expansion Investments_B_Total Capital Costs | G32: ='App.2-FA Proposed REG Invest.'!$M$31 -> 2022 | H32: ='App.2-FA Proposed REG Invest.'!M99 -> 0
A33: ='LDC Info'!$E$14 -> Canadian Niagara Power Inc. | B33: EB-2026-0029 | C33: 2027 | D33: 2026 | E33: 2022 | F33: Expansion Investments_B_Total OM&A Start-Up | G33: ='App.2-FA Proposed REG Invest.'!$M$31 -> 2022 | H33: ='App.2-FA Proposed REG Invest.'!M100 -> 0
A34: ='LDC Info'!$E$14 -> Canadian Niagara Power Inc. | B34: EB-2026-0029 | C34: 2027 | D34: 2026 | E34: 2022 | F34: Expansion Investments_B_Total OM&A Ongoing | G34: ='App.2-FA Proposed REG Invest.'!$M$31 -> 2022 | H34: ='App.2-FA Proposed REG Invest.'!M101 -> 0
A35: ='LDC Info'!$E$14 -> Canadian Niagara Power Inc. | B35: EB-2026-0029 | C35: 2027 | D35: 2026 | E35: 2022 | F35: Expansion Investments_B_Total Capital Costs | G35: ='App.2-FA Proposed REG Invest.'!$N$31 -> 2023 | H35: ='App.2-FA Proposed REG Invest.'!N99 -> 0
A36: ='LDC Info'!$E$14 -> Canadian Niagara Power Inc. | B36: EB-2026-0029 | C36: 2027 | D36: 2026 | E36: 2022 | F36: Expansion Investments_B_Total OM&A Start-Up | G36: ='App.2-FA Proposed REG Invest.'!$N$31 -> 2023 | H36: ='App.2-FA Proposed REG Invest.'!N100 -> 0
A37: ='LDC Info'!$E$14 -> Canadian Niagara Power Inc. | B37: EB-2026-0029 | C37: 2027 | D37: 2026 | E37: 2022 | F37: Expansion Investments_B_Total OM&A Ongoing | G37: ='App.2-FA Proposed REG Invest.'!$N$31 -> 2023 | H37: ='App.2-FA Proposed REG Invest.'!N101 -> 0
A38: ='LDC Info'!$E$14 -> Canadian Niagara Power Inc. | B38: EB-2026-0029 | C38: 2027 | D38: 2026 | E38: 2022 | F38: Expansion Investments_B_Total Capital Costs | G38: ='App.2-FA Proposed REG Invest.'!$O$31 -> 2024 | H38: ='App.2-FA Proposed REG Invest.'!O99 -> 0
A39: ='LDC Info'!$E$14 -> Canadian Niagara Power Inc. | B39: EB-2026-0029 | C39: 2027 | D39: 2026 | E39: 2022 | F39: Expansion Investments_B_Total OM&A Start-Up | G39: ='App.2-FA Proposed REG Invest.'!$O$31 -> 2024 | H39: ='App.2-FA Proposed REG Invest.'!O100 -> 0
A40: ='LDC Info'!$E$14 -> Canadian Niagara Power Inc. | B40: EB-2026-0029 | C40: 2027 | D40: 2026 | E40: 2022 | F40: Expansion Investments_B_Total OM&A Ongoing | G40: ='App.2-FA Proposed REG Invest.'!$O$31 -> 2024 | H40: ='App.2-FA Proposed REG Invest.'!O101 -> 0
A41: ='LDC Info'!$E$14 -> Canadian Niagara Power Inc. | B41: EB-2026-0029 | C41: 2027 | D41: 2026 | E41: 2022 | F41: Expansion Investments_B_Total Capital Costs | G41: ='App.2-FA Proposed REG Invest.'!$P$31 -> 2025 | H41: ='App.2-FA Proposed REG Invest.'!P99 -> 0
A42: ='LDC Info'!$E$14 -> Canadian Niagara Power Inc. | B42: EB-2026-0029 | C42: 2027 | D42: 2026 | E42: 2022 | F42: Expansion Investments_B_Total OM&A Start-Up | G42: ='App.2-FA Proposed REG Invest.'!$P$31 -> 2025 | H42: ='App.2-FA Proposed REG Invest.'!P100 -> 0
A43: ='LDC Info'!$E$14 -> Canadian Niagara Power Inc. | B43: EB-2026-0029 | C43: 2027 | D43: 2026 | E43: 2022 | F43: Expansion Investments_B_Total OM&A Ongoing | G43: ='App.2-FA Proposed REG Invest.'!$P$31 -> 2025 | H43: ='App.2-FA Proposed REG Invest.'!P101 -> 0
A44: ='LDC Info'!$E$14 -> Canadian Niagara Power Inc. | B44: EB-2026-0029 | C44: 2027 | D44: 2026 | E44: 2022 | F44: Expansion Investments_B_Total Capital Costs | G44: ='App.2-FA Proposed REG Invest.'!$Q$31 -> 2026 | H44: ='App.2-FA Proposed REG Invest.'!Q99 -> 0
A45: ='LDC Info'!$E$14 -> Canadian Niagara Power Inc. | B45: EB-2026-0029 | C45: 2027 | D45: 2026 | E45: 2022 | F45: Expansion Investments_B_Total OM&A Start-Up | G45: ='App.2-FA Proposed REG Invest.'!$Q$31 -> 2026 | H45: ='App.2-FA Proposed REG Invest.'!Q100 -> 0
A46: ='LDC Info'!$E$14 -> Canadian Niagara Power Inc. | B46: EB-2026-0029 | C46: 2027 | D46: 2026 | E46: 2022 | F46: Expansion Investments_B_Total OM&A Ongoing | G46: ='App.2-FA Proposed REG Invest.'!$Q$31 -> 2026 | H46: ='App.2-FA Proposed REG Invest.'!Q101 -> 0
A47: ='LDC Info'!$E$14 -> Canadian Niagara Power Inc. | B47: EB-2026-0029 | C47: 2027 | D47: 2026 | E47: 2022 | F47: Expansion Investments_B_Total Capital Costs | G47: ='App.2-FA Proposed REG Invest.'!$R$31 -> 2027 | H47: ='App.2-FA Proposed REG Invest.'!R99 -> 0
A48: ='LDC Info'!$E$14 -> Canadian Niagara Power Inc. | B48: EB-2026-0029 | C48: 2027 | D48: 2026 | E48: 2022 | F48: Expansion Investments_B_Total OM&A Start-Up | G48: ='App.2-FA Proposed REG Invest.'!$R$31 -> 2027 | H48: ='App.2-FA Proposed REG Invest.'!R100 -> 0
A49: ='LDC Info'!$E$14 -> Canadian Niagara Power Inc. | B49: EB-2026-0029 | C49: 2027 | D49: 2026 | E49: 2022 | F49: Expansion Investments_B_Total OM&A Ongoing | G49: ='App.2-FA Proposed REG Invest.'!$R$31 -> 2027 | H49: ='App.2-FA Proposed REG Invest.'!R101 -> 0
A50: ='LDC Info'!$E$14 -> Canadian Niagara Power Inc. | B50: EB-2026-0029 | C50: 2027 | D50: 2026 | E50: 2022 | F50: Expansion Investments_B_Total Capital Costs | G50: ='App.2-FA Proposed REG Invest.'!$S$31 -> 2028 | H50: ='App.2-FA Proposed REG Invest.'!S99 -> 0
A51: ='LDC Info'!$E$14 -> Canadian Niagara Power Inc. | B51: EB-2026-0029 | C51: 2027 | D51: 2026 | E51: 2022 | F51: Expansion Investments_B_Total OM&A Start-Up | G51: ='App.2-FA Proposed REG Invest.'!$S$31 -> 2028 | H51: ='App.2-FA Proposed REG Invest.'!S100 -> 0
A52: ='LDC Info'!$E$14 -> Canadian Niagara Power Inc. | B52: EB-2026-0029 | C52: 2027 | D52: 2026 | E52: 2022 | F52: Expansion Investments_B_Total OM&A Ongoing | G52: ='App.2-FA Proposed REG Invest.'!$S$31 -> 2028 | H52: ='App.2-FA Proposed REG Invest.'!S101 -> 0
A53: ='LDC Info'!$E$14 -> Canadian Niagara Power Inc. | B53: EB-2026-0029 | C53: 2027 | D53: 2026 | E53: 2022 | F53: Expansion Investments_B_Total Capital Costs | G53: ='App.2-FA Proposed REG Invest.'!$T$31 -> 2029 | H53: ='App.2-FA Proposed REG Invest.'!T99 -> 0
A54: ='LDC Info'!$E$14 -> Canadian Niagara Power Inc. | B54: EB-2026-0029 | C54: 2027 | D54: 2026 | E54: 2022 | F54: Expansion Investments_B_Total OM&A Start-Up | G54: ='App.2-FA Proposed REG Invest.'!$T$31 -> 2029 | H54: ='App.2-FA Proposed REG Invest.'!T100 -> 0
A55: ='LDC Info'!$E$14 -> Canadian Niagara Power Inc. | B55: EB-2026-0029 | C55: 2027 | D55: 2026 | E55: 2022 | F55: Expansion Investments_B_Total OM&A Ongoing | G55: ='App.2-FA Proposed REG Invest.'!$T$31 -> 2029 | H55: ='App.2-FA Proposed REG Invest.'!T101 -> 0
A56: ='LDC Info'!$E$14 -> Canadian Niagara Power Inc. | B56: EB-2026-0029 | C56: 2027 | D56: 2026 | E56: 2022 | F56: Expansion Investments_B_Total Capital Costs | G56: ='App.2-FA Proposed REG Invest.'!$U$31 -> 2030 | H56: ='App.2-FA Proposed REG Invest.'!U99 -> 0
A57: ='LDC Info'!$E$14 -> Canadian Niagara Power Inc. | B57: EB-2026-0029 | C57: 2027 | D57: 2026 | E57: 2022 | F57: Expansion Investments_B_Total OM&A Start-Up | G57: ='App.2-FA Proposed REG Invest.'!$U$31 -> 2030 | H57: ='App.2-FA Proposed REG Invest.'!U100 -> 0
A58: ='LDC Info'!$E$14 -> Canadian Niagara Power Inc. | B58: EB-2026-0029 | C58: 2027 | D58: 2026 | E58: 2022 | F58: Expansion Investments_B_Total OM&A Ongoing | G58: ='App.2-FA Proposed REG Invest.'!$U$31 -> 2030 | H58: ='App.2-FA Proposed REG Invest.'!U101 -> 0
A59: ='LDC Info'!$E$14 -> Canadian Niagara Power Inc. | B59: EB-2026-0029 | C59: 2027 | D59: 2026 | E59: 2022 | F59: Expansion Investments_B_Total Capital Costs | G59: ='App.2-FA Proposed REG Invest.'!$V$31 -> 2031 | H59: ='App.2-FA Proposed REG Invest.'!V99 -> 0
A60: ='LDC Info'!$E$14 -> Canadian Niagara Power Inc. | B60: EB-2026-0029 | C60: 2027 | D60: 2026 | E60: 2022 | F60: Expansion Investments_B_Total OM&A Start-Up | G60: ='App.2-FA Proposed REG Invest.'!$V$31 -> 2031 | H60: ='App.2-FA Proposed REG Invest.'!V100 -> 0
A61: ='LDC Info'!$E$14 -> Canadian Niagara Power Inc. | B61: EB-2026-0029 | C61: 2027 | D61: 2026 | E61: 2022 | F61: Expansion Investments_B_Total OM&A Ongoing | G61: ='App.2-FA Proposed REG Invest.'!$V$31 -> 2031 | H61: ='App.2-FA Proposed REG Invest.'!V101 -> 0

Sheet Hidden_REG Improvement (hidden)
A1: Utility Name | B1: EB Number | C1: Test Year | D1: Bridge Year | E1: Last Rebasing Year | F1: Renewable Generation Connection Direct Benefits/Provincial Amount Renewable Enabling Improvement Investments | G1: Year | H1: Amount
A2: ='LDC Info'!$E$14 -> Canadian Niagara Power Inc. | B2: =EBNUMBER -> EB-2026-0029 | C2: =TestYear -> 2027 | D2: =BridgeYear -> 2026 | E2: =RebaseYear -> 2022 | F2: Provincial Rate Protection | G2: ='App.2-FB Calc of REG Improvemnt'!AH17 -> 2022 | H2: ='App.2-FB Calc of REG Improvemnt'!AJ$44 -> 0
A3: ='LDC Info'!$E$14 -> Canadian Niagara Power Inc. | B3: EB-2026-0029 | C3: 2027 | D3: 2026 | E3: 2022 | F3: Provincial Rate Protection | G3: ='App.2-FB Calc of REG Improvemnt'!AK17 -> 2023 | H3: ='App.2-FB Calc of REG Improvemnt'!AM$44 -> 0
A4: ='LDC Info'!$E$14 -> Canadian Niagara Power Inc. | B4: EB-2026-0029 | C4: 2027 | D4: 2026 | E4: 2022 | F4: Provincial Rate Protection | G4: ='App.2-FB Calc of REG Improvemnt'!AN17 -> 2024 | H4: ='App.2-FB Calc of REG Improvemnt'!AP$44 -> 0
A5: ='LDC Info'!$E$14 -> Canadian Niagara Power Inc. | B5: EB-2026-0029 | C5: 2027 | D5: 2026 | E5: 2022 | F5: Provincial Rate Protection | G5: ='App.2-FB Calc of REG Improvemnt'!AQ17 -> 2025 | H5: ='App.2-FB Calc of REG Improvemnt'!AS$44 -> 0
A6: ='LDC Info'!$E$14 -> Canadian Niagara Power Inc. | B6: EB-2026-0029 | C6: 2027 | D6: 2026 | E6: 2022 | F6: Provincial Rate Protection | G6: ='App.2-FB Calc of REG Improvemnt'!AT17 -> 2026 | H6: ='App.2-FB Calc of REG Improvemnt'!AV$44 -> 0
A7: ='LDC Info'!$E$14 -> Canadian Niagara Power Inc. | B7: EB-2026-0029 | C7: 2027 | D7: 2026 | E7: 2022 | F7: Provincial Rate Protection | G7: ='App.2-FB Calc of REG Improvemnt'!AW17 -> 2027 | H7: ='App.2-FB Calc of REG Improvemnt'!AY$44 -> 0
A8: ='LDC Info'!$E$14 -> Canadian Niagara Power Inc. | B8: EB-2026-0029 | C8: 2027 | D8: 2026 | E8: 2022 | F8: Provincial Rate Protection | G8: ='App.2-FB Calc of REG Improvemnt'!AZ17 -> 2028 | H8: ='App.2-FB Calc of REG Improvemnt'!BB$44 -> 0
A9: ='LDC Info'!$E$14 -> Canadian Niagara Power Inc. | B9: EB-2026-0029 | C9: 2027 | D9: 2026 | E9: 2022 | F9: Provincial Rate Protection | G9: ='App.2-FB Calc of REG Improvemnt'!BC17 -> 2029 | H9: ='App.2-FB Calc of REG Improvemnt'!BE$44 -> 0
A10: ='LDC Info'!$E$14 -> Canadian Niagara Power Inc. | B10: EB-2026-0029 | C10: 2027 | D10: 2026 | E10: 2022 | F10: Provincial Rate Protection | G10: ='App.2-FB Calc of REG Improvemnt'!BF17 -> 2030 | H10: ='App.2-FB Calc of REG Improvemnt'!BH$44 -> 0
A11: ='LDC Info'!$E$14 -> Canadian Niagara Power Inc. | B11: EB-2026-0029 | C11: 2027 | D11: 2026 | E11: 2022 | F11: Provincial Rate Protection | G11: ='App.2-FB Calc of REG Improvemnt'!BI17 -> 2031 | H11: ='App.2-FB Calc of REG Improvemnt'!BK$44 -> 0

Sheet Hidden_REG Expansion (hidden)
A1: Utility Name | B1: EB Number | C1: Test Year | D1: Bridge Year | E1: Last Rebasing Year | F1: Calculation of Renewable Generation Connection Direct Benefits/Provincial Amount Renewable Expansion Investments | G1: Year | H1: Amount
A2: ='LDC Info'!$E$14 -> Canadian Niagara Power Inc. | B2: =EBNUMBER -> EB-2026-0029 | C2: =TestYear -> 2027 | D2: =BridgeYear -> 2026 | E2: =RebaseYear -> 2022 | F2: Provincial Rate Protection | G2: ='App.2-FC Calc of REG Expansion'!D$17 -> 2022 | H2: ='App.2-FC Calc of REG Expansion'!F$44 -> 0
A3: ='LDC Info'!$E$14 -> Canadian Niagara Power Inc. | B3: EB-2026-0029 | C3: 2027 | D3: 2026 | E3: 2022 | F3: Provincial Rate Protection | G3: ='App.2-FC Calc of REG Expansion'!G$17 -> 2023 | H3: ='App.2-FC Calc of REG Expansion'!I$44 -> 0
A4: ='LDC Info'!$E$14 -> Canadian Niagara Power Inc. | B4: EB-2026-0029 | C4: 2027 | D4: 2026 | E4: 2022 | F4: Provincial Rate Protection | G4: ='App.2-FC Calc of REG Expansion'!J$17 -> 2024 | H4: ='App.2-FC Calc of REG Expansion'!L$44 -> 0
A5: ='LDC Info'!$E$14 -> Canadian Niagara Power Inc. | B5: EB-2026-0029 | C5: 2027 | D5: 2026 | E5: 2022 | F5: Provincial Rate Protection | G5: ='App.2-FC Calc of REG Expansion'!M$17 -> 2025 | H5: ='App.2-FC Calc of REG Expansion'!O$44 -> 0
A6: ='LDC Info'!$E$14 -> Canadian Niagara Power Inc. | B6: EB-2026-0029 | C6: 2027 | D6: 2026 | E6: 2022 | F6: Provincial Rate Protection | G6: ='App.2-FC Calc of REG Expansion'!P$17 -> 2026 | H6: ='App.2-FC Calc of REG Expansion'!R$44 -> 0
A7: ='LDC Info'!$E$14 -> Canadian Niagara Power Inc. | B7: EB-2026-0029 | C7: 2027 | D7: 2026 | E7: 2022 | F7: Provincial Rate Protection | G7: ='App.2-FC Calc of REG Expansion'!S$17 -> 2027 | H7: ='App.2-FC Calc of REG Expansion'!U$44 -> 0
A8: ='LDC Info'!$E$14 -> Canadian Niagara Power Inc. | B8: EB-2026-0029 | C8: 2027 | D8: 2026 | E8: 2022 | F8: Provincial Rate Protection | G8: ='App.2-FC Calc of REG Expansion'!V$17 -> 2028 | H8: ='App.2-FC Calc of REG Expansion'!X$44 -> 0
A9: ='LDC Info'!$E$14 -> Canadian Niagara Power Inc. | B9: EB-2026-0029 | C9: 2027 | D9: 2026 | E9: 2022 | F9: Provincial Rate Protection | G9: ='App.2-FC Calc of REG Expansion'!Y$17 -> 2029 | H9: ='App.2-FC Calc of REG Expansion'!AA$44 -> 0
A10: ='LDC Info'!$E$14 -> Canadian Niagara Power Inc. | B10: EB-2026-0029 | C10: 2027 | D10: 2026 | E10: 2022 | F10: Provincial Rate Protection | G10: ='App.2-FC Calc of REG Expansion'!AB$17 -> 2030 | H10: ='App.2-FC Calc of REG Expansion'!AD$44 -> 0
A11: ='LDC Info'!$E$14 -> Canadian Niagara Power Inc. | B11: EB-2026-0029 | C11: 2027 | D11: 2026 | E11: 2022 | F11: Provincial Rate Protection | G11: ='App.2-FC Calc of REG Expansion'!AE$17 -> 2031 | H11: ='App.2-FC Calc of REG Expansion'!AG$44 -> 0

Sheet App.2-FA Proposed REG Invest.
U1: File Number: | V1: 0
U2: Exhibit: | V2: N/A
U3: Tab:
U4: Schedule:
U5: Page:
U7: Date: | V7: 2026-05-19
A9: Appendix 2-FA
A10: Renewable Generation Connection Investment Summary (past investments or over the future rate setting period)
A12: Enter the details of the Renewable Generation Connection projects as described in the appropriate section of the Filing Requirements.
A13: All costs entered on this page will be transferred to the appropriate cells in the appendices that follow.
A14: For Part A, Renewable Enabling Improvements (REI), these amounts will be transferred to Appendix 2 - FB
A15: For Part B, Expansions, these amounts will be transferred to Appendix 2 - FC
A17: If there are more than five projects proposed to be in-service in a certain year, please amend the tables below and ensure that the formulae for the Total Amounts in any given rate year are updated.
A18: Based on the current methodology and allocation, amounts allocated represent 6% for REI Connection Investments and 17% for Expansion Investments. (EB-2009-0349, 6-10-2010, p. 15, note 9)
A19: Ensure that OM&A costs below are not included in Recoverable OM&A (App. 2-JA)
A20: There are two scenarios described below. Separate sets of spreadsheets (2-FA, 2-FB, 2-FC) should be submited for each scenario as required.
A21: Scenario 1: | C21: Past Investments with No Recovery. The distributor has made investments in the past (during the IRM Years), but has not received approval for these projects and therefore did not receive
C22: revenue from the IESO under Regulation 330/09 and did not receive ratepayer revenue for the direct benefit portion of the investment.
C23: The WCA percentage, debt percentages, interest rates, kWh, tax rates, amortization period, CCA Class and percentage should correspond to the distributor's last Cost of Service approval.
C24: The Direct Benefit portion of the calculated Revenue Requirement for each year should be summed and can be applied for recovery from the distributor's ratepayers through a rate rider.
C25: The Provincial Recovery portion of the calculated Revenue Requirement for each year should be summed and can be applied for recovery from the IESO through a separate order.
A27: Scenario 2: | C27: Investments in the Test Year and Beyond. Distributor plans to make investments in the Test Year and/or beyond. These investments should be added to 2-FA in the appropriate year.
C28: The WCA percentage, debt percentages, interest rates, kWh, tax rates, amortization period, CCA Class and percentage should correspond to the distributor's current application.
A30: Part A | R30: Test Year
A31: REI Investments (Direct Benefit at 6%) | C31: =D31-1 -> 2012 | D31: 2013 | E31: 2014 | F31: 2015 | G31: 2016 | H31: 2017 | I31: 2018 | J31: 2019 | K31: 2020 | L31: 2021 | M31: =N31-1 -> 2022 | N31: =O31-1 -> 2023 | O31: =P31-1 -> 2024 | P31: =Q31-1 -> 2025 | Q31: =R31-1 -> 2026 | R31: ='LDC Info'!$E$24 -> 2027 | S31: =R31+1 -> 2028 | T31: =S31+1 -> 2029 | U31: =T31+1 -> 2030 | V31: =U31+1 -> 2031
A32: Project 1
A33: Name: REI Connection Project
A34: Capital Costs | C34: 0 | D34: 0 | E34: 0 | F34: 0 | G34: 0 | H34: 0 | I34: 0 | J34: 0 | K34: 0 | L34: 0 | M34: 0 | N34: 0 | O34: 0 | P34: 0 | Q34: 0 | R34: 0 | S34: 0 | T34: 0 | U34: 0 | V34: 0
A35: Incremental OM&A (Start-Up) | C35: 0 | D35: 0 | E35: 0 | F35: 0 | G35: 0 | H35: 0 | I35: 0 | J35: 0 | K35: 0 | L35: 0 | M35: 0 | N35: 0 | O35: 0 | P35: 0 | Q35: 0 | R35: 0 | S35: 0 | T35: 0 | U35: 0 | V35: 0
A36: Incremental OM&A (Ongoing) | C36: 0 | D36: 0 | E36: 0 | F36: 0 | G36: 0 | H36: 0 | I36: 0 | J36: 0 | K36: 0 | L36: 0 | M36: 0 | N36: 0 | O36: 0 | P36: 0 | Q36: 0 | R36: 0 | S36: 0 | T36: 0 | U36: 0 | V36: 0
A38: Project 2
A39: Name: REI Connection Project
A40: Capital Costs | C40: 0 | D40: 0 | E40: 0 | F40: 0 | G40: 0 | H40: 0 | I40: 0 | J40: 0 | K40: 0 | L40: 0 | M40: 0 | N40: 0 | O40: 0 | P40: 0 | Q40: 0 | R40: 0 | S40: 0 | T40: 0 | U40: 0 | V40: 0
A41: Incremental OM&A (Start-Up) | C41: 0 | D41: 0 | E41: 0 | F41: 0 | G41: 0 | H41: 0 | I41: 0 | J41: 0 | K41: 0 | L41: 0 | M41: 0 | N41: 0 | O41: 0 | P41: 0 | Q41: 0 | R41: 0 | S41: 0 | T41: 0 | U41: 0 | V41: 0
A42: Incremental OM&A (Ongoing) | C42: 0 | D42: 0 | E42: 0 | F42: 0 | G42: 0 | H42: 0 | I42: 0 | J42: 0 | K42: 0 | L42: 0 | M42: 0 | N42: 0 | O42: 0 | P42: 0 | Q42: 0 | R42: 0 | S42: 0 | T42: 0 | U42: 0 | V42: 0
A44: Project 3
A45: Name: REI Connection Project
A46: Capital Costs | C46: 0 | D46: 0 | E46: 0 | F46: 0 | G46: 0 | H46: 0 | I46: 0 | J46: 0 | K46: 0 | L46: 0 | M46: 0 | N46: 0 | O46: 0 | P46: 0 | Q46: 0 | R46: 0 | S46: 0 | T46: 0 | U46: 0 | V46: 0
A47: Incremental OM&A (Start-Up) | C47: 0 | D47: 0 | E47: 0 | F47: 0 | G47: 0 | H47: 0 | I47: 0 | J47: 0 | K47: 0 | L47: 0 | M47: 0 | N47: 0 | O47: 0 | P47: 0 | Q47: 0 | R47: 0 | S47: 0 | T47: 0 | U47: 0 | V47: 0
A48: Incremental OM&A (Ongoing) | C48: 0 | D48: 0 | E48: 0 | F48: 0 | G48: 0 | H48: 0 | I48: 0 | J48: 0 | K48: 0 | L48: 0 | M48: 0 | N48: 0 | O48: 0 | P48: 0 | Q48: 0 | R48: 0 | S48: 0 | T48: 0 | U48: 0 | V48: 0
A50: Project 4
A51: Name: REI Connection Project
A52: Capital Costs | C52: 0 | D52: 0 | E52: 0 | F52: 0 | G52: 0 | H52: 0 | I52: 0 | J52: 0 | K52: 0 | L52: 0 | M52: 0 | N52: 0 | O52: 0 | P52: 0 | Q52: 0 | R52: 0 | S52: 0 | T52: 0 | U52: 0 | V52: 0
A53: Incremental OM&A (Start-Up) | C53: 0 | D53: 0 | E53: 0 | F53: 0 | G53: 0 | H53: 0 | I53: 0 | J53: 0 | K53: 0 | L53: 0 | M53: 0 | N53: 0 | O53: 0 | P53: 0 | Q53: 0 | R53: 0 | S53: 0 | T53: 0 | U53: 0 | V53: 0
A54: Incremental OM&A (Ongoing) | C54: 0 | D54: 0 | E54: 0 | F54: 0 | G54: 0 | H54: 0 | I54: 0 | J54: 0 | K54: 0 | L54: 0 | M54: 0 | N54: 0 | O54: 0 | P54: 0 | Q54: 0 | R54: 0 | S54: 0 | T54: 0 | U54: 0 | V54: 0
A56: Project 5
A57: Name: REI Connection Project
A58: Capital Costs | C58: 0 | D58: 0 | E58: 0 | F58: 0 | G58: 0 | H58: 0 | I58: 0 | J58: 0 | K58: 0 | L58: 0 | M58: 0 | N58: 0 | O58: 0 | P58: 0 | Q58: 0 | R58: 0 | S58: 0 | T58: 0 | U58: 0 | V58: 0
A59: Incremental OM&A (Start-Up) | C59: 0 | D59: 0 | E59: 0 | F59: 0 | G59: 0 | H59: 0 | I59: 0 | J59: 0 | K59: 0 | L59: 0 | M59: 0 | N59: 0 | O59: 0 | P59: 0 | Q59: 0 | R59: 0 | S59: 0 | T59: 0 | U59: 0 | V59: 0
A60: Incremental OM&A (Ongoing) | C60: 0 | D60: 0 | E60: 0 | F60: 0 | G60: 0 | H60: 0 | I60: 0 | J60: 0 | K60: 0 | L60: 0 | M60: 0 | N60: 0 | O60: 0 | P60: 0 | Q60: 0 | R60: 0 | S60: 0 | T60: 0 | U60: 0 | V60: 0
A62: Total Capital Costs | C62: =SUM(C58,C52,C46,C40,C34) -> 0 | D62: 0 | E62: 0 | F62: 0 | G62: 0 | H62: 0 | I62: 0 | J62: 0 | K62: 0 | L62: 0 | M62: =SUM(M58,M52,M46,M40,M34) -> 0 | N62: 0 | O62: 0 | P62: 0 | Q62: 0 | R62: 0 | S62: 0 | T62: 0 | U62: 0 | V62: 0
A63: Total Incremental OM&A (Start-Up) | C63: =SUM(C59,C53,C47,C41,C35) -> 0 | D63: 0 | E63: 0 | F63: 0 | G63: 0 | H63: 0 | I63: 0 | J63: 0 | K63: 0 | L63: 0 | M63: 0 | N63: 0 | O63: 0 | P63: 0 | Q63: 0 | R63: 0 | S63: 0 | T63: 0 | U63: 0 | V63: 0
A64: Total Incremental OM&A (Ongoing) | C64: =SUM(C60,C54,C48,C42,C36) -> 0 | D64: 0 | E64: 0 | F64: 0 | G64: 0 | H64: 0 | I64: 0 | J64: 0 | K64: 0 | L64: 0 | M64: 0 | N64: 0 | O64: 0 | P64: 0 | Q64: 0 | R64: 0 | S64: 0 | T64: 0 | U64: 0 | V64: 0
A67: Part B | R67: Test Year
A68: Expansion Investments (Direct Benefit at 17%) | C68: =D68-1 -> 2012 | D68: 2013 | E68: 2014 | F68: 2015 | G68: 2016 | H68: 2017 | I68: 2018 | J68: 2019 | K68: 2020 | L68: 2021 | M68: 2022 | N68: 2023 | O68: 2024 | P68: 2025 | Q68: 2026 | R68: =R31 -> 2027 | S68: =R68+1 -> 2028 | T68: =S68+1 -> 2029 | U68: =T68+1 -> 2030 | V68: =U68+1 -> 2031
A69: Project 1
A70: Name: Expansion Connection Project
A71: Capital Costs | C71: 0 | D71: 0 | E71: 0 | F71: 0 | G71: 0 | H71: 0 | I71: 0 | J71: 0 | K71: 0 | L71: 0 | M71: 0 | N71: 0 | O71: 0 | P71: 0 | Q71: 0 | R71: 0 | S71: 0 | T71: 0 | U71: 0 | V71: 0
A72: Incremental OM&A (Start-Up) | C72: 0 | D72: 0 | E72: 0 | F72: 0 | G72: 0 | H72: 0 | I72: 0 | J72: 0 | K72: 0 | L72: 0 | M72: 0 | N72: 0 | O72: 0 | P72: 0 | Q72: 0 | R72: 0 | S72: 0 | T72: 0 | U72: 0 | V72: 0
A73: Incremental OM&A (Ongoing) | C73: 0 | D73: 0 | E73: 0 | F73: 0 | G73: 0 | H73: 0 | I73: 0 | J73: 0 | K73: 0 | L73: 0 | M73: 0 | N73: 0 | O73: 0 | P73: 0 | Q73: 0 | R73: 0 | S73: 0 | T73: 0 | U73: 0 | V73: 0
A75: Project 2
A76: Name: Expansion Connection Project
A77: Capital Costs | C77: 0 | D77: 0 | E77: 0 | F77: 0 | G77: 0 | H77: 0 | I77: 0 | J77: 0 | K77: 0 | L77: 0 | M77: 0 | N77: 0 | O77: 0 | P77: 0 | Q77: 0 | R77: 0 | S77: 0 | T77: 0 | U77: 0 | V77: 0
A78: Incremental OM&A (Start-Up) | C78: 0 | D78: 0 | E78: 0 | F78: 0 | G78: 0 | H78: 0 | I78: 0 | J78: 0 | K78: 0 | L78: 0 | M78: 0 | N78: 0 | O78: 0 | P78: 0 | Q78: 0 | R78: 0 | S78: 0 | T78: 0 | U78: 0 | V78: 0
A79: Incremental OM&A (Ongoing) | C79: 0 | D79: 0 | E79: 0 | F79: 0 | G79: 0 | H79: 0 | I79: 0 | J79: 0 | K79: 0 | L79: 0 | M79: 0 | N79: 0 | O79: 0 | P79: 0 | Q79: 0 | R79: 0 | S79: 0 | T79: 0 | U79: 0 | V79: 0
A81: Project 3
A82: Name: Expansion Connection Project
A83: Capital Costs | C83: 0 | D83: 0 | E83: 0 | F83: 0 | G83: 0 | H83: 0 | I83: 0 | J83: 0 | K83: 0 | L83: 0 | M83: 0 | N83: 0 | O83: 0 | P83: 0 | Q83: 0 | R83: 0 | S83: 0 | T83: 0 | U83: 0 | V83: 0
A84: Incremental OM&A (Start-Up) | C84: 0 | D84: 0 | E84: 0 | F84: 0 | G84: 0 | H84: 0 | I84: 0 | J84: 0 | K84: 0 | L84: 0 | M84: 0 | N84: 0 | O84: 0 | P84: 0 | Q84: 0 | R84: 0 | S84: 0 | T84: 0 | U84: 0 | V84: 0
A85: Incremental OM&A (Ongoing) | C85: 0 | D85: 0 | E85: 0 | F85: 0 | G85: 0 | H85: 0 | I85: 0 | J85: 0 | K85: 0 | L85: 0 | M85: 0 | N85: 0 | O85: 0 | P85: 0 | Q85: 0 | R85: 0 | S85: 0 | T85: 0 | U85: 0 | V85: 0
A87: Project 4
A88: Name: Expansion Connection Project
A89: Capital Costs | C89: 0 | D89: 0 | E89: 0 | F89: 0 | G89: 0 | H89: 0 | I89: 0 | J89: 0 | K89: 0 | L89: 0 | M89: 0 | N89: 0 | O89: 0 | P89: 0 | Q89: 0 | R89: 0 | S89: 0 | T89: 0 | U89: 0 | V89: 0
A90: Incremental OM&A (Start-Up) | C90: 0 | D90: 0 | E90: 0 | F90: 0 | G90: 0 | H90: 0 | I90: 0 | J90: 0 | K90: 0 | L90: 0 | M90: 0 | N90: 0 | O90: 0 | P90: 0 | Q90: 0 | R90: 0 | S90: 0 | T90: 0 | U90: 0 | V90: 0
A91: Incremental OM&A (Ongoing) | C91: 0 | D91: 0 | E91: 0 | F91: 0 | G91: 0 | H91: 0 | I91: 0 | J91: 0 | K91: 0 | L91: 0 | M91: 0 | N91: 0 | O91: 0 | P91: 0 | Q91: 0 | R91: 0 | S91: 0 | T91: 0 | U91: 0 | V91: 0
A93: Project 5
A94: Name: Expansion Connection Project
A95: Capital Costs | C95: 0 | D95: 0 | E95: 0 | F95: 0 | G95: 0 | H95: 0 | I95: 0 | J95: 0 | K95: 0 | L95: 0 | M95: 0 | N95: 0 | O95: 0 | P95: 0 | Q95: 0 | R95: 0 | S95: 0 | T95: 0 | U95: 0 | V95: 0
A96: Incremental OM&A (Start-Up) | C96: 0 | D96: 0 | E96: 0 | F96: 0 | G96: 0 | H96: 0 | I96: 0 | J96: 0 | K96: 0 | L96: 0 | M96: 0 | N96: 0 | O96: 0 | P96: 0 | Q96: 0 | R96: 0 | S96: 0 | T96: 0 | U96: 0 | V96: 0
A97: Incremental OM&A (Ongoing) | C97: 0 | D97: 0 | E97: 0 | F97: 0 | G97: 0 | H97: 0 | I97: 0 | J97: 0 | K97: 0 | L97: 0 | M97: 0 | N97: 0 | O97: 0 | P97: 0 | Q97: 0 | R97: 0 | S97: 0 | T97: 0 | U97: 0 | V97: 0
A99: Total Capital Costs | C99: =SUM(C95,C89,C83,C77,C71) -> 0 | D99: 0 | E99: 0 | F99: 0 | G99: 0 | H99: 0 | I99: 0 | J99: 0 | K99: 0 | L99: 0 | M99: =SUM(M95,M89,M83,M77,M71) -> 0 | N99: 0 | O99: 0 | P99: 0 | Q99: 0 | R99: 0 | S99: 0 | T99: 0 | U99: 0 | V99: 0
A100: Total Incremental OM&A (Start-Up) | C100: =SUM(C96,C90,C84,C78,C72) -> 0 | D100: 0 | E100: 0 | F100: 0 | G100: 0 | H100: 0 | I100: 0 | J100: 0 | K100: 0 | L100: 0 | M100: 0 | N100: 0 | O100: 0 | P100: 0 | Q100: 0 | R100: 0 | S100: 0 | T100: 0 | U100: 0 | V100: 0
A101: Total Incremental OM&A (Ongoing) | C101: =SUM(C97,C91,C85,C79,C73) -> 0 | D101: 0 | E101: 0 | F101: 0 | G101: 0 | H101: 0 | I101: 0 | J101: 0 | K101: 0 | L101: 0 | M101: 0 | N101: 0 | O101: 0 | P101: 0 | Q101: 0 | R101: 0 | S101: 0 | T101: 0 | U101: 0 | V101: 0

Sheet App.2-FB Calc of REG Improvemnt
AV1: File Number: | AW1: 0
AV2: Exhibit: | AW2: N/A
AV3: Tab:
AV4: Schedule:
AV5: Page:
AV7: Date: | AW7: 2026-05-19
A9: Appendix 2-FB
A10: Calculation of Renewable Generation Connection Direct Benefits/Provincial Amount: Renewable Enabling Improvement Investments
A12: This table will calculate the distributor/provincial shares of the investments entered in Part A of Appendix 2-FA.
A13: Enter values in green shaded cells: WCA percentage, debt percentages, interest rates, kWh, tax rates, amortization period, CCA Class and percentage.
A14: For historical investments, enter these variables that were approved in your last cost of service test year. For test year and beyond, enter variables as in the application.
A15: Rate Riders related to the direct benefit portion of the renewable investments are not calculated for the Test Year as these assets and costs are already in the distributor's rate base/revenue requirement.
AW16: Test Year
B17: ='LDC Info'!E14 &B23 -> Canadian Niagara Power Inc.2022 | D17: =G17-1 -> 2012 | G17: =J17-1 -> 2013 | J17: =M17-1 -> 2014 | M17: =P17-1 -> 2015 | P17: =S17-1 -> 2016 | S17: =V17-1 -> 2017 | V17: =Y17-1 -> 2018 | Y17: =AB17-1 -> 2019 | AB17: =AE17-1 -> 2020 | AE17: =AH17-1 -> 2021 | AH17: =AK17-1 -> 2022 | AK17: =AN17-1 -> 2023 | AN17: =AQ17-1 -> 2024 | AQ17: =AT17-1 -> 2025 | AT17: =AW17-1 -> 2026 | AW17: ='LDC Info'!$E$24 -> 2027 | AZ17: =AW17+1 -> 2028 | BC17: =AZ17+1 -> 2029 | BD17: 2016 | BF17: =BC17+1 -> 2030 | BI17: =BF17+1 -> 2031 | BL17: =BI17+1 -> 2032
E18: Direct Benefit | F18: Provincial | H18: Direct Benefit | I18: Provincial | K18: Direct Benefit | L18: Provincial | N18: Direct Benefit | O18: Provincial | Q18: Direct Benefit | R18: Provincial | T18: Direct Benefit | U18: Provincial | W18: Direct Benefit | X18: Provincial | Z18: Direct Benefit | AA18: Provincial | AC18: Direct Benefit | AD18: Provincial | AF18: Direct Benefit | AG18: Provincial | AI18: Direct Benefit | AJ18: Provincial | AL18: Direct Benefit | AM18: Provincial | AO18: Direct Benefit | AP18: Provincial | AR18: Direct Benefit | AS18: Provincial | AU18: Direct Benefit | AV18: Provincial | AX18: Direct Benefit | AY18: Provincial | BA18: Direct Benefit | BB18: Provincial | BD18: Direct Benefit | BE18: Provincial | BG18: Direct Benefit | BH18: Provincial | BJ18: Direct Benefit | BK18: Provincial | BM18: Direct Benefit | BN18: Provincial
D19: Total | E19: 0.06 | F19: 0.94 | G19: Total | H19: 0.06 | I19: 0.94 | J19: Total | K19: 0.06 | L19: 0.94 | M19: Total | N19: 0.06 | O19: 0.94 | P19: Total | Q19: 0.06 | R19: 0.94 | S19: Total | T19: 0.06 | U19: 0.94 | V19: Total | W19: 0.06 | X19: 0.94 | Y19: Total | Z19: 0.06 | AA19: 0.94 | AB19: Total | AC19: 0.06 | AD19: 0.94 | AE19: Total | AF19: 0.06 | AG19: 0.94 | AH19: Total | AI19: 0.06 | AJ19: 0.94 | AK19: Total | AL19: 0.06 | AM19: 0.94 | AN19: Total | AO19: 0.06 | AP19: 0.94 | AQ19: Total | AR19: 0.06 | AS19: 0.94 | AT19: Total | AU19: 0.06 | AV19: 0.94 | AW19: Total | AX19: 0.06 | AY19: 0.94 | AZ19: Total | BA19: 0.06 | BB19: 0.94 | BC19: Total | BD19: 0.06 | BE19: 0.94 | BF19: Total | BG19: 0.06 | BH19: 0.94 | BI19: Total | BJ19: 0.06 | BK19: 0.94 | BL19: Total | BM19: 0.06 | BN19: 0.94
A20: Net Fixed Assets (average) | D20: =E83 -> 0 | E20: =D20*E19 -> 0 | F20: =D20*F19 -> 0 | G20: =H83 -> 0 | H20: =G20*H19 -> 0 | I20: =G20*I19 -> 0 | J20: =K83 -> 0 | K20: =J20*K19 -> 0 | L20: =J20*L19 -> 0 | M20: =N83 -> 0 | N20: =M20*N19 -> 0 | O20: =M20*O19 -> 0 | P20: =Q83 -> 0 | Q20: =P20*Q19 -> 0 | R20: =P20*R19 -> 0 | S20: =T83 -> 0 | T20: =S20*T19 -> 0 | U20: =S20*U19 -> 0 | V20: =W83 -> 0 | W20: =V20*W19 -> 0 | X20: =V20*X19 -> 0 | Y20: =Z83 -> 0 | Z20: =Y20*Z19 -> 0 | AA20: =Y20*AA19 -> 0 | AB20: =AC83 -> 0 | AC20: =AB20*AC19 -> 0 | AD20: =AB20*AD19 -> 0 | AE20: =AF83 -> 0 | AF20: =AE20*AF19 -> 0 | AG20: =AE20*AG19 -> 0 | AH20: =AI83 -> 0 | AI20: =AH20*AI19 -> 0 | AJ20: =AH20*AJ19 -> 0 | AK20: =AJ83 -> 0 | AL20: =AK20*AL19 -> 0 | AM20: =AK20*AM19 -> 0 | AN20: =AK83 -> 0 | AO20: =AN20*AO19 -> 0 | AP20: =AN20*AP19 -> 0 | AQ20: =AL83 -> 0 | AR20: =AQ20*AR19 -> 0 | AS20: =AQ20*AS19 -> 0 | AT20: =AM83 -> 0 | AU20: =AT20*AU19 -> 0 | AV20: =AT20*AV19 -> 0 | AW20: =AN83 -> 0 | AX20: =AW20*AX19 -> 0 | AY20: =AW20*AY19 -> 0 | AZ20: =AO83 -> 0 | BA20: =AZ20*BA19 -> 0 | BB20: =AZ20*BB19 -> 0 | BC20: =AP83 -> 0 | BD20: =BC20*BD19 -> 0 | BE20: =BC20*BE19 -> 0 | BF20: =AQ83 -> 0 | BG20: =BF20*BG19 -> 0 | BH20: =BF20*BH19 -> 0 | BI20: =AR83 -> 0 | BJ20: =BI20*BJ19 -> 0 | BK20: =BI20*BK19 -> 0 | BL20: =AS83 -> 0 | BM20: =BL20*BM19 -> 0 | BN20: =BL20*BN19 -> 0
A21: Incremental OM&A (on-going, N/A for Provincial Recovery) | D21: 0 | E21: =D21*E19 -> 0 | F21: =D21*F19 -> 0 | G21: 0 | H21: =G21*H19 -> 0 | I21: =G21*I19 -> 0 | J21: 0 | K21: =J21*K19 -> 0 | L21: =J21*L19 -> 0 | M21: 0 | N21: =M21*N19 -> 0 | O21: =M21*O19 -> 0 | P21: 0 | Q21: =P21*Q19 -> 0 | R21: =P21*R19 -> 0 | S21: 0 | T21: =S21*T19 -> 0 | U21: =S21*U19 -> 0 | V21: 0 | W21: =V21*W19 -> 0 | X21: =V21*X19 -> 0 | Y21: 0 | Z21: =Y21*Z19 -> 0 | AA21: =Y21*AA19 -> 0 | AB21: 0 | AC21: =AB21*AC19 -> 0 | AD21: =AB21*AD19 -> 0 | AE21: 0 | AF21: =AE21*AF19 -> 0 | AG21: =AE21*AG19 -> 0 | AH21: 0 | AI21: =AH21*AI19 -> 0 | AJ21: =AH21*AJ19 -> 0 | AK21: 0 | AL21: =AK21*AL19 -> 0 | AM21: =AK21*AM19 -> 0 | AN21: 0 | AO21: =AN21*AO19 -> 0 | AP21: =AN21*AP19 -> 0 | AQ21: 0 | AR21: =AQ21*AR19 -> 0 | AS21: =AQ21*AS19 -> 0 | AT21: 0 | AU21: =AT21*AU19 -> 0 | AV21: =AT21*AV19 -> 0 | AW21: 0 | AX21: =AW21*AX19 -> 0 | AY21: =AW21*AY19 -> 0 | AZ21: 0 | BA21: =AZ21*BA19 -> 0 | BB21: =AZ21*BB19 -> 0 | BC21: 0 | BD21: =BC21*BD19 -> 0 | BE21: =BC21*BE19 -> 0 | BF21: 0 | BG21: =BF21*BG19 -> 0 | BH21: =BF21*BH19 -> 0 | BI21: 0 | BJ21: =BI21*BJ19 -> 0 | BK21: =BI21*BK19 -> 0 | BL21: 0 | BM21: =BL21*BM19 -> 0 | BN21: =BL21*BN19 -> 0
A22: Incremental OM&A (start-up, applicable for Provincial Recovery) | D22: 0 | E22: =D22*E19 -> 0 | F22: =D22*F19 -> 0 | G22: 0 | H22: =G22*H19 -> 0 | I22: =G22*I19 -> 0 | J22: 0 | K22: =J22*K19 -> 0 | L22: =J22*L19 -> 0 | M22: 0 | N22: =M22*N19 -> 0 | O22: =M22*O19 -> 0 | P22: 0 | Q22: =P22*Q19 -> 0 | R22: =P22*R19 -> 0 | S22: 0 | T22: =S22*T19 -> 0 | U22: =S22*U19 -> 0 | V22: 0 | W22: =V22*W19 -> 0 | X22: =V22*X19 -> 0 | Y22: 0 | Z22: =Y22*Z19 -> 0 | AA22: =Y22*AA19 -> 0 | AB22: 0 | AC22: =AB22*AC19 -> 0 | AD22: =AB22*AD19 -> 0 | AE22: 0 | AF22: =AE22*AF19 -> 0 | AG22: =AE22*AG19 -> 0 | AH22: 0 | AI22: =AH22*AI19 -> 0 | AJ22: =AH22*AJ19 -> 0 | AK22: 0 | AL22: =AK22*AL19 -> 0 | AM22: =AK22*AM19 -> 0 | AN22: 0 | AO22: =AN22*AO19 -> 0 | AP22: =AN22*AP19 -> 0 | AQ22: 0 | AR22: =AQ22*AR19 -> 0 | AS22: =AQ22*AS19 -> 0 | AT22: 0 | AU22: =AT22*AU19 -> 0 | AV22: =AT22*AV19 -> 0 | AW22: 0 | AX22: =AW22*AX19 -> 0 | AY22: =AW22*AY19 -> 0 | AZ22: 0 | BA22: =AZ22*BA19 -> 0 | BB22: =AZ22*BB19 -> 0 | BC22: 0 | BD22: =BC22*BD19 -> 0 | BE22: =BC22*BE19 -> 0 | BF22: 0 | BG22: =BF22*BG19 -> 0 | BH22: =BF22*BH19 -> 0 | BI22: 0 | BJ22: =BI22*BJ19 -> 0 | BK22: =BI22*BK19 -> 0 | BL22: 0 | BM22: =BL22*BM19 -> 0 | BN22: =BL22*BN19 -> 0
A23: Rebasing Year vs. Test Year | B23: ='LDC Info'!E28 -> 2022 | C23: ='LDC Info'!E24 -> 2027
A24: Allowance for Working Capital (enter rate) | B24: =IFERROR(VLOOKUP($B$17,'2.1.5.6'!$D:$K,2,FALSE)/100,) -> 0.075 | E24: =IF(AND(D$17>=$B$23, D$17<$C$23),(E21+E22)*$B$24,(E21+E22)*$C$24) -> 0 | F24: =IF(AND(D$17>=$B$23, D$17<$C$23),(F22)*$B$24,(F22)*$C$24) -> 0 | H24: =IF(AND(G$17>=$B$23, G$17<$C$23),(H21+H22)*$B$24,(H21+H22)*$C$24) -> 0 | I24: =IF(AND(G$17>=$B$23, G$17<$C$23),(I22)*$B$24,(I22)*$C$24) -> 0 | K24: =IF(AND(J$17>=$B$23, J$17<$C$23),(K21+K22)*$B$24,(K21+K22)*$C$24) -> 0 | L24: =IF(AND(J$17>=$B$23, J$17<$C$23),(L22)*$B$24,(L22)*$C$24) -> 0 | N24: =IF(AND(M$17>=$B$23, M$17<$C$23),(N21+N22)*$B$24,(N21+N22)*$C$24) -> 0 | O24: =IF(AND(M$17>=$B$23, M$17<$C$23),(O22)*$B$24,(O22)*$C$24) -> 0 | Q24: =IF(AND(P$17>=$B$23, P$17<$C$23),(Q21+Q22)*$B$24,(Q21+Q22)*$C$24) -> 0 | R24: =IF(AND(P$17>=$B$23, P$17<$C$23),(R22)*$B$24,(R22)*$C$24) -> 0 | T24: =IF(AND(S$17>=$B$23, S$17<$C$23),(T21+T22)*$B$24,(T21+T22)*$C$24) -> 0 | U24: =IF(AND(S$17>=$B$23, S$17<$C$23),(U22)*$B$24,(U22)*$C$24) -> 0 | W24: =IF(AND(V$17>=$B$23, V$17<$C$23),(W21+W22)*$B$24,(W21+W22)*$C$24) -> 0 | X24: =IF(AND(V$17>=$B$23, V$17<$C$23),(X22)*$B$24,(X22)*$C$24) -> 0 | Z24: =IF(AND(Y$17>=$B$23, Y$17<$C$23),(Z21+Z22)*$B$24,(Z21+Z22)*$C$24) -> 0 | AA24: =IF(AND(Y$17>=$B$23, Y$17<$C$23),(AA22)*$B$24,(AA22)*$C$24) -> 0 | AC24: =IF(AND(AB$17>=$B$23, AB$17<$C$23),(AC21+AC22)*$B$24,(AC21+AC22)*$C$24) -> 0 | AD24: =IF(AND(AB$17>=$B$23, AB$17<$C$23),(AD22)*$B$24,(AD22)*$C$24) -> 0 | AF24: =IF(AND(AE$17>=$B$23, AE$17<$C$23),(AF21+AF22)*$B$24,(AF21+AF22)*$C$24) -> 0 | AG24: =IF(AND(AE$17>=$B$23, AE$17<$C$23),(AG22)*$B$24,(AG22)*$C$24) -> 0 | AI24: =IF(AND(AH$17>=$B$23, AH$17<$C$23),(AI21+AI22)*$B$24,(AI21+AI22)*$C$24) -> 0 | AJ24: =IF(AND(AH$17>=$B$23, AH$17<$C$23),(AJ22)*$B$24,(AJ22)*$C$24) -> 0 | AL24: =IF(AND(AK$17>=$B$23, AK$17<$C$23),(AL21+AL22)*$B$24,(AL21+AL22)*$C$24) -> 0 | AM24: =IF(AND(AK$17>=$B$23, AK$17<$C$23),(AM22)*$B$24,(AM22)*$C$24) -> 0 | AO24: =IF(AND(AN$17>=$B$23, AN$17<$C$23),(AO21+AO22)*$B$24,(AO21+AO22)*$C$24) -> 0 | AP24: =IF(AND(AN$17>=$B$23, AN$17<$C$23),(AP22)*$B$24,(AP22)*$C$24) -> 0 | AR24: =IF(AND(AQ$17>=$B$23, AQ$17<$C$23),(AR21+AR22)*$B$24,(AR21+AR22)*$C$24) -> 0 | AS24: =IF(AND(AQ$17>=$B$23, AQ$17<$C$23),(AS22)*$B$24,(AS22)*$C$24) -> 0 | AU24: =IF(AND(AT$17>=$B$23, AT$17<$C$23),(AU21+AU22)*$B$24,(AU21+AU22)*$C$24) -> 0 | AV24: =IF(AND(AT$17>=$B$23, AT$17<$C$23),(AV22)*$B$24,(AV22)*$C$24) -> 0 | AX24: =IF(AND(AW$17>=$B$23, AW$17<$C$23),(AX21+AX22)*$B$24,(AX21+AX22)*$C$24) -> 0 | AY24: =IF(AND(AW$17>=$B$23, AW$17<$C$23),(AY22)*$B$24,(AY22)*$C$24) -> 0 | BA24: =IF(AND(AZ$17>=$B$23, AZ$17<$C$23),(BA21+BA22)*$B$24,(BA21+BA22)*$C$24) -> 0 | BB24: =IF(AND(AZ$17>=$B$23, AZ$17<$C$23),(BB22)*$B$24,(BB22)*$C$24) -> 0 | BD24: =IF(AND(BC$17>=$B$23, BC$17<$C$23),(BD21+BD22)*$B$24,(BD21+BD22)*$C$24) -> 0 | BE24: =IF(AND(BC$17>=$B$23, BC$17<$C$23),(BE22)*$B$24,(BE22)*$C$24) -> 0 | BG24: =IF(AND(BF$17>=$B$23, BF$17<$C$23),(BG21+BG22)*$B$24,(BG21+BG22)*$C$24) -> 0 | BH24: =IF(AND(BF$17>=$B$23, BF$17<$C$23),(BH22)*$B$24,(BH22)*$C$24) -> 0 | BJ24: =IF(AND(BI$17>=$B$23, BI$17<$C$23),(BJ21+BJ22)*$B$24,(BJ21+BJ22)*$C$24) -> 0 | BK24: =IF(AND(BI$17>=$B$23, BI$17<$C$23),(BK22)*$B$24,(BK22)*$C$24) -> 0 | BM24: =IF(AND(BL$17>=$B$23, BL$17<$C$23),(BM21+BM22)*$B$24,(BM21+BM22)*$C$24) -> 0 | BN24: =IF(AND(BL$17>=$B$23, BL$17<$C$23),(BN22)*$B$24,(BN22)*$C$24) -> 0
A25: Rate Base | E25: =SUM(E20+E24) -> 0 | F25: =SUM(F20+F24) -> 0 | H25: =SUM(H20+H24) -> 0 | I25: =SUM(I20+I24) -> 0 | K25: =SUM(K20+K24) -> 0 | L25: =SUM(L20+L24) -> 0 | N25: =SUM(N20+N24) -> 0 | O25: =SUM(O20+O24) -> 0 | Q25: =SUM(Q20+Q24) -> 0 | R25: =SUM(R20+R24) -> 0 | T25: =SUM(T20+T24) -> 0 | U25: =SUM(U20+U24) -> 0 | W25: =SUM(W20+W24) -> 0 | X25: =SUM(X20+X24) -> 0 | Z25: =SUM(Z20+Z24) -> 0 | AA25: =SUM(AA20+AA24) -> 0 | AC25: =SUM(AC20+AC24) -> 0 | AD25: =SUM(AD20+AD24) -> 0 | AF25: =SUM(AF20+AF24) -> 0 | AG25: =SUM(AG20+AG24) -> 0 | AI25: =SUM(AI20+AI24) -> 0 | AJ25: =SUM(AJ20+AJ24) -> 0 | AL25: =SUM(AL20+AL24) -> 0 | AM25: =SUM(AM20+AM24) -> 0 | AO25: =SUM(AO20+AO24) -> 0 | AP25: =SUM(AP20+AP24) -> 0 | AR25: =SUM(AR20+AR24) -> 0 | AS25: =SUM(AS20+AS24) -> 0 | AU25: =SUM(AU20+AU24) -> 0 | AV25: =SUM(AV20+AV24) -> 0 | AX25: =SUM(AX20+AX24) -> 0 | AY25: =SUM(AY20+AY24) -> 0 | BA25: =SUM(BA20+BA24) -> 0 | BB25: =SUM(BB20+BB24) -> 0 | BD25: =SUM(BD20+BD24) -> 0 | BE25: =SUM(BE20+BE24) -> 0 | BG25: =SUM(BG20+BG24) -> 0 | BH25: =SUM(BH20+BH24) -> 0 | BJ25: =SUM(BJ20+BJ24) -> 0 | BK25: =SUM(BK20+BK24) -> 0 | BM25: =SUM(BM20+BM24) -> 0 | BN25: =SUM(BN20+BN24) -> 0
A27: Rebasing Year vs. Test Year | B27: =B23 -> 2022 | C27: =C23 -> 2027
A28: Deemed ST Debt | B28: 0.04 | C28: 0.04 | E28: =E25*$B$28 -> 0 | F28: =F25*$B$28 -> 0 | H28: =H25*$B$28 -> 0 | I28: =I25*$B$28 -> 0 | K28: =K25*$B$28 -> 0 | L28: =L25*$B$28 -> 0 | N28: =N25*$B$28 -> 0 | O28: =O25*$B$28 -> 0 | Q28: =Q25*$B$28 -> 0 | R28: =R25*$B$28 -> 0 | T28: =T25*$B$28 -> 0 | U28: =U25*$B$28 -> 0 | W28: =W25*$B$28 -> 0 | X28: =X25*$B$28 -> 0 | Z28: =Z25*$B$28 -> 0 | AA28: =AA25*$B$28 -> 0 | AC28: =AC25*$B$28 -> 0 | AD28: =AD25*$B$28 -> 0 | AF28: =AF25*$B$28 -> 0 | AG28: =AG25*$B$28 -> 0 | AI28: =AI25*$B$28 -> 0 | AJ28: =AJ25*$B$28 -> 0 | AL28: =AL25*$B$28 -> 0 | AM28: =AM25*$B$28 -> 0 | AO28: =AO25*$B$28 -> 0 | AP28: =AP25*$B$28 -> 0 | AR28: =AR25*$B$28 -> 0 | AS28: =AS25*$B$28 -> 0 | AU28: =AU25*$B$28 -> 0 | AV28: =AV25*$B$28 -> 0 | AX28: =AX25*$C$28 -> 0 | AY28: =AY25*$C$28 -> 0 | BA28: =BA25*$C$28 -> 0 | BB28: =BB25*$C$28 -> 0 | BD28: =BD25*$C$28 -> 0 | BE28: =BE25*$C$28 -> 0 | BG28: =BG25*$C$28 -> 0 | BH28: =BH25*$C$28 -> 0 | BJ28: =BJ25*$C$28 -> 0 | BK28: =BK25*$C$28 -> 0 | BM28: =BM25*$C$28 -> 0 | BN28: =BN25*$C$28 -> 0
A29: Deemed LT Debt | B29: 0.56 | C29: 0.56 | E29: =E25*$B$29 -> 0 | F29: =F25*$B$29 -> 0 | H29: =H25*$B$29 -> 0 | I29: =I25*$B$29 -> 0 | K29: =K25*$B$29 -> 0 | L29: =L25*$B$29 -> 0 | N29: =N25*$B$29 -> 0 | O29: =O25*$B$29 -> 0 | Q29: =Q25*$B$29 -> 0 | R29: =R25*$B$29 -> 0 | T29: =T25*$B$29 -> 0 | U29: =U25*$B$29 -> 0 | W29: =W25*$B$29 -> 0 | X29: =X25*$B$29 -> 0 | Z29: =Z25*$B$29 -> 0 | AA29: =AA25*$B$29 -> 0 | AC29: =AC25*$B$29 -> 0 | AD29: =AD25*$B$29 -> 0 | AF29: =AF25*$B$29 -> 0 | AG29: =AG25*$B$29 -> 0 | AI29: =AI25*$B$29 -> 0 | AJ29: =AJ25*$B$29 -> 0 | AL29: =AL25*$B$29 -> 0 | AM29: =AM25*$B$29 -> 0 | AO29: =AO25*$B$29 -> 0 | AP29: =AP25*$B$29 -> 0 | AR29: =AR25*$B$29 -> 0 | AS29: =AS25*$B$29 -> 0 | AU29: =AU25*$B$29 -> 0 | AV29: =AV25*$B$29 -> 0 | AX29: =AX25*$C$29 -> 0 | AY29: =AY25*$C$29 -> 0 | BA29: =BA25*$C$29 -> 0 | BB29: =BB25*$C$29 -> 0 | BD29: =BD25*$C$29 -> 0 | BE29: =BE25*$C$29 -> 0 | BG29: =BG25*$C$29 -> 0 | BH29: =BH25*$C$29 -> 0 | BJ29: =BJ25*$C$29 -> 0 | BK29: =BK25*$C$29 -> 0 | BM29: =BM25*$C$29 -> 0 | BN29: =BN25*$C$29 -> 0
A30: Deemed Equity | B30: 0.4 | C30: 0.4 | E30: =E25*$B$30 -> 0 | F30: =F25*$B$30 -> 0 | H30: =H25*$B$30 -> 0 | I30: =I25*$B$30 -> 0 | K30: =K25*$B$30 -> 0 | L30: =L25*$B$30 -> 0 | N30: =N25*$B$30 -> 0 | O30: =O25*$B$30 -> 0 | Q30: =Q25*$B$30 -> 0 | R30: =R25*$B$30 -> 0 | T30: =T25*$B$30 -> 0 | U30: =U25*$B$30 -> 0 | W30: =W25*$B$30 -> 0 | X30: =X25*$B$30 -> 0 | Z30: =Z25*$B$30 -> 0 | AA30: =AA25*$B$30 -> 0 | AC30: =AC25*$B$30 -> 0 | AD30: =AD25*$B$30 -> 0 | AF30: =AF25*$B$30 -> 0 | AG30: =AG25*$B$30 -> 0 | AI30: =AI25*$B$30 -> 0 | AJ30: =AJ25*$B$30 -> 0 | AL30: =AL25*$B$30 -> 0 | AM30: =AM25*$B$30 -> 0 | AO30: =AO25*$B$30 -> 0 | AP30: =AP25*$B$30 -> 0 | AR30: =AR25*$B$30 -> 0 | AS30: =AS25*$B$30 -> 0 | AU30: =AU25*$B$30 -> 0 | AV30: =AV25*$B$30 -> 0 | AX30: =AX25*$C$30 -> 0 | AY30: =AY25*$C$30 -> 0 | BA30: =BA25*$C$30 -> 0 | BB30: =BB25*$C$30 -> 0 | BD30: =BD25*$C$30 -> 0 | BE30: =BE25*$C$30 -> 0 | BG30: =BG25*$C$30 -> 0 | BH30: =BH25*$C$30 -> 0 | BJ30: =BJ25*$C$30 -> 0 | BK30: =BK25*$C$30 -> 0 | BM30: =BM25*$C$30 -> 0 | BN30: =BN25*$C$30 -> 0
A32: ST Interest (enter rate) | E32: =E28*$B32 -> 0 | F32: 0 | H32: =H28*$B32 -> 0 | I32: 0 | K32: =K28*$B32 -> 0 | L32: 0 | N32: =N28*$B32 -> 0 | O32: 0 | Q32: =Q28*$B32 -> 0 | R32: 0 | T32: =T28*$B32 -> 0 | U32: 0 | W32: =W28*$B32 -> 0 | X32: 0 | Z32: =Z28*$B32 -> 0 | AA32: 0 | AC32: =AC28*$B32 -> 0 | AD32: 0 | AF32: =AF28*$B32 -> 0 | AG32: 0 | AI32: =AI28*$B32 -> 0 | AJ32: 0 | AL32: 0 | AM32: 0 | AO32: 0 | AP32: 0 | AR32: 0 | AS32: 0 | AU32: 0 | AV32: 0 | AX32: =AX28*$C32 -> 0 | AY32: 0 | BA32: =BA28*$C32 -> 0 | BB32: 0 | BD32: =BD28*$C32 -> 0 | BE32: 0 | BG32: =BG28*$C32 -> 0 | BH32: 0 | BJ32: =BJ28*$C32 -> 0 | BK32: 0 | BM32: =BM28*$C32 -> 0 | BN32: 0
A33: LT Interest (enter rate) | E33: =E29*$B33 -> 0 | F33: 0 | H33: =H29*$B33 -> 0 | I33: 0 | K33: =K29*$B33 -> 0 | L33: 0 | N33: =N29*$B33 -> 0 | O33: 0 | Q33: =Q29*$B33 -> 0 | R33: 0 | T33: =T29*$B33 -> 0 | U33: 0 | W33: =W29*$B33 -> 0 | X33: 0 | Z33: =Z29*$B33 -> 0 | AA33: 0 | AC33: =AC29*$B33 -> 0 | AD33: 0 | AF33: =AF29*$B33 -> 0 | AG33: 0 | AI33: 0 | AJ33: 0 | AL33: 0 | AM33: 0 | AO33: 0 | AP33: 0 | AR33: 0 | AS33: 0 | AU33: 0 | AV33: 0 | AX33: 0 | AY33: 0 | BA33: 0 | BB33: 0 | BD33: 0 | BE33: 0 | BG33: 0 | BH33: 0 | BJ33: 0 | BK33: 0 | BM33: 0 | BN33: 0
A34: Return on Equity (enter rate) | B34: =IFERROR(VLOOKUP($B$17,'2.1.5.6'!$D:$K,7,FALSE)/100,) -> 0.0866 | E34: =E30*$B34 -> 0 | F34: 0 | H34: =H30*$B34 -> 0 | I34: 0 | K34: =K30*$B34 -> 0 | L34: 0 | N34: =N30*$B34 -> 0 | O34: 0 | Q34: =Q30*$B34 -> 0 | R34: 0 | T34: =T30*$B34 -> 0 | U34: 0 | W34: =W30*$B34 -> 0 | X34: 0 | Z34: =Z30*$B34 -> 0 | AA34: 0 | AC34: =AC30*$B34 -> 0 | AD34: 0 | AF34: =AF30*$B34 -> 0 | AG34: 0 | AI34: 0 | AJ34: 0 | AL34: 0 | AM34: 0 | AO34: 0 | AP34: 0 | AR34: 0 | AS34: 0 | AU34: 0 | AV34: 0 | AX34: 0 | AY34: 0 | BA34: 0 | BB34: 0 | BD34: 0 | BE34: 0 | BG34: 0 | BH34: 0 | BJ34: 0 | BK34: 0 | BM34: 0 | BN34: 0
A35: Cost of Capital Total | E35: =SUM(E32:E34) -> 0 | F35: =SUM(F32:F34) -> 0 | H35: =SUM(H32:H34) -> 0 | I35: =SUM(I32:I34) -> 0 | K35: =SUM(K32:K34) -> 0 | L35: =SUM(L32:L34) -> 0 | N35: =SUM(N32:N34) -> 0 | O35: =SUM(O32:O34) -> 0 | Q35: =SUM(Q32:Q34) -> 0 | R35: =SUM(R32:R34) -> 0 | T35: =SUM(T32:T34) -> 0 | U35: =SUM(U32:U34) -> 0 | W35: =SUM(W32:W34) -> 0 | X35: =SUM(X32:X34) -> 0 | Z35: =SUM(Z32:Z34) -> 0 | AA35: =SUM(AA32:AA34) -> 0 | AC35: =SUM(AC32:AC34) -> 0 | AD35: =SUM(AD32:AD34) -> 0 | AF35: =SUM(AF32:AF34) -> 0 | AG35: =SUM(AG32:AG34) -> 0 | AI35: =SUM(AI32:AI34) -> 0 | AJ35: =SUM(AJ32:AJ34) -> 0 | AL35: =SUM(AL32:AL34) -> 0 | AM35: =SUM(AM32:AM34) -> 0 | AO35: =SUM(AO32:AO34) -> 0 | AP35: =SUM(AP32:AP34) -> 0 | AR35: =SUM(AR32:AR34) -> 0 | AS35: =SUM(AS32:AS34) -> 0 | AU35: =SUM(AU32:AU34) -> 0 | AV35: =SUM(AV32:AV34) -> 0 | AX35: =SUM(AX32:AX34) -> 0 | AY35: =SUM(AY32:AY34) -> 0 | BA35: =SUM(BA32:BA34) -> 0 | BB35: =SUM(BB32:BB34) -> 0 | BD35: =SUM(BD32:BD34) -> 0 | BE35: =SUM(BE32:BE34) -> 0 | BG35: =SUM(BG32:BG34) -> 0 | BH35: =SUM(BH32:BH34) -> 0 | BJ35: =SUM(BJ32:BJ34) -> 0 | BK35: =SUM(BK32:BK34) -> 0 | BM35: =SUM(BM32:BM34) -> 0 | BN35: =SUM(BN32:BN34) -> 0
A37: OM&A | E37: =E21+E22 -> 0 | F37: =F22 -> 0 | H37: =H21+H22 -> 0 | I37: =I22 -> 0 | K37: =K21+K22 -> 0 | L37: =L22 -> 0 | N37: =N21+N22 -> 0 | O37: =O22 -> 0 | Q37: =Q21+Q22 -> 0 | R37: =R22 -> 0 | T37: =T21+T22 -> 0 | U37: =U22 -> 0 | W37: =W21+W22 -> 0 | X37: =X22 -> 0 | Z37: =Z21+Z22 -> 0 | AA37: =AA22 -> 0 | AC37: =AC21+AC22 -> 0 | AD37: =AD22 -> 0 | AF37: =AF21+AF22 -> 0 | AG37: =AG22 -> 0 | AI37: =AI21+AI22 -> 0 | AJ37: =AJ22 -> 0 | AL37: =AL21+AL22 -> 0 | AM37: =AM22 -> 0 | AO37: =AO21+AO22 -> 0 | AP37: =AP22 -> 0 | AR37: =AR21+AR22 -> 0 | AS37: =AS22 -> 0 | AU37: =AU21+AU22 -> 0 | AV37: =AV22 -> 0 | AX37: =AX21+AX22 -> 0 | AY37: =AY22 -> 0 | BA37: =BA21+BA22 -> 0 | BB37: =BB22 -> 0 | BD37: =BD21+BD22 -> 0 | BE37: =BE22 -> 0 | BG37: =BG21+BG22 -> 0 | BH37: =BH22 -> 0 | BJ37: =BJ21+BJ22 -> 0 | BK37: =BK22 -> 0 | BM37: =BM21+BM22 -> 0 | BN37: =BN22 -> 0
A38: Amortization | D38: =+E77+E78 -> 0 | E38: =D38*E$19 -> 0 | F38: =D38*F$19 -> 0 | G38: =+H77+H78 -> 0 | H38: =G38*H$19 -> 0 | I38: =G38*I$19 -> 0 | J38: =+K77+K78 -> 0 | K38: =J38*K$19 -> 0 | L38: =J38*L$19 -> 0 | M38: =+N77+N78 -> 0 | N38: =M38*N$19 -> 0 | O38: =M38*O$19 -> 0 | P38: =+Q77+Q78 -> 0 | Q38: =P38*Q$19 -> 0 | R38: =P38*R$19 -> 0 | S38: =+T77+T78 -> 0 | T38: =S38*T$19 -> 0 | U38: =S38*U$19 -> 0 | V38: =+W77+W78 -> 0 | W38: =V38*W$19 -> 0 | X38: =V38*X$19 -> 0 | Y38: =+Z77+Z78 -> 0 | Z38: =Y38*Z$19 -> 0 | AA38: =Y38*AA$19 -> 0 | AB38: =+AC77+AC78 -> 0 | AC38: =AB38*AC$19 -> 0 | AD38: =AB38*AD$19 -> 0 | AE38: =+AF77+AF78 -> 0 | AF38: =AE38*AF$19 -> 0 | AG38: =AE38*AG$19 -> 0 | AH38: =+AI77+AI78 -> 0 | AI38: =AH38*AI$19 -> 0 | AJ38: =AH38*AJ$19 -> 0 | AK38: =+AJ77+AJ78 -> 0 | AL38: =AK38*AL$19 -> 0 | AM38: =AK38*AM$19 -> 0 | AN38: =+AK77+AK78 -> 0 | AO38: =AN38*AO$19 -> 0 | AP38: =AN38*AP$19 -> 0 | AQ38: =+AL77+AL78 -> 0 | AR38: =AQ38*AR$19 -> 0 | AS38: =AQ38*AS$19 -> 0 | AT38: =+AM77+AM78 -> 0 | AU38: =AT38*AU$19 -> 0 | AV38: =AT38*AV$19 -> 0 | AW38: =+AN77+AN78 -> 0 | AX38: =AW38*AX$19 -> 0 | AY38: =AW38*AY$19 -> 0 | AZ38: =+AO77+AO78 -> 0 | BA38: =AZ38*BA$19 -> 0 | BB38: =AZ38*BB$19 -> 0 | BC38: =+AP77+AP78 -> 0 | BD38: =BC38*BD$19 -> 0 | BE38: =BC38*BE$19 -> 0 | BF38: =+AQ77+AQ78 -> 0 | BG38: =BF38*BG$19 -> 0 | BH38: =BF38*BH$19 -> 0 | BI38: =+AR77+AR78 -> 0 | BJ38: =BI38*BJ$19 -> 0 | BK38: =BI38*BK$19 -> 0 | BL38: =+AS77+AS78 -> 0 | BM38: =BL38*BM$19 -> 0 | BN38: =BL38*BN$19 -> 0
A39: Grossed-up PILs | E39: =+E66 -> 0 | F39: =+F66 -> 0 | H39: =+H66 -> 0 | I39: =+I66 -> 0 | K39: =+K66 -> 0 | L39: =+L66 -> 0 | N39: =+N66 -> 0 | O39: =+O66 -> 0 | Q39: =+Q66 -> 0 | R39: =+R66 -> 0 | T39: =+T66 -> 0 | U39: =+U66 -> 0 | W39: =+W66 -> 0 | X39: =+X66 -> 0 | Z39: =+Z66 -> 0 | AA39: =+AA66 -> 0 | AC39: =+AC66 -> 0 | AD39: =+AD66 -> 0 | AF39: =+AF66 -> 0 | AG39: =+AG66 -> 0 | AI39: =+AI66 -> 0 | AJ39: =+AJ66 -> 0 | AL39: =+AL66 -> 0 | AM39: =+AM66 -> 0 | AO39: =+AO66 -> 0 | AP39: =+AP66 -> 0 | AR39: =+AR66 -> 0 | AS39: =+AS66 -> 0 | AU39: =+AU66 -> 0 | AV39: =+AV66 -> 0 | AX39: =+AX66 -> 0 | AY39: =+AY66 -> 0 | BA39: =+BA66 -> 0 | BB39: =+BB66 -> 0 | BD39: =+BD66 -> 0 | BE39: =+BE66 -> 0 | BG39: =+BG66 -> 0 | BH39: =+BH66 -> 0 | BJ39: =+BJ66 -> 0 | BK39: =+BK66 -> 0 | BM39: =+BM66 -> 0 | BN39: =+BN66 -> 0
A41: Revenue Requirement | E41: =SUM(E35:E39) -> 0 | F41: =SUM(F35:F39) -> 0 | H41: =SUM(H35:H39) -> 0 | I41: =SUM(I35:I39) -> 0 | K41: =SUM(K35:K39) -> 0 | L41: =SUM(L35:L39) -> 0 | N41: =SUM(N35:N39) -> 0 | O41: =SUM(O35:O39) -> 0 | Q41: =SUM(Q35:Q39) -> 0 | R41: =SUM(R35:R39) -> 0 | T41: =SUM(T35:T39) -> 0 | U41: =SUM(U35:U39) -> 0 | W41: =SUM(W35:W39) -> 0 | X41: =SUM(X35:X39) -> 0 | Z41: =SUM(Z35:Z39) -> 0 | AA41: =SUM(AA35:AA39) -> 0 | AC41: =SUM(AC35:AC39) -> 0 | AD41: =SUM(AD35:AD39) -> 0 | AF41: =SUM(AF35:AF39) -> 0 | AG41: =SUM(AG35:AG39) -> 0 | AI41: =SUM(AI35:AI39) -> 0 | AJ41: =SUM(AJ35:AJ39) -> 0 | AL41: =SUM(AL35:AL39) -> 0 | AM41: =SUM(AM35:AM39) -> 0 | AO41: =SUM(AO35:AO39) -> 0 | AP41: =SUM(AP35:AP39) -> 0 | AR41: =SUM(AR35:AR39) -> 0 | AS41: =SUM(AS35:AS39) -> 0 | AU41: =SUM(AU35:AU39) -> 0 | AV41: =SUM(AV35:AV39) -> 0 | AX41: =SUM(AX35:AX39) -> 0 | AY41: =SUM(AY35:AY39) -> 0 | BA41: =SUM(BA35:BA39) -> 0 | BB41: =SUM(BB35:BB39) -> 0 | BD41: =SUM(BD35:BD39) -> 0 | BE41: =SUM(BE35:BE39) -> 0 | BG41: =SUM(BG35:BG39) -> 0 | BH41: =SUM(BH35:BH39) -> 0 | BJ41: =SUM(BJ35:BJ39) -> 0 | BK41: =SUM(BK35:BK39) -> 0 | BM41: =SUM(BM35:BM39) -> 0 | BN41: =SUM(BN35:BN39) -> 0
A44: Provincial Rate Protection | F44: =F41 -> 0 | I44: =I41 -> 0 | L44: =L41 -> 0 | O44: =O41 -> 0 | R44: =R41 -> 0 | U44: =U41 -> 0 | X44: =X41 -> 0 | AA44: =AA41 -> 0 | AD44: =AD41 -> 0 | AG44: =AG41 -> 0 | AJ44: =AJ41 -> 0 | AM44: =AM41 -> 0 | AP44: =AP41 -> 0 | AS44: =AS41 -> 0 | AV44: =AV41 -> 0 | AY44: =AY41 -> 0 | BB44: =BB41 -> 0 | BE44: =BE41 -> 0 | BH44: =BH41 -> 0 | BK44: =BK41 -> 0 | BN44: =BN41 -> 0
A46: Monthly Amount Paid by IESO | F46: =F44/12 -> 0 | I46: =I44/12 -> 0 | L46: =L44/12 -> 0 | O46: =O44/12 -> 0 | R46: =R44/12 -> 0 | U46: =U44/12 -> 0 | X46: =X44/12 -> 0 | AA46: =AA44/12 -> 0 | AD46: =AD44/12 -> 0 | AG46: =AG44/12 -> 0 | AJ46: =AJ44/12 -> 0 | AM46: =AM44/12 -> 0 | AP46: =AP44/12 -> 0 | AS46: =AS44/12 -> 0 | AV46: =AV44/12 -> 0 | AY46: =AY44/12 -> 0 | BB46: =BB44/12 -> 0 | BE46: =BE44/12 -> 0 | BH46: =BH44/12 -> 0 | BK46: =BK44/12 -> 0 | BN46: =BN44/12 -> 0
A48: Note 1: The distributor should follow the regulatory accounting set out in the Accounting Procedure Handbook Guidance FAQs issued in March 2015. Q10 of the APH FAQs states that: “For approved eligible investments as defined under O.Reg. 330/09 under the OEB Act, a variance account will continue to be used for the purpose of recording variances between the revenue requirement based on actual costs of approved eligible investments and the revenue received from the IESO.” The answer for Q10 provides the accounting guidance for this variance account: “Distributors that have included eligible investments to connect qualifying facilities in their DS plans are to establish the variance Account 1533 Renewable Generation Connection Funding Adder Deferral Account, Sub-account Provincial Rate Protection Payment Variances following OEB approval for investments forecast to enter service beyond the test year for purposes of implementing rate protection pursuant to O.Reg. 330/09. The purpose of this variance account is to track the variance between the distributor’s revenue requirement associated with the portion of the actual capital and/or operating costs that are eligible for rate protection, as incurred by the distributor for eligible renewable enabling and expansion investments, and the rate protection payments collected from the IESO.” The answer further provides the journal entries to record the variances. Distributors should follow the instructions in the answer for recording the journal entries in the variance account 1533.
A50: Note 2: For the Test Year, Costs and Revenues of the Direct Benefit are to be included in the test year applicant Rate Base and Revenues.
A52: PILs Calculation | T52: Test Year
E53: =G17-1 -> 2012 | H53: =G17 -> 2013 | K53: =J17 -> 2014 | N53: =M17 -> 2015 | Q53: =P17 -> 2016 | T53: =S17 -> 2017 | W53: =V17 -> 2018 | Z53: =Y17 -> 2019 | AC53: =AB17 -> 2020 | AF53: =AE17 -> 2021 | AI53: =AH17 -> 2022 | AL53: =AK17 -> 2023 | AO53: =AN17 -> 2024 | AR53: =AQ17 -> 2025 | AU53: =AT17 -> 2026 | AX53: =AW17 -> 2027 | BA53: =AZ17 -> 2028 | BD53: =BC17 -> 2029 | BG53: =BF17 -> 2030 | BJ53: =BI17 -> 2031 | BM53: =BL17 -> 2032
A54: Income Tax | E54: Direct Benefit | F54: Provincial | H54: Direct Benefit | I54: Provincial | K54: Direct Benefit | L54: Provincial | N54: Direct Benefit | O54: Provincial | Q54: Direct Benefit | R54: Provincial | T54: Direct Benefit | U54: Provincial | W54: Direct Benefit | X54: Provincial | Z54: Direct Benefit | AA54: Provincial | AC54: Direct Benefit | AD54: Provincial | AF54: Direct Benefit | AG54: Provincial | AI54: Direct Benefit | AJ54: Provincial | AL54: Direct Benefit | AM54: Provincial | AO54: Direct Benefit | AP54: Provincial | AR54: Direct Benefit | AS54: Provincial | AU54: Direct Benefit | AV54: Provincial | AX54: Direct Benefit | AY54: Provincial | BA54: Direct Benefit | BB54: Provincial | BD54: Direct Benefit | BE54: Provincial | BG54: Direct Benefit | BH54: Provincial | BJ54: Direct Benefit | BK54: Provincial | BM54: Direct Benefit | BN54: Provincial
AB55: Total | AE55: Total | AH55: Total | AK55: Total | AN55: Total | AQ55: Total | AT55: Total | AW55: Total | AZ55: Total | BC55: Total | BF55: Total | BI55: Total | BL55: Total
A56: Net Income - ROE on Rate Base | E56: =E34 -> 0 | F56: =F34 -> 0 | H56: =H34 -> 0 | I56: =I34 -> 0 | K56: =K34 -> 0 | L56: =L34 -> 0 | N56: =N34 -> 0 | O56: =O34 -> 0 | Q56: =Q34 -> 0 | R56: =R34 -> 0 | T56: =T34 -> 0 | U56: =U34 -> 0 | W56: =W34 -> 0 | X56: =X34 -> 0 | Z56: =Z34 -> 0 | AA56: =AA34 -> 0 | AC56: =AC34 -> 0 | AD56: =AD34 -> 0 | AF56: =AF34 -> 0 | AG56: =AG34 -> 0 | AI56: =AI34 -> 0 | AJ56: =AJ34 -> 0 | AL56: =AL34 -> 0 | AM56: =AM34 -> 0 | AO56: =AO34 -> 0 | AP56: =AP34 -> 0 | AR56: =AR34 -> 0 | AS56: =AS34 -> 0 | AU56: =AU34 -> 0 | AV56: =AV34 -> 0 | AX56: =AX34 -> 0 | AY56: =AY34 -> 0 | BA56: =BA34 -> 0 | BB56: =BB34 -> 0 | BD56: =BD34 -> 0 | BE56: =BE34 -> 0 | BG56: =BG34 -> 0 | BH56: =BH34 -> 0 | BJ56: =BJ34 -> 0 | BK56: =BK34 -> 0 | BM56: =BM34 -> 0 | BN56: =BN34 -> 0
A57: Amortization (6% DB and 94% P) | E57: =E38 -> 0 | F57: =F38 -> 0 | H57: =H38 -> 0 | I57: =I38 -> 0 | K57: =K38 -> 0 | L57: =L38 -> 0 | N57: =N38 -> 0 | O57: =O38 -> 0 | Q57: =Q38 -> 0 | R57: =R38 -> 0 | T57: =T38 -> 0 | U57: =U38 -> 0 | W57: =W38 -> 0 | X57: =X38 -> 0 | Z57: =Z38 -> 0 | AA57: =AA38 -> 0 | AC57: =AC38 -> 0 | AD57: =AD38 -> 0 | AF57: =AF38 -> 0 | AG57: =AG38 -> 0 | AI57: =AI38 -> 0 | AJ57: =AJ38 -> 0 | AL57: =AL38 -> 0 | AM57: =AM38 -> 0 | AO57: =AO38 -> 0 | AP57: =AP38 -> 0 | AR57: =AR38 -> 0 | AS57: =AS38 -> 0 | AU57: =AU38 -> 0 | AV57: =AV38 -> 0 | AX57: =AX38 -> 0 | AY57: =AY38 -> 0 | BA57: =BA38 -> 0 | BB57: =BB38 -> 0 | BD57: =BD38 -> 0 | BE57: =BE38 -> 0 | BG57: =BG38 -> 0 | BH57: =BH38 -> 0 | BJ57: =BJ38 -> 0 | BK57: =BK38 -> 0 | BM57: =BM38 -> 0 | BN57: =BN38 -> 0
A58: CCA (6% DB and 94% P) | E58: =-E95*$E$19 -> 0 | F58: =-E95*$F$19 -> 0 | H58: =-F95*$E$19 -> 0 | I58: =-F95*$F$19 -> 0 | K58: =-G95*$E$19 -> 0 | L58: =-G95*$F$19 -> 0 | N58: =-H95*$E$19 -> 0 | O58: =-H95*$F$19 -> 0 | Q58: =-I95*$E$19 -> 0 | R58: =-I95*$F$19 -> 0 | T58: =-J95*$E$19 -> 0 | U58: =-J95*$F$19 -> 0 | W58: =-K95*$E$19 -> 0 | X58: =-K95*$F$19 -> 0 | Z58: =-L95*$E$19 -> 0 | AA58: =-L95*$F$19 -> 0 | AC58: =-M95*$E$19 -> 0 | AD58: =-M95*$F$19 -> 0 | AF58: =-N95*$E$19 -> 0 | AG58: =-N95*$F$19 -> 0 | AI58: =-Q95*$E$19 -> 0 | AJ58: =-Q95*$F$19 -> 0 | AL58: =-T95*$E$19 -> 0 | AM58: =-T95*$F$19 -> 0 | AO58: =-W95*$E$19 -> 0 | AP58: =-W95*$F$19 -> 0 | AR58: =-Z95*$E$19 -> 0 | AS58: =-Z95*$F$19 -> 0 | AU58: =-AC95*$E$19 -> 0 | AV58: =-AC95*$F$19 -> 0 | AX58: =-AF95*$E$19 -> 0 | AY58: =-AF95*$F$19 -> 0 | BA58: =-AI95*$E$19 -> 0 | BB58: =-AI95*$F$19 -> 0 | BD58: =-AL95*$E$19 -> 0 | BE58: =-AL95*$F$19 -> 0 | BG58: =-AO95*$E$19 -> 0 | BH58: =-AO95*$F$19 -> 0 | BJ58: =-AR95*$E$19 -> 0 | BK58: =-AR95*$F$19 -> 0 | BM58: =-AU95*$E$19 -> 0 | BN58: =-AU95*$F$19 -> 0
A59: Taxable income | E59: =SUM(E56:E58) -> 0 | F59: =SUM(F56:F58) -> 0 | H59: =SUM(H56:H58) -> 0 | I59: =SUM(I56:I58) -> 0 | K59: =SUM(K56:K58) -> 0 | L59: =SUM(L56:L58) -> 0 | N59: =SUM(N56:N58) -> 0 | O59: =SUM(O56:O58) -> 0 | Q59: =SUM(Q56:Q58) -> 0 | R59: =SUM(R56:R58) -> 0 | T59: =SUM(T56:T58) -> 0 | U59: =SUM(U56:U58) -> 0 | W59: =SUM(W56:W58) -> 0 | X59: =SUM(X56:X58) -> 0 | Z59: =SUM(Z56:Z58) -> 0 | AA59: =SUM(AA56:AA58) -> 0 | AC59: =SUM(AC56:AC58) -> 0 | AD59: =SUM(AD56:AD58) -> 0 | AF59: =SUM(AF56:AF58) -> 0 | AG59: =SUM(AG56:AG58) -> 0 | AI59: =SUM(AI56:AI58) -> 0 | AJ59: =SUM(AJ56:AJ58) -> 0 | AL59: =SUM(AL56:AL58) -> 0 | AM59: =SUM(AM56:AM58) -> 0 | AO59: =SUM(AO56:AO58) -> 0 | AP59: =SUM(AP56:AP58) -> 0 | AR59: =SUM(AR56:AR58) -> 0 | AS59: =SUM(AS56:AS58) -> 0 | AU59: =SUM(AU56:AU58) -> 0 | AV59: =SUM(AV56:AV58) -> 0 | AX59: =SUM(AX56:AX58) -> 0 | AY59: =SUM(AY56:AY58) -> 0 | BA59: =SUM(BA56:BA58) -> 0 | BB59: =SUM(BB56:BB58) -> 0 | BD59: =SUM(BD56:BD58) -> 0 | BE59: =SUM(BE56:BE58) -> 0 | BG59: =SUM(BG56:BG58) -> 0 | BH59: =SUM(BH56:BH58) -> 0 | BJ59: =SUM(BJ56:BJ58) -> 0 | BK59: =SUM(BK56:BK58) -> 0 | BM59: =SUM(BM56:BM58) -> 0 | BN59: =SUM(BN56:BN58) -> 0
B60: =B27 -> 2022 | C60: =C27 -> 2027
A61: Tax Rate (to be entered) | E61: =IF(AND(E$53>=$B$60, E$53<$C$60),$B$61,$C$61) -> 0 | F61: =IF(AND(E$53>=$B$60, E$53<$C$60),$B$61,$C$61) -> 0 | H61: =IF(AND(H$53>=$B$60, H$53<$C$60),$B$61,$C$61) -> 0 | I61: =IF(AND(H$53>=$B$60, H$53<$C$60),$B$61,$C$61) -> 0 | K61: =IF(AND(K$53>=$B$60, K$53<$C$60),$B$61,$C$61) -> 0 | L61: =IF(AND(K$53>=$B$60, K$53<$C$60),$B$61,$C$61) -> 0 | N61: =IF(AND(N$53>=$B$60, N$53<$C$60),$B$61,$C$61) -> 0 | O61: =IF(AND(N$53>=$B$60, N$53<$C$60),$B$61,$C$61) -> 0 | Q61: =IF(AND(Q$53>=$B$60, Q$53<$C$60),$B$61,$C$61) -> 0 | R61: =IF(AND(Q$53>=$B$60, Q$53<$C$60),$B$61,$C$61) -> 0 | T61: =IF(AND(T$53>=$B$60, T$53<$C$60),$B$61,$C$61) -> 0 | U61: =IF(AND(T$53>=$B$60, T$53<$C$60),$B$61,$C$61) -> 0 | W61: =IF(AND(W$53>=$B$60, W$53<$C$60),$B$61,$C$61) -> 0 | X61: =IF(AND(W$53>=$B$60, W$53<$C$60),$B$61,$C$61) -> 0 | Z61: =IF(AND(Z$53>=$B$60, Z$53<$C$60),$B$61,$C$61) -> 0 | AA61: =IF(AND(Z$53>=$B$60, Z$53<$C$60),$B$61,$C$61) -> 0 | AC61: =IF(AND(AC$53>=$B$60, AC$53<$C$60),$B$61,$C$61) -> 0 | AD61: =IF(AND(AC$53>=$B$60, AC$53<$C$60),$B$61,$C$61) -> 0 | AF61: =IF(AND(AF$53>=$B$60, AF$53<$C$60),$B$61,$C$61) -> 0 | AG61: =IF(AND(AF$53>=$B$60, AF$53<$C$60),$B$61,$C$61) -> 0 | AI61: =IF(AND(AI$53>=$B$60, AI$53<$C$60),$B$61,$C$61) -> 0 | AJ61: =IF(AND(AI$53>=$B$60, AI$53<$C$60),$B$61,$C$61) -> 0 | AL61: =IF(AND(AL$53>=$B$60, AL$53<$C$60),$B$61,$C$61) -> 0 | AM61: =IF(AND(AL$53>=$B$60, AL$53<$C$60),$B$61,$C$61) -> 0 | AO61: =IF(AND(AO$53>=$B$60, AO$53<$C$60),$B$61,$C$61) -> 0 | AP61: =IF(AND(AO$53>=$B$60, AO$53<$C$60),$B$61,$C$61) -> 0 | AR61: =IF(AND(AR$53>=$B$60, AR$53<$C$60),$B$61,$C$61) -> 0 | AS61: =IF(AND(AR$53>=$B$60, AR$53<$C$60),$B$61,$C$61) -> 0 | AU61: =IF(AND(AU$53>=$B$60, AU$53<$C$60),$B$61,$C$61) -> 0 | AV61: =IF(AND(AU$53>=$B$60, AU$53<$C$60),$B$61,$C$61) -> 0 | AX61: =IF(AND(AX$53>=$B$60, AX$53<$C$60),$B$61,$C$61) -> 0 | AY61: =IF(AND(AX$53>=$B$60, AX$53<$C$60),$B$61,$C$61) -> 0 | BA61: =IF(AND(BA$53>=$B$60, BA$53<$C$60),$B$61,$C$61) -> 0 | BB61: =IF(AND(BA$53>=$B$60, BA$53<$C$60),$B$61,$C$61) -> 0 | BD61: =IF(AND(BD$53>=$B$60, BD$53<$C$60),$B$61,$C$61) -> 0 | BE61: =IF(AND(BD$53>=$B$60, BD$53<$C$60),$B$61,$C$61) -> 0 | BG61: =IF(AND(BG$53>=$B$60, BG$53<$C$60),$B$61,$C$61) -> 0 | BH61: =IF(AND(BG$53>=$B$60, BG$53<$C$60),$B$61,$C$61) -> 0 | BJ61: =IF(AND(BJ$53>=$B$60, BJ$53<$C$60),$B$61,$C$61) -> 0 | BK61: =IF(AND(BJ$53>=$B$60, BJ$53<$C$60),$B$61,$C$61) -> 0 | BM61: =IF(AND(BM$53>=$B$60, BM$53<$C$60),$B$61,$C$61) -> 0 | BN61: =IF(AND(BM$53>=$B$60, BM$53<$C$60),$B$61,$C$61) -> 0
A63: Income Taxes Payable | E63: =E59*E61 -> 0 | F63: =F59*F61 -> 0 | H63: =H59*H61 -> 0 | I63: =I59*I61 -> 0 | K63: =K59*K61 -> 0 | L63: =L59*L61 -> 0 | N63: =N59*N61 -> 0 | O63: =O59*O61 -> 0 | Q63: =Q59*Q61 -> 0 | R63: =R59*R61 -> 0 | T63: =T59*T61 -> 0 | U63: =U59*U61 -> 0 | W63: =W59*W61 -> 0 | X63: =X59*X61 -> 0 | Z63: =Z59*Z61 -> 0 | AA63: =AA59*AA61 -> 0 | AC63: =AC59*AC61 -> 0 | AD63: =AD59*AD61 -> 0 | AF63: =AF59*AF61 -> 0 | AG63: =AG59*AG61 -> 0 | AI63: =AI59*AI61 -> 0 | AJ63: =AJ59*AJ61 -> 0 | AL63: =AL59*AL61 -> 0 | AM63: =AM59*AM61 -> 0 | AO63: =AO59*AO61 -> 0 | AP63: =AP59*AP61 -> 0 | AR63: =AR59*AR61 -> 0 | AS63: =AS59*AS61 -> 0 | AU63: =AU59*AU61 -> 0 | AV63: =AV59*AV61 -> 0 | AX63: =AX59*AX61 -> 0 | AY63: =AY59*AY61 -> 0 | BA63: =BA59*BA61 -> 0 | BB63: =BB59*BB61 -> 0 | BD63: =BD59*BD61 -> 0 | BE63: =BE59*BE61 -> 0 | BG63: =BG59*BG61 -> 0 | BH63: =BH59*BH61 -> 0 | BJ63: =BJ59*BJ61 -> 0 | BK63: =BK59*BK61 -> 0 | BM63: =BM59*BM61 -> 0 | BN63: =BN59*BN61 -> 0
A64: Gross Up
A65: Income Taxes Payable | E65: =E63/(1-E61) -> 0 | F65: =F63/(1-F61) -> 0 | H65: =H63/(1-H61) -> 0 | I65: =I63/(1-I61) -> 0 | K65: =K63/(1-K61) -> 0 | L65: =L63/(1-L61) -> 0 | N65: =N63/(1-N61) -> 0 | O65: =O63/(1-O61) -> 0 | Q65: =Q63/(1-Q61) -> 0 | R65: =R63/(1-R61) -> 0 | T65: =T63/(1-T61) -> 0 | U65: =U63/(1-U61) -> 0 | W65: =W63/(1-W61) -> 0 | X65: =X63/(1-X61) -> 0 | Z65: =Z63/(1-Z61) -> 0 | AA65: =AA63/(1-AA61) -> 0 | AC65: =AC63/(1-AC61) -> 0 | AD65: =AD63/(1-AD61) -> 0 | AF65: =AF63/(1-AF61) -> 0 | AG65: =AG63/(1-AG61) -> 0 | AI65: =AI63/(1-AI61) -> 0 | AJ65: =AJ63/(1-AJ61) -> 0 | AL65: =AL63/(1-AL61) -> 0 | AM65: =AM63/(1-AM61) -> 0 | AO65: =AO63/(1-AO61) -> 0 | AP65: =AP63/(1-AP61) -> 0 | AR65: =AR63/(1-AR61) -> 0 | AS65: =AS63/(1-AS61) -> 0 | AU65: =AU63/(1-AU61) -> 0 | AV65: =AV63/(1-AV61) -> 0 | AX65: =AX63/(1-AX61) -> 0 | AY65: =AY63/(1-AY61) -> 0 | BA65: =BA63/(1-BA61) -> 0 | BB65: =BB63/(1-BB61) -> 0 | BD65: =BD63/(1-BD61) -> 0 | BE65: =BE63/(1-BE61) -> 0 | BG65: =BG63/(1-BG61) -> 0 | BH65: =BH63/(1-BH61) -> 0 | BJ65: =BJ63/(1-BJ61) -> 0 | BK65: =BK63/(1-BK61) -> 0 | BM65: =BM63/(1-BM61) -> 0 | BN65: =BN63/(1-BN61) -> 0
A66: Grossed Up PILs | E66: =+E65 -> 0 | F66: =+F65 -> 0 | H66: =+H65 -> 0 | I66: =+I65 -> 0 | K66: =+K65 -> 0 | L66: =+L65 -> 0 | N66: =+N65 -> 0 | O66: =+O65 -> 0 | Q66: =+Q65 -> 0 | R66: =+R65 -> 0 | T66: =+T65 -> 0 | U66: =+U65 -> 0 | W66: =+W65 -> 0 | X66: =+X65 -> 0 | Z66: =+Z65 -> 0 | AA66: =+AA65 -> 0 | AC66: =+AC65 -> 0 | AD66: =+AD65 -> 0 | AF66: =+AF65 -> 0 | AG66: =+AG65 -> 0 | AI66: =+AI65 -> 0 | AJ66: =+AJ65 -> 0 | AL66: =+AL65 -> 0 | AM66: =+AM65 -> 0 | AO66: =+AO65 -> 0 | AP66: =+AP65 -> 0 | AR66: =+AR65 -> 0 | AS66: =+AS65 -> 0 | AU66: =+AU65 -> 0 | AV66: =+AV65 -> 0 | AX66: =+AX65 -> 0 | AY66: =+AY65 -> 0 | BA66: =+BA65 -> 0 | BB66: =+BB65 -> 0 | BD66: =+BD65 -> 0 | BE66: =+BE65 -> 0 | BG66: =+BG65 -> 0 | BH66: =+BH65 -> 0 | BJ66: =+BJ65 -> 0 | BK66: =+BK65 -> 0 | BM66: =+BM65 -> 0 | BN66: =+BN65 -> 0
J68: Test Year
E69: =F69-1 -> 2019 | F69: =G69-1 -> 2020 | G69: =H69-1 -> 2021 | H69: =I69-1 -> 2022 | I69: =J69-1 -> 2023 | J69: 2024 | K69: =J69+1 -> 2025 | L69: 2026 | M69: 2027 | N69: 2028 | O69: 2029 | P69: 2030 | Q69: 2031
A70: Net Fixed Assets
A71: Enter applicable amortization in years: | B71: 40
A72: Opening Gross Fixed Assets | F72: =E74 -> 0 | G72: 0 | H72: 0 | I72: 0 | J72: 0 | K72: 0 | L72: 0 | M72: 0 | N72: 0 | O72: 0 | P72: 0 | Q72: 0
A73: Capital Additions | E73: ='App.2-FA Proposed REG Invest.'!C62 -> 0 | F73: ='App.2-FA Proposed REG Invest.'!D62 -> 0 | G73: ='App.2-FA Proposed REG Invest.'!E62 -> 0 | H73: ='App.2-FA Proposed REG Invest.'!F62 -> 0 | I73: ='App.2-FA Proposed REG Invest.'!G62 -> 0 | J73: ='App.2-FA Proposed REG Invest.'!H62 -> 0 | K73: ='App.2-FA Proposed REG Invest.'!I62 -> 0 | L73: ='App.2-FA Proposed REG Invest.'!J62 -> 0 | M73: ='App.2-FA Proposed REG Invest.'!K62 -> 0 | N73: ='App.2-FA Proposed REG Invest.'!L62 -> 0 | O73: ='App.2-FA Proposed REG Invest.'!M62 -> 0 | P73: ='App.2-FA Proposed REG Invest.'!N62 -> 0 | Q73: ='App.2-FA Proposed REG Invest.'!O62 -> 0
A74: Closing Gross Fixed Assets | E74: =SUM(E72:E73) -> 0 | F74: 0 | G74: 0 | H74: 0 | I74: 0 | J74: 0 | K74: 0 | L74: 0 | M74: 0 | N74: 0 | O74: =SUM(O72:O73) -> 0 | P74: =SUM(P72:P73) -> 0 | Q74: =SUM(Q72:Q73) -> 0
A76: Opening Accumulated Amortization | F76: =+E79 -> 0 | G76: =+F79 -> 0 | H76: 0 | I76: 0 | J76: 0 | K76: 0 | L76: 0 | M76: 0 | N76: 0 | O76: 0 | P76: 0 | Q76: 0
A77: Current Year Amortization (before additions) | E77: =IF(ISERROR(E72/$B$71), 0, E72/$B$71) -> 0 | F77: =IF(ISERROR(F72/$B$71), 0, F72/$B$71) -> 0 | G77: 0 | H77: 0 | I77: 0 | J77: 0 | K77: 0 | L77: 0 | M77: 0 | N77: 0 | O77: =IF(ISERROR(O72/$B$71), 0, O72/$B$71) -> 0 | P77: =IF(ISERROR(P72/$B$71), 0, P72/$B$71) -> 0 | Q77: =IF(ISERROR(Q72/$B$71), 0, Q72/$B$71) -> 0
A78: Capital Additions Amortization (half year) | E78: =E73/$B$71/2 -> 0 | F78: =F73/$B$71/2 -> 0 | G78: 0 | H78: 0 | I78: 0 | J78: 0 | K78: 0 | L78: 0 | M78: 0 | N78: 0 | O78: =O73/$B$71/2 -> 0 | P78: =P73/$B$71/2 -> 0 | Q78: =Q73/$B$71/2 -> 0
A79: Closing Accumulated Amortization | E79: =SUM(E76+E77+E78) -> 0 | F79: 0 | G79: 0 | H79: 0 | I79: 0 | J79: 0 | K79: 0 | L79: 0 | M79: 0 | N79: 0 | O79: =SUM(O76+O77+O78) -> 0 | P79: =SUM(P76+P77+P78) -> 0 | Q79: =SUM(Q76+Q77+Q78) -> 0
A81: Opening Net Fixed Assets | E81: =E72-E76 -> 0 | F81: 0 | G81: 0 | H81: 0 | I81: 0 | J81: 0 | K81: 0 | L81: 0 | M81: 0 | N81: 0 | O81: =O72-O76 -> 0 | P81: =P72-P76 -> 0 | Q81: =Q72-Q76 -> 0
A82: Closing Net Fixed Assets | E82: =E74-E79 -> 0 | F82: 0 | G82: 0 | H82: 0 | I82: 0 | J82: 0 | K82: 0 | L82: 0 | M82: 0 | N82: 0 | O82: =O74-O79 -> 0 | P82: =P74-P79 -> 0 | Q82: =Q74-Q79 -> 0
A83: Average Net Fixed Assets | E83: =SUM(E81:E82)/2 -> 0 | F83: 0 | G83: 0 | H83: 0 | I83: 0 | J83: 0 | K83: 0 | L83: 0 | M83: 0 | N83: 0 | O83: =SUM(O81:O82)/2 -> 0 | P83: =SUM(P81:P82)/2 -> 0 | Q83: =SUM(Q81:Q82)/2 -> 0
A85: UCC for PILs Calculation | J85: Test Year
E86: =E69 -> 2019 | F86: =F69 -> 2020 | G86: =G69 -> 2021 | H86: 2022 | I86: 2023 | J86: 2024 | K86: 2025 | L86: 2026 | M86: 2027 | N86: 2028 | O86: =O69 -> 2029 | P86: =P69 -> 2030 | Q86: =Q69 -> 2031
A88: Opening UCC | E88: =E72 -> 0 | F88: =E96 -> 0 | G88: 0 | H88: 0 | I88: 0 | J88: 0 | K88: 0 | L88: 0 | M88: 0 | N88: 0 | O88: 0 | P88: 0 | Q88: 0
A89: Capital Additions | E89: =E73 -> 0 | F89: 0 | G89: 0 | H89: 0 | I89: 0 | J89: 0 | K89: 0 | L89: 0 | M89: 0 | N89: 0 | O89: =O73 -> 0 | P89: =P73 -> 0 | Q89: =Q73 -> 0
A90: UCC Before Half Year Rule | E90: =SUM(E88:E89) -> 0 | F90: 0 | G90: 0 | H90: 0 | I90: 0 | J90: 0 | K90: 0 | L90: 0 | M90: 0 | N90: 0 | O90: =SUM(O88:O89) -> 0 | P90: =SUM(P88:P89) -> 0 | Q90: =SUM(Q88:Q89) -> 0
A91: Capital Additions (half year) | E91: =E89/2 -> 0 | F91: 0 | G91: 0 | H91: 0 | I91: 0 | J91: 0 | K91: 0 | L91: 0 | M91: 0 | N91: 0 | O91: =O89/2 -> 0 | P91: =P89/2 -> 0 | Q91: =Q89/2 -> 0
A92: Reduced UCC | E92: =E90-E91 -> 0 | F92: 0 | G92: 0 | H92: 0 | I92: 0 | J92: 0 | K92: 0 | L92: 0 | M92: 0 | N92: 0 | O92: =O90-O91 -> 0 | P92: =P90-P91 -> 0 | Q92: =Q90-Q91 -> 0
A93: CCA Rate Class (to be entered)
A94: CCA Rate (to be entered)
A95: CCA | E95: =E92*$B$94 -> 0 | F95: =F92*$B$94 -> 0 | G95: 0 | H95: 0 | I95: 0 | J95: 0 | K95: 0 | L95: 0 | M95: 0 | N95: 0 | O95: =O92*$B$94 -> 0 | P95: =P92*$B$94 -> 0 | Q95: =Q92*$B$94 -> 0
A96: Closing UCC | E96: =E90-E95 -> 0 | F96: 0 | G96: 0 | H96: 0 | I96: 0 | J96: 0 | K96: 0 | L96: 0 | M96: 0 | N96: 0 | O96: =O90-O95 -> 0 | P96: =P90-P95 -> 0 | Q96: =Q90-Q95 -> 0

Sheet App.2-FC Calc of REG Expansion
R1: File Number: | S1: 0
R2: Exhibit: | S2: N/A
R3: Tab:
R4: Schedule:
R5: Page:
R7: Date: | S7: 2026-05-19
A9: Appendix 2-FC
A10: Calculation of Renewable Generation Connection Direct Benefits/Provincial Amount: Renewable Expansion Investments
A12: This table will calculate the distributor/provincial shares of the investments entered in Part B of Appendix 2-FA.
A13: Enter values in green shaded cells: WCA percentage, debt percentages, interest rates, kWh, tax rates, amortization period, CCA Class and percentage.
A14: For historical investments, enter these variables that were approved in your last cost of service test year. For test year and beyond, enter variables as in the application.
A15: Rate Riders related to the direct benefit portion of the renewable investments are not calculated for the Test Year as these assets and costs are already in the distributor's rate base/revenue requirement.
S16: Test Year
D17: =G17-1 -> 2022 | G17: =J17-1 -> 2023 | J17: =M17-1 -> 2024 | M17: =P17-1 -> 2025 | P17: =S17-1 -> 2026 | S17: ='LDC Info'!$E$24 -> 2027 | V17: =S17+1 -> 2028 | Y17: =V17+1 -> 2029 | Z17: 2016 | AB17: =Y17+1 -> 2030 | AE17: =AB17+1 -> 2031 | AH17: =AE17+1 -> 2032
E18: Direct Benefit | F18: Provincial | H18: Direct Benefit | I18: Provincial | K18: Direct Benefit | L18: Provincial | N18: Direct Benefit | O18: Provincial | Q18: Direct Benefit | R18: Provincial | T18: Direct Benefit | U18: Provincial | W18: Direct Benefit | X18: Provincial | Z18: Direct Benefit | AA18: Provincial | AC18: Direct Benefit | AD18: Provincial | AF18: Direct Benefit | AG18: Provincial | AI18: Direct Benefit | AJ18: Provincial
D19: Total | E19: 0.17 | F19: 0.83 | G19: Total | H19: 0.17 | I19: 0.83 | J19: Total | K19: 0.17 | L19: 0.83 | M19: Total | N19: 0.17 | O19: 0.83 | P19: Total | Q19: 0.17 | R19: 0.83 | S19: Total | T19: 0.17 | U19: 0.83 | V19: Total | W19: 0.17 | X19: 0.83 | Y19: Total | Z19: 0.17 | AA19: 0.83 | AB19: Total | AC19: 0.17 | AD19: 0.83 | AE19: Total | AF19: 0.17 | AG19: 0.83 | AH19: Total | AI19: 0.17 | AJ19: 0.83
A20: Net Fixed Assets (average) | D20: =E83 -> 0 | E20: =D20*E19 -> 0 | F20: =D20*F19 -> 0 | G20: =F83 -> 0 | H20: =G20*H19 -> 0 | I20: =G20*I19 -> 0 | J20: =G83 -> 0 | K20: =J20*K19 -> 0 | L20: =J20*L19 -> 0 | M20: =H83 -> 0 | N20: =M20*N19 -> 0 | O20: =M20*O19 -> 0 | P20: =I83 -> 0 | Q20: =P20*Q19 -> 0 | R20: =P20*R19 -> 0 | S20: =J83 -> 0 | T20: =S20*T19 -> 0 | U20: =S20*U19 -> 0 | V20: =K83 -> 0 | W20: =V20*W19 -> 0 | X20: =V20*X19 -> 0 | Y20: =L83 -> 0 | Z20: =Y20*Z19 -> 0 | AA20: =Y20*AA19 -> 0 | AB20: =M83 -> 0 | AC20: =AB20*AC19 -> 0 | AD20: =AB20*AD19 -> 0 | AE20: =N83 -> 0 | AF20: =AE20*AF19 -> 0 | AG20: =AE20*AG19 -> 0 | AH20: =O83 -> 0 | AI20: =AH20*AI19 -> 0 | AJ20: =AH20*AJ19 -> 0
A21: Incremental OM&A (on-going, N/A for Provincial Recovery) | D21: 0 | E21: =D21*E19 -> 0 | F21: =D21*F19 -> 0 | G21: 0 | H21: =G21*H19 -> 0 | I21: =G21*I19 -> 0 | J21: 0 | K21: =J21*K19 -> 0 | L21: =J21*L19 -> 0 | M21: 0 | N21: =M21*N19 -> 0 | O21: =M21*O19 -> 0 | P21: 0 | Q21: =P21*Q19 -> 0 | R21: =P21*R19 -> 0 | S21: 0 | T21: =S21*T19 -> 0 | U21: =S21*U19 -> 0 | V21: 0 | W21: =V21*W19 -> 0 | X21: =V21*X19 -> 0 | Y21: 0 | Z21: =Y21*Z19 -> 0 | AA21: =Y21*AA19 -> 0 | AB21: 0 | AC21: =AB21*AC19 -> 0 | AD21: =AB21*AD19 -> 0 | AE21: 0 | AF21: =AE21*AF19 -> 0 | AG21: =AE21*AG19 -> 0 | AH21: 0 | AI21: =AH21*AI19 -> 0 | AJ21: =AH21*AJ19 -> 0
A22: Incremental OM&A (start-up, applicable for Provincial Recovery) | D22: 0 | E22: =D22*E19 -> 0 | F22: =D22*F19 -> 0 | G22: 0 | H22: =G22*H19 -> 0 | I22: =G22*I19 -> 0 | J22: 0 | K22: =J22*K19 -> 0 | L22: =J22*L19 -> 0 | M22: 0 | N22: =M22*N19 -> 0 | O22: =M22*O19 -> 0 | P22: 0 | Q22: =P22*Q19 -> 0 | R22: =P22*R19 -> 0 | S22: 0 | T22: =S22*T19 -> 0 | U22: =S22*U19 -> 0 | V22: 0 | W22: =V22*W19 -> 0 | X22: =V22*X19 -> 0 | Y22: 0 | Z22: =Y22*Z19 -> 0 | AA22: =Y22*AA19 -> 0 | AB22: 0 | AC22: =AB22*AC19 -> 0 | AD22: =AB22*AD19 -> 0 | AE22: 0 | AF22: =AE22*AF19 -> 0 | AG22: =AE22*AG19 -> 0 | AH22: 0 | AI22: =AH22*AI19 -> 0 | AJ22: =AH22*AJ19 -> 0
A23: Rebasing Year vs. Test Year | B23: ='LDC Info'!E28 -> 2022 | C23: ='LDC Info'!E24 -> 2027
A24: Allowance for Working Capital (enter rate) | B24: ='App.2-FB Calc of REG Improvemnt'!B24 -> 0.075 | E24: =IF(AND(D$17>=$B$23, D$17<$C$23),(E21+E22)*$B$24,(E21+E22)*$C$24) -> 0 | F24: =IF(AND(D$17>=$B$23, D$17<$C$23),(F22)*$B$24,(F22)*$C$24) -> 0 | H24: =IF(AND(G$17>=$B$23, G$17<$C$23),(H21+H22)*$B$24,(H21+H22)*$C$24) -> 0 | I24: =IF(AND(G$17>=$B$23, G$17<$C$23),(I22)*$B$24,(I22)*$C$24) -> 0 | K24: =IF(AND(J$17>=$B$23, J$17<$C$23),(K21+K22)*$B$24,(K21+K22)*$C$24) -> 0 | L24: =IF(AND(J$17>=$B$23, J$17<$C$23),(L22)*$B$24,(L22)*$C$24) -> 0 | N24: =IF(AND(M$17>=$B$23, M$17<$C$23),(N21+N22)*$B$24,(N21+N22)*$C$24) -> 0 | O24: =IF(AND(M$17>=$B$23, M$17<$C$23),(O22)*$B$24,(O22)*$C$24) -> 0 | Q24: =IF(AND(P$17>=$B$23, P$17<$C$23),(Q21+Q22)*$B$24,(Q21+Q22)*$C$24) -> 0 | R24: =IF(AND(P$17>=$B$23, P$17<$C$23),(R22)*$B$24,(R22)*$C$24) -> 0 | T24: =IF(AND(S$17>=$B$23, S$17<$C$23),(T21+T22)*$B$24,(T21+T22)*$C$24) -> 0 | U24: =IF(AND(S$17>=$B$23, S$17<$C$23),(U22)*$B$24,(U22)*$C$24) -> 0 | W24: =IF(AND(V$17>=$B$23, V$17<$C$23),(W21+W22)*$B$24,(W21+W22)*$C$24) -> 0 | X24: =IF(AND(V$17>=$B$23, V$17<$C$23),(X22)*$B$24,(X22)*$C$24) -> 0 | Z24: =IF(AND(Y$17>=$B$23, Y$17<$C$23),(Z21+Z22)*$B$24,(Z21+Z22)*$C$24) -> 0 | AA24: =IF(AND(Y$17>=$B$23, Y$17<$C$23),(AA22)*$B$24,(AA22)*$C$24) -> 0 | AC24: =IF(AND(AB$17>=$B$23, AB$17<$C$23),(AC21+AC22)*$B$24,(AC21+AC22)*$C$24) -> 0 | AD24: =IF(AND(AB$17>=$B$23, AB$17<$C$23),(AD22)*$B$24,(AD22)*$C$24) -> 0 | AF24: =IF(AND(AE$17>=$B$23, AE$17<$C$23),(AF21+AF22)*$B$24,(AF21+AF22)*$C$24) -> 0 | AG24: =IF(AND(AE$17>=$B$23, AE$17<$C$23),(AG22)*$B$24,(AG22)*$C$24) -> 0 | AI24: =IF(AND(AH$17>=$B$23, AH$17<$C$23),(AI21+AI22)*$B$24,(AI21+AI22)*$C$24) -> 0 | AJ24: =IF(AND(AH$17>=$B$23, AH$17<$C$23),(AJ22)*$B$24,(AJ22)*$C$24) -> 0
A25: Rate Base | E25: =SUM(E20+E24) -> 0 | F25: =SUM(F20+F24) -> 0 | H25: =SUM(H20+H24) -> 0 | I25: =SUM(I20+I24) -> 0 | K25: =SUM(K20+K24) -> 0 | L25: =SUM(L20+L24) -> 0 | N25: =SUM(N20+N24) -> 0 | O25: =SUM(O20+O24) -> 0 | Q25: =SUM(Q20+Q24) -> 0 | R25: =SUM(R20+R24) -> 0 | T25: =SUM(T20+T24) -> 0 | U25: =SUM(U20+U24) -> 0 | W25: =SUM(W20+W24) -> 0 | X25: =SUM(X20+X24) -> 0 | Z25: =SUM(Z20+Z24) -> 0 | AA25: =SUM(AA20+AA24) -> 0 | AC25: =SUM(AC20+AC24) -> 0 | AD25: =SUM(AD20+AD24) -> 0 | AF25: =SUM(AF20+AF24) -> 0 | AG25: =SUM(AG20+AG24) -> 0 | AI25: =SUM(AI20+AI24) -> 0 | AJ25: =SUM(AJ20+AJ24) -> 0
B27: =B23 -> 2022 | C27: =C23 -> 2027
A28: Deemed ST Debt | B28: 0.04 | C28: 0.04 | E28: =E25*$B$28 -> 0 | F28: =F25*$B$28 -> 0 | H28: =H25*$B$28 -> 0 | I28: =I25*$B$28 -> 0 | K28: =K25*$B$28 -> 0 | L28: =L25*$B$28 -> 0 | N28: =N25*$B$28 -> 0 | O28: =O25*$B$28 -> 0 | Q28: =Q25*$B$28 -> 0 | R28: =R25*$B$28 -> 0 | T28: =T25*$C$28 -> 0 | U28: =U25*$C$28 -> 0 | W28: =W25*$C$28 -> 0 | X28: =X25*$C$28 -> 0 | Z28: =Z25*$C$28 -> 0 | AA28: =AA25*$C$28 -> 0 | AC28: =AC25*$C$28 -> 0 | AD28: =AD25*$C$28 -> 0 | AF28: =AF25*$C$28 -> 0 | AG28: =AG25*$C$28 -> 0 | AI28: =AI25*$C$28 -> 0 | AJ28: =AJ25*$C$28 -> 0
A29: Deemed LT Debt | B29: 0.56 | C29: 0.56 | E29: =E25*$B$29 -> 0 | F29: =F25*$B$29 -> 0 | H29: =H25*$B$29 -> 0 | I29: =I25*$B$29 -> 0 | K29: =K25*$B$29 -> 0 | L29: =L25*$B$29 -> 0 | N29: =N25*$B$29 -> 0 | O29: =O25*$B$29 -> 0 | Q29: =Q25*$B$29 -> 0 | R29: =R25*$B$29 -> 0 | T29: =T25*$C$29 -> 0 | U29: =U25*$C$29 -> 0 | W29: =W25*$C$29 -> 0 | X29: =X25*$C$29 -> 0 | Z29: =Z25*$C$29 -> 0 | AA29: =AA25*$C$29 -> 0 | AC29: =AC25*$C$29 -> 0 | AD29: =AD25*$C$29 -> 0 | AF29: =AF25*$C$29 -> 0 | AG29: =AG25*$C$29 -> 0 | AI29: =AI25*$C$29 -> 0 | AJ29: =AJ25*$C$29 -> 0
A30: Deemed Equity | B30: 0.4 | C30: 0.4 | E30: =E25*$B$30 -> 0 | F30: =F25*$B$30 -> 0 | H30: =H25*$B$30 -> 0 | I30: =I25*$B$30 -> 0 | K30: =K25*$B$30 -> 0 | L30: =L25*$B$30 -> 0 | N30: =N25*$B$30 -> 0 | O30: =O25*$B$30 -> 0 | Q30: =Q25*$B$30 -> 0 | R30: =R25*$B$30 -> 0 | T30: =T25*$C$30 -> 0 | U30: =U25*$C$30 -> 0 | W30: =W25*$C$30 -> 0 | X30: =X25*$C$30 -> 0 | Z30: =Z25*$C$30 -> 0 | AA30: =AA25*$C$30 -> 0 | AC30: =AC25*$C$30 -> 0 | AD30: =AD25*$C$30 -> 0 | AF30: =AF25*$C$30 -> 0 | AG30: =AG25*$C$30 -> 0 | AI30: =AI25*$C$30 -> 0 | AJ30: =AJ25*$C$30 -> 0
A32: ST Interest (enter rate) | B32: ='App.2-FB Calc of REG Improvemnt'!B32 -> 0 | E32: =E28*$B32 -> 0 | F32: 0 | H32: 0 | I32: 0 | K32: 0 | L32: 0 | N32: 0 | O32: 0 | Q32: 0 | R32: 0 | T32: =T28*$C32 -> 0 | U32: 0 | W32: =W28*$C32 -> 0 | X32: 0 | Z32: =Z28*$C32 -> 0 | AA32: 0 | AC32: =AC28*$C32 -> 0 | AD32: 0 | AF32: =AF28*$C32 -> 0 | AG32: 0 | AI32: =AI28*$C32 -> 0 | AJ32: 0
A33: LT Interest (enter rate) | B33: ='App.2-FB Calc of REG Improvemnt'!B33 -> 0 | E33: 0 | F33: 0 | H33: 0 | I33: 0 | K33: 0 | L33: 0 | N33: 0 | O33: 0 | Q33: 0 | R33: 0 | T33: 0 | U33: 0 | W33: 0 | X33: 0 | Z33: 0 | AA33: 0 | AC33: 0 | AD33: 0 | AF33: 0 | AG33: 0 | AI33: 0 | AJ33: 0
A34: Return on Equity (enter rate) | B34: ='App.2-FB Calc of REG Improvemnt'!B34 -> 0.0866 | E34: 0 | F34: 0 | H34: 0 | I34: 0 | K34: 0 | L34: 0 | N34: 0 | O34: 0 | Q34: 0 | R34: 0 | T34: 0 | U34: 0 | W34: 0 | X34: 0 | Z34: 0 | AA34: 0 | AC34: 0 | AD34: 0 | AF34: 0 | AG34: 0 | AI34: 0 | AJ34: 0
A35: Cost of Capital Total | E35: =SUM(E32:E34) -> 0 | F35: =SUM(F32:F34) -> 0 | H35: =SUM(H32:H34) -> 0 | I35: =SUM(I32:I34) -> 0 | K35: =SUM(K32:K34) -> 0 | L35: =SUM(L32:L34) -> 0 | N35: =SUM(N32:N34) -> 0 | O35: =SUM(O32:O34) -> 0 | Q35: =SUM(Q32:Q34) -> 0 | R35: =SUM(R32:R34) -> 0 | T35: =SUM(T32:T34) -> 0 | U35: =SUM(U32:U34) -> 0 | W35: =SUM(W32:W34) -> 0 | X35: =SUM(X32:X34) -> 0 | Z35: =SUM(Z32:Z34) -> 0 | AA35: =SUM(AA32:AA34) -> 0 | AC35: =SUM(AC32:AC34) -> 0 | AD35: =SUM(AD32:AD34) -> 0 | AF35: =SUM(AF32:AF34) -> 0 | AG35: =SUM(AG32:AG34) -> 0 | AI35: =SUM(AI32:AI34) -> 0 | AJ35: =SUM(AJ32:AJ34) -> 0
A37: OM&A | E37: =E21+E22 -> 0 | F37: =F22 -> 0 | H37: =H21+H22 -> 0 | I37: =I22 -> 0 | K37: =K21+K22 -> 0 | L37: =L22 -> 0 | N37: =N21+N22 -> 0 | O37: =O22 -> 0 | Q37: =Q21+Q22 -> 0 | R37: =R22 -> 0 | T37: =T21+T22 -> 0 | U37: =U22 -> 0 | W37: =W21+W22 -> 0 | X37: =X22 -> 0 | Z37: =Z21+Z22 -> 0 | AA37: =AA22 -> 0 | AC37: =AC21+AC22 -> 0 | AD37: =AD22 -> 0 | AF37: =AF21+AF22 -> 0 | AG37: =AG22 -> 0 | AI37: =AI21+AI22 -> 0 | AJ37: =AJ22 -> 0
A38: Amortization | D38: =+E77+E78 -> 0 | E38: =D38*E$19 -> 0 | F38: =D38*F$19 -> 0 | G38: =+F77+F78 -> 0 | H38: =G38*H$19 -> 0 | I38: =G38*I$19 -> 0 | J38: =+G77+G78 -> 0 | K38: =J38*K$19 -> 0 | L38: =J38*L$19 -> 0 | M38: =+H77+H78 -> 0 | N38: =M38*N$19 -> 0 | O38: =M38*O$19 -> 0 | P38: =+I77+I78 -> 0 | Q38: =P38*Q$19 -> 0 | R38: =P38*R$19 -> 0 | S38: =+J77+J78 -> 0 | T38: =S38*T$19 -> 0 | U38: =S38*U$19 -> 0 | V38: =+K77+K78 -> 0 | W38: =V38*W$19 -> 0 | X38: =V38*X$19 -> 0 | Y38: =+L77+L78 -> 0 | Z38: =Y38*Z$19 -> 0 | AA38: =Y38*AA$19 -> 0 | AB38: =+M77+M78 -> 0 | AC38: =AB38*AC$19 -> 0 | AD38: =AB38*AD$19 -> 0 | AE38: =+N77+N78 -> 0 | AF38: =AE38*AF$19 -> 0 | AG38: =AE38*AG$19 -> 0 | AH38: =+O77+O78 -> 0 | AI38: =AH38*AI$19 -> 0 | AJ38: =AH38*AJ$19 -> 0
A39: Grossed-up PILs | E39: =+E66 -> 0 | F39: =+F66 -> 0 | H39: =+H66 -> 0 | I39: =+I66 -> 0 | K39: =+K66 -> 0 | L39: =+L66 -> 0 | N39: =+N66 -> 0 | O39: =+O66 -> 0 | Q39: =+Q66 -> 0 | R39: =+R66 -> 0 | T39: =+T66 -> 0 | U39: =+U66 -> 0 | W39: =+W66 -> 0 | X39: =+X66 -> 0 | Z39: =+Z66 -> 0 | AA39: =+AA66 -> 0 | AC39: =+AC66 -> 0 | AD39: =+AD66 -> 0 | AF39: =+AF66 -> 0 | AG39: =+AG66 -> 0 | AI39: =+AI66 -> 0 | AJ39: =+AJ66 -> 0
A41: Revenue Requirement | E41: =SUM(E35:E39) -> 0 | F41: =SUM(F35:F39) -> 0 | H41: =SUM(H35:H39) -> 0 | I41: =SUM(I35:I39) -> 0 | K41: =SUM(K35:K39) -> 0 | L41: =SUM(L35:L39) -> 0 | N41: =SUM(N35:N39) -> 0 | O41: =SUM(O35:O39) -> 0 | Q41: =SUM(Q35:Q39) -> 0 | R41: =SUM(R35:R39) -> 0 | T41: =SUM(T35:T39) -> 0 | U41: =SUM(U35:U39) -> 0 | W41: =SUM(W35:W39) -> 0 | X41: =SUM(X35:X39) -> 0 | Z41: =SUM(Z35:Z39) -> 0 | AA41: =SUM(AA35:AA39) -> 0 | AC41: =SUM(AC35:AC39) -> 0 | AD41: =SUM(AD35:AD39) -> 0 | AF41: =SUM(AF35:AF39) -> 0 | AG41: =SUM(AG35:AG39) -> 0 | AI41: =SUM(AI35:AI39) -> 0 | AJ41: =SUM(AJ35:AJ39) -> 0
A44: Provincial Rate Protection | F44: =F41 -> 0 | I44: =I41 -> 0 | L44: =L41 -> 0 | O44: =O41 -> 0 | R44: =R41 -> 0 | U44: =U41 -> 0 | X44: =X41 -> 0 | AA44: =AA41 -> 0 | AD44: =AD41 -> 0 | AG44: =AG41 -> 0 | AJ44: =AJ41 -> 0
A46: Monthly Amount Paid by IESO | F46: =F44/12 -> 0 | I46: =I44/12 -> 0 | L46: =L44/12 -> 0 | O46: =O44/12 -> 0 | R46: =R44/12 -> 0 | U46: =U44/12 -> 0 | X46: =X44/12 -> 0 | AA46: =AA44/12 -> 0 | AD46: =AD44/12 -> 0 | AG46: =AG44/12 -> 0 | AJ46: =AJ44/12 -> 0
A48: Note 1: The distributor should follow the regulatory accounting set out in the Accounting Procedure Handbook Guidance FAQs issued in March 2015. Q10 of the APH FAQs states that: “For approved eligible investments as defined under O.Reg. 330/09 under the OEB Act, a variance account will continue to be used for the purpose of recording variances between the revenue requirement based on actual costs of approved eligible investments and the revenue received from the IESO.” The answer for Q10 provides the accounting guidance for this variance account: “Distributors that have included eligible investments to connect qualifying facilities in their DS plans are to establish the variance Account 1533 Renewable Generation Connection Funding Adder Deferral Account, Sub-account Provincial Rate Protection Payment Variances following OEB approval for investments forecast to enter service beyond the test year for purposes of implementing rate protection pursuant to O.Reg. 330/09. The purpose of this variance account is to track the variance between the distributor’s revenue requirement associated with the portion of the actual capital and/or operating costs that are eligible for rate protection, as incurred by the distributor for eligible renewable enabling and expansion investments, and the rate protection payments collected from the IESO.” The answer further provides the journal entries to record the variances. Distributors should follow the instructions in the answer for recording the journal entries in the variance account 1533.
A50: Note 2: For the Test Year, Costs and Revenues of the Direct Benefit are to be included in the test year applicant Rate Base and Revenues.
A52: PILs Calculation | T52: Test Year
E53: =G17-1 -> 2022 | H53: =G17 -> 2023 | K53: =J17 -> 2024 | N53: =M17 -> 2025 | Q53: =P17 -> 2026 | T53: =S17 -> 2027 | W53: =V17 -> 2028 | Z53: =Y17 -> 2029 | AC53: =AB17 -> 2030 | AF53: =AE17 -> 2031 | AI53: =AH17 -> 2032
A54: Income Tax | E54: Direct Benefit | F54: Provincial | H54: Direct Benefit | I54: Provincial | K54: Direct Benefit | L54: Provincial | N54: Direct Benefit | O54: Provincial | Q54: Direct Benefit | R54: Provincial | T54: Direct Benefit | U54: Provincial | W54: Direct Benefit | X54: Provincial | Z54: Direct Benefit | AA54: Provincial | AC54: Direct Benefit | AD54: Provincial | AF54: Direct Benefit | AG54: Provincial | AI54: Direct Benefit | AJ54: Provincial
AB55: Total | AE55: Total | AH55: Total
A56: Net Income - ROE on Rate Base | E56: =E34 -> 0 | F56: =F34 -> 0 | H56: =H34 -> 0 | I56: =I34 -> 0 | K56: =K34 -> 0 | L56: =L34 -> 0 | N56: =N34 -> 0 | O56: =O34 -> 0 | Q56: =Q34 -> 0 | R56: =R34 -> 0 | T56: =T34 -> 0 | U56: =U34 -> 0 | W56: =W34 -> 0 | X56: =X34 -> 0 | Z56: =Z34 -> 0 | AA56: =AA34 -> 0 | AC56: =AC34 -> 0 | AD56: =AD34 -> 0 | AF56: =AF34 -> 0 | AG56: =AG34 -> 0 | AI56: =AI34 -> 0 | AJ56: =AJ34 -> 0
A57: Amortization (6% DB and 94% P) | E57: =E38 -> 0 | F57: =F38 -> 0 | H57: =H38 -> 0 | I57: =I38 -> 0 | K57: =K38 -> 0 | L57: =L38 -> 0 | N57: =N38 -> 0 | O57: =O38 -> 0 | Q57: =Q38 -> 0 | R57: =R38 -> 0 | T57: =T38 -> 0 | U57: =U38 -> 0 | W57: =W38 -> 0 | X57: =X38 -> 0 | Z57: =Z38 -> 0 | AA57: =AA38 -> 0 | AC57: =AC38 -> 0 | AD57: =AD38 -> 0 | AF57: =AF38 -> 0 | AG57: =AG38 -> 0 | AI57: =AI38 -> 0 | AJ57: =AJ38 -> 0
A58: CCA (6% DB and 94% P) | E58: =-E95*$E$19 -> 0 | F58: =-E95*$F$19 -> 0 | H58: =-F95*$E$19 -> 0 | I58: =-F95*$F$19 -> 0 | K58: =-G95*$E$19 -> 0 | L58: =-G95*$F$19 -> 0 | N58: =-H95*$E$19 -> 0 | O58: =-H95*$F$19 -> 0 | Q58: =-I95*$E$19 -> 0 | R58: =-I95*$F$19 -> 0 | T58: =-J95*$E$19 -> 0 | U58: =-J95*$F$19 -> 0 | W58: =-K95*$E$19 -> 0 | X58: =-K95*$F$19 -> 0 | Z58: =-L95*$E$19 -> 0 | AA58: =-L95*$F$19 -> 0 | AC58: =-M95*$E$19 -> 0 | AD58: =-M95*$F$19 -> 0 | AF58: =-N95*$E$19 -> 0 | AG58: =-N95*$F$19 -> 0 | AI58: =-Q95*$E$19 -> 0 | AJ58: =-Q95*$F$19 -> 0
A59: Taxable income | E59: =SUM(E56:E58) -> 0 | F59: =SUM(F56:F58) -> 0 | H59: =SUM(H56:H58) -> 0 | I59: =SUM(I56:I58) -> 0 | K59: =SUM(K56:K58) -> 0 | L59: =SUM(L56:L58) -> 0 | N59: =SUM(N56:N58) -> 0 | O59: =SUM(O56:O58) -> 0 | Q59: =SUM(Q56:Q58) -> 0 | R59: =SUM(R56:R58) -> 0 | T59: =SUM(T56:T58) -> 0 | U59: =SUM(U56:U58) -> 0 | W59: =SUM(W56:W58) -> 0 | X59: =SUM(X56:X58) -> 0 | Z59: =SUM(Z56:Z58) -> 0 | AA59: =SUM(AA56:AA58) -> 0 | AC59: =SUM(AC56:AC58) -> 0 | AD59: =SUM(AD56:AD58) -> 0 | AF59: =SUM(AF56:AF58) -> 0 | AG59: =SUM(AG56:AG58) -> 0 | AI59: =SUM(AI56:AI58) -> 0 | AJ59: =SUM(AJ56:AJ58) -> 0
B60: =B27 -> 2022 | C60: =C27 -> 2027
A61: Tax Rate (to be entered) | E61: =IF(AND(E$53>=$B$60, E$53<$C$60),$B$61,$C$61) -> 0 | F61: =IF(AND(E$53>=$B$60, E$53<$C$60),$B$61,$C$61) -> 0 | H61: =IF(AND(H$53>=$B$60, H$53<$C$60),$B$61,$C$61) -> 0 | I61: =IF(AND(H$53>=$B$60, H$53<$C$60),$B$61,$C$61) -> 0 | K61: =IF(AND(K$53>=$B$60, K$53<$C$60),$B$61,$C$61) -> 0 | L61: =IF(AND(K$53>=$B$60, K$53<$C$60),$B$61,$C$61) -> 0 | N61: =IF(AND(N$53>=$B$60, N$53<$C$60),$B$61,$C$61) -> 0 | O61: =IF(AND(N$53>=$B$60, N$53<$C$60),$B$61,$C$61) -> 0 | Q61: =IF(AND(Q$53>=$B$60, Q$53<$C$60),$B$61,$C$61) -> 0 | R61: =IF(AND(Q$53>=$B$60, Q$53<$C$60),$B$61,$C$61) -> 0 | T61: =IF(AND(T$53>=$B$60, T$53<$C$60),$B$61,$C$61) -> 0 | U61: =IF(AND(T$53>=$B$60, T$53<$C$60),$B$61,$C$61) -> 0 | W61: =IF(AND(W$53>=$B$60, W$53<$C$60),$B$61,$C$61) -> 0 | X61: =IF(AND(W$53>=$B$60, W$53<$C$60),$B$61,$C$61) -> 0 | Z61: =IF(AND(Z$53>=$B$60, Z$53<$C$60),$B$61,$C$61) -> 0 | AA61: =IF(AND(Z$53>=$B$60, Z$53<$C$60),$B$61,$C$61) -> 0 | AC61: =IF(AND(AC$53>=$B$60, AC$53<$C$60),$B$61,$C$61) -> 0 | AD61: =IF(AND(AC$53>=$B$60, AC$53<$C$60),$B$61,$C$61) -> 0 | AF61: =IF(AND(AF$53>=$B$60, AF$53<$C$60),$B$61,$C$61) -> 0 | AG61: =IF(AND(AF$53>=$B$60, AF$53<$C$60),$B$61,$C$61) -> 0 | AI61: =IF(AND(AI$53>=$B$60, AI$53<$C$60),$B$61,$C$61) -> 0 | AJ61: =IF(AND(AI$53>=$B$60, AI$53<$C$60),$B$61,$C$61) -> 0
A63: Income Taxes Payable | E63: =E59*E61 -> 0 | F63: =F59*F61 -> 0 | H63: =H59*H61 -> 0 | I63: =I59*I61 -> 0 | K63: =K59*K61 -> 0 | L63: =L59*L61 -> 0 | N63: =N59*N61 -> 0 | O63: =O59*O61 -> 0 | Q63: =Q59*Q61 -> 0 | R63: =R59*R61 -> 0 | T63: =T59*T61 -> 0 | U63: =U59*U61 -> 0 | W63: =W59*W61 -> 0 | X63: =X59*X61 -> 0 | Z63: =Z59*Z61 -> 0 | AA63: =AA59*AA61 -> 0 | AC63: =AC59*AC61 -> 0 | AD63: =AD59*AD61 -> 0 | AF63: =AF59*AF61 -> 0 | AG63: =AG59*AG61 -> 0 | AI63: =AI59*AI61 -> 0 | AJ63: =AJ59*AJ61 -> 0
A64: Gross Up
A65: Income Taxes Payable | E65: =E63/(1-E61) -> 0 | F65: =F63/(1-F61) -> 0 | H65: =H63/(1-H61) -> 0 | I65: =I63/(1-I61) -> 0 | K65: =K63/(1-K61) -> 0 | L65: =L63/(1-L61) -> 0 | N65: =N63/(1-N61) -> 0 | O65: =O63/(1-O61) -> 0 | Q65: =Q63/(1-Q61) -> 0 | R65: =R63/(1-R61) -> 0 | T65: =T63/(1-T61) -> 0 | U65: =U63/(1-U61) -> 0 | W65: =W63/(1-W61) -> 0 | X65: =X63/(1-X61) -> 0 | Z65: =Z63/(1-Z61) -> 0 | AA65: =AA63/(1-AA61) -> 0 | AC65: =AC63/(1-AC61) -> 0 | AD65: =AD63/(1-AD61) -> 0 | AF65: =AF63/(1-AF61) -> 0 | AG65: =AG63/(1-AG61) -> 0 | AI65: =AI63/(1-AI61) -> 0 | AJ65: =AJ63/(1-AJ61) -> 0
A66: Grossed Up PILs | E66: =+E65 -> 0 | F66: =+F65 -> 0 | H66: =+H65 -> 0 | I66: =+I65 -> 0 | K66: =+K65 -> 0 | L66: =+L65 -> 0 | N66: =+N65 -> 0 | O66: =+O65 -> 0 | Q66: =+Q65 -> 0 | R66: =+R65 -> 0 | T66: =+T65 -> 0 | U66: =+U65 -> 0 | W66: =+W65 -> 0 | X66: =+X65 -> 0 | Z66: =+Z65 -> 0 | AA66: =+AA65 -> 0 | AC66: =+AC65 -> 0 | AD66: =+AD65 -> 0 | AF66: =+AF65 -> 0 | AG66: =+AG65 -> 0 | AI66: =+AI65 -> 0 | AJ66: =+AJ65 -> 0
J68: Test Year
E69: =F69-1 -> 2022 | F69: =G69-1 -> 2023 | G69: =H69-1 -> 2024 | H69: =I69-1 -> 2025 | I69: =J69-1 -> 2026 | J69: ='LDC Info'!E24 -> 2027 | K69: =J69+1 -> 2028 | L69: =K69+1 -> 2029 | M69: =L69+1 -> 2030 | N69: =M69+1 -> 2031 | O69: =N69+1 -> 2032
A70: Net Fixed Assets
A71: Enter applicable amortization in years: | B71: 40
A72: Opening Gross Fixed Assets | F72: =E74 -> 0 | G72: 0 | H72: 0 | I72: 0 | J72: 0 | K72: 0 | L72: 0 | M72: 0 | N72: 0 | O72: 0
A73: Capital Additions | E73: ='App.2-FA Proposed REG Invest.'!M99 -> 0 | F73: ='App.2-FA Proposed REG Invest.'!N99 -> 0 | G73: ='App.2-FA Proposed REG Invest.'!O99 -> 0 | H73: ='App.2-FA Proposed REG Invest.'!P99 -> 0 | I73: ='App.2-FA Proposed REG Invest.'!Q99 -> 0 | J73: ='App.2-FA Proposed REG Invest.'!R99 -> 0 | K73: ='App.2-FA Proposed REG Invest.'!S99 -> 0 | L73: ='App.2-FA Proposed REG Invest.'!T99 -> 0 | M73: ='App.2-FA Proposed REG Invest.'!U99 -> 0 | N73: ='App.2-FA Proposed REG Invest.'!V99 -> 0 | O73: ='App.2-FA Proposed REG Invest.'!W99 -> 0
A74: Closing Gross Fixed Assets | E74: =SUM(E72:E73) -> 0 | F74: 0 | G74: 0 | H74: 0 | I74: 0 | J74: 0 | K74: 0 | L74: 0 | M74: 0 | N74: 0 | O74: =SUM(O72:O73) -> 0
A76: Opening Accumulated Amortization | E76: 0 | F76: =+E79 -> 0 | G76: =+F79 -> 0 | H76: 0 | I76: 0 | J76: 0 | K76: 0 | L76: 0 | M76: 0 | N76: 0 | O76: 0
A77: Current Year Amortization (before additions) | E77: =IF(ISERROR(E72/$B$71), 0, E72/$B$71) -> 0 | F77: =IF(ISERROR(F72/$B$71), 0, F72/$B$71) -> 0 | G77: 0 | H77: 0 | I77: 0 | J77: 0 | K77: 0 | L77: 0 | M77: 0 | N77: 0 | O77: =IF(ISERROR(O72/$B$71), 0, O72/$B$71) -> 0
A78: Capital Additions Amortization (half year) | E78: =E73/$B$71/2 -> 0 | F78: =F73/$B$71/2 -> 0 | G78: 0 | H78: 0 | I78: 0 | J78: 0 | K78: 0 | L78: 0 | M78: 0 | N78: 0 | O78: =O73/$B$71/2 -> 0
A79: Closing Accumulated Amortization | E79: =SUM(E76+E77+E78) -> 0 | F79: 0 | G79: 0 | H79: 0 | I79: 0 | J79: 0 | K79: 0 | L79: 0 | M79: 0 | N79: 0 | O79: =SUM(O76+O77+O78) -> 0
A81: Opening Net Fixed Assets | E81: =E72-E76 -> 0 | F81: 0 | G81: 0 | H81: 0 | I81: 0 | J81: 0 | K81: 0 | L81: 0 | M81: 0 | N81: 0 | O81: =O72-O76 -> 0
A82: Closing Net Fixed Assets | E82: =E74-E79 -> 0 | F82: 0 | G82: 0 | H82: 0 | I82: 0 | J82: 0 | K82: 0 | L82: 0 | M82: 0 | N82: 0 | O82: =O74-O79 -> 0
A83: Average Net Fixed Assets | E83: =SUM(E81:E82)/2 -> 0 | F83: 0 | G83: 0 | H83: 0 | I83: 0 | J83: 0 | K83: 0 | L83: 0 | M83: 0 | N83: 0 | O83: =SUM(O81:O82)/2 -> 0
A85: UCC for PILs Calculation | J85: =J68 -> Test Year
E86: =E69 -> 2022 | F86: =F69 -> 2023 | G86: =G69 -> 2024 | H86: 2025 | I86: 2026 | J86: 2027 | K86: 2028 | L86: 2029 | M86: 2030 | N86: 2031 | O86: =O69 -> 2032
A88: Opening UCC | E88: =E72 -> 0 | F88: =E96 -> 0 | G88: 0 | H88: 0 | I88: 0 | J88: 0 | K88: 0 | L88: 0 | M88: 0 | N88: 0 | O88: 0
A89: Capital Additions | E89: =E73 -> 0 | F89: 0 | G89: 0 | H89: 0 | I89: 0 | J89: 0 | K89: 0 | L89: 0 | M89: 0 | N89: 0 | O89: =O73 -> 0
A90: UCC Before Half Year Rule | E90: =SUM(E88:E89) -> 0 | F90: 0 | G90: 0 | H90: 0 | I90: 0 | J90: 0 | K90: 0 | L90: 0 | M90: 0 | N90: 0 | O90: =SUM(O88:O89) -> 0
A91: Capital Additions (half year) | E91: =E89/2 -> 0 | F91: 0 | G91: 0 | H91: 0 | I91: 0 | J91: 0 | K91: 0 | L91: 0 | M91: 0 | N91: 0 | O91: =O89/2 -> 0
A92: Reduced UCC | E92: =E90-E91 -> 0 | F92: 0 | G92: 0 | H92: 0 | I92: 0 | J92: 0 | K92: 0 | L92: 0 | M92: 0 | N92: 0 | O92: =O90-O91 -> 0
A93: CCA Rate Class (to be entered)
A94: CCA Rate (to be entered)
A95: CCA | E95: =E92*$B$94 -> 0 | F95: =F92*$B$94 -> 0 | G95: 0 | H95: 0 | I95: 0 | J95: 0 | K95: 0 | L95: 0 | M95: 0 | N95: 0 | O95: =O92*$B$94 -> 0
A96: Closing UCC | E96: =E90-E95 -> 0 | F96: 0 | G96: 0 | H96: 0 | I96: 0 | J96: 0 | K96: 0 | L96: 0 | M96: 0 | N96: 0 | O96: =O90-O95 -> 0

Sheet App.2-G SQI
R1: File Number: | T1: =EBNUMBER -> EB-2026-0029
R2: Exhibit: | T2: 1
R3: Tab:
R4: Schedule:
R5: Page:
A6: Show RRR data
A7: No | R7: Date: | T7: 2026-05-19
A9: Appendix 2-G
A10: Service Reliability and Quality Indicators
A12: Service Reliability
A14: Index | B14: Excluding Loss of Supply and Major Event Days | G14: Including Major Event Days, Excluding Loss of Supply | L14: Including Loss of Supply, Excluding Major Event Days | Q14: Including Loss of Supply and Major Event Days
B16: =TestYear-6 -> 2021 | C16: =TestYear-5 -> 2022 | D16: =TestYear-4 -> 2023 | E16: =TestYear-3 -> 2024 | F16: =TestYear-2 -> 2025 | G16: =B16 -> 2021 | H16: 2022 | I16: 2023 | J16: 2024 | K16: 2025 | L16: 2021 | M16: 2022 | N16: 2023 | O16: 2024 | P16: 2025 | Q16: =L16 -> 2021 | R16: =M16 -> 2022 | S16: =N16 -> 2023 | T16: =O16 -> 2024 | U16: =P16 -> 2025
A17: SAIDI | B17: 2.5 | C17: 1.95 | D17: 2.25 | E17: 1.86 | F17: 2.66 | G17: 8.48 | H17: 42.65 | I17: 2.93 | J17: 1.86 | K17: 3.02 | L17: 3.66 | M17: 2.98 | N17: 2.92 | O17: 3.31 | P17: 3.49 | Q17: 9.64 | R17: 43.69 | S17: 3.59 | T17: 3.31 | U17: 3.85
A18: SAIFI | B18: 1.78 | C18: 1.67 | D18: 2.62 | E18: 1.66 | F18: 3.04 | G18: 3.41 | H18: 2.72 | I18: 3.01 | J18: 1.66 | K18: 3.11 | L18: 2.5 | M18: 2.59 | N18: 5.26 | O18: 1.9 | P18: 4.24 | Q18: 4.13 | R18: 3.65 | S18: 5.65 | T18: 1.9 | U18: 4.31
A20: 5 Year Historical Average
A21: SAIDI | F21: =IF(ISERROR(AVERAGE(B17:F17)), "", AVERAGE(B17:F17)) -> 2.244 | K21: =IF(ISERROR(AVERAGE(G17:K17)), "", AVERAGE(G17:K17)) -> 11.788 | P21: =IF(ISERROR(AVERAGE(L17:P17)), "", AVERAGE(L17:P17)) -> 3.272 | U21: =IF(ISERROR(AVERAGE(Q17:U17)), "", AVERAGE(Q17:U17)) -> 12.816
A22: SAIFI | F22: =IF(ISERROR(AVERAGE(B18:F18)), "", AVERAGE(B18:F18)) -> 2.154 | K22: =IF(ISERROR(AVERAGE(G18:K18)), "", AVERAGE(G18:K18)) -> 2.782 | P22: =IF(ISERROR(AVERAGE(L18:P18)), "", AVERAGE(L18:P18)) -> 3.298 | U22: =IF(ISERROR(AVERAGE(Q18:U18)), "", AVERAGE(Q18:U18)) -> 3.928
A24: SAIDI = System Average Interruption Duration Index
A25: SAIFI = System Average Interruption Frequency Index
A27: Service Quality
A29: Indicator | E29: OEB Minimum Standard | G29: =B16 -> 2021 | H29: =C16 -> 2022 | I29: =D16 -> 2023 | J29: =E16 -> 2024 | K29: =F16 -> 2025
A30: Low Voltage Connections | E30: 0.9 | G30: 0.9176 | H30: 0.9603 | I30: 0.958 | J30: 0.9751 | K30: 1
A31: High Voltage Connections | E31: 0.9
A32: Telephone Accessibility | E32: 0.65 | G32: 0.8111 | H32: 0.792 | I32: 0.8384 | J32: 0.8044 | K32: 0.863
A33: Appointments Met | E33: 0.9 | G33: 1 | H33: 0.9861 | I33: 1 | J33: 1 | K33: 1
A34: Written Response to Enquires | E34: 0.8 | G34: 0.9644 | H34: 0.9454 | I34: 0.9454 | J34: 0.9827 | K34: 0.9728
A35: Emergency Urban Response | E35: 0.8 | G35: 1 | H35: 1 | I35: 1 | J35: 1 | K35: 0.9846
A36: Emergency Rural Response | E36: 0.8 | G36: 1 | H36: 1 | I36: 1 | J36: 1 | K36: 1
A37: Telephone Call Abandon Rate | E37: 0.1 | G37: 0.0135 | H37: 0.0158 | I37: 0.0147 | J37: 0.0201 | K37: 0.0158
A38: Appointment Scheduling | E38: 0.9 | G38: 0.8782 | H38: 0.7306 | I38: 0.9736 | J38: 0.9909 | K38: 0.9931
A39: Rescheduling a Missed Appointment | E39: 1 | H39: 1
A40: Reconnection Performance Standard | E40: 0.85 | G40: 1 | H40: 1 | I40: 1 | J40: 1 | K40: 1

Sheet 2.1.4_ServiceQuality old (hidden)
A1: Low Voltage Services
A2: Time run: 5/31/2021 2:22:17 PM
B4: 2019 | AL4: 2020 | BV4: 2021
B5: January 1, 2018 - December 31, 2018 | AL5: January 1, 2019 - December 31, 2019 | BV5: January 1, 2020 - December 31, 2020
A6: Company Name | B6: LV services connected within 5 days | C6: New LV services requested | D6: Low Voltage Connections (OEB Min. Standard: 90%) | E6: HV services connected within 10 days | F6: New HV services requested | G6: High Voltage Connections (OEB Min. Standard: 90%) | H6: Number of appointments scheduled | I6: Number of appointments requested | J6: Appointments Scheduling (OEB Min. Standard: 90%) | K6: Number of appointments completed | L6: Number of appointments scheduled with customer / rep | M6: Appointments met (OEB Min Standard: 90%) | N6: Number of appointments rescheduled as required | O6: Number of missed appointments | P6: Rescheduled a Missed Appointment (OEB Standard: 100%) | Q6: Qualified incoming calls answered within 30 sec | R6: Qualified incoming calls | S6: Telephone Accessibility (OEB Min. Standard: 65%) | T6: Qualified incoming calls in each month that were abandoned after 30 sec | U6: Number of qualified incoming calls | V6: Telephone Call Abandon Rate (OEB Standard: not exceed 10%) | W6: Written responses provided within 10 days | X6: Number of qualified enquiries received | Y6: Written Responses to Enquiries (OEB Min. Standard: 80%) | Z6: Number of emergency urban calls responded within 60 min | AA6: Number of emergency urban calls received | AB6: Emergency Urban Response (OEB Min. Standard: 80%) | AC6: Number of emergency rural calls responded within 120 min | AD6: Number of emergency rural calls received | AE6: Emergency Rural Response (OEB Min. Standard: 80%) | AF6: Number of reconnections completed in 2 days | AG6: Number of reconnections for customers disconnected for non payment | AH6: Reconnection Performance Standards (OEB Min. Standard: 85%) | AI6: Micro-embedded generation facilities connected within 5 days | AJ6: Number of new micro-embedded generation facilities connected | AK6: New Micro-embedded Generation Facilities Connected (OEB Min. Standard: 90%) | AL6: LV services connected within 5 days | AM6: New LV services requested | AN6: Low Voltage Connections (OEB Min. Standard: 90%) | AO6: HV services connected within 10 days | AP6: New HV services requested | AQ6: High Voltage Connections (OEB Min. Standard: 90%) | AR6: Number of appointments scheduled | AS6: Number of appointments requested | AT6: Appointments Scheduling (OEB Min. Standard: 90%) | AU6: Number of appointments completed | AV6: Number of appointments scheduled with customer / rep | AW6: Appointments met (OEB Min Standard: 90%) | AX6: Number of appointments rescheduled as required | AY6: Number of missed appointments | AZ6: Rescheduled a Missed Appointment (OEB Standard: 100%) | BA6: Qualified incoming calls answered within 30 sec | BB6: Qualified incoming calls | BC6: Telephone Accessibility (OEB Min. Standard: 65%) | BD6: Qualified incoming calls in each month that were abandoned after 30 sec | BE6: Number of qualified incoming calls | BF6: Telephone Call Abandon Rate (OEB Standard: not exceed 10%) | BG6: Written responses provided within 10 days | BH6: Number of qualified enquiries received | BI6: Written Responses to Enquiries (OEB Min. Standard: 80%) | BJ6: Number of emergency urban calls responded within 60 min | BK6: Number of emergency urban calls received | BL6: Emergency Urban Response (OEB Min. Standard: 80%) | BM6: Number of emergency rural calls responded within 120 min | BN6: Number of emergency rural calls received | BO6: Emergency Rural Response (OEB Min. Standard: 80%) | BP6: Number of reconnections completed in 2 days | BQ6: Number of reconnections for customers disconnected for non payment | BR6: Reconnection Performance Standards (OEB Min. Standard: 85%) | BS6: Micro-embedded generation facilities connected within 5 days | BT6: Number of new micro-embedded generation facilities connected | BU6: New Micro-embedded Generation Facilities Connected (OEB Min. Standard: 90%) | BV6: LV services connected within 5 days | BW6: New LV services requested | BX6: Low Voltage Connections (OEB Min. Standard: 90%) | BY6: HV services connected within 10 days | BZ6: New HV services requested | CA6: High Voltage Connections (OEB Min. Standard: 90%) | CB6: Number of appointments scheduled | CC6: Number of appointments requested | CD6: Appointments Scheduling (OEB Min. Standard: 90%) | CE6: Number of appointments completed | CF6: Number of appointments scheduled with customer / rep | CG6: Appointments met (OEB Min Standard: 90%) | CH6: Number of appointments rescheduled as required | CI6: Number of missed appointments | CJ6: Rescheduled a Missed Appointment (OEB Standard: 100%) | CK6: Qualified incoming calls answered within 30 sec | CL6: Qualified incoming calls | CM6: Telephone Accessibility (OEB Min. Standard: 65%) | CN6: Qualified incoming calls in each month that were abandoned after 30 sec | CO6: Number of qualified incoming calls | CP6: Telephone Call Abandon Rate (OEB Standard: not exceed 10%) | CQ6: Written responses provided within 10 days | CR6: Number of qualified enquiries received | CS6: Written Responses to Enquiries (OEB Min. Standard: 80%) | CT6: Number of emergency urban calls responded within 60 min | CU6: Number of emergency urban calls received | CV6: Emergency Urban Response (OEB Min. Standard: 80%) | CW6: Number of emergency rural calls responded within 120 min | CX6: Number of emergency rural calls received | CY6: Emergency Rural Response (OEB Min. Standard: 80%) | CZ6: Number of reconnections completed in 2 days | DA6: Number of reconnections for customers disconnected for non payment | DB6: Reconnection Performance Standards (OEB Min. Standard: 85%) | DC6: Micro-embedded generation facilities connected within 5 days | DD6: Number of new micro-embedded generation facilities connected | DE6: New Micro-embedded Generation Facilities Connected (OEB Min. Standard: 90%)
A7: 1937680 Ontario Inc. | B7: 245 | C7: 247 | D7: 0.9919 | E7: 3 | F7: 3 | G7: 1 | H7: 5272 | I7: 6017 | J7: 0.8761841655 | K7: 1120 | L7: 1121 | M7: 0.9991 | N7: 609 | O7: 745 | P7: 0.8174 | Q7: 45830 | R7: 52394 | S7: 0.8747 | T7: 623 | U7: 52394 | V7: 0.0119 | W7: 970 | X7: 970 | Y7: 1 | Z7: 36 | AA7: 36 | AB7: 1 | AC7: 0 | AD7: 0 | AE7: N/A | AF7: 564 | AG7: 564 | AH7: 1 | AI7: 37 | AJ7: 37 | AK7: 1 | AL7: 228 | AM7: 234 | AN7: 0.9744 | AO7: 4 | AP7: 4 | AQ7: 1 | AR7: 6218 | AS7: 6957 | AT7: 0.8937760592 | AU7: 765 | AV7: 765 | AW7: 1 | AX7: 739 | AY7: 739 | AZ7: 1 | BA7: 48838 | BB7: 64604 | BC7: 0.756 | BD7: 1875 | BE7: 64604 | BF7: 0.029 | BG7: 1191 | BH7: 1191 | BI7: 1 | BJ7: 29 | BK7: 31 | BL7: 0.9355 | BM7: 0 | BN7: 0 | BO7: N/A | BP7: 569 | BQ7: 569 | BR7: 1 | BS7: 0 | BT7: 0 | BU7: N/A | BV7: 232 | BW7: 236 | BX7: 0.9831 | BY7: 13 | BZ7: 13 | CA7: 1 | CB7: 5682 | CC7: 6114 | CD7: 0.9293425083 | CE7: 558 | CF7: 559 | CG7: 0.9982 | CH7: 432 | CI7: 432 | CJ7: 1 | CK7: 46164 | CL7: 54947 | CM7: 0.8402 | CN7: 925 | CO7: 54947 | CP7: 0.0168 | CQ7: 2731 | CR7: 2731 | CS7: 1 | CT7: 26 | CU7: 26 | CV7: 1 | CW7: 0 | CX7: 0 | CY7: N/A | CZ7: 0 | DA7: 0 | DB7: N/A | DC7: 1 | DD7: 1 | DE7: 1
A8: Alectra Utilities Corporation | B8: 11779 | C8: 12438 | D8: 0.947 | E8: 9 | F8: 9 | G8: 1 | H8: 158185 | I8: 175278 | J8: 0.9024806023 | K8: 19729 | L8: 19805 | M8: 0.9962 | N8: 14393 | O8: 14416 | P8: 0.9984 | Q8: 567239 | R8: 727400 | S8: 0.7798 | T8: 11310 | U8: 727400 | V8: 0.0155 | W8: 115387 | X8: 118999 | Y8: 0.9696 | Z8: 942 | AA8: 989 | AB8: 0.9525 | AC8: 0 | AD8: 0 | AE8: N/A | AF8: 5183 | AG8: 5243 | AH8: 0.9886 | AI8: 737 | AJ8: 713 | AK8: 0.9674 | AL8: 7448 | AM8: 8044 | AN8: 0.9259 | AO8: 4 | AP8: 4 | AQ8: 1 | AR8: 164856 | AS8: 186943 | AT8: 0.8818516731 | AU8: 10391 | AV8: 10523 | AW8: 0.9875 | AX8: 20716 | AY8: 20749 | AZ8: 0.9984 | BA8: 583422 | BB8: 769870 | BC8: 0.7578 | BD8: 16047 | BE8: 769870 | BF8: 0.0208 | BG8: 104527 | BH8: 120888 | BI8: 0.8647 | BJ8: 864 | BK8: 894 | BL8: 0.9664 | BM8: 0 | BN8: 0 | BO8: N/A | BP8: 4915 | BQ8: 4934 | BR8: 0.9961 | BS8: 23 | BT8: 18 | BU8: 0.7826 | BV8: 6329 | BW8: 7006 | BX8: 0.9034 | BY8: 1 | BZ8: 1 | CA8: 1 | CB8: 172361 | CC8: 176198 | CD8: 0.9782233834 | CE8: 10534 | CF8: 10701 | CG8: 0.9844 | CH8: 3401 | CI8: 3401 | CJ8: 1 | CK8: 409953 | CL8: 612466 | CM8: 0.6693 | CN8: 26252 | CO8: 612466 | CP8: 0.0429 | CQ8: 135616 | CR8: 146999 | CS8: 0.9226 | CT8: 815 | CU8: 896 | CV8: 0.9096 | CW8: 0 | CX8: 0 | CY8: N/A | CZ8: 628 | DA8: 631 | DB8: 0.9952 | DC8: 62 | DD8: 61 | DE8: 0.9839
A9: Algoma Power Inc. | B9: 144 | C9: 146 | D9: 0.9863 | E9: 0 | F9: 0 | G9: N/A | H9: 1109 | I9: 1120 | J9: 0.9901785851 | K9: 220 | L9: 220 | M9: 1 | N9: 0 | O9: 0 | P9: N/A | Q9: 12263 | R9: 14250 | S9: 0.8606 | T9: 1188 | U9: 14250 | V9: 0.0834 | W9: 539 | X9: 664 | Y9: 0.8117 | Z9: 0 | AA9: 0 | AB9: N/A | AC9: 22 | AD9: 23 | AE9: 0.9565 | AF9: 52 | AG9: 52 | AH9: 1 | AI9: 1 | AJ9: 1 | AK9: 1 | AL9: 134 | AM9: 138 | AN9: 0.971 | AO9: 0 | AP9: 0 | AQ9: N/A | AR9: 1233 | AS9: 1236 | AT9: 0.9975728393 | AU9: 112 | AV9: 112 | AW9: 1 | AX9: 0 | AY9: 0 | AZ9: N/A | BA9: 12376 | BB9: 15164 | BC9: 0.8161 | BD9: 1020 | BE9: 15164 | BF9: 0.0673 | BG9: 308 | BH9: 308 | BI9: 1 | BJ9: 0 | BK9: 0 | BL9: N/A | BM9: 14 | BN9: 15 | BO9: 0.9333 | BP9: 73 | BQ9: 73 | BR9: 1 | BS9: 0 | BT9: 0 | BU9: N/A | BV9: 205 | BW9: 205 | BX9: 1 | BY9: 0 | BZ9: 0 | CA9: N/A | CB9: 1464 | CC9: 1466 | CD9: 0.9986357689 | CE9: 170 | CF9: 170 | CG9: 1 | CH9: 0 | CI9: 0 | CJ9: N/A | CK9: 9355 | CL9: 11026 | CM9: 0.8484 | CN9: 224 | CO9: 11026 | CP9: 0.0203 | CQ9: 1121 | CR9: 1121 | CS9: 1 | CT9: 0 | CU9: 0 | CV9: N/A | CW9: 17 | CX9: 18 | CY9: 0.9444 | CZ9: 27 | DA9: 27 | DB9: 1 | DC9: 0 | DD9: 0 | DE9: N/A
A10: Atikokan Hydro Inc. | B10: 3 | C10: 3 | D10: 1 | E10: 0 | F10: 0 | G10: N/A | H10: 161 | I10: 161 | J10: 1 | K10: 0 | L10: 0 | M10: N/A | N10: 0 | O10: 0 | P10: N/A | Q10: 996 | R10: 996 | S10: 1 | T10: 0 | U10: 0 | V10: N/A | W10: 22 | X10: 22 | Y10: 1 | Z10: 0 | AA10: 0 | AB10: N/A | AC10: 0 | AD10: 0 | AE10: N/A | AF10: 0 | AG10: 0 | AH10: N/A | AI10: 0 | AJ10: 0 | AK10: N/A | AL10: 2 | AM10: 2 | AN10: 1 | AO10: 0 | AP10: 0 | AQ10: N/A | AR10: 186 | AS10: 186 | AT10: 1 | AU10: 0 | AV10: 0 | AW10: N/A | AX10: 0 | AY10: 0 | AZ10: N/A | BA10: 1275 | BB10: 1275 | BC10: 1 | BD10: 0 | BE10: 1275 | BF10: 0 | BG10: 19 | BH10: 19 | BI10: 1 | BJ10: 0 | BK10: 0 | BL10: N/A | BM10: 1 | BN10: 1 | BO10: 1 | BP10: 1 | BQ10: 1 | BR10: 1 | BS10: 0 | BT10: 0 | BU10: N/A | BV10: 4 | BW10: 4 | BX10: 1 | BY10: 0 | BZ10: 0 | CA10: N/A | CB10: 162 | CC10: 162 | CD10: 1 | CE10: 0 | CF10: 0 | CG10: N/A | CH10: 0 | CI10: 0 | CJ10: N/A | CK10: 1854 | CL10: 1854 | CM10: 1 | CN10: 0 | CO10: 1854 | CP10: 0 | CQ10: 39 | CR10: 39 | CS10: 1 | CT10: 0 | CU10: 0 | CV10: N/A | CW10: 1 | CX10: 1 | CY10: 1 | CZ10: 0 | DA10: 0 | DB10: N/A | DC10: 0 | DD10: 0 | DE10: N/A
A11: Bluewater Power Distribution Corporation | B11: 218 | C11: 225 | D11: 0.9689 | E11: 0 | F11: 0 | G11: N/A | H11: 8467 | I11: 8476 | J11: 0.9989382029 | K11: 719 | L11: 721 | M11: 0.9972 | N11: 9 | O11: 9 | P11: 1 | Q11: 29035 | R11: 35274 | S11: 0.8231 | T11: 1049 | U11: 35274 | V11: 0.0297 | W11: 6842 | X11: 6854 | Y11: 0.9982 | Z11: 14 | AA11: 14 | AB11: 1 | AC11: 0 | AD11: 0 | AE11: N/A | AF11: 136 | AG11: 136 | AH11: 1 | AI11: 5 | AJ11: 5 | AK11: 1 | AL11: 443 | AM11: 444 | AN11: 0.9977 | AO11: 0 | AP11: 0 | AQ11: N/A | AR11: 8035 | AS11: 8100 | AT11: 0.9919753075 | AU11: 278 | AV11: 278 | AW11: 1 | AX11: 65 | AY11: 65 | AZ11: 1 | BA11: 28607 | BB11: 32730 | BC11: 0.874 | BD11: 934 | BE11: 32730 | BF11: 0.0285 | BG11: 8163 | BH11: 8197 | BI11: 0.9959 | BJ11: 11 | BK11: 11 | BL11: 1 | BM11: 0 | BN11: 0 | BO11: N/A | BP11: 155 | BQ11: 155 | BR11: 1 | BS11: 0 | BT11: 0 | BU11: N/A | BV11: 158 | BW11: 158 | BX11: 1 | BY11: 0 | BZ11: 0 | CA11: N/A | CB11: 8867 | CC11: 8972 | CD11: 0.988296926 | CE11: 402 | CF11: 402 | CG11: 1 | CH11: 105 | CI11: 105 | CJ11: 1 | CK11: 24356 | CL11: 29462 | CM11: 0.8267 | CN11: 782 | CO11: 29462 | CP11: 0.0265 | CQ11: 11103 | CR11: 11121 | CS11: 0.9984 | CT11: 6 | CU11: 6 | CV11: 1 | CW11: 2 | CX11: 2 | CY11: 1 | CZ11: 120 | DA11: 120 | DB11: 1 | DC11: 0 | DD11: 0 | DE11: N/A
A12: Brantford Power Inc. | B12: 206 | C12: 207 | D12: 0.9952 | E12: 0 | F12: 0 | G12: N/A | H12: 14169 | I12: 14169 | J12: 1 | K12: 672 | L12: 672 | M12: 1 | N12: 0 | O12: 0 | P12: N/A | Q12: 30227 | R12: 35459 | S12: 0.8524 | T12: 650 | U12: 35459 | V12: 0.0183 | W12: 4703 | X12: 4723 | Y12: 0.9958 | Z12: 51 | AA12: 52 | AB12: 0.9808 | AC12: 0 | AD12: 0 | AE12: N/A | AF12: 107 | AG12: 107 | AH12: 1 | AI12: 5 | AJ12: 5 | AK12: 1 | AL12: 406 | AM12: 406 | AN12: 1 | AO12: 0 | AP12: 0 | AQ12: N/A | AR12: 6945 | AS12: 6951 | AT12: 0.9991368055 | AU12: 568 | AV12: 569 | AW12: 0.9982 | AX12: 1 | AY12: 1 | AZ12: 1 | BA12: 27053 | BB12: 37814 | BC12: 0.7154 | BD12: 1545 | BE12: 37814 | BF12: 0.0409 | BG12: 4432 | BH12: 4432 | BI12: 1 | BJ12: 51 | BK12: 51 | BL12: 1 | BM12: 0 | BN12: 0 | BO12: N/A | BP12: 27 | BQ12: 27 | BR12: 1 | BS12: 0 | BT12: 0 | BU12: N/A | BV12: 515 | BW12: 515 | BX12: 1 | BY12: 0 | BZ12: 0 | CA12: N/A | CB12: 4608 | CC12: 4608 | CD12: 1 | CE12: 803 | CF12: 804 | CG12: 0.9988 | CH12: 1 | CI12: 1 | CJ12: 1 | CK12: 27903 | CL12: 34404 | CM12: 0.811 | CN12: 716 | CO12: 34404 | CP12: 0.0208 | CQ12: 5567 | CR12: 5577 | CS12: 0.9982 | CT12: 23 | CU12: 23 | CV12: 1 | CW12: 0 | CX12: 0 | CY12: N/A | CZ12: 85 | DA12: 85 | DB12: 1 | DC12: 0 | DD12: 0 | DE12: N/A
A13: Burlington Hydro Inc. | B13: 872 | C13: 887 | D13: 0.9831 | E13: 0 | F13: 0 | G13: N/A | H13: 13648 | I13: 15073 | J13: 0.9054601192 | K13: 1608 | L13: 1611 | M13: 0.9981 | N13: 1142 | O13: 1145 | P13: 0.9974 | Q13: 35423 | R13: 42533 | S13: 0.8328 | T13: 2498 | U13: 42533 | V13: 0.0587 | W13: 11507 | X13: 11622 | Y13: 0.9901 | Z13: 72 | AA13: 78 | AB13: 0.9231 | AC13: 0 | AD13: 0 | AE13: N/A | AF13: 446 | AG13: 446 | AH13: 1 | AI13: 38 | AJ13: 37 | AK13: 0.9737 | AL13: 400 | AM13: 400 | AN13: 1 | AO13: 3 | AP13: 3 | AQ13: 1 | AR13: 6356 | AS13: 13856 | AT13: 0.4587182403 | AU13: 1121 | AV13: 1121 | AW13: 1 | AX13: 7458 | AY13: 7458 | AZ13: 1 | BA13: 35279 | BB13: 43324 | BC13: 0.8143 | BD13: 2300 | BE13: 43324 | BF13: 0.0531 | BG13: 10519 | BH13: 10643 | BI13: 0.9883 | BJ13: 42 | BK13: 45 | BL13: 0.9333 | BM13: 0 | BN13: 0 | BO13: N/A | BP13: 198 | BQ13: 198 | BR13: 1 | BS13: 4 | BT13: 4 | BU13: 1 | BV13: 605 | BW13: 605 | BX13: 1 | BY13: 0 | BZ13: 0 | CA13: N/A | CB13: 13454 | CC13: 13548 | CD13: 0.9930617213 | CE13: 904 | CF13: 904 | CG13: 1 | CH13: 88 | CI13: 88 | CJ13: 1 | CK13: 33079 | CL13: 53223 | CM13: 0.6215 | CN13: 4341 | CO13: 53223 | CP13: 0.0816 | CQ13: 16385 | CR13: 16420 | CS13: 0.9979 | CT13: 58 | CU13: 60 | CV13: 0.9667 | CW13: 0 | CX13: 0 | CY13: N/A | CZ13: 95 | DA13: 95 | DB13: 1 | DC13: 4 | DD13: 4 | DE13: 1
A14: Canadian Niagara Power Inc. | B14: 292 | C14: 323 | D14: 0.904 | E14: 0 | F14: 0 | G14: N/A | H14: 7032 | I14: 7986 | J14: 0.880540967 | K14: 63 | L14: 63 | M14: 1 | N14: 0 | O14: 0 | P14: N/A | Q14: 29020 | R14: 35837 | S14: 0.8098 | T14: 1804 | U14: 35837 | V14: 0.0503 | W14: 721 | X14: 864 | Y14: 0.8345 | Z14: 33 | AA14: 33 | AB14: 1 | AC14: 13 | AD14: 13 | AE14: 1 | AF14: 190 | AG14: 190 | AH14: 1 | AI14: 35 | AJ14: 35 | AK14: 1 | AL14: 277 | AM14: 297 | AN14: 0.9327 | AO14: 0 | AP14: 0 | AQ14: N/A | AR14: 6908 | AS14: 8246 | AT14: 0.8377395272 | AU14: 56 | AV14: 56 | AW14: 1 | AX14: 0 | AY14: 0 | AZ14: N/A | BA14: 27026 | BB14: 33897 | BC14: 0.7973 | BD14: 2251 | BE14: 33897 | BF14: 0.0664 | BG14: 1054 | BH14: 1271 | BI14: 0.8293 | BJ14: 23 | BK14: 23 | BL14: 1 | BM14: 10 | BN14: 11 | BO14: 0.9091 | BP14: 236 | BQ14: 236 | BR14: 1 | BS14: 0 | BT14: 0 | BU14: N/A | BV14: 317 | BW14: 334 | BX14: 0.9491 | BY14: 0 | BZ14: 0 | CA14: N/A | CB14: 8640 | CC14: 8668 | CD14: 0.9967697263 | CE14: 38 | CF14: 38 | CG14: 1 | CH14: 0 | CI14: 0 | CJ14: N/A | CK14: 21464 | CL14: 26900 | CM14: 0.7979 | CN14: 433 | CO14: 26900 | CP14: 0.0161 | CQ14: 846 | CR14: 1037 | CS14: 0.8158 | CT14: 41 | CU14: 42 | CV14: 0.9762 | CW14: 7 | CX14: 7 | CY14: 1 | CZ14: 120 | DA14: 120 | DB14: 1 | DC14: 0 | DD14: 0 | DE14: N/A
A15: Centre Wellington Hydro Ltd. | B15: 213 | C15: 214 | D15: 0.9953 | E15: 0 | F15: 0 | G15: N/A | H15: 1849 | I15: 2286 | J15: 0.8088364005 | K15: 202 | L15: 203 | M15: 0.9951 | N15: 1 | O15: 1 | P15: 1 | Q15: 5503 | R15: 5622 | S15: 0.9788 | T15: 0 | U15: 5622 | V15: 0 | W15: 486 | X15: 486 | Y15: 1 | Z15: 1 | AA15: 1 | AB15: 1 | AC15: 0 | AD15: 0 | AE15: N/A | AF15: 18 | AG15: 18 | AH15: 1 | AI15: 1 | AJ15: 1 | AK15: 1 | AL15: 209 | AM15: 209 | AN15: 1 | AO15: 1 | AP15: 1 | AQ15: 1 | AR15: 1500 | AS15: 1844 | AT15: 0.8134490252 | AU15: 329 | AV15: 329 | AW15: 1 | AX15: 8 | AY15: 8 | AZ15: 1 | BA15: 5665 | BB15: 5771 | BC15: 0.9816 | BD15: 5 | BE15: 5771 | BF15: 0.0009 | BG15: 343 | BH15: 343 | BI15: 1 | BJ15: 1 | BK15: 1 | BL15: 1 | BM15: 0 | BN15: 0 | BO15: N/A | BP15: 29 | BQ15: 29 | BR15: 1 | BS15: 0 | BT15: 0 | BU15: N/A | BV15: 218 | BW15: 218 | BX15: 1 | BY15: 0 | BZ15: 0 | CA15: N/A | CB15: 1888 | CC15: 1892 | CD15: 0.9978858232 | CE15: 319 | CF15: 320 | CG15: 0.9969 | CH15: 0 | CI15: 0 | CJ15: N/A | CK15: 3455 | CL15: 4943 | CM15: 0.699 | CN15: 4 | CO15: 4943 | CP15: 0.0008 | CQ15: 442 | CR15: 442 | CS15: 1 | CT15: 2 | CU15: 2 | CV15: 1 | CW15: 0 | CX15: 0 | CY15: N/A | CZ15: 11 | DA15: 11 | DB15: 1 | DC15: 0 | DD15: 0 | DE15: N/A
A16: Chapleau Public Utilities Corporation | B16: 8 | C16: 8 | D16: 1 | E16: 0 | F16: 0 | G16: N/A | H16: 51 | I16: 51 | J16: 1 | K16: 8 | L16: 8 | M16: 1 | N16: 0 | O16: 0 | P16: N/A | Q16: 333 | R16: 345 | S16: 0.9652 | T16: 0 | U16: 345 | V16: 0 | W16: 39 | X16: 39 | Y16: 1 | Z16: 0 | AA16: 0 | AB16: N/A | AC16: 0 | AD16: 0 | AE16: N/A | AF16: 4 | AG16: 4 | AH16: 1 | AI16: 0 | AJ16: 0 | AK16: N/A | AL16: 11 | AM16: 11 | AN16: 1 | AO16: 0 | AP16: 0 | AQ16: N/A | AR16: 17 | AS16: 17 | AT16: 1 | AU16: 11 | AV16: 11 | AW16: 1 | AX16: 0 | AY16: 0 | AZ16: N/A | BA16: 326 | BB16: 333 | BC16: 0.979 | BD16: 0 | BE16: 333 | BF16: 0 | BG16: 35 | BH16: 35 | BI16: 1 | BJ16: 1 | BK16: 1 | BL16: 1 | BM16: 0 | BN16: 0 | BO16: N/A | BP16: 9 | BQ16: 9 | BR16: 1 | BS16: 0 | BT16: 0 | BU16: N/A | BV16: 6 | BW16: 6 | BX16: 1 | BY16: 0 | BZ16: 0 | CA16: N/A | CB16: 78 | CC16: 78 | CD16: 1 | CE16: 6 | CF16: 6 | CG16: 1 | CH16: 0 | CI16: 0 | CJ16: N/A | CK16: 482 | CL16: 494 | CM16: 0.9757 | CN16: 0 | CO16: 494 | CP16: 0 | CQ16: 41 | CR16: 41 | CS16: 1 | CT16: 1 | CU16: 1 | CV16: 1 | CW16: 0 | CX16: 0 | CY16: N/A | CZ16: 0 | DA16: 0 | DB16: N/A | DC16: 0 | DD16: 0 | DE16: N/A
A17: Cooperative Hydro Embrun Inc. | B17: 112 | C17: 112 | D17: 1 | E17: 0 | F17: 0 | G17: N/A | H17: 4 | I17: 4 | J17: 1 | K17: 4 | L17: 4 | M17: 1 | N17: 0 | O17: 0 | P17: N/A | Q17: 1479 | R17: 1569 | S17: 0.9426 | T17: 90 | U17: 1569 | V17: 0.0574 | W17: 364 | X17: 364 | Y17: 1 | Z17: 7 | AA17: 7 | AB17: 1 | AC17: 0 | AD17: 0 | AE17: N/A | AF17: 5 | AG17: 5 | AH17: 1 | AI17: 0 | AJ17: 0 | AK17: N/A | AL17: 27 | AM17: 27 | AN17: 1 | AO17: 0 | AP17: 0 | AQ17: N/A | AR17: 4 | AS17: 4 | AT17: 1 | AU17: 4 | AV17: 4 | AW17: 1 | AX17: 0 | AY17: 0 | AZ17: N/A | BA17: 1491 | BB17: 1547 | BC17: 0.9638 | BD17: 56 | BE17: 1547 | BF17: 0.0362 | BG17: 419 | BH17: 419 | BI17: 1 | BJ17: 7 | BK17: 7 | BL17: 1 | BM17: 0 | BN17: 0 | BO17: N/A | BP17: 3 | BQ17: 3 | BR17: 1 | BS17: 0 | BT17: 0 | BU17: N/A | BV17: 49 | BW17: 49 | BX17: 1 | BY17: 0 | BZ17: 0 | CA17: N/A | CB17: 7 | CC17: 7 | CD17: 1 | CE17: 8 | CF17: 8 | CG17: 1 | CH17: 0 | CI17: 0 | CJ17: N/A | CK17: 1346 | CL17: 1410 | CM17: 0.9546 | CN17: 64 | CO17: 1410 | CP17: 0.0454 | CQ17: 463 | CR17: 463 | CS17: 1 | CT17: 5 | CU17: 6 | CV17: 0.8333 | CW17: 0 | CX17: 0 | CY17: N/A | CZ17: 0 | DA17: 0 | DB17: N/A | DC17: 0 | DD17: 0 | DE17: N/A
